Workbook

Sheet 2023 Legal Max
G1: Col 1 | K1: Col 2 | O1: Col 3 | P1: Col 4 | Q1: Col 5 | R1: Col 6 | S1: Col 7 | T1: Col 8 | U1: Col 9 | V1: Col 10 | W1: Col 11 | X1: Col 12 | Y1: Col 13 | Z1: Col 14 | AA1: Col 15 | AB1: Col 16 | AC1: Col 17 | AD1: Col 18 | AE1: Col 19 | AF1: Col 20 | AG1: Col 21 | AH1: Col 22 | AI1: Col 23 | AJ1: Col 24 | AK1: Col 25 | AL1: Col 26 | AM1: Col 27 | AN1: Col 28 | AO1: Col 29 | AP1: Col 30 | AQ1: Col 31 | AR1: Col 32 | AS1: Col 33 | AT1: Col 34 | AU1: Col 35 | AV1: Col 36 | AW1: Col 37 | AX1: Col 38 | BA1: Col 38 a | BB1: Col 39 | BC1: Col 40 | BD1: Col 41 | BE1: Col 42 | BF1: Col 43 | BG1: Col 44 | BH1: Col 45 | BI1: Col 46 | BJ1: Col 47 | BK1: Col 48 | BL1: Col 49 | BM1: Col 50 | BN1: Col 51 | BO1: Col 52 | BP1: Col 53 | BQ1: Col 54 | BR1: Col 55 | BS1: Col 56 | BT1: Col 57 | BU1: Col 58 | BV1: Col 59 | BW1: Col 60 | BX1: Col 61 | BY1: Col 62 | BZ1: Col 63 | CA1: Col 64 | CB1: Col 65 | CC1: Col 66 | CD1: Col 67 | CE1: Col 68 | CF1: Col 69 | CG1: Col 70 | CH1: Col 71 | CI1: Col 72 | CJ1: Col 73 | CK1: Col 74 | CL1: Col 75 | CM1: Col 76 | CN1: Col 77 | CO1: Col 78 | CP1: Col 79 | CQ1: Col 80 | CR1: Col 81 | CS1: Col 82 | CT1: Col 83 | CU1: Col 84 | CV1: Col 85
B2: 2023-06-20 | D2: upadated | E2: N/A | F2: updated | G2: Updated | H2: Updated | I2: Updated | J2: Updated | K2: Updated | L2: Updated | M2: Info Only | N2: Updated | O2: Updated | P2: (Info Only) | Q2: (Info Only) | R2: (Info Only) | AR2: (Info Only) | AS2: (Info Only) | BB2: (Info Only) | BQ2: Table I - Low & High Enrollment | CA2: Table II - Transportation | CJ2: Table III - Tax Appeal Amounts | CO2: Table IV High Density At Risk | CS2: LOB Transfers
B3: County | C3: District Name | D3: FTE Enroll (excl 4yr old at-risk & virtual) 9/20/2019 | E3: FTE Enroll Tax Credit Scholarship (TCS) excl 4yr old at-risk & virtual - 9/20 | F3: FTE Enroll (excl 4yr old at-risk & virtual) 2/20/2020 | G3: FTE Enroll (excl 4yr old At-Risk & Virtual) 9/20/2019 2/20/2020 | H3: FTE Enroll (exc 4yr old at-risk & virtual) 9/20/2020 | I3: FTE Enroll Tax Credit Scholarship (TCS) excl 4yr old at-risk & virtual - 9/20 | J3: FTE Enroll (excl 4yr old at-risk & virtual) 2/20/2021 | K3: FTE Enroll (excl 4yr old At-Risk & Virtual ) 9/20/2020 2/20/2021 | L3: FTE Enroll (exc 4yr old at-risk & virtual) 9/20/2021 | M3: FTE Enroll Tax Credit Scholarship (TCS) excl 4yr old at-risk & virtual - 9/20 | N3: FTE Enroll (excl 4yr old at-risk & virtual) 2/20/2022 | O3: FTE Enroll (excl Pre-K At-Risk & Virtual) 9/20/2021 2/20/2022 | P3: FTE Enroll (excl Pre-K At-Risk & Virtual) 9/20/2022 | Q3: FTE Enroll (excl Pre-K At-Risk & Virtual) 2/20/2023 | R3: FTE Enroll (excl Pre-K At-Risk & Virtual) 9/20/2022 2/20/2023 | S3: Adjusted Enrollment | T3: Preschool-Aged At-Risk (3yr Old & 4yr Old) 9/20/2022 2/20/2023 | U3: Total Adjusted Enrollment (incl Pre-K AR) | V3: Low and High Enrollment WTD FTE | W3: Bilingual Contact Hours (9/20 + 2/20) | X3: Bilingual Contact Hours WTD FTE | Y3: Bilingual Headcount (9/20 + 2/20) | Z3: Bilingual Headcount WTD FTE | AA3: Bilingual (max Hrs or Hdct) WTD FTE | AB3: Career / Tech Ed Contact Hours (9/20 + 2/20) | AC3: Career / Tech Ed WTD FTE | AD3: Funded Headcount (excl Virtual, KAMS, JDC) (9/20 + 2/20) | AE3: Free Lunch (9/20 + 2/20) | AF3: At-Risk (Free Lunch) WTD FTE | AG3: High Density At-Risk (USD) | AH3: High Density At-Risk (School) | AI3: High Density At-Risk WTD FTE | AJ3: Transportation FTE > = 2.5 Miles (9/20 + 2/20) | AK3: Transportation Aid | AL3: Transportation WTD FTE | AM3: Ancillary WTD FTE | AN3: Cost of Living WTD FTE | AO3: Special Education State Aid | AP3: Special Education WTD FTE | AQ3: KAMS FTE | AR3: WTD FTE (excl COLA; incl SPED) | AS3: WTD FTE (excl SPED) | AT3: Virtual Full-Time FTE ($5600) | AU3: Virtual Part-Time FTE ($2800) | AV3: Virtual Credits (20yrs & Older) ($709) | AW3: Virtual Credits (Dropout 19 and Under) ($709) | AX3: Virtual State Aid | AY3: Sequence Number | AZ3: Audit | BA3: Republished | BB3: General Fund (excl SPED) | BC3: Computed General Fund (incl SPED) | BD3: Adopted General Fund | BE3: Legal Max General Fund (before reductions) | BF3: Prior Year Budget Law Violation | BG3: Current Year Trans Audit Adjust | BH3: Prior Year Virtual Credits Audit Adj | BI3: Prior Year Total Reductions | BJ3: 2022-2023 Adjusted Legal General Fund Budget | BK3: 2022-2023 LOB Base General Fund | BL3: 2022-2023 LOB Authorized Percent | BM3: Computed Local Option Budget | BN3: Adopted Local Option Budget | BO3: Legal Max Local Option Budget | BP3: LOB Percent Used | BQ3: 0-99.9 | BU3: 100-299.9 | BY3: 300-1621.9 | BZ3: 1622 and higher | CA3: Area in Square Miles | CB3: Density Figure Range | CC3: Order ID | CD3: Per Capita | CE3: Base Change (Factor A) | CF3: Factor Per Capita Allowance (Factor B) | CG3: Factor per Capita times Constant (Factor C) | CH3: Factor per Capita Allowance times the Variable (Factor D) | CI3: Trans Weighted FTE | CJ3: Board of Tax Appeals (Ancillary) | CK3: Form 150-Board of Tax Appeals (Cost of Living) | CL3: Cost of Living Authorized Percent | CM3: Max Computed Cost of Living | CN3: Cost of Living Authority | CO3: Percent of Free Lunch (Current Year) | CP3: Free Lunch >=50% | CQ3: Free Lunch >=35% <50% | CR3: Total WTD FTE (inc. SPED) | CS3: At-Risk LOB Transfer | CT3: Bilingual LOB Transfer | CU3: At-Risk General Fund Transfer | CV3: Total FTE (incl Virtual)
A4: Total | C4: STATE TOTALS | D4: =SUM(D5:D290) -> 464596.4 | E4: =SUM(E5:E290) -> 79 | F4: 562.4 | G4: 465079.8 | H4: 446279.5 | I4: =SUM(I5:I290) -> 205.2 | J4: 580.4 | K4: 446654.7 | L4: 447667.9 | M4: =SUM(M5:M290) -> 0 | N4: 470.9 | O4: 448138.8 | P4: 448950.2 | Q4: 436 | R4: 449386.2 | S4: 452476.2 | T4: 5689 | U4: 458165.2 | V4: 54197.2 | W4: 114787 | X4: 7556.8 | Y4: 43935 | Z4: 8129.3 | AA4: 8823.3 | AB4: 116388 | AC4: 9700.9 | AD4: 467257 | AE4: 195487 | AF4: 94616.4 | AG4: 13005.2 | AH4: 13810.1 | AI4: 14397.9 | AJ4: 130576.8 | AK4: =SUM(AK5:AK290) -> 107647599 | AL4: 22214.3 | AM4: 4331.8 | AN4: 6797.6 | AO4: 510300286 | AP4: 105303.2 | AQ4: 26 | AR4: 771776.2 | AS4: 673270.6 | AT4: 7376 | AU4: 1485.4 | AV4: 5680.5 | AW4: 442.5 | AX4: 49805939 | BB4: =SUM(BB5:BB290) -> 3312475267 | BC4: 3822774567 | BD4: 3906486204 | BE4: 3822774567 | BF4: 0 | BG4: -1927265 | BH4: -636157 | BI4: -2563422 | BJ4: 3820211145 | BK4: 3832245458 | BL4: =SUM(BL5:BL290)/286 -> 0.3198 | BM4: 1242999974 | BN4: 1239720018 | BO4: 1227020044 | BP4: =SUM(BP5:BP290)/286 -> 0.3157 | BQ4: =SUM(BQ5:BQ290) -> 441.8 | BU4: =SUM(BU5:BU290) -> 9479.3 | BY4: =SUM(BY5:BY290) -> 32353.4 | BZ4: 11922.7 | CA4: 82019.7 | CB4: 1369.94 | CC4: 7719 | CD4: =SUM(CD5:CD290) -> 300140 | CE4: =SUM(CE5:CE290) -> 332.761 | CF4: =SUM(CF5:CF290) -> 92520499 | CG4: =SUM(CG5:CG290) -> 92520499 | CH4: =SUM(CH5:CH290) -> 107647599 | CI4: 22214.3 | CJ4: 20991885 | CK4: 33273102 | CL4: 0.5214 | CM4: =SUM(CM5:CM290) -> 39000215 | CN4: =SUM(CN5:CN290) -> 32941682 | CO4: =AE4/AD4 -> 0.4184 | CP4: =SUM(CP5:CP290) -> 10916.2 | CQ4: =SUM(CQ5:CQ290) -> 2089 | CR4: =SUM(CR5:CR290) -> 778573.8 | CS4: =SUM(CS5:CS290) -> 150112006 | CT4: =SUM(CT5:CT290) -> 14074035 | CU4: =SUM(CU5:CU290) -> 528283303 | CV4: 464884
A5: 101 | B5: Neosho | C5: Erie-Galesburg | D5: 467 | F5: 0 | G5: =SUM(D5-E5+F5) -> 467 | H5: 422.5 | J5: 0 | K5: =SUM(H5-I5+J5) -> 422.5 | L5: 419 | M5: 0 | N5: 0 | O5: =SUM(L5-M5+N5) -> 419 | P5: =IF(ISNA(VLOOKUP($CW5,'Audit Values'!$A:$BX,2,FALSE)),'Preliminary SO66'!C4,VLOOKUP($CW5,'Audit Values'!$A:$BX,74,FALSE)) -> 395.5 | Q5: =IF(ISNA(VLOOKUP($CW5,'Audit Values'!$A:$BX,2,FALSE)),'Preliminary SO66'!F4,VLOOKUP($CW5,'Audit Values'!$A$2:$BX$805,4,FALSE)) -> 0 | R5: =SUM(P5+Q5) -> 395.5 | S5: =IF('Military Provision'!J5="YES", MAX('2023 Legal Max'!O5,'2023 Legal Max'!K5,AVERAGE('2023 Legal Max'!G5,'2023 Legal Max'!K5,'2023 Legal Max'!O5)), MAX(O5, K5)) -> 422.5 | T5: =IF(ISNA(VLOOKUP($CW5,'Audit Values'!$A:$BV,2,FALSE)),'Preliminary SO66'!AL4,VLOOKUP($CW5,'Audit Values'!$A:$BV,59,FALSE)) -> 5 | U5: =S5+T5 -> 427.5 | V5: =MAX(BQ5, BU5, BY5, BZ5) -> 188.5 | W5: =IF(ISNA(VLOOKUP($CW5,'Audit Values'!$A:$BX,2,FALSE)),'Preliminary SO66'!AM4,VLOOKUP($CW5,'Audit Values'!$A:$BX,63,FALSE)) -> 0 | X5: =(W5/6)*'Weighting Factors'!$O$7 -> 0 | Y5: =IF(ISNA(VLOOKUP($CW5,'Audit Values'!$A:$BX,2,FALSE)),'Preliminary SO66'!AN4,VLOOKUP($CW5,'Audit Values'!$A:$BX,62,FALSE)) -> 6 | Z5: =Y5*'Weighting Factors'!$O$8 -> 1.1 | AA5: =MAX(X5,Z5) -> 1.1 | AB5: =IF(ISNA(VLOOKUP($CW5,'Audit Values'!$A:$BX,2,FALSE)),'Preliminary SO66'!AO4,VLOOKUP($CW5,'Audit Values'!$A:$BX,61,FALSE)) -> 95.3 | AC5: =AB5/6*'Weighting Factors'!$O$6 -> 7.9 | AD5: =IF(ISNA(VLOOKUP($CW5,'Audit Values'!$A:$BV,2,FALSE)),'Preliminary SO66'!AS4,VLOOKUP($CW5,'Audit Values'!$A:$BV,64,FALSE)) -> 408 | AE5: =IF(ISNA(VLOOKUP($CW5,'Audit Values'!$A:$BV,2,FALSE)),'Preliminary SO66'!AP4,VLOOKUP($CW5,'Audit Values'!$A:$BV,65,FALSE)) -> 208 | AF5: =IF(A5=207, AE5,(AE5))*'Weighting Factors'!$O$9 -> 100.7 | AG5: =MAX(CP5,CQ5) -> 21.8 | AH5: =IF(ISNA(VLOOKUP($CW5,'Audit Values'!$A:$BX,2,FALSE)),'Preliminary SO66'!AG4,VLOOKUP($CW5,'Audit Values'!$A:$BX,71,FALSE)) -> 18 | AI5: =MAX(AG5, AH5) -> 21.8 | AJ5: =IF(ISNA(VLOOKUP($CW5,'Audit Values'!$A:$BV,2,FALSE)),'Preliminary SO66'!AR4,VLOOKUP($CW5,'Audit Values'!$A:$BV,66,FALSE)) -> 205 | AK5: =CH5 -> 250443 | AL5: =AK5/'Weighting Factors'!$O$5 -> 51.7 | AM5: =CJ5/'Weighting Factors'!$O$5 -> 0 | AN5: =CN5/'Weighting Factors'!$O$5 -> 0 | AO5: 517771 | AP5: =AO5/'Weighting Factors'!$O$5 -> 106.8 | AQ5: =IF(ISNA(VLOOKUP($CW5,'Audit Values'!$A:$BV,2,FALSE)),'Preliminary SO66'!X4,VLOOKUP($CW5,'Audit Values'!$A:$BV,48,FALSE)) -> 0 | AR5: =SUM(U5+V5+AA5+AC5+AF5+AI5+AL5+AM5+AP5+AQ5) -> 906 | AS5: =SUM(U5+V5+AA5+AC5+AF5+AI5+AL5+AM5+AN5+AQ5) -> 799.2 | AT5: =IF(ISNA(VLOOKUP($CW5,'Audit Values'!$A$2:$BV$786,2,FALSE)),'Preliminary SO66'!AA4,VLOOKUP($CW5,'Audit Values'!$A$2:$BV$786,41,FALSE)) -> 3 | AU5: =IF(ISNA(VLOOKUP($CW5,'Audit Values'!$A$2:$BV$786,2,FALSE)),'Preliminary SO66'!AB4,VLOOKUP($CW5,'Audit Values'!$A$2:$BV$786,42,FALSE)) -> 0 | AV5: 0 | AW5: 5 | AX5: =SUM(AT5*'Weighting Factors'!$R$10)+('2023 Legal Max'!AU5*'Weighting Factors'!$R$11)+('2023 Legal Max'!AV5*'Weighting Factors'!$R$12)+('2023 Legal Max'!AW5*'Weighting Factors'!$R$12) -> 20345 | AY5: =IF(ISNA(VLOOKUP($CW5,'Audit Values'!$A$2:$BV$805,2,FALSE)),"",IF(AND('Weighting Factors'!G5>0,VLOOKUP($CW5,'Audit Values'!$A$2:$BV$805,51,FALSE)<'Weighting Factors'!G5),'Weighting Factors'!G5,VLOOKUP($CW5,'Audit Values'!$A$2:$BV$805,51,FALSE))) -> 2 | AZ5: =IF(ISNA(VLOOKUP($CW5,'Audit Values'!$A:$BW,2,FALSE)),"",VLOOKUP($CW5,'Audit Values'!$A:$BW,52,FALSE)) -> A | BA5: =IF('Weighting Factors'!F5="","",IF('Weighting Factors'!H5="Pending","PX","R")) ->  | BB5: =SUM((U5+V5+AA5+AC5+AF5+AI5+AL5+AM5+AQ5+AN5)*'Weighting Factors'!$O$5)+'2023 Legal Max'!AX5 -> 3893268 | BC5: =SUM((AR5+AN5)*'Weighting Factors'!$O$5)+AX5 -> 4410821 | BD5: =IF('Weighting Factors'!F5>0,'Weighting Factors'!F5,'Preliminary SO66'!AV4) -> 4740144 | BE5: =MIN(BC5,BD5) -> 4410821 | BF5: ='Weighting Factors'!E5 -> 0 | BG5: =Transportation!G5 -> 0 | BH5: =IF(ISNA(VLOOKUP($CW5,'Audit Values'!$A$2:$BU$380,2,FALSE)), 0, VLOOKUP($CW5,'Audit Values'!$A$2:$BU$380,73,FALSE)) -> 0 | BI5: =SUM(BF5:BH5) -> 0 | BJ5: =BE5+BI5 -> 4410821 | BK5: =SUM((U5+V5+AA5+AC5+AF5+AI5+AL5+AM5+AN5)*'Weighting Factors'!O$12)+(MAX(AO5,'Weighting Factors'!B5)) -> 4656837 | BL5: ='LOB%'!F3 -> 0.31 | BM5: =BK5*BL5 -> 1443619 | BN5: 1468782 | BO5: =MIN(BM5,BN5) -> 1443619 | BP5: =BO5/BK5 -> 0.31 | BQ5: =ROUND(IF(U5<=99.9,(U5*1.014331),0),1) -> 0 | BR5: =AND(U5>99.9,U5<=299.9) -> FALSE | BS5: =IF(BR5=TRUE,ROUND((U5-100)*9.655,3),0) -> 0 | BT5: =IF(BR5=TRUE,ROUND(((7337-BS5)/3642.4)-1,6),0) -> 0 | BU5: =ROUND(BT5*U5,1) -> 0 | BV5: =AND(U5>299.9,U5<=1621.9) -> TRUE | BW5: =IF(BV5=TRUE,ROUND((U5-300)*1.2375,4),0) -> 157.7813 | BX5: =IF(BV5=TRUE,ROUND(((5406-BW5)/3642.4)-1,6),0) -> 0.440868 | BY5: =ROUND(BX5*U5,1) -> 188.5 | BZ5: =ROUND(IF(U5>=1622,(U5*0.03504),0),1) -> 0 | CA5: 325 | CB5: =AJ5/CA5 -> 0.631 | CC5: =IF(CB5<0.06,1,IF(CB5>=18.29,52,MATCH(CB5-0.001,'Weighting Factors'!$W$5:$W$156)+1)) -> 27 | CD5: =VLOOKUP(CC5, 'Weighting Factors'!$U$5:$X$56,4) -> 1050 | CE5: =('Weighting Factors'!$O$5/'Weighting Factors'!$O$14) -> 1.1635 | CF5: =AJ5*CD5 -> 215250 | CG5: =CF5*'Weighting Factors'!$Q$7 -> 215250 | CH5: =CG5*CE5 -> 250443 | CI5: =AK5/'Weighting Factors'!$O$5 -> 51.7 | CJ5: 0 | CK5: 0 | CL5: 0 | CM5: =SUM((AR5*'Weighting Factors'!$O$5)+'2023 Legal Max'!AX5)*CL5 -> 0 | CN5: =IF(CK5>CM5,CM5,CK5) -> 0 | CO5: 0.5098 | CP5: =IF(CO5>=50%,AE5*10.5%,0) -> 21.8 | CQ5: =IF(AND(CO5>35%,CO5<50%),AE5*(CO5-35%)*0.7,0) -> 0 | CR5: =AS5+AP5 -> 906 | CS5: ='Required Transfers'!L5 -> 161397 | CT5: ='Required Transfers'!O5 -> 1732 | CU5: ='Required Transfers'!H5 -> 593635 | CV5: =SUM(R5+T5+AT5+AU5+AV5/6) -> 403.5 | CW5: D0101
A6: 102 | B6: Gray | C6: Cimarron-Ensign | D6: 654.4 | F6: 0 | G6: =SUM(D6-E6+F6) -> 654.4 | H6: 633 | J6: 0 | K6: =SUM(H6-I6+J6) -> 633 | L6: 626.5 | M6: 0 | N6: 0 | O6: 626.5 | P6: =IF(ISNA(VLOOKUP($CW6,'Audit Values'!$A:$BX,2,FALSE)),'Preliminary SO66'!C5,VLOOKUP($CW6,'Audit Values'!$A:$BX,74,FALSE)) -> 590.1 | Q6: =IF(ISNA(VLOOKUP($CW6,'Audit Values'!$A:$BX,2,FALSE)),'Preliminary SO66'!F5,VLOOKUP($CW6,'Audit Values'!$A$2:$BX$805,4,FALSE)) -> 0 | R6: =SUM(P6+Q6) -> 590.1 | S6: =IF('Military Provision'!J6="YES", MAX('2023 Legal Max'!O6,'2023 Legal Max'!K6,AVERAGE('2023 Legal Max'!G6,'2023 Legal Max'!K6,'2023 Legal Max'!O6)), MAX(O6, K6)) -> 633 | T6: =IF(ISNA(VLOOKUP($CW6,'Audit Values'!$A:$BV,2,FALSE)),'Preliminary SO66'!AL5,VLOOKUP($CW6,'Audit Values'!$A:$BV,59,FALSE)) -> 4.5 | U6: =S6+T6 -> 637.5 | V6: 235.6 | W6: =IF(ISNA(VLOOKUP($CW6,'Audit Values'!$A:$BX,2,FALSE)),'Preliminary SO66'!AM5,VLOOKUP($CW6,'Audit Values'!$A:$BX,63,FALSE)) -> 476.8 | X6: =(W6/6)*'Weighting Factors'!$O$7 -> 31.4 | Y6: =IF(ISNA(VLOOKUP($CW6,'Audit Values'!$A:$BX,2,FALSE)),'Preliminary SO66'!AN5,VLOOKUP($CW6,'Audit Values'!$A:$BX,62,FALSE)) -> 110 | Z6: =Y6*'Weighting Factors'!$O$8 -> 20.4 | AA6: 31.4 | AB6: =IF(ISNA(VLOOKUP($CW6,'Audit Values'!$A:$BX,2,FALSE)),'Preliminary SO66'!AO5,VLOOKUP($CW6,'Audit Values'!$A:$BX,61,FALSE)) -> 209.6 | AC6: =AB6/6*'Weighting Factors'!$O$6 -> 17.5 | AD6: =IF(ISNA(VLOOKUP($CW6,'Audit Values'!$A:$BV,2,FALSE)),'Preliminary SO66'!AS5,VLOOKUP($CW6,'Audit Values'!$A:$BV,64,FALSE)) -> 604 | AE6: =IF(ISNA(VLOOKUP($CW6,'Audit Values'!$A:$BV,2,FALSE)),'Preliminary SO66'!AP5,VLOOKUP($CW6,'Audit Values'!$A:$BV,65,FALSE)) -> 206 | AF6: =IF(A6=207, AE6,(AE6))*'Weighting Factors'!$O$9 -> 99.7 | AG6: 0 | AH6: =IF(ISNA(VLOOKUP($CW6,'Audit Values'!$A:$BX,2,FALSE)),'Preliminary SO66'!AG5,VLOOKUP($CW6,'Audit Values'!$A:$BX,71,FALSE)) -> 4.3 | AI6: 4.3 | AJ6: =IF(ISNA(VLOOKUP($CW6,'Audit Values'!$A:$BV,2,FALSE)),'Preliminary SO66'!AR5,VLOOKUP($CW6,'Audit Values'!$A:$BV,66,FALSE)) -> 94 | AK6: 144367 | AL6: =AK6/'Weighting Factors'!$O$5 -> 29.8 | AM6: =CJ6/'Weighting Factors'!$O$5 -> 0 | AN6: =CN6/'Weighting Factors'!$O$5 -> 0 | AO6: 470881 | AP6: =AO6/'Weighting Factors'!$O$5 -> 97.2 | AQ6: =IF(ISNA(VLOOKUP($CW6,'Audit Values'!$A:$BV,2,FALSE)),'Preliminary SO66'!X5,VLOOKUP($CW6,'Audit Values'!$A:$BV,48,FALSE)) -> 0 | AR6: =SUM(U6+V6+AA6+AC6+AF6+AI6+AL6+AM6+AP6+AQ6) -> 1153 | AS6: =SUM(U6+V6+AA6+AC6+AF6+AI6+AL6+AM6+AN6+AQ6) -> 1055.8 | AT6: =IF(ISNA(VLOOKUP($CW6,'Audit Values'!$A$2:$BV$786,2,FALSE)),'Preliminary SO66'!AA5,VLOOKUP($CW6,'Audit Values'!$A$2:$BV$786,41,FALSE)) -> 0 | AU6: =IF(ISNA(VLOOKUP($CW6,'Audit Values'!$A$2:$BV$786,2,FALSE)),'Preliminary SO66'!AB5,VLOOKUP($CW6,'Audit Values'!$A$2:$BV$786,42,FALSE)) -> 0 | AV6: 0 | AW6: 0 | AX6: =SUM(AT6*'Weighting Factors'!$R$10)+('2023 Legal Max'!AU6*'Weighting Factors'!$R$11)+('2023 Legal Max'!AV6*'Weighting Factors'!$R$12)+('2023 Legal Max'!AW6*'Weighting Factors'!$R$12) -> 0 | AY6: =IF(ISNA(VLOOKUP($CW6,'Audit Values'!$A$2:$BV$805,2,FALSE)),"",IF(AND('Weighting Factors'!G6>0,VLOOKUP($CW6,'Audit Values'!$A$2:$BV$805,51,FALSE)<'Weighting Factors'!G6),'Weighting Factors'!G6,VLOOKUP($CW6,'Audit Values'!$A$2:$BV$805,51,FALSE))) -> 28 | AZ6: =IF(ISNA(VLOOKUP($CW6,'Audit Values'!$A:$BW,2,FALSE)),"",VLOOKUP($CW6,'Audit Values'!$A:$BW,52,FALSE)) -> A | BA6: =IF('Weighting Factors'!F6="","",IF('Weighting Factors'!H6="Pending","PX","R")) -> R | BB6: =SUM((U6+V6+AA6+AC6+AF6+AI6+AL6+AM6+AQ6+AN6)*'Weighting Factors'!$O$5)+'2023 Legal Max'!AX6 -> 5116407 | BC6: =SUM((AR6+AN6)*'Weighting Factors'!$O$5)+AX6 -> 5587438 | BD6: =IF('Weighting Factors'!F6>0,'Weighting Factors'!F6,'Preliminary SO66'!AV5) -> 5592284 | BE6: =MIN(BC6,BD6) -> 5587438 | BF6: ='Weighting Factors'!E6 -> 0 | BG6: =Transportation!G6 -> 0 | BH6: =IF(ISNA(VLOOKUP($CW6,'Audit Values'!$A$2:$BU$380,2,FALSE)), 0, VLOOKUP($CW6,'Audit Values'!$A$2:$BU$380,73,FALSE)) -> 0 | BI6: 0 | BJ6: 5587438 | BK6: =SUM((U6+V6+AA6+AC6+AF6+AI6+AL6+AM6+AN6)*'Weighting Factors'!O$12)+(MAX(AO6,'Weighting Factors'!B6)) -> 5724473 | BL6: ='LOB%'!F4 -> 0.31 | BM6: 1774587 | BN6: 1666219 | BO6: =MIN(BM6,BN6) -> 1666219 | BP6: 0.2911 | BQ6: 0 | BR6: FALSE | BS6: 0 | BT6: 0 | BU6: 0 | BV6: TRUE | BW6: 417.6563 | BX6: 0.369521 | BY6: 235.6 | BZ6: 0 | CA6: 538 | CB6: 0.175 | CC6: =IF(CB6<0.06,1,IF(CB6>=18.29,52,MATCH(CB6-0.001,'Weighting Factors'!$W$5:$W$156)+1)) -> 13 | CD6: =VLOOKUP(CC6, 'Weighting Factors'!$U$5:$X$56,4) -> 1320 | CE6: =('Weighting Factors'!$O$5/'Weighting Factors'!$O$14) -> 1.1635 | CF6: 124080 | CG6: =CF6*'Weighting Factors'!$Q$7 -> 124080 | CH6: 144367 | CI6: =AK6/'Weighting Factors'!$O$5 -> 29.8 | CJ6: 0 | CK6: 0 | CL6: 0 | CM6: =SUM((AR6*'Weighting Factors'!$O$5)+'2023 Legal Max'!AX6)*CL6 -> 0 | CN6: 0 | CO6: 0.3411 | CP6: 0 | CQ6: 0 | CR6: 1153 | CS6: ='Required Transfers'!L6 -> 144628 | CT6: ='Required Transfers'!O6 -> 45488 | CU6: ='Required Transfers'!H6 -> 503984 | CV6: 594.6 | CW6: D0102
A7: 103 | B7: Cheyenne | C7: Cheylin | D7: 143 | F7: 0 | G7: 143 | H7: 144 | J7: 0 | K7: 144 | L7: 144.8 | M7: 0 | N7: 0 | O7: 144.8 | P7: =IF(ISNA(VLOOKUP($CW7,'Audit Values'!$A:$BX,2,FALSE)),'Preliminary SO66'!C6,VLOOKUP($CW7,'Audit Values'!$A:$BX,74,FALSE)) -> 147 | Q7: =IF(ISNA(VLOOKUP($CW7,'Audit Values'!$A:$BX,2,FALSE)),'Preliminary SO66'!F6,VLOOKUP($CW7,'Audit Values'!$A$2:$BX$805,4,FALSE)) -> 0 | R7: 147 | S7: =IF('Military Provision'!J7="YES", MAX('2023 Legal Max'!O7,'2023 Legal Max'!K7,AVERAGE('2023 Legal Max'!G7,'2023 Legal Max'!K7,'2023 Legal Max'!O7)), MAX(O7, K7)) -> 144.8 | T7: =IF(ISNA(VLOOKUP($CW7,'Audit Values'!$A:$BV,2,FALSE)),'Preliminary SO66'!AL6,VLOOKUP($CW7,'Audit Values'!$A:$BV,59,FALSE)) -> 0 | U7: 144.8 | V7: 129.7 | W7: =IF(ISNA(VLOOKUP($CW7,'Audit Values'!$A:$BX,2,FALSE)),'Preliminary SO66'!AM6,VLOOKUP($CW7,'Audit Values'!$A:$BX,63,FALSE)) -> 66.4 | X7: =(W7/6)*'Weighting Factors'!$O$7 -> 4.4 | Y7: =IF(ISNA(VLOOKUP($CW7,'Audit Values'!$A:$BX,2,FALSE)),'Preliminary SO66'!AN6,VLOOKUP($CW7,'Audit Values'!$A:$BX,62,FALSE)) -> 21 | Z7: =Y7*'Weighting Factors'!$O$8 -> 3.9 | AA7: 4.4 | AB7: =IF(ISNA(VLOOKUP($CW7,'Audit Values'!$A:$BX,2,FALSE)),'Preliminary SO66'!AO6,VLOOKUP($CW7,'Audit Values'!$A:$BX,61,FALSE)) -> 40.1 | AC7: =AB7/6*'Weighting Factors'!$O$6 -> 3.3 | AD7: =IF(ISNA(VLOOKUP($CW7,'Audit Values'!$A:$BV,2,FALSE)),'Preliminary SO66'!AS6,VLOOKUP($CW7,'Audit Values'!$A:$BV,64,FALSE)) -> 148 | AE7: =IF(ISNA(VLOOKUP($CW7,'Audit Values'!$A:$BV,2,FALSE)),'Preliminary SO66'!AP6,VLOOKUP($CW7,'Audit Values'!$A:$BV,65,FALSE)) -> 62 | AF7: =IF(A7=207, AE7,(AE7))*'Weighting Factors'!$O$9 -> 30 | AG7: 3 | AH7: =IF(ISNA(VLOOKUP($CW7,'Audit Values'!$A:$BX,2,FALSE)),'Preliminary SO66'!AG6,VLOOKUP($CW7,'Audit Values'!$A:$BX,71,FALSE)) -> 3.9 | AI7: 3.9 | AJ7: =IF(ISNA(VLOOKUP($CW7,'Audit Values'!$A:$BV,2,FALSE)),'Preliminary SO66'!AR6,VLOOKUP($CW7,'Audit Values'!$A:$BV,66,FALSE)) -> 58 | AK7: 101225 | AL7: =AK7/'Weighting Factors'!$O$5 -> 20.9 | AM7: =CJ7/'Weighting Factors'!$O$5 -> 0 | AN7: =CN7/'Weighting Factors'!$O$5 -> 0 | AO7: 103352 | AP7: =AO7/'Weighting Factors'!$O$5 -> 21.3 | AQ7: =IF(ISNA(VLOOKUP($CW7,'Audit Values'!$A:$BV,2,FALSE)),'Preliminary SO66'!X6,VLOOKUP($CW7,'Audit Values'!$A:$BV,48,FALSE)) -> 0 | AR7: 358.3 | AS7: 337 | AT7: =IF(ISNA(VLOOKUP($CW7,'Audit Values'!$A$2:$BV$786,2,FALSE)),'Preliminary SO66'!AA6,VLOOKUP($CW7,'Audit Values'!$A$2:$BV$786,41,FALSE)) -> 0 | AU7: =IF(ISNA(VLOOKUP($CW7,'Audit Values'!$A$2:$BV$786,2,FALSE)),'Preliminary SO66'!AB6,VLOOKUP($CW7,'Audit Values'!$A$2:$BV$786,42,FALSE)) -> 0 | AV7: 0 | AW7: 0 | AX7: =SUM(AT7*'Weighting Factors'!$R$10)+('2023 Legal Max'!AU7*'Weighting Factors'!$R$11)+('2023 Legal Max'!AV7*'Weighting Factors'!$R$12)+('2023 Legal Max'!AW7*'Weighting Factors'!$R$12) -> 0 | AY7: =IF(ISNA(VLOOKUP($CW7,'Audit Values'!$A$2:$BV$805,2,FALSE)),"",IF(AND('Weighting Factors'!G7>0,VLOOKUP($CW7,'Audit Values'!$A$2:$BV$805,51,FALSE)<'Weighting Factors'!G7),'Weighting Factors'!G7,VLOOKUP($CW7,'Audit Values'!$A$2:$BV$805,51,FALSE))) -> 14 | AZ7: =IF(ISNA(VLOOKUP($CW7,'Audit Values'!$A:$BW,2,FALSE)),"",VLOOKUP($CW7,'Audit Values'!$A:$BW,52,FALSE)) -> A | BA7: =IF('Weighting Factors'!F7="","",IF('Weighting Factors'!H7="Pending","PX","R")) ->  | BB7: =SUM((U7+V7+AA7+AC7+AF7+AI7+AL7+AM7+AQ7+AN7)*'Weighting Factors'!$O$5)+'2023 Legal Max'!AX7 -> 1633102 | BC7: =SUM((AR7+AN7)*'Weighting Factors'!$O$5)+AX7 -> 1736322 | BD7: =IF('Weighting Factors'!F7>0,'Weighting Factors'!F7,'Preliminary SO66'!AV6) -> 1809012 | BE7: 1736322 | BF7: ='Weighting Factors'!E7 -> 0 | BG7: =Transportation!G7 -> 0 | BH7: =IF(ISNA(VLOOKUP($CW7,'Audit Values'!$A$2:$BU$380,2,FALSE)), 0, VLOOKUP($CW7,'Audit Values'!$A$2:$BU$380,73,FALSE)) -> 0 | BI7: 0 | BJ7: 1736322 | BK7: =SUM((U7+V7+AA7+AC7+AF7+AI7+AL7+AM7+AN7)*'Weighting Factors'!O$12)+(MAX(AO7,'Weighting Factors'!B7)) -> 1845599 | BL7: ='LOB%'!F5 -> 0.31 | BM7: 572136 | BN7: 576704 | BO7: 572136 | BP7: 0.31 | BQ7: 0 | BR7: TRUE | BS7: 432.544 | BT7: 0.895579 | BU7: 129.7 | BV7: FALSE | BW7: 0 | BX7: 0 | BY7: 0 | BZ7: 0 | CA7: 688 | CB7: 0.084 | CC7: =IF(CB7<0.06,1,IF(CB7>=18.29,52,MATCH(CB7-0.001,'Weighting Factors'!$W$5:$W$156)+1)) -> 4 | CD7: =VLOOKUP(CC7, 'Weighting Factors'!$U$5:$X$56,4) -> 1500 | CE7: =('Weighting Factors'!$O$5/'Weighting Factors'!$O$14) -> 1.1635 | CF7: 87000 | CG7: =CF7*'Weighting Factors'!$Q$7 -> 87000 | CH7: 101225 | CI7: =AK7/'Weighting Factors'!$O$5 -> 20.9 | CJ7: 0 | CK7: 0 | CL7: 0 | CM7: =SUM((AR7*'Weighting Factors'!$O$5)+'2023 Legal Max'!AX7)*CL7 -> 0 | CN7: 0 | CO7: 0.4189 | CP7: 0 | CQ7: 3 | CR7: 358.3 | CS7: ='Required Transfers'!L7 -> 47888 | CT7: ='Required Transfers'!O7 -> 7037 | CU7: ='Required Transfers'!H7 -> 164279 | CV7: 147 | CW7: D0103
A8: 105 | B8: Rawlins | C8: Rawlins County | D8: 364 | F8: 0 | G8: 364 | H8: 341 | J8: 0 | K8: 341 | L8: 360.9 | M8: 0 | N8: 0 | O8: 360.9 | P8: =IF(ISNA(VLOOKUP($CW8,'Audit Values'!$A:$BX,2,FALSE)),'Preliminary SO66'!C7,VLOOKUP($CW8,'Audit Values'!$A:$BX,74,FALSE)) -> 374.5 | Q8: =IF(ISNA(VLOOKUP($CW8,'Audit Values'!$A:$BX,2,FALSE)),'Preliminary SO66'!F7,VLOOKUP($CW8,'Audit Values'!$A$2:$BX$805,4,FALSE)) -> 0 | R8: 374.5 | S8: =IF('Military Provision'!J8="YES", MAX('2023 Legal Max'!O8,'2023 Legal Max'!K8,AVERAGE('2023 Legal Max'!G8,'2023 Legal Max'!K8,'2023 Legal Max'!O8)), MAX(O8, K8)) -> 360.9 | T8: =IF(ISNA(VLOOKUP($CW8,'Audit Values'!$A:$BV,2,FALSE)),'Preliminary SO66'!AL7,VLOOKUP($CW8,'Audit Values'!$A:$BV,59,FALSE)) -> 0 | U8: 360.9 | V8: 167.3 | W8: =IF(ISNA(VLOOKUP($CW8,'Audit Values'!$A:$BX,2,FALSE)),'Preliminary SO66'!AM7,VLOOKUP($CW8,'Audit Values'!$A:$BX,63,FALSE)) -> 51.7 | X8: =(W8/6)*'Weighting Factors'!$O$7 -> 3.4 | Y8: =IF(ISNA(VLOOKUP($CW8,'Audit Values'!$A:$BX,2,FALSE)),'Preliminary SO66'!AN7,VLOOKUP($CW8,'Audit Values'!$A:$BX,62,FALSE)) -> 23 | Z8: =Y8*'Weighting Factors'!$O$8 -> 4.3 | AA8: 4.3 | AB8: =IF(ISNA(VLOOKUP($CW8,'Audit Values'!$A:$BX,2,FALSE)),'Preliminary SO66'!AO7,VLOOKUP($CW8,'Audit Values'!$A:$BX,61,FALSE)) -> 117.6 | AC8: =AB8/6*'Weighting Factors'!$O$6 -> 9.8 | AD8: =IF(ISNA(VLOOKUP($CW8,'Audit Values'!$A:$BV,2,FALSE)),'Preliminary SO66'!AS7,VLOOKUP($CW8,'Audit Values'!$A:$BV,64,FALSE)) -> 375 | AE8: =IF(ISNA(VLOOKUP($CW8,'Audit Values'!$A:$BV,2,FALSE)),'Preliminary SO66'!AP7,VLOOKUP($CW8,'Audit Values'!$A:$BV,65,FALSE)) -> 152 | AF8: =IF(A8=207, AE8,(AE8))*'Weighting Factors'!$O$9 -> 73.6 | AG8: 5.9 | AH8: =IF(ISNA(VLOOKUP($CW8,'Audit Values'!$A:$BX,2,FALSE)),'Preliminary SO66'!AG7,VLOOKUP($CW8,'Audit Values'!$A:$BX,71,FALSE)) -> 6.3 | AI8: 6.3 | AJ8: =IF(ISNA(VLOOKUP($CW8,'Audit Values'!$A:$BV,2,FALSE)),'Preliminary SO66'!AR7,VLOOKUP($CW8,'Audit Values'!$A:$BV,66,FALSE)) -> 134.5 | AK8: 203438 | AL8: =AK8/'Weighting Factors'!$O$5 -> 42 | AM8: =CJ8/'Weighting Factors'!$O$5 -> 0 | AN8: =CN8/'Weighting Factors'!$O$5 -> 0 | AO8: 275311 | AP8: =AO8/'Weighting Factors'!$O$5 -> 56.8 | AQ8: =IF(ISNA(VLOOKUP($CW8,'Audit Values'!$A:$BV,2,FALSE)),'Preliminary SO66'!X7,VLOOKUP($CW8,'Audit Values'!$A:$BV,48,FALSE)) -> 0 | AR8: 721 | AS8: 664.2 | AT8: =IF(ISNA(VLOOKUP($CW8,'Audit Values'!$A$2:$BV$786,2,FALSE)),'Preliminary SO66'!AA7,VLOOKUP($CW8,'Audit Values'!$A$2:$BV$786,41,FALSE)) -> 0 | AU8: =IF(ISNA(VLOOKUP($CW8,'Audit Values'!$A$2:$BV$786,2,FALSE)),'Preliminary SO66'!AB7,VLOOKUP($CW8,'Audit Values'!$A$2:$BV$786,42,FALSE)) -> 0 | AV8: 0 | AW8: 0 | AX8: =SUM(AT8*'Weighting Factors'!$R$10)+('2023 Legal Max'!AU8*'Weighting Factors'!$R$11)+('2023 Legal Max'!AV8*'Weighting Factors'!$R$12)+('2023 Legal Max'!AW8*'Weighting Factors'!$R$12) -> 0 | AY8: =IF(ISNA(VLOOKUP($CW8,'Audit Values'!$A$2:$BV$805,2,FALSE)),"",IF(AND('Weighting Factors'!G8>0,VLOOKUP($CW8,'Audit Values'!$A$2:$BV$805,51,FALSE)<'Weighting Factors'!G8),'Weighting Factors'!G8,VLOOKUP($CW8,'Audit Values'!$A$2:$BV$805,51,FALSE))) -> 8 | AZ8: =IF(ISNA(VLOOKUP($CW8,'Audit Values'!$A:$BW,2,FALSE)),"",VLOOKUP($CW8,'Audit Values'!$A:$BW,52,FALSE)) -> A | BA8: =IF('Weighting Factors'!F8="","",IF('Weighting Factors'!H8="Pending","PX","R")) ->  | BB8: =SUM((U8+V8+AA8+AC8+AF8+AI8+AL8+AM8+AQ8+AN8)*'Weighting Factors'!$O$5)+'2023 Legal Max'!AX8 -> 3218713 | BC8: =SUM((AR8+AN8)*'Weighting Factors'!$O$5)+AX8 -> 3493966 | BD8: =IF('Weighting Factors'!F8>0,'Weighting Factors'!F8,'Preliminary SO66'!AV7) -> 3538549 | BE8: 3493966 | BF8: ='Weighting Factors'!E8 -> 0 | BG8: =Transportation!G8 -> 0 | BH8: =IF(ISNA(VLOOKUP($CW8,'Audit Values'!$A$2:$BU$380,2,FALSE)), 0, VLOOKUP($CW8,'Audit Values'!$A$2:$BU$380,73,FALSE)) -> 0 | BI8: 0 | BJ8: 3493966 | BK8: =SUM((U8+V8+AA8+AC8+AF8+AI8+AL8+AM8+AN8)*'Weighting Factors'!O$12)+(MAX(AO8,'Weighting Factors'!B8)) -> 3596153 | BL8: ='LOB%'!F6 -> 0.31 | BM8: 1114807 | BN8: 1110517 | BO8: 1110517 | BP8: 0.3088 | BQ8: 0 | BR8: FALSE | BS8: 0 | BT8: 0 | BU8: 0 | BV8: TRUE | BW8: 75.3638 | BX8: 0.463496 | BY8: 167.3 | BZ8: 0 | CA8: 740.1 | CB8: 0.182 | CC8: =IF(CB8<0.06,1,IF(CB8>=18.29,52,MATCH(CB8-0.001,'Weighting Factors'!$W$5:$W$156)+1)) -> 14 | CD8: =VLOOKUP(CC8, 'Weighting Factors'!$U$5:$X$56,4) -> 1300 | CE8: =('Weighting Factors'!$O$5/'Weighting Factors'!$O$14) -> 1.1635 | CF8: 174850 | CG8: =CF8*'Weighting Factors'!$Q$7 -> 174850 | CH8: 203438 | CI8: =AK8/'Weighting Factors'!$O$5 -> 42 | CJ8: 0 | CK8: 0 | CL8: 0 | CM8: =SUM((AR8*'Weighting Factors'!$O$5)+'2023 Legal Max'!AX8)*CL8 -> 0 | CN8: 0 | CO8: 0.4053 | CP8: 0 | CQ8: 5.9 | CR8: 721 | CS8: ='Required Transfers'!L8 -> 113384 | CT8: ='Required Transfers'!O8 -> 6663 | CU8: ='Required Transfers'!H8 -> 387195 | CV8: 374.5 | CW8: D0105
A9: 106 | B9: Ness | C9: Western Plains | D9: 109.5 | F9: 0 | G9: 109.5 | H9: 104.5 | J9: 0 | K9: 104.5 | L9: 107.5 | M9: 0 | N9: 0 | O9: 107.5 | P9: =IF(ISNA(VLOOKUP($CW9,'Audit Values'!$A:$BX,2,FALSE)),'Preliminary SO66'!C8,VLOOKUP($CW9,'Audit Values'!$A:$BX,74,FALSE)) -> 106.5 | Q9: =IF(ISNA(VLOOKUP($CW9,'Audit Values'!$A:$BX,2,FALSE)),'Preliminary SO66'!F8,VLOOKUP($CW9,'Audit Values'!$A$2:$BX$805,4,FALSE)) -> 0 | R9: 106.5 | S9: =IF('Military Provision'!J9="YES", MAX('2023 Legal Max'!O9,'2023 Legal Max'!K9,AVERAGE('2023 Legal Max'!G9,'2023 Legal Max'!K9,'2023 Legal Max'!O9)), MAX(O9, K9)) -> 107.5 | T9: =IF(ISNA(VLOOKUP($CW9,'Audit Values'!$A:$BV,2,FALSE)),'Preliminary SO66'!AL8,VLOOKUP($CW9,'Audit Values'!$A:$BV,59,FALSE)) -> 4 | U9: 111.5 | V9: 109.7 | W9: =IF(ISNA(VLOOKUP($CW9,'Audit Values'!$A:$BX,2,FALSE)),'Preliminary SO66'!AM8,VLOOKUP($CW9,'Audit Values'!$A:$BX,63,FALSE)) -> 93.2 | X9: =(W9/6)*'Weighting Factors'!$O$7 -> 6.1 | Y9: =IF(ISNA(VLOOKUP($CW9,'Audit Values'!$A:$BX,2,FALSE)),'Preliminary SO66'!AN8,VLOOKUP($CW9,'Audit Values'!$A:$BX,62,FALSE)) -> 20 | Z9: =Y9*'Weighting Factors'!$O$8 -> 3.7 | AA9: 6.1 | AB9: =IF(ISNA(VLOOKUP($CW9,'Audit Values'!$A:$BX,2,FALSE)),'Preliminary SO66'!AO8,VLOOKUP($CW9,'Audit Values'!$A:$BX,61,FALSE)) -> 13.1 | AC9: =AB9/6*'Weighting Factors'!$O$6 -> 1.1 | AD9: =IF(ISNA(VLOOKUP($CW9,'Audit Values'!$A:$BV,2,FALSE)),'Preliminary SO66'!AS8,VLOOKUP($CW9,'Audit Values'!$A:$BV,64,FALSE)) -> 115 | AE9: =IF(ISNA(VLOOKUP($CW9,'Audit Values'!$A:$BV,2,FALSE)),'Preliminary SO66'!AP8,VLOOKUP($CW9,'Audit Values'!$A:$BV,65,FALSE)) -> 68 | AF9: =IF(A9=207, AE9,(AE9))*'Weighting Factors'!$O$9 -> 32.9 | AG9: 7.1 | AH9: =IF(ISNA(VLOOKUP($CW9,'Audit Values'!$A:$BX,2,FALSE)),'Preliminary SO66'!AG8,VLOOKUP($CW9,'Audit Values'!$A:$BX,71,FALSE)) -> 7.1 | AI9: 7.1 | AJ9: =IF(ISNA(VLOOKUP($CW9,'Audit Values'!$A:$BV,2,FALSE)),'Preliminary SO66'!AR8,VLOOKUP($CW9,'Audit Values'!$A:$BV,66,FALSE)) -> 25 | AK9: 47122 | AL9: =AK9/'Weighting Factors'!$O$5 -> 9.7 | AM9: =CJ9/'Weighting Factors'!$O$5 -> 0 | AN9: =CN9/'Weighting Factors'!$O$5 -> 0 | AO9: 85730 | AP9: =AO9/'Weighting Factors'!$O$5 -> 17.7 | AQ9: =IF(ISNA(VLOOKUP($CW9,'Audit Values'!$A:$BV,2,FALSE)),'Preliminary SO66'!X8,VLOOKUP($CW9,'Audit Values'!$A:$BV,48,FALSE)) -> 0 | AR9: 295.8 | AS9: 278.1 | AT9: =IF(ISNA(VLOOKUP($CW9,'Audit Values'!$A$2:$BV$786,2,FALSE)),'Preliminary SO66'!AA8,VLOOKUP($CW9,'Audit Values'!$A$2:$BV$786,41,FALSE)) -> 0 | AU9: =IF(ISNA(VLOOKUP($CW9,'Audit Values'!$A$2:$BV$786,2,FALSE)),'Preliminary SO66'!AB8,VLOOKUP($CW9,'Audit Values'!$A$2:$BV$786,42,FALSE)) -> 0 | AV9: 0 | AW9: 0 | AX9: =SUM(AT9*'Weighting Factors'!$R$10)+('2023 Legal Max'!AU9*'Weighting Factors'!$R$11)+('2023 Legal Max'!AV9*'Weighting Factors'!$R$12)+('2023 Legal Max'!AW9*'Weighting Factors'!$R$12) -> 0 | AY9: =IF(ISNA(VLOOKUP($CW9,'Audit Values'!$A$2:$BV$805,2,FALSE)),"",IF(AND('Weighting Factors'!G9>0,VLOOKUP($CW9,'Audit Values'!$A$2:$BV$805,51,FALSE)<'Weighting Factors'!G9),'Weighting Factors'!G9,VLOOKUP($CW9,'Audit Values'!$A$2:$BV$805,51,FALSE))) -> 20 | AZ9: =IF(ISNA(VLOOKUP($CW9,'Audit Values'!$A:$BW,2,FALSE)),"",VLOOKUP($CW9,'Audit Values'!$A:$BW,52,FALSE)) -> A | BA9: =IF('Weighting Factors'!F9="","",IF('Weighting Factors'!H9="Pending","PX","R")) -> R | BB9: =SUM((U9+V9+AA9+AC9+AF9+AI9+AL9+AM9+AQ9+AN9)*'Weighting Factors'!$O$5)+'2023 Legal Max'!AX9 -> 1347673 | BC9: =SUM((AR9+AN9)*'Weighting Factors'!$O$5)+AX9 -> 1433447 | BD9: =IF('Weighting Factors'!F9>0,'Weighting Factors'!F9,'Preliminary SO66'!AV8) -> 1470276 | BE9: 1433447 | BF9: ='Weighting Factors'!E9 -> 0 | BG9: =Transportation!G9 -> 0 | BH9: =IF(ISNA(VLOOKUP($CW9,'Audit Values'!$A$2:$BU$380,2,FALSE)), 0, VLOOKUP($CW9,'Audit Values'!$A$2:$BU$380,73,FALSE)) -> 0 | BI9: 0 | BJ9: 1433447 | BK9: =SUM((U9+V9+AA9+AC9+AF9+AI9+AL9+AM9+AN9)*'Weighting Factors'!O$12)+(MAX(AO9,'Weighting Factors'!B9)) -> 1517369 | BL9: ='LOB%'!F7 -> 0.33 | BM9: 500732 | BN9: 483874 | BO9: 483874 | BP9: 0.3189 | BQ9: 0 | BR9: TRUE | BS9: 111.033 | BT9: 0.983848 | BU9: 109.7 | BV9: FALSE | BW9: 0 | BX9: 0 | BY9: 0 | BZ9: 0 | CA9: 601.2 | CB9: 0.042 | CC9: =IF(CB9<0.06,1,IF(CB9>=18.29,52,MATCH(CB9-0.001,'Weighting Factors'!$W$5:$W$156)+1)) -> 1 | CD9: =VLOOKUP(CC9, 'Weighting Factors'!$U$5:$X$56,4) -> 1620 | CE9: =('Weighting Factors'!$O$5/'Weighting Factors'!$O$14) -> 1.1635 | CF9: 40500 | CG9: =CF9*'Weighting Factors'!$Q$7 -> 40500 | CH9: 47122 | CI9: =AK9/'Weighting Factors'!$O$5 -> 9.7 | CJ9: 0 | CK9: 0 | CL9: 0 | CM9: =SUM((AR9*'Weighting Factors'!$O$5)+'2023 Legal Max'!AX9)*CL9 -> 0 | CN9: 0 | CO9: 0.5913 | CP9: 7.1 | CQ9: 0 | CR9: 295.8 | CS9: ='Required Transfers'!L9 -> 54533 | CT9: ='Required Transfers'!O9 -> 10113 | CU9: ='Required Transfers'!H9 -> 193840 | CV9: 110.5 | CW9: D0106
A10: 107 | B10: Jewell | C10: Rock Hills | D10: 316 | F10: 0 | G10: 316 | H10: 328.2 | J10: 0 | K10: 328.2 | L10: 374 | M10: 0 | N10: 0 | O10: 374 | P10: =IF(ISNA(VLOOKUP($CW10,'Audit Values'!$A:$BX,2,FALSE)),'Preliminary SO66'!C9,VLOOKUP($CW10,'Audit Values'!$A:$BX,74,FALSE)) -> 355.5 | Q10: =IF(ISNA(VLOOKUP($CW10,'Audit Values'!$A:$BX,2,FALSE)),'Preliminary SO66'!F9,VLOOKUP($CW10,'Audit Values'!$A$2:$BX$805,4,FALSE)) -> 0 | R10: 355.5 | S10: =IF('Military Provision'!J10="YES", MAX('2023 Legal Max'!O10,'2023 Legal Max'!K10,AVERAGE('2023 Legal Max'!G10,'2023 Legal Max'!K10,'2023 Legal Max'!O10)), MAX(O10, K10)) -> 374 | T10: =IF(ISNA(VLOOKUP($CW10,'Audit Values'!$A:$BV,2,FALSE)),'Preliminary SO66'!AL9,VLOOKUP($CW10,'Audit Values'!$A:$BV,59,FALSE)) -> 5 | U10: 379 | V10: 173.3 | W10: =IF(ISNA(VLOOKUP($CW10,'Audit Values'!$A:$BX,2,FALSE)),'Preliminary SO66'!AM9,VLOOKUP($CW10,'Audit Values'!$A:$BX,63,FALSE)) -> 0 | X10: =(W10/6)*'Weighting Factors'!$O$7 -> 0 | Y10: =IF(ISNA(VLOOKUP($CW10,'Audit Values'!$A:$BX,2,FALSE)),'Preliminary SO66'!AN9,VLOOKUP($CW10,'Audit Values'!$A:$BX,62,FALSE)) -> 0 | Z10: =Y10*'Weighting Factors'!$O$8 -> 0 | AA10: 0 | AB10: =IF(ISNA(VLOOKUP($CW10,'Audit Values'!$A:$BX,2,FALSE)),'Preliminary SO66'!AO9,VLOOKUP($CW10,'Audit Values'!$A:$BX,61,FALSE)) -> 116.4 | AC10: =AB10/6*'Weighting Factors'!$O$6 -> 9.7 | AD10: =IF(ISNA(VLOOKUP($CW10,'Audit Values'!$A:$BV,2,FALSE)),'Preliminary SO66'!AS9,VLOOKUP($CW10,'Audit Values'!$A:$BV,64,FALSE)) -> 371 | AE10: =IF(ISNA(VLOOKUP($CW10,'Audit Values'!$A:$BV,2,FALSE)),'Preliminary SO66'!AP9,VLOOKUP($CW10,'Audit Values'!$A:$BV,65,FALSE)) -> 152 | AF10: =IF(A10=207, AE10,(AE10))*'Weighting Factors'!$O$9 -> 73.6 | AG10: 6.4 | AH10: =IF(ISNA(VLOOKUP($CW10,'Audit Values'!$A:$BX,2,FALSE)),'Preliminary SO66'!AG9,VLOOKUP($CW10,'Audit Values'!$A:$BX,71,FALSE)) -> 6.7 | AI10: 6.7 | AJ10: =IF(ISNA(VLOOKUP($CW10,'Audit Values'!$A:$BV,2,FALSE)),'Preliminary SO66'!AR9,VLOOKUP($CW10,'Audit Values'!$A:$BV,66,FALSE)) -> 167 | AK10: 246767 | AL10: =AK10/'Weighting Factors'!$O$5 -> 50.9 | AM10: =CJ10/'Weighting Factors'!$O$5 -> 0 | AN10: =CN10/'Weighting Factors'!$O$5 -> 0 | AO10: 357422 | AP10: =AO10/'Weighting Factors'!$O$5 -> 73.8 | AQ10: =IF(ISNA(VLOOKUP($CW10,'Audit Values'!$A:$BV,2,FALSE)),'Preliminary SO66'!X9,VLOOKUP($CW10,'Audit Values'!$A:$BV,48,FALSE)) -> 0 | AR10: 767 | AS10: 693.2 | AT10: =IF(ISNA(VLOOKUP($CW10,'Audit Values'!$A$2:$BV$786,2,FALSE)),'Preliminary SO66'!AA9,VLOOKUP($CW10,'Audit Values'!$A$2:$BV$786,41,FALSE)) -> 0 | AU10: =IF(ISNA(VLOOKUP($CW10,'Audit Values'!$A$2:$BV$786,2,FALSE)),'Preliminary SO66'!AB9,VLOOKUP($CW10,'Audit Values'!$A$2:$BV$786,42,FALSE)) -> 0 | AV10: 0 | AW10: 0 | AX10: =SUM(AT10*'Weighting Factors'!$R$10)+('2023 Legal Max'!AU10*'Weighting Factors'!$R$11)+('2023 Legal Max'!AV10*'Weighting Factors'!$R$12)+('2023 Legal Max'!AW10*'Weighting Factors'!$R$12) -> 0 | AY10: =IF(ISNA(VLOOKUP($CW10,'Audit Values'!$A$2:$BV$805,2,FALSE)),"",IF(AND('Weighting Factors'!G10>0,VLOOKUP($CW10,'Audit Values'!$A$2:$BV$805,51,FALSE)<'Weighting Factors'!G10),'Weighting Factors'!G10,VLOOKUP($CW10,'Audit Values'!$A$2:$BV$805,51,FALSE))) -> 12 | AZ10: =IF(ISNA(VLOOKUP($CW10,'Audit Values'!$A:$BW,2,FALSE)),"",VLOOKUP($CW10,'Audit Values'!$A:$BW,52,FALSE)) -> A | BA10: =IF('Weighting Factors'!F10="","",IF('Weighting Factors'!H10="Pending","PX","R")) ->  | BB10: =SUM((U10+V10+AA10+AC10+AF10+AI10+AL10+AM10+AQ10+AN10)*'Weighting Factors'!$O$5)+'2023 Legal Max'!AX10 -> 3359247 | BC10: =SUM((AR10+AN10)*'Weighting Factors'!$O$5)+AX10 -> 3716882 | BD10: =IF('Weighting Factors'!F10>0,'Weighting Factors'!F10,'Preliminary SO66'!AV9) -> 3755165 | BE10: 3716882 | BF10: ='Weighting Factors'!E10 -> 0 | BG10: =Transportation!G10 -> 0 | BH10: =IF(ISNA(VLOOKUP($CW10,'Audit Values'!$A$2:$BU$380,2,FALSE)), 0, VLOOKUP($CW10,'Audit Values'!$A$2:$BU$380,73,FALSE)) -> 0 | BI10: 0 | BJ10: 3716882 | BK10: =SUM((U10+V10+AA10+AC10+AF10+AI10+AL10+AM10+AN10)*'Weighting Factors'!O$12)+(MAX(AO10,'Weighting Factors'!B10)) -> 3762420 | BL10: ='LOB%'!F8 -> 0.31 | BM10: 1166350 | BN10: 1152500 | BO10: 1152500 | BP10: 0.3063 | BQ10: 0 | BR10: FALSE | BS10: 0 | BT10: 0 | BU10: 0 | BV10: TRUE | BW10: 97.7625 | BX10: 0.457346 | BY10: 173.3 | BZ10: 0 | CA10: 762 | CB10: 0.219 | CC10: =IF(CB10<0.06,1,IF(CB10>=18.29,52,MATCH(CB10-0.001,'Weighting Factors'!$W$5:$W$156)+1)) -> 16 | CD10: =VLOOKUP(CC10, 'Weighting Factors'!$U$5:$X$56,4) -> 1270 | CE10: =('Weighting Factors'!$O$5/'Weighting Factors'!$O$14) -> 1.1635 | CF10: 212090 | CG10: =CF10*'Weighting Factors'!$Q$7 -> 212090 | CH10: 246767 | CI10: =AK10/'Weighting Factors'!$O$5 -> 50.9 | CJ10: 0 | CK10: 0 | CL10: 0 | CM10: =SUM((AR10*'Weighting Factors'!$O$5)+'2023 Legal Max'!AX10)*CL10 -> 0 | CN10: 0 | CO10: 0.4097 | CP10: 0 | CQ10: 6.4 | CR10: 767 | CS10: ='Required Transfers'!L10 -> 111332 | CT10: ='Required Transfers'!O10 -> 0 | CU10: ='Required Transfers'!H10 -> 389134 | CV10: 360.5 | CW10: D0107
A11: 108 | B11: Washington | C11: Washington Co. Schools | D11: 350.7 | F11: 0 | G11: 350.7 | H11: 365.1 | J11: 0 | K11: 365.1 | L11: 347 | M11: 0 | N11: 0 | O11: 347 | P11: =IF(ISNA(VLOOKUP($CW11,'Audit Values'!$A:$BX,2,FALSE)),'Preliminary SO66'!C10,VLOOKUP($CW11,'Audit Values'!$A:$BX,74,FALSE)) -> 347.5 | Q11: =IF(ISNA(VLOOKUP($CW11,'Audit Values'!$A:$BX,2,FALSE)),'Preliminary SO66'!F10,VLOOKUP($CW11,'Audit Values'!$A$2:$BX$805,4,FALSE)) -> 0 | R11: 347.5 | S11: =IF('Military Provision'!J11="YES", MAX('2023 Legal Max'!O11,'2023 Legal Max'!K11,AVERAGE('2023 Legal Max'!G11,'2023 Legal Max'!K11,'2023 Legal Max'!O11)), MAX(O11, K11)) -> 365.1 | T11: =IF(ISNA(VLOOKUP($CW11,'Audit Values'!$A:$BV,2,FALSE)),'Preliminary SO66'!AL10,VLOOKUP($CW11,'Audit Values'!$A:$BV,59,FALSE)) -> 4.5 | U11: 369.6 | V11: 170.2 | W11: =IF(ISNA(VLOOKUP($CW11,'Audit Values'!$A:$BX,2,FALSE)),'Preliminary SO66'!AM10,VLOOKUP($CW11,'Audit Values'!$A:$BX,63,FALSE)) -> 12.7 | X11: =(W11/6)*'Weighting Factors'!$O$7 -> 0.8 | Y11: =IF(ISNA(VLOOKUP($CW11,'Audit Values'!$A:$BX,2,FALSE)),'Preliminary SO66'!AN10,VLOOKUP($CW11,'Audit Values'!$A:$BX,62,FALSE)) -> 24 | Z11: =Y11*'Weighting Factors'!$O$8 -> 4.4 | AA11: 4.4 | AB11: =IF(ISNA(VLOOKUP($CW11,'Audit Values'!$A:$BX,2,FALSE)),'Preliminary SO66'!AO10,VLOOKUP($CW11,'Audit Values'!$A:$BX,61,FALSE)) -> 128.2 | AC11: =AB11/6*'Weighting Factors'!$O$6 -> 10.7 | AD11: =IF(ISNA(VLOOKUP($CW11,'Audit Values'!$A:$BV,2,FALSE)),'Preliminary SO66'!AS10,VLOOKUP($CW11,'Audit Values'!$A:$BV,64,FALSE)) -> 358 | AE11: =IF(ISNA(VLOOKUP($CW11,'Audit Values'!$A:$BV,2,FALSE)),'Preliminary SO66'!AP10,VLOOKUP($CW11,'Audit Values'!$A:$BV,65,FALSE)) -> 131 | AF11: =IF(A11=207, AE11,(AE11))*'Weighting Factors'!$O$9 -> 63.4 | AG11: 1.5 | AH11: =IF(ISNA(VLOOKUP($CW11,'Audit Values'!$A:$BX,2,FALSE)),'Preliminary SO66'!AG10,VLOOKUP($CW11,'Audit Values'!$A:$BX,71,FALSE)) -> 1.5 | AI11: 1.5 | AJ11: =IF(ISNA(VLOOKUP($CW11,'Audit Values'!$A:$BV,2,FALSE)),'Preliminary SO66'!AR10,VLOOKUP($CW11,'Audit Values'!$A:$BV,66,FALSE)) -> 154 | AK11: 202472 | AL11: =AK11/'Weighting Factors'!$O$5 -> 41.8 | AM11: =CJ11/'Weighting Factors'!$O$5 -> 0 | AN11: =CN11/'Weighting Factors'!$O$5 -> 0 | AO11: 320160 | AP11: =AO11/'Weighting Factors'!$O$5 -> 66.1 | AQ11: =IF(ISNA(VLOOKUP($CW11,'Audit Values'!$A:$BV,2,FALSE)),'Preliminary SO66'!X10,VLOOKUP($CW11,'Audit Values'!$A:$BV,48,FALSE)) -> 0 | AR11: 727.7 | AS11: 661.6 | AT11: =IF(ISNA(VLOOKUP($CW11,'Audit Values'!$A$2:$BV$786,2,FALSE)),'Preliminary SO66'!AA10,VLOOKUP($CW11,'Audit Values'!$A$2:$BV$786,41,FALSE)) -> 0 | AU11: =IF(ISNA(VLOOKUP($CW11,'Audit Values'!$A$2:$BV$786,2,FALSE)),'Preliminary SO66'!AB10,VLOOKUP($CW11,'Audit Values'!$A$2:$BV$786,42,FALSE)) -> 0 | AV11: 0 | AW11: 0 | AX11: =SUM(AT11*'Weighting Factors'!$R$10)+('2023 Legal Max'!AU11*'Weighting Factors'!$R$11)+('2023 Legal Max'!AV11*'Weighting Factors'!$R$12)+('2023 Legal Max'!AW11*'Weighting Factors'!$R$12) -> 0 | AY11: =IF(ISNA(VLOOKUP($CW11,'Audit Values'!$A$2:$BV$805,2,FALSE)),"",IF(AND('Weighting Factors'!G11>0,VLOOKUP($CW11,'Audit Values'!$A$2:$BV$805,51,FALSE)<'Weighting Factors'!G11),'Weighting Factors'!G11,VLOOKUP($CW11,'Audit Values'!$A$2:$BV$805,51,FALSE))) -> 13 | AZ11: =IF(ISNA(VLOOKUP($CW11,'Audit Values'!$A:$BW,2,FALSE)),"",VLOOKUP($CW11,'Audit Values'!$A:$BW,52,FALSE)) -> A | BA11: =IF('Weighting Factors'!F11="","",IF('Weighting Factors'!H11="Pending","PX","R")) ->  | BB11: =SUM((U11+V11+AA11+AC11+AF11+AI11+AL11+AM11+AQ11+AN11)*'Weighting Factors'!$O$5)+'2023 Legal Max'!AX11 -> 3206114 | BC11: =SUM((AR11+AN11)*'Weighting Factors'!$O$5)+AX11 -> 3526434 | BD11: =IF('Weighting Factors'!F11>0,'Weighting Factors'!F11,'Preliminary SO66'!AV10) -> 3587978 | BE11: 3526434 | BF11: ='Weighting Factors'!E11 -> 0 | BG11: =Transportation!G11 -> 0 | BH11: =IF(ISNA(VLOOKUP($CW11,'Audit Values'!$A$2:$BU$380,2,FALSE)), 0, VLOOKUP($CW11,'Audit Values'!$A$2:$BU$380,73,FALSE)) -> 0 | BI11: 0 | BJ11: 3526434 | BK11: =SUM((U11+V11+AA11+AC11+AF11+AI11+AL11+AM11+AN11)*'Weighting Factors'!O$12)+(MAX(AO11,'Weighting Factors'!B11)) -> 3798110 | BL11: ='LOB%'!F9 -> 0.31 | BM11: 1177414 | BN11: 1189444 | BO11: 1177414 | BP11: 0.31 | BQ11: 0 | BR11: FALSE | BS11: 0 | BT11: 0 | BU11: 0 | BV11: TRUE | BW11: 86.13 | BX11: 0.46054 | BY11: 170.2 | BZ11: 0 | CA11: 389 | CB11: 0.396 | CC11: =IF(CB11<0.06,1,IF(CB11>=18.29,52,MATCH(CB11-0.001,'Weighting Factors'!$W$5:$W$156)+1)) -> 23 | CD11: =VLOOKUP(CC11, 'Weighting Factors'!$U$5:$X$56,4) -> 1130 | CE11: =('Weighting Factors'!$O$5/'Weighting Factors'!$O$14) -> 1.1635 | CF11: 174020 | CG11: =CF11*'Weighting Factors'!$Q$7 -> 174020 | CH11: 202472 | CI11: =AK11/'Weighting Factors'!$O$5 -> 41.8 | CJ11: 0 | CK11: 0 | CL11: 0 | CM11: =SUM((AR11*'Weighting Factors'!$O$5)+'2023 Legal Max'!AX11)*CL11 -> 0 | CN11: 0 | CO11: 0.3659 | CP11: 0 | CQ11: 1.5 | CR11: 727.7 | CS11: ='Required Transfers'!L11 -> 103259 | CT11: ='Required Transfers'!O11 -> 7182 | CU11: ='Required Transfers'!H11 -> 314505 | CV11: 352 | CW11: D0108
A12: 109 | B12: Republic | C12: Republic County | D12: 514.7 | F12: 0 | G12: 514.7 | H12: 477.4 | J12: 0 | K12: 477.4 | L12: 498.8 | M12: 0 | N12: 0 | O12: 498.8 | P12: =IF(ISNA(VLOOKUP($CW12,'Audit Values'!$A:$BX,2,FALSE)),'Preliminary SO66'!C11,VLOOKUP($CW12,'Audit Values'!$A:$BX,74,FALSE)) -> 496.3 | Q12: =IF(ISNA(VLOOKUP($CW12,'Audit Values'!$A:$BX,2,FALSE)),'Preliminary SO66'!F11,VLOOKUP($CW12,'Audit Values'!$A$2:$BX$805,4,FALSE)) -> 0 | R12: 496.3 | S12: =IF('Military Provision'!J12="YES", MAX('2023 Legal Max'!O12,'2023 Legal Max'!K12,AVERAGE('2023 Legal Max'!G12,'2023 Legal Max'!K12,'2023 Legal Max'!O12)), MAX(O12, K12)) -> 498.8 | T12: =IF(ISNA(VLOOKUP($CW12,'Audit Values'!$A:$BV,2,FALSE)),'Preliminary SO66'!AL11,VLOOKUP($CW12,'Audit Values'!$A:$BV,59,FALSE)) -> 3 | U12: 501.8 | V12: =MAX(BQ12, BU12, BY12, BZ12) -> 208.6 | W12: =IF(ISNA(VLOOKUP($CW12,'Audit Values'!$A:$BX,2,FALSE)),'Preliminary SO66'!AM11,VLOOKUP($CW12,'Audit Values'!$A:$BX,63,FALSE)) -> 0 | X12: =(W12/6)*'Weighting Factors'!$O$7 -> 0 | Y12: =IF(ISNA(VLOOKUP($CW12,'Audit Values'!$A:$BX,2,FALSE)),'Preliminary SO66'!AN11,VLOOKUP($CW12,'Audit Values'!$A:$BX,62,FALSE)) -> 3 | Z12: =Y12*'Weighting Factors'!$O$8 -> 0.6 | AA12: 0.6 | AB12: =IF(ISNA(VLOOKUP($CW12,'Audit Values'!$A:$BX,2,FALSE)),'Preliminary SO66'!AO11,VLOOKUP($CW12,'Audit Values'!$A:$BX,61,FALSE)) -> 144 | AC12: =AB12/6*'Weighting Factors'!$O$6 -> 12 | AD12: =IF(ISNA(VLOOKUP($CW12,'Audit Values'!$A:$BV,2,FALSE)),'Preliminary SO66'!AS11,VLOOKUP($CW12,'Audit Values'!$A:$BV,64,FALSE)) -> 505 | AE12: =IF(ISNA(VLOOKUP($CW12,'Audit Values'!$A:$BV,2,FALSE)),'Preliminary SO66'!AP11,VLOOKUP($CW12,'Audit Values'!$A:$BV,65,FALSE)) -> 229 | AF12: =IF(A12=207, AE12,(AE12))*'Weighting Factors'!$O$9 -> 110.8 | AG12: =MAX(CP12,CQ12) -> 16.6 | AH12: =IF(ISNA(VLOOKUP($CW12,'Audit Values'!$A:$BX,2,FALSE)),'Preliminary SO66'!AG11,VLOOKUP($CW12,'Audit Values'!$A:$BX,71,FALSE)) -> 17 | AI12: =MAX(AG12, AH12) -> 17 | AJ12: =IF(ISNA(VLOOKUP($CW12,'Audit Values'!$A:$BV,2,FALSE)),'Preliminary SO66'!AR11,VLOOKUP($CW12,'Audit Values'!$A:$BV,66,FALSE)) -> 163 | AK12: =CH12 -> 225684 | AL12: =AK12/'Weighting Factors'!$O$5 -> 46.6 | AM12: =CJ12/'Weighting Factors'!$O$5 -> 0 | AN12: =CN12/'Weighting Factors'!$O$5 -> 0 | AO12: 442221 | AP12: =AO12/'Weighting Factors'!$O$5 -> 91.3 | AQ12: =IF(ISNA(VLOOKUP($CW12,'Audit Values'!$A:$BV,2,FALSE)),'Preliminary SO66'!X11,VLOOKUP($CW12,'Audit Values'!$A:$BV,48,FALSE)) -> 0 | AR12: 988.7 | AS12: 897.4 | AT12: =IF(ISNA(VLOOKUP($CW12,'Audit Values'!$A$2:$BV$786,2,FALSE)),'Preliminary SO66'!AA11,VLOOKUP($CW12,'Audit Values'!$A$2:$BV$786,41,FALSE)) -> 0 | AU12: =IF(ISNA(VLOOKUP($CW12,'Audit Values'!$A$2:$BV$786,2,FALSE)),'Preliminary SO66'!AB11,VLOOKUP($CW12,'Audit Values'!$A$2:$BV$786,42,FALSE)) -> 0 | AV12: 0 | AW12: 0 | AX12: =SUM(AT12*'Weighting Factors'!$R$10)+('2023 Legal Max'!AU12*'Weighting Factors'!$R$11)+('2023 Legal Max'!AV12*'Weighting Factors'!$R$12)+('2023 Legal Max'!AW12*'Weighting Factors'!$R$12) -> 0 | AY12: =IF(ISNA(VLOOKUP($CW12,'Audit Values'!$A$2:$BV$805,2,FALSE)),"",IF(AND('Weighting Factors'!G12>0,VLOOKUP($CW12,'Audit Values'!$A$2:$BV$805,51,FALSE)<'Weighting Factors'!G12),'Weighting Factors'!G12,VLOOKUP($CW12,'Audit Values'!$A$2:$BV$805,51,FALSE))) -> 15 | AZ12: =IF(ISNA(VLOOKUP($CW12,'Audit Values'!$A:$BW,2,FALSE)),"",VLOOKUP($CW12,'Audit Values'!$A:$BW,52,FALSE)) -> A | BA12: =IF('Weighting Factors'!F12="","",IF('Weighting Factors'!H12="Pending","PX","R")) -> R | BB12: =SUM((U12+V12+AA12+AC12+AF12+AI12+AL12+AM12+AQ12+AN12)*'Weighting Factors'!$O$5)+'2023 Legal Max'!AX12 -> 4348800 | BC12: =SUM((AR12+AN12)*'Weighting Factors'!$O$5)+AX12 -> 4791240 | BD12: =IF('Weighting Factors'!F12>0,'Weighting Factors'!F12,'Preliminary SO66'!AV11) -> 4841639 | BE12: 4791240 | BF12: ='Weighting Factors'!E12 -> 0 | BG12: =Transportation!G12 -> 0 | BH12: =IF(ISNA(VLOOKUP($CW12,'Audit Values'!$A$2:$BU$380,2,FALSE)), 0, VLOOKUP($CW12,'Audit Values'!$A$2:$BU$380,73,FALSE)) -> 0 | BI12: 0 | BJ12: =BE12+BI12 -> 4791240 | BK12: =SUM((U12+V12+AA12+AC12+AF12+AI12+AL12+AM12+AN12)*'Weighting Factors'!O$12)+(MAX(AO12,'Weighting Factors'!B12)) -> 5023289 | BL12: ='LOB%'!F10 -> 0.31 | BM12: =BK12*BL12 -> 1557220 | BN12: 1525395 | BO12: 1525395 | BP12: 0.3037 | BQ12: 0 | BR12: FALSE | BS12: 0 | BT12: 0 | BU12: 0 | BV12: TRUE | BW12: 249.7275 | BX12: 0.415625 | BY12: 208.6 | BZ12: 0 | CA12: 560 | CB12: 0.291 | CC12: =IF(CB12<0.06,1,IF(CB12>=18.29,52,MATCH(CB12-0.001,'Weighting Factors'!$W$5:$W$156)+1)) -> 20 | CD12: =VLOOKUP(CC12, 'Weighting Factors'!$U$5:$X$56,4) -> 1190 | CE12: =('Weighting Factors'!$O$5/'Weighting Factors'!$O$14) -> 1.1635 | CF12: 193970 | CG12: =CF12*'Weighting Factors'!$Q$7 -> 193970 | CH12: =CG12*CE12 -> 225684 | CI12: =AK12/'Weighting Factors'!$O$5 -> 46.6 | CJ12: 0 | CK12: 0 | CL12: 0 | CM12: =SUM((AR12*'Weighting Factors'!$O$5)+'2023 Legal Max'!AX12)*CL12 -> 0 | CN12: =IF(CK12>CM12,CM12,CK12) -> 0 | CO12: 0.4535 | CP12: 0 | CQ12: 16.6 | CR12: 988.7 | CS12: ='Required Transfers'!L12 -> 171454 | CT12: ='Required Transfers'!O12 -> 915 | CU12: ='Required Transfers'!H12 -> 619319 | CV12: 499.3 | CW12: D0109
A13: 110 | B13: Phillips | C13: Thunder Ridge Schools | D13: 190.1 | F13: 0 | G13: 190.1 | H13: 178 | J13: 0 | K13: 178 | L13: 176 | M13: 0 | N13: 0 | O13: 176 | P13: =IF(ISNA(VLOOKUP($CW13,'Audit Values'!$A:$BX,2,FALSE)),'Preliminary SO66'!C12,VLOOKUP($CW13,'Audit Values'!$A:$BX,74,FALSE)) -> 169.5 | Q13: =IF(ISNA(VLOOKUP($CW13,'Audit Values'!$A:$BX,2,FALSE)),'Preliminary SO66'!F12,VLOOKUP($CW13,'Audit Values'!$A$2:$BX$805,4,FALSE)) -> 0 | R13: 169.5 | S13: =IF('Military Provision'!J13="YES", MAX('2023 Legal Max'!O13,'2023 Legal Max'!K13,AVERAGE('2023 Legal Max'!G13,'2023 Legal Max'!K13,'2023 Legal Max'!O13)), MAX(O13, K13)) -> 178 | T13: =IF(ISNA(VLOOKUP($CW13,'Audit Values'!$A:$BV,2,FALSE)),'Preliminary SO66'!AL12,VLOOKUP($CW13,'Audit Values'!$A:$BV,59,FALSE)) -> 3 | U13: 181 | V13: 144.7 | W13: =IF(ISNA(VLOOKUP($CW13,'Audit Values'!$A:$BX,2,FALSE)),'Preliminary SO66'!AM12,VLOOKUP($CW13,'Audit Values'!$A:$BX,63,FALSE)) -> 0 | X13: =(W13/6)*'Weighting Factors'!$O$7 -> 0 | Y13: =IF(ISNA(VLOOKUP($CW13,'Audit Values'!$A:$BX,2,FALSE)),'Preliminary SO66'!AN12,VLOOKUP($CW13,'Audit Values'!$A:$BX,62,FALSE)) -> 0 | Z13: =Y13*'Weighting Factors'!$O$8 -> 0 | AA13: 0 | AB13: =IF(ISNA(VLOOKUP($CW13,'Audit Values'!$A:$BX,2,FALSE)),'Preliminary SO66'!AO12,VLOOKUP($CW13,'Audit Values'!$A:$BX,61,FALSE)) -> 55.8 | AC13: =AB13/6*'Weighting Factors'!$O$6 -> 4.7 | AD13: =IF(ISNA(VLOOKUP($CW13,'Audit Values'!$A:$BV,2,FALSE)),'Preliminary SO66'!AS12,VLOOKUP($CW13,'Audit Values'!$A:$BV,64,FALSE)) -> 177 | AE13: =IF(ISNA(VLOOKUP($CW13,'Audit Values'!$A:$BV,2,FALSE)),'Preliminary SO66'!AP12,VLOOKUP($CW13,'Audit Values'!$A:$BV,65,FALSE)) -> 67 | AF13: =IF(A13=207, AE13,(AE13))*'Weighting Factors'!$O$9 -> 32.4 | AG13: 1.3 | AH13: =IF(ISNA(VLOOKUP($CW13,'Audit Values'!$A:$BX,2,FALSE)),'Preliminary SO66'!AG12,VLOOKUP($CW13,'Audit Values'!$A:$BX,71,FALSE)) -> 2.4 | AI13: 2.4 | AJ13: =IF(ISNA(VLOOKUP($CW13,'Audit Values'!$A:$BV,2,FALSE)),'Preliminary SO66'!AR12,VLOOKUP($CW13,'Audit Values'!$A:$BV,66,FALSE)) -> 120 | AK13: 171733 | AL13: =AK13/'Weighting Factors'!$O$5 -> 35.4 | AM13: =CJ13/'Weighting Factors'!$O$5 -> 0 | AN13: =CN13/'Weighting Factors'!$O$5 -> 0 | AO13: 228016 | AP13: =AO13/'Weighting Factors'!$O$5 -> 47.1 | AQ13: =IF(ISNA(VLOOKUP($CW13,'Audit Values'!$A:$BV,2,FALSE)),'Preliminary SO66'!X12,VLOOKUP($CW13,'Audit Values'!$A:$BV,48,FALSE)) -> 0 | AR13: 447.7 | AS13: 400.6 | AT13: =IF(ISNA(VLOOKUP($CW13,'Audit Values'!$A$2:$BV$786,2,FALSE)),'Preliminary SO66'!AA12,VLOOKUP($CW13,'Audit Values'!$A$2:$BV$786,41,FALSE)) -> 0 | AU13: =IF(ISNA(VLOOKUP($CW13,'Audit Values'!$A$2:$BV$786,2,FALSE)),'Preliminary SO66'!AB12,VLOOKUP($CW13,'Audit Values'!$A$2:$BV$786,42,FALSE)) -> 0 | AV13: 0 | AW13: 0 | AX13: =SUM(AT13*'Weighting Factors'!$R$10)+('2023 Legal Max'!AU13*'Weighting Factors'!$R$11)+('2023 Legal Max'!AV13*'Weighting Factors'!$R$12)+('2023 Legal Max'!AW13*'Weighting Factors'!$R$12) -> 0 | AY13: =IF(ISNA(VLOOKUP($CW13,'Audit Values'!$A$2:$BV$805,2,FALSE)),"",IF(AND('Weighting Factors'!G13>0,VLOOKUP($CW13,'Audit Values'!$A$2:$BV$805,51,FALSE)<'Weighting Factors'!G13),'Weighting Factors'!G13,VLOOKUP($CW13,'Audit Values'!$A$2:$BV$805,51,FALSE))) -> 2 | AZ13: =IF(ISNA(VLOOKUP($CW13,'Audit Values'!$A:$BW,2,FALSE)),"",VLOOKUP($CW13,'Audit Values'!$A:$BW,52,FALSE)) -> A | BA13: =IF('Weighting Factors'!F13="","",IF('Weighting Factors'!H13="Pending","PX","R")) ->  | BB13: =SUM((U13+V13+AA13+AC13+AF13+AI13+AL13+AM13+AQ13+AN13)*'Weighting Factors'!$O$5)+'2023 Legal Max'!AX13 -> 1941308 | BC13: =SUM((AR13+AN13)*'Weighting Factors'!$O$5)+AX13 -> 2169554 | BD13: =IF('Weighting Factors'!F13>0,'Weighting Factors'!F13,'Preliminary SO66'!AV12) -> 2352733 | BE13: 2169554 | BF13: ='Weighting Factors'!E13 -> 0 | BG13: =Transportation!G13 -> 0 | BH13: =IF(ISNA(VLOOKUP($CW13,'Audit Values'!$A$2:$BU$380,2,FALSE)), 0, VLOOKUP($CW13,'Audit Values'!$A$2:$BU$380,73,FALSE)) -> 0 | BI13: 0 | BJ13: 2169554 | BK13: =SUM((U13+V13+AA13+AC13+AF13+AI13+AL13+AM13+AN13)*'Weighting Factors'!O$12)+(MAX(AO13,'Weighting Factors'!B13)) -> 2301678 | BL13: ='LOB%'!F11 -> 0.31 | BM13: 713520 | BN13: 757984 | BO13: 713520 | BP13: 0.31 | BQ13: 0 | BR13: TRUE | BS13: 782.055 | BT13: 0.799623 | BU13: 144.7 | BV13: FALSE | BW13: 0 | BX13: 0 | BY13: 0 | BZ13: 0 | CA13: 491 | CB13: 0.244 | CC13: =IF(CB13<0.06,1,IF(CB13>=18.29,52,MATCH(CB13-0.001,'Weighting Factors'!$W$5:$W$156)+1)) -> 18 | CD13: =VLOOKUP(CC13, 'Weighting Factors'!$U$5:$X$56,4) -> 1230 | CE13: =('Weighting Factors'!$O$5/'Weighting Factors'!$O$14) -> 1.1635 | CF13: 147600 | CG13: =CF13*'Weighting Factors'!$Q$7 -> 147600 | CH13: 171733 | CI13: =AK13/'Weighting Factors'!$O$5 -> 35.4 | CJ13: 0 | CK13: 0 | CL13: 0 | CM13: =SUM((AR13*'Weighting Factors'!$O$5)+'2023 Legal Max'!AX13)*CL13 -> 0 | CN13: 0 | CO13: 0.3785 | CP13: 0 | CQ13: 1.3 | CR13: 447.7 | CS13: ='Required Transfers'!L13 -> 52016 | CT13: ='Required Transfers'!O13 -> 0 | CU13: ='Required Transfers'!H13 -> 168641 | CV13: 172.5 | CW13: D0110
A14: 111 | B14: Doniphan | C14: Doniphan West Schools | D14: 318.7 | F14: 0 | G14: 318.7 | H14: 290.5 | J14: 0 | K14: 290.5 | L14: 333.9 | M14: 0 | N14: 0 | O14: 333.9 | P14: =IF(ISNA(VLOOKUP($CW14,'Audit Values'!$A:$BX,2,FALSE)),'Preliminary SO66'!C13,VLOOKUP($CW14,'Audit Values'!$A:$BX,74,FALSE)) -> 354.2 | Q14: =IF(ISNA(VLOOKUP($CW14,'Audit Values'!$A:$BX,2,FALSE)),'Preliminary SO66'!F13,VLOOKUP($CW14,'Audit Values'!$A$2:$BX$805,4,FALSE)) -> 0 | R14: 354.2 | S14: =IF('Military Provision'!J14="YES", MAX('2023 Legal Max'!O14,'2023 Legal Max'!K14,AVERAGE('2023 Legal Max'!G14,'2023 Legal Max'!K14,'2023 Legal Max'!O14)), MAX(O14, K14)) -> 333.9 | T14: =IF(ISNA(VLOOKUP($CW14,'Audit Values'!$A:$BV,2,FALSE)),'Preliminary SO66'!AL13,VLOOKUP($CW14,'Audit Values'!$A:$BV,59,FALSE)) -> 2.5 | U14: 336.4 | V14: 158.7 | W14: =IF(ISNA(VLOOKUP($CW14,'Audit Values'!$A:$BX,2,FALSE)),'Preliminary SO66'!AM13,VLOOKUP($CW14,'Audit Values'!$A:$BX,63,FALSE)) -> 0 | X14: =(W14/6)*'Weighting Factors'!$O$7 -> 0 | Y14: =IF(ISNA(VLOOKUP($CW14,'Audit Values'!$A:$BX,2,FALSE)),'Preliminary SO66'!AN13,VLOOKUP($CW14,'Audit Values'!$A:$BX,62,FALSE)) -> 0 | Z14: =Y14*'Weighting Factors'!$O$8 -> 0 | AA14: 0 | AB14: =IF(ISNA(VLOOKUP($CW14,'Audit Values'!$A:$BX,2,FALSE)),'Preliminary SO66'!AO13,VLOOKUP($CW14,'Audit Values'!$A:$BX,61,FALSE)) -> 42.2 | AC14: =AB14/6*'Weighting Factors'!$O$6 -> 3.5 | AD14: =IF(ISNA(VLOOKUP($CW14,'Audit Values'!$A:$BV,2,FALSE)),'Preliminary SO66'!AS13,VLOOKUP($CW14,'Audit Values'!$A:$BV,64,FALSE)) -> 363 | AE14: =IF(ISNA(VLOOKUP($CW14,'Audit Values'!$A:$BV,2,FALSE)),'Preliminary SO66'!AP13,VLOOKUP($CW14,'Audit Values'!$A:$BV,65,FALSE)) -> 128 | AF14: =IF(A14=207, AE14,(AE14))*'Weighting Factors'!$O$9 -> 62 | AG14: 0.2 | AH14: =IF(ISNA(VLOOKUP($CW14,'Audit Values'!$A:$BX,2,FALSE)),'Preliminary SO66'!AG13,VLOOKUP($CW14,'Audit Values'!$A:$BX,71,FALSE)) -> 1.8 | AI14: 1.8 | AJ14: =IF(ISNA(VLOOKUP($CW14,'Audit Values'!$A:$BV,2,FALSE)),'Preliminary SO66'!AR13,VLOOKUP($CW14,'Audit Values'!$A:$BV,66,FALSE)) -> 234 | AK14: 258646 | AL14: =AK14/'Weighting Factors'!$O$5 -> 53.4 | AM14: =CJ14/'Weighting Factors'!$O$5 -> 0 | AN14: =CN14/'Weighting Factors'!$O$5 -> 0 | AO14: 413318 | AP14: =AO14/'Weighting Factors'!$O$5 -> 85.3 | AQ14: =IF(ISNA(VLOOKUP($CW14,'Audit Values'!$A:$BV,2,FALSE)),'Preliminary SO66'!X13,VLOOKUP($CW14,'Audit Values'!$A:$BV,48,FALSE)) -> 0 | AR14: 701.1 | AS14: 615.8 | AT14: =IF(ISNA(VLOOKUP($CW14,'Audit Values'!$A$2:$BV$786,2,FALSE)),'Preliminary SO66'!AA13,VLOOKUP($CW14,'Audit Values'!$A$2:$BV$786,41,FALSE)) -> 0 | AU14: =IF(ISNA(VLOOKUP($CW14,'Audit Values'!$A$2:$BV$786,2,FALSE)),'Preliminary SO66'!AB13,VLOOKUP($CW14,'Audit Values'!$A$2:$BV$786,42,FALSE)) -> 0 | AV14: 0 | AW14: 0 | AX14: =SUM(AT14*'Weighting Factors'!$R$10)+('2023 Legal Max'!AU14*'Weighting Factors'!$R$11)+('2023 Legal Max'!AV14*'Weighting Factors'!$R$12)+('2023 Legal Max'!AW14*'Weighting Factors'!$R$12) -> 0 | AY14: =IF(ISNA(VLOOKUP($CW14,'Audit Values'!$A$2:$BV$805,2,FALSE)),"",IF(AND('Weighting Factors'!G14>0,VLOOKUP($CW14,'Audit Values'!$A$2:$BV$805,51,FALSE)<'Weighting Factors'!G14),'Weighting Factors'!G14,VLOOKUP($CW14,'Audit Values'!$A$2:$BV$805,51,FALSE))) -> 11 | AZ14: =IF(ISNA(VLOOKUP($CW14,'Audit Values'!$A:$BW,2,FALSE)),"",VLOOKUP($CW14,'Audit Values'!$A:$BW,52,FALSE)) -> A | BA14: =IF('Weighting Factors'!F14="","",IF('Weighting Factors'!H14="Pending","PX","R")) ->  | BB14: =SUM((U14+V14+AA14+AC14+AF14+AI14+AL14+AM14+AQ14+AN14)*'Weighting Factors'!$O$5)+'2023 Legal Max'!AX14 -> 2984167 | BC14: =SUM((AR14+AN14)*'Weighting Factors'!$O$5)+AX14 -> 3397531 | BD14: =IF('Weighting Factors'!F14>0,'Weighting Factors'!F14,'Preliminary SO66'!AV13) -> 3478943 | BE14: 3397531 | BF14: ='Weighting Factors'!E14 -> 0 | BG14: =Transportation!G14 -> 0 | BH14: =IF(ISNA(VLOOKUP($CW14,'Audit Values'!$A$2:$BU$380,2,FALSE)), 0, VLOOKUP($CW14,'Audit Values'!$A$2:$BU$380,73,FALSE)) -> 0 | BI14: 0 | BJ14: 3397531 | BK14: =SUM((U14+V14+AA14+AC14+AF14+AI14+AL14+AM14+AN14)*'Weighting Factors'!O$12)+(MAX(AO14,'Weighting Factors'!B14)) -> 3580031 | BL14: ='LOB%'!F12 -> 0.31 | BM14: 1109810 | BN14: 1099912 | BO14: 1099912 | BP14: 0.3072 | BQ14: 0 | BR14: FALSE | BS14: 0 | BT14: 0 | BU14: 0 | BV14: TRUE | BW14: 45.045 | BX14: 0.471819 | BY14: 158.7 | BZ14: 0 | CA14: 229 | CB14: 1.022 | CC14: =IF(CB14<0.06,1,IF(CB14>=18.29,52,MATCH(CB14-0.001,'Weighting Factors'!$W$5:$W$156)+1)) -> 32 | CD14: =VLOOKUP(CC14, 'Weighting Factors'!$U$5:$X$56,4) -> 950 | CE14: =('Weighting Factors'!$O$5/'Weighting Factors'!$O$14) -> 1.1635 | CF14: 222300 | CG14: =CF14*'Weighting Factors'!$Q$7 -> 222300 | CH14: 258646 | CI14: =AK14/'Weighting Factors'!$O$5 -> 53.4 | CJ14: 0 | CK14: 0 | CL14: 0 | CM14: =SUM((AR14*'Weighting Factors'!$O$5)+'2023 Legal Max'!AX14)*CL14 -> 0 | CN14: 0 | CO14: 0.3526 | CP14: 0 | CQ14: 0.2 | CR14: 701.1 | CS14: ='Required Transfers'!L14 -> 97562 | CT14: ='Required Transfers'!O14 -> 0 | CU14: ='Required Transfers'!H14 -> 309175 | CV14: 356.7 | CW14: D0111
A15: 112 | B15: Ellsworth | C15: Central Plains | D15: 428 | F15: 0 | G15: 428 | H15: 433.5 | J15: 0 | K15: 433.5 | L15: 444.7 | M15: 0 | N15: 0 | O15: 444.7 | P15: =IF(ISNA(VLOOKUP($CW15,'Audit Values'!$A:$BX,2,FALSE)),'Preliminary SO66'!C14,VLOOKUP($CW15,'Audit Values'!$A:$BX,74,FALSE)) -> 476 | Q15: =IF(ISNA(VLOOKUP($CW15,'Audit Values'!$A:$BX,2,FALSE)),'Preliminary SO66'!F14,VLOOKUP($CW15,'Audit Values'!$A$2:$BX$805,4,FALSE)) -> 0 | R15: 476 | S15: =IF('Military Provision'!J15="YES", MAX('2023 Legal Max'!O15,'2023 Legal Max'!K15,AVERAGE('2023 Legal Max'!G15,'2023 Legal Max'!K15,'2023 Legal Max'!O15)), MAX(O15, K15)) -> 444.7 | T15: =IF(ISNA(VLOOKUP($CW15,'Audit Values'!$A:$BV,2,FALSE)),'Preliminary SO66'!AL14,VLOOKUP($CW15,'Audit Values'!$A:$BV,59,FALSE)) -> 11.5 | U15: 456.2 | V15: 196.7 | W15: =IF(ISNA(VLOOKUP($CW15,'Audit Values'!$A:$BX,2,FALSE)),'Preliminary SO66'!AM14,VLOOKUP($CW15,'Audit Values'!$A:$BX,63,FALSE)) -> 0 | X15: =(W15/6)*'Weighting Factors'!$O$7 -> 0 | Y15: =IF(ISNA(VLOOKUP($CW15,'Audit Values'!$A:$BX,2,FALSE)),'Preliminary SO66'!AN14,VLOOKUP($CW15,'Audit Values'!$A:$BX,62,FALSE)) -> 0 | Z15: =Y15*'Weighting Factors'!$O$8 -> 0 | AA15: 0 | AB15: =IF(ISNA(VLOOKUP($CW15,'Audit Values'!$A:$BX,2,FALSE)),'Preliminary SO66'!AO14,VLOOKUP($CW15,'Audit Values'!$A:$BX,61,FALSE)) -> 142 | AC15: =AB15/6*'Weighting Factors'!$O$6 -> 11.8 | AD15: =IF(ISNA(VLOOKUP($CW15,'Audit Values'!$A:$BV,2,FALSE)),'Preliminary SO66'!AS14,VLOOKUP($CW15,'Audit Values'!$A:$BV,64,FALSE)) -> 504 | AE15: =IF(ISNA(VLOOKUP($CW15,'Audit Values'!$A:$BV,2,FALSE)),'Preliminary SO66'!AP14,VLOOKUP($CW15,'Audit Values'!$A:$BV,65,FALSE)) -> 210 | AF15: =IF(A15=207, AE15,(AE15))*'Weighting Factors'!$O$9 -> 101.6 | AG15: 9.8 | AH15: =IF(ISNA(VLOOKUP($CW15,'Audit Values'!$A:$BX,2,FALSE)),'Preliminary SO66'!AG14,VLOOKUP($CW15,'Audit Values'!$A:$BX,71,FALSE)) -> 11 | AI15: 11 | AJ15: =IF(ISNA(VLOOKUP($CW15,'Audit Values'!$A:$BV,2,FALSE)),'Preliminary SO66'!AR14,VLOOKUP($CW15,'Audit Values'!$A:$BV,66,FALSE)) -> 246 | AK15: 323430 | AL15: =AK15/'Weighting Factors'!$O$5 -> 66.7 | AM15: =CJ15/'Weighting Factors'!$O$5 -> 0 | AN15: =CN15/'Weighting Factors'!$O$5 -> 0 | AO15: 536531 | AP15: =AO15/'Weighting Factors'!$O$5 -> 110.7 | AQ15: =IF(ISNA(VLOOKUP($CW15,'Audit Values'!$A:$BV,2,FALSE)),'Preliminary SO66'!X14,VLOOKUP($CW15,'Audit Values'!$A:$BV,48,FALSE)) -> 0 | AR15: 954.7 | AS15: 844 | AT15: =IF(ISNA(VLOOKUP($CW15,'Audit Values'!$A$2:$BV$786,2,FALSE)),'Preliminary SO66'!AA14,VLOOKUP($CW15,'Audit Values'!$A$2:$BV$786,41,FALSE)) -> 7 | AU15: =IF(ISNA(VLOOKUP($CW15,'Audit Values'!$A$2:$BV$786,2,FALSE)),'Preliminary SO66'!AB14,VLOOKUP($CW15,'Audit Values'!$A$2:$BV$786,42,FALSE)) -> 0 | AV15: 2800 | AW15: 0 | AX15: =SUM(AT15*'Weighting Factors'!$R$10)+('2023 Legal Max'!AU15*'Weighting Factors'!$R$11)+('2023 Legal Max'!AV15*'Weighting Factors'!$R$12)+('2023 Legal Max'!AW15*'Weighting Factors'!$R$12) -> 2024400 | AY15: 30 | AZ15: =IF(ISNA(VLOOKUP($CW15,'Audit Values'!$A:$BW,2,FALSE)),"",VLOOKUP($CW15,'Audit Values'!$A:$BW,52,FALSE)) -> A | BA15: =IF('Weighting Factors'!F15="","",IF('Weighting Factors'!H15="Pending","PX","R")) -> R | BB15: =SUM((U15+V15+AA15+AC15+AF15+AI15+AL15+AM15+AQ15+AN15)*'Weighting Factors'!$O$5)+'2023 Legal Max'!AX15 -> 6114424 | BC15: =SUM((AR15+AN15)*'Weighting Factors'!$O$5)+AX15 -> 6650876 | BD15: =IF('Weighting Factors'!F15>0,'Weighting Factors'!F15,'Preliminary SO66'!AV14) -> 6849030 | BE15: 6650876 | BF15: ='Weighting Factors'!E15 -> 0 | BG15: =Transportation!G15 -> 0 | BH15: =IF(ISNA(VLOOKUP($CW15,'Audit Values'!$A$2:$BU$380,2,FALSE)), 0, VLOOKUP($CW15,'Audit Values'!$A$2:$BU$380,73,FALSE)) -> -386051 | BI15: -386051 | BJ15: 6264825 | BK15: =SUM((U15+V15+AA15+AC15+AF15+AI15+AL15+AM15+AN15)*'Weighting Factors'!O$12)+(MAX(AO15,'Weighting Factors'!B15)) -> 4831704 | BL15: ='LOB%'!F13 -> 0.33 | BM15: 1594462 | BN15: 1546806 | BO15: 1546806 | BP15: 0.3201 | BQ15: 0 | BR15: FALSE | BS15: 0 | BT15: 0 | BU15: 0 | BV15: TRUE | BW15: 193.2975 | BX15: 0.431118 | BY15: 196.7 | BZ15: 0 | CA15: 582.8 | CB15: 0.422 | CC15: =IF(CB15<0.06,1,IF(CB15>=18.29,52,MATCH(CB15-0.001,'Weighting Factors'!$W$5:$W$156)+1)) -> 23 | CD15: =VLOOKUP(CC15, 'Weighting Factors'!$U$5:$X$56,4) -> 1130 | CE15: =('Weighting Factors'!$O$5/'Weighting Factors'!$O$14) -> 1.1635 | CF15: 277980 | CG15: =CF15*'Weighting Factors'!$Q$7 -> 277980 | CH15: 323430 | CI15: =AK15/'Weighting Factors'!$O$5 -> 66.7 | CJ15: 0 | CK15: 0 | CL15: 0 | CM15: =SUM((AR15*'Weighting Factors'!$O$5)+'2023 Legal Max'!AX15)*CL15 -> 0 | CN15: 0 | CO15: 0.4167 | CP15: 0 | CQ15: 9.8 | CR15: 954.7 | CS15: ='Required Transfers'!L15 -> 166591 | CT15: ='Required Transfers'!O15 -> 0 | CU15: ='Required Transfers'!H15 -> 545660 | CV15: 961.2 | CW15: D0112
A16: 113 | B16: Nemaha | C16: Prairie Hills | D16: 1053.5 | F16: 0 | G16: 1053.5 | H16: 1044.2 | J16: 0 | K16: 1044.2 | L16: 1027.2 | M16: 0 | N16: 0 | O16: 1027.2 | P16: =IF(ISNA(VLOOKUP($CW16,'Audit Values'!$A:$BX,2,FALSE)),'Preliminary SO66'!C15,VLOOKUP($CW16,'Audit Values'!$A:$BX,74,FALSE)) -> 1033.1 | Q16: =IF(ISNA(VLOOKUP($CW16,'Audit Values'!$A:$BX,2,FALSE)),'Preliminary SO66'!F15,VLOOKUP($CW16,'Audit Values'!$A$2:$BX$805,4,FALSE)) -> 0 | R16: 1033.1 | S16: =IF('Military Provision'!J16="YES", MAX('2023 Legal Max'!O16,'2023 Legal Max'!K16,AVERAGE('2023 Legal Max'!G16,'2023 Legal Max'!K16,'2023 Legal Max'!O16)), MAX(O16, K16)) -> 1044.2 | T16: =IF(ISNA(VLOOKUP($CW16,'Audit Values'!$A:$BV,2,FALSE)),'Preliminary SO66'!AL15,VLOOKUP($CW16,'Audit Values'!$A:$BV,59,FALSE)) -> 11.5 | U16: 1055.7 | V16: 240.1 | W16: =IF(ISNA(VLOOKUP($CW16,'Audit Values'!$A:$BX,2,FALSE)),'Preliminary SO66'!AM15,VLOOKUP($CW16,'Audit Values'!$A:$BX,63,FALSE)) -> 0 | X16: =(W16/6)*'Weighting Factors'!$O$7 -> 0 | Y16: =IF(ISNA(VLOOKUP($CW16,'Audit Values'!$A:$BX,2,FALSE)),'Preliminary SO66'!AN15,VLOOKUP($CW16,'Audit Values'!$A:$BX,62,FALSE)) -> 0 | Z16: =Y16*'Weighting Factors'!$O$8 -> 0 | AA16: 0 | AB16: =IF(ISNA(VLOOKUP($CW16,'Audit Values'!$A:$BX,2,FALSE)),'Preliminary SO66'!AO15,VLOOKUP($CW16,'Audit Values'!$A:$BX,61,FALSE)) -> 278.1 | AC16: =AB16/6*'Weighting Factors'!$O$6 -> 23.2 | AD16: =IF(ISNA(VLOOKUP($CW16,'Audit Values'!$A:$BV,2,FALSE)),'Preliminary SO66'!AS15,VLOOKUP($CW16,'Audit Values'!$A:$BV,64,FALSE)) -> 1062 | AE16: =IF(ISNA(VLOOKUP($CW16,'Audit Values'!$A:$BV,2,FALSE)),'Preliminary SO66'!AP15,VLOOKUP($CW16,'Audit Values'!$A:$BV,65,FALSE)) -> 305 | AF16: =IF(A16=207, AE16,(AE16))*'Weighting Factors'!$O$9 -> 147.6 | AG16: 0 | AH16: =IF(ISNA(VLOOKUP($CW16,'Audit Values'!$A:$BX,2,FALSE)),'Preliminary SO66'!AG15,VLOOKUP($CW16,'Audit Values'!$A:$BX,71,FALSE)) -> 4.7 | AI16: 4.7 | AJ16: =IF(ISNA(VLOOKUP($CW16,'Audit Values'!$A:$BV,2,FALSE)),'Preliminary SO66'!AR15,VLOOKUP($CW16,'Audit Values'!$A:$BV,66,FALSE)) -> 359 | AK16: 430227 | AL16: =AK16/'Weighting Factors'!$O$5 -> 88.8 | AM16: =CJ16/'Weighting Factors'!$O$5 -> 0 | AN16: =CN16/'Weighting Factors'!$O$5 -> 0 | AO16: 705755 | AP16: =AO16/'Weighting Factors'!$O$5 -> 145.6 | AQ16: =IF(ISNA(VLOOKUP($CW16,'Audit Values'!$A:$BV,2,FALSE)),'Preliminary SO66'!X15,VLOOKUP($CW16,'Audit Values'!$A:$BV,48,FALSE)) -> 0 | AR16: 1705.7 | AS16: 1560.1 | AT16: =IF(ISNA(VLOOKUP($CW16,'Audit Values'!$A$2:$BV$786,2,FALSE)),'Preliminary SO66'!AA15,VLOOKUP($CW16,'Audit Values'!$A$2:$BV$786,41,FALSE)) -> 2 | AU16: =IF(ISNA(VLOOKUP($CW16,'Audit Values'!$A$2:$BV$786,2,FALSE)),'Preliminary SO66'!AB15,VLOOKUP($CW16,'Audit Values'!$A$2:$BV$786,42,FALSE)) -> 0 | AV16: 0 | AW16: 5 | AX16: =SUM(AT16*'Weighting Factors'!$R$10)+('2023 Legal Max'!AU16*'Weighting Factors'!$R$11)+('2023 Legal Max'!AV16*'Weighting Factors'!$R$12)+('2023 Legal Max'!AW16*'Weighting Factors'!$R$12) -> 14745 | AY16: =IF(ISNA(VLOOKUP($CW16,'Audit Values'!$A$2:$BV$805,2,FALSE)),"",IF(AND('Weighting Factors'!G16>0,VLOOKUP($CW16,'Audit Values'!$A$2:$BV$805,51,FALSE)<'Weighting Factors'!G16),'Weighting Factors'!G16,VLOOKUP($CW16,'Audit Values'!$A$2:$BV$805,51,FALSE))) -> 6 | AZ16: =IF(ISNA(VLOOKUP($CW16,'Audit Values'!$A:$BW,2,FALSE)),"",VLOOKUP($CW16,'Audit Values'!$A:$BW,52,FALSE)) -> A | BA16: =IF('Weighting Factors'!F16="","",IF('Weighting Factors'!H16="Pending","PX","R")) ->  | BB16: =SUM((U16+V16+AA16+AC16+AF16+AI16+AL16+AM16+AQ16+AN16)*'Weighting Factors'!$O$5)+'2023 Legal Max'!AX16 -> 7574990 | BC16: =SUM((AR16+AN16)*'Weighting Factors'!$O$5)+AX16 -> 8280567 | BD16: =IF('Weighting Factors'!F16>0,'Weighting Factors'!F16,'Preliminary SO66'!AV15) -> 8371789 | BE16: 8280567 | BF16: ='Weighting Factors'!E16 -> 0 | BG16: =Transportation!G16 -> 0 | BH16: =IF(ISNA(VLOOKUP($CW16,'Audit Values'!$A$2:$BU$380,2,FALSE)), 0, VLOOKUP($CW16,'Audit Values'!$A$2:$BU$380,73,FALSE)) -> 0 | BI16: 0 | BJ16: 8280567 | BK16: =SUM((U16+V16+AA16+AC16+AF16+AI16+AL16+AM16+AN16)*'Weighting Factors'!O$12)+(MAX(AO16,'Weighting Factors'!B16)) -> 8764004 | BL16: ='LOB%'!F14 -> 0.33 | BM16: 2892121 | BN16: 2892200 | BO16: 2892121 | BP16: 0.33 | BQ16: 0 | BR16: FALSE | BS16: 0 | BT16: 0 | BU16: 0 | BV16: TRUE | BW16: 935.1788 | BX16: 0.227438 | BY16: 240.1 | BZ16: 0 | CA16: 543 | CB16: 0.661 | CC16: =IF(CB16<0.06,1,IF(CB16>=18.29,52,MATCH(CB16-0.001,'Weighting Factors'!$W$5:$W$156)+1)) -> 28 | CD16: =VLOOKUP(CC16, 'Weighting Factors'!$U$5:$X$56,4) -> 1030 | CE16: =('Weighting Factors'!$O$5/'Weighting Factors'!$O$14) -> 1.1635 | CF16: 369770 | CG16: =CF16*'Weighting Factors'!$Q$7 -> 369770 | CH16: 430227 | CI16: =AK16/'Weighting Factors'!$O$5 -> 88.8 | CJ16: 0 | CK16: 0 | CL16: 0 | CM16: =SUM((AR16*'Weighting Factors'!$O$5)+'2023 Legal Max'!AX16)*CL16 -> 0 | CN16: 0 | CO16: 0.2872 | CP16: 0 | CQ16: 0 | CR16: 1705.7 | CS16: ='Required Transfers'!L16 -> 251904 | CT16: ='Required Transfers'!O16 -> 0 | CU16: ='Required Transfers'!H16 -> 738046 | CV16: 1046.6 | CW16: D0113
A17: 114 | B17: Doniphan | C17: Riverside | D17: 563.4 | F17: 0 | G17: 563.4 | H17: 577.3 | J17: 0 | K17: 577.3 | L17: 580.5 | M17: 0 | N17: 0 | O17: 580.5 | P17: =IF(ISNA(VLOOKUP($CW17,'Audit Values'!$A:$BX,2,FALSE)),'Preliminary SO66'!C16,VLOOKUP($CW17,'Audit Values'!$A:$BX,74,FALSE)) -> 594.7 | Q17: =IF(ISNA(VLOOKUP($CW17,'Audit Values'!$A:$BX,2,FALSE)),'Preliminary SO66'!F16,VLOOKUP($CW17,'Audit Values'!$A$2:$BX$805,4,FALSE)) -> 0 | R17: 594.7 | S17: =IF('Military Provision'!J17="YES", MAX('2023 Legal Max'!O17,'2023 Legal Max'!K17,AVERAGE('2023 Legal Max'!G17,'2023 Legal Max'!K17,'2023 Legal Max'!O17)), MAX(O17, K17)) -> 580.5 | T17: =IF(ISNA(VLOOKUP($CW17,'Audit Values'!$A:$BV,2,FALSE)),'Preliminary SO66'!AL16,VLOOKUP($CW17,'Audit Values'!$A:$BV,59,FALSE)) -> 8 | U17: 588.5 | V17: 227.3 | W17: =IF(ISNA(VLOOKUP($CW17,'Audit Values'!$A:$BX,2,FALSE)),'Preliminary SO66'!AM16,VLOOKUP($CW17,'Audit Values'!$A:$BX,63,FALSE)) -> 0 | X17: =(W17/6)*'Weighting Factors'!$O$7 -> 0 | Y17: =IF(ISNA(VLOOKUP($CW17,'Audit Values'!$A:$BX,2,FALSE)),'Preliminary SO66'!AN16,VLOOKUP($CW17,'Audit Values'!$A:$BX,62,FALSE)) -> 0 | Z17: =Y17*'Weighting Factors'!$O$8 -> 0 | AA17: 0 | AB17: =IF(ISNA(VLOOKUP($CW17,'Audit Values'!$A:$BX,2,FALSE)),'Preliminary SO66'!AO16,VLOOKUP($CW17,'Audit Values'!$A:$BX,61,FALSE)) -> 118.4 | AC17: =AB17/6*'Weighting Factors'!$O$6 -> 9.9 | AD17: =IF(ISNA(VLOOKUP($CW17,'Audit Values'!$A:$BV,2,FALSE)),'Preliminary SO66'!AS16,VLOOKUP($CW17,'Audit Values'!$A:$BV,64,FALSE)) -> 637 | AE17: =IF(ISNA(VLOOKUP($CW17,'Audit Values'!$A:$BV,2,FALSE)),'Preliminary SO66'!AP16,VLOOKUP($CW17,'Audit Values'!$A:$BV,65,FALSE)) -> 279 | AF17: =IF(A17=207, AE17,(AE17))*'Weighting Factors'!$O$9 -> 135 | AG17: 17.2 | AH17: =IF(ISNA(VLOOKUP($CW17,'Audit Values'!$A:$BX,2,FALSE)),'Preliminary SO66'!AG16,VLOOKUP($CW17,'Audit Values'!$A:$BX,71,FALSE)) -> 18 | AI17: 18 | AJ17: =IF(ISNA(VLOOKUP($CW17,'Audit Values'!$A:$BV,2,FALSE)),'Preliminary SO66'!AR16,VLOOKUP($CW17,'Audit Values'!$A:$BV,66,FALSE)) -> 303 | AK17: 271456 | AL17: =AK17/'Weighting Factors'!$O$5 -> 56 | AM17: =CJ17/'Weighting Factors'!$O$5 -> 0 | AN17: =CN17/'Weighting Factors'!$O$5 -> 0 | AO17: 607490 | AP17: =AO17/'Weighting Factors'!$O$5 -> 125.4 | AQ17: =IF(ISNA(VLOOKUP($CW17,'Audit Values'!$A:$BV,2,FALSE)),'Preliminary SO66'!X16,VLOOKUP($CW17,'Audit Values'!$A:$BV,48,FALSE)) -> 0 | AR17: 1160.1 | AS17: 1034.7 | AT17: =IF(ISNA(VLOOKUP($CW17,'Audit Values'!$A$2:$BV$786,2,FALSE)),'Preliminary SO66'!AA16,VLOOKUP($CW17,'Audit Values'!$A$2:$BV$786,41,FALSE)) -> 2 | AU17: =IF(ISNA(VLOOKUP($CW17,'Audit Values'!$A$2:$BV$786,2,FALSE)),'Preliminary SO66'!AB16,VLOOKUP($CW17,'Audit Values'!$A$2:$BV$786,42,FALSE)) -> 0.7 | AV17: 10 | AW17: 0 | AX17: =SUM(AT17*'Weighting Factors'!$R$10)+('2023 Legal Max'!AU17*'Weighting Factors'!$R$11)+('2023 Legal Max'!AV17*'Weighting Factors'!$R$12)+('2023 Legal Max'!AW17*'Weighting Factors'!$R$12) -> 20250 | AY17: =IF(ISNA(VLOOKUP($CW17,'Audit Values'!$A$2:$BV$805,2,FALSE)),"",IF(AND('Weighting Factors'!G17>0,VLOOKUP($CW17,'Audit Values'!$A$2:$BV$805,51,FALSE)<'Weighting Factors'!G17),'Weighting Factors'!G17,VLOOKUP($CW17,'Audit Values'!$A$2:$BV$805,51,FALSE))) -> 6 | AZ17: =IF(ISNA(VLOOKUP($CW17,'Audit Values'!$A:$BW,2,FALSE)),"",VLOOKUP($CW17,'Audit Values'!$A:$BW,52,FALSE)) -> A | BA17: =IF('Weighting Factors'!F17="","",IF('Weighting Factors'!H17="Pending","PX","R")) ->  | BB17: =SUM((U17+V17+AA17+AC17+AF17+AI17+AL17+AM17+AQ17+AN17)*'Weighting Factors'!$O$5)+'2023 Legal Max'!AX17 -> 5034406 | BC17: =SUM((AR17+AN17)*'Weighting Factors'!$O$5)+AX17 -> 5642095 | BD17: =IF('Weighting Factors'!F17>0,'Weighting Factors'!F17,'Preliminary SO66'!AV16) -> 6076008 | BE17: 5642095 | BF17: ='Weighting Factors'!E17 -> 0 | BG17: =Transportation!G17 -> 0 | BH17: =IF(ISNA(VLOOKUP($CW17,'Audit Values'!$A$2:$BU$380,2,FALSE)), 0, VLOOKUP($CW17,'Audit Values'!$A$2:$BU$380,73,FALSE)) -> -4254 | BI17: -4254 | BJ17: 5637841 | BK17: =SUM((U17+V17+AA17+AC17+AF17+AI17+AL17+AM17+AN17)*'Weighting Factors'!O$12)+(MAX(AO17,'Weighting Factors'!B17)) -> 5714001 | BL17: ='LOB%'!F15 -> 0.31 | BM17: 1771340 | BN17: 1883170 | BO17: 1771340 | BP17: 0.31 | BQ17: 0 | BR17: FALSE | BS17: 0 | BT17: 0 | BU17: 0 | BV17: TRUE | BW17: 357.0188 | BX17: 0.386169 | BY17: 227.3 | BZ17: 0 | CA17: 88 | CB17: 3.443 | CC17: =IF(CB17<0.06,1,IF(CB17>=18.29,52,MATCH(CB17-0.001,'Weighting Factors'!$W$5:$W$156)+1)) -> 41 | CD17: =VLOOKUP(CC17, 'Weighting Factors'!$U$5:$X$56,4) -> 770 | CE17: =('Weighting Factors'!$O$5/'Weighting Factors'!$O$14) -> 1.1635 | CF17: 233310 | CG17: =CF17*'Weighting Factors'!$Q$7 -> 233310 | CH17: 271456 | CI17: =AK17/'Weighting Factors'!$O$5 -> 56 | CJ17: 0 | CK17: 0 | CL17: 0 | CM17: =SUM((AR17*'Weighting Factors'!$O$5)+'2023 Legal Max'!AX17)*CL17 -> 0 | CN17: 0 | CO17: 0.438 | CP17: 0 | CQ17: 17.2 | CR17: 1160.1 | CS17: ='Required Transfers'!L17 -> 207601 | CT17: ='Required Transfers'!O17 -> 0 | CU17: ='Required Transfers'!H17 -> 741438 | CV17: 607.1 | CW17: D0114
A18: 115 | B18: Nemaha | C18: Nemaha Central | D18: 595.3 | F18: 0 | G18: 595.3 | H18: 591.6 | J18: 0 | K18: 591.6 | L18: 637 | M18: 0 | N18: 0 | O18: 637 | P18: =IF(ISNA(VLOOKUP($CW18,'Audit Values'!$A:$BX,2,FALSE)),'Preliminary SO66'!C17,VLOOKUP($CW18,'Audit Values'!$A:$BX,74,FALSE)) -> 692 | Q18: =IF(ISNA(VLOOKUP($CW18,'Audit Values'!$A:$BX,2,FALSE)),'Preliminary SO66'!F17,VLOOKUP($CW18,'Audit Values'!$A$2:$BX$805,4,FALSE)) -> 0 | R18: 692 | S18: =IF('Military Provision'!J18="YES", MAX('2023 Legal Max'!O18,'2023 Legal Max'!K18,AVERAGE('2023 Legal Max'!G18,'2023 Legal Max'!K18,'2023 Legal Max'!O18)), MAX(O18, K18)) -> 637 | T18: =IF(ISNA(VLOOKUP($CW18,'Audit Values'!$A:$BV,2,FALSE)),'Preliminary SO66'!AL17,VLOOKUP($CW18,'Audit Values'!$A:$BV,59,FALSE)) -> 19.5 | U18: 656.5 | V18: 238.4 | W18: =IF(ISNA(VLOOKUP($CW18,'Audit Values'!$A:$BX,2,FALSE)),'Preliminary SO66'!AM17,VLOOKUP($CW18,'Audit Values'!$A:$BX,63,FALSE)) -> 0 | X18: =(W18/6)*'Weighting Factors'!$O$7 -> 0 | Y18: =IF(ISNA(VLOOKUP($CW18,'Audit Values'!$A:$BX,2,FALSE)),'Preliminary SO66'!AN17,VLOOKUP($CW18,'Audit Values'!$A:$BX,62,FALSE)) -> 8 | Z18: =Y18*'Weighting Factors'!$O$8 -> 1.5 | AA18: 1.5 | AB18: =IF(ISNA(VLOOKUP($CW18,'Audit Values'!$A:$BX,2,FALSE)),'Preliminary SO66'!AO17,VLOOKUP($CW18,'Audit Values'!$A:$BX,61,FALSE)) -> 228.1 | AC18: =AB18/6*'Weighting Factors'!$O$6 -> 19 | AD18: =IF(ISNA(VLOOKUP($CW18,'Audit Values'!$A:$BV,2,FALSE)),'Preliminary SO66'!AS17,VLOOKUP($CW18,'Audit Values'!$A:$BV,64,FALSE)) -> 737 | AE18: =IF(ISNA(VLOOKUP($CW18,'Audit Values'!$A:$BV,2,FALSE)),'Preliminary SO66'!AP17,VLOOKUP($CW18,'Audit Values'!$A:$BV,65,FALSE)) -> 170 | AF18: =IF(A18=207, AE18,(AE18))*'Weighting Factors'!$O$9 -> 82.3 | AG18: 0 | AH18: =IF(ISNA(VLOOKUP($CW18,'Audit Values'!$A:$BX,2,FALSE)),'Preliminary SO66'!AG17,VLOOKUP($CW18,'Audit Values'!$A:$BX,71,FALSE)) -> 0 | AI18: 0 | AJ18: =IF(ISNA(VLOOKUP($CW18,'Audit Values'!$A:$BV,2,FALSE)),'Preliminary SO66'!AR17,VLOOKUP($CW18,'Audit Values'!$A:$BV,66,FALSE)) -> 225.4 | AK18: 249140 | AL18: =AK18/'Weighting Factors'!$O$5 -> 51.4 | AM18: =CJ18/'Weighting Factors'!$O$5 -> 0 | AN18: =CN18/'Weighting Factors'!$O$5 -> 0 | AO18: 563261 | AP18: =AO18/'Weighting Factors'!$O$5 -> 116.2 | AQ18: =IF(ISNA(VLOOKUP($CW18,'Audit Values'!$A:$BV,2,FALSE)),'Preliminary SO66'!X17,VLOOKUP($CW18,'Audit Values'!$A:$BV,48,FALSE)) -> 0 | AR18: 1165.3 | AS18: 1049.1 | AT18: =IF(ISNA(VLOOKUP($CW18,'Audit Values'!$A$2:$BV$786,2,FALSE)),'Preliminary SO66'!AA17,VLOOKUP($CW18,'Audit Values'!$A$2:$BV$786,41,FALSE)) -> 0 | AU18: =IF(ISNA(VLOOKUP($CW18,'Audit Values'!$A$2:$BV$786,2,FALSE)),'Preliminary SO66'!AB17,VLOOKUP($CW18,'Audit Values'!$A$2:$BV$786,42,FALSE)) -> 0 | AV18: 0 | AW18: 0 | AX18: =SUM(AT18*'Weighting Factors'!$R$10)+('2023 Legal Max'!AU18*'Weighting Factors'!$R$11)+('2023 Legal Max'!AV18*'Weighting Factors'!$R$12)+('2023 Legal Max'!AW18*'Weighting Factors'!$R$12) -> 0 | AY18: =IF(ISNA(VLOOKUP($CW18,'Audit Values'!$A$2:$BV$805,2,FALSE)),"",IF(AND('Weighting Factors'!G18>0,VLOOKUP($CW18,'Audit Values'!$A$2:$BV$805,51,FALSE)<'Weighting Factors'!G18),'Weighting Factors'!G18,VLOOKUP($CW18,'Audit Values'!$A$2:$BV$805,51,FALSE))) -> 14 | AZ18: =IF(ISNA(VLOOKUP($CW18,'Audit Values'!$A:$BW,2,FALSE)),"",VLOOKUP($CW18,'Audit Values'!$A:$BW,52,FALSE)) -> A | BA18: =IF('Weighting Factors'!F18="","",IF('Weighting Factors'!H18="Pending","PX","R")) ->  | BB18: =SUM((U18+V18+AA18+AC18+AF18+AI18+AL18+AM18+AQ18+AN18)*'Weighting Factors'!$O$5)+'2023 Legal Max'!AX18 -> 5083939 | BC18: =SUM((AR18+AN18)*'Weighting Factors'!$O$5)+AX18 -> 5647044 | BD18: =IF('Weighting Factors'!F18>0,'Weighting Factors'!F18,'Preliminary SO66'!AV17) -> 5721188 | BE18: 5647044 | BF18: ='Weighting Factors'!E18 -> 0 | BG18: =Transportation!G18 -> 0 | BH18: =IF(ISNA(VLOOKUP($CW18,'Audit Values'!$A$2:$BU$380,2,FALSE)), 0, VLOOKUP($CW18,'Audit Values'!$A$2:$BU$380,73,FALSE)) -> 0 | BI18: 0 | BJ18: 5647044 | BK18: =SUM((U18+V18+AA18+AC18+AF18+AI18+AL18+AM18+AN18)*'Weighting Factors'!O$12)+(MAX(AO18,'Weighting Factors'!B18)) -> 5730412 | BL18: ='LOB%'!F16 -> 0.31 | BM18: 1776428 | BN18: 1794763 | BO18: 1776428 | BP18: 0.31 | BQ18: 0 | BR18: FALSE | BS18: 0 | BT18: 0 | BU18: 0 | BV18: TRUE | BW18: 441.1688 | BX18: 0.363066 | BY18: 238.4 | BZ18: 0 | CA18: 222 | CB18: 1.015 | CC18: =IF(CB18<0.06,1,IF(CB18>=18.29,52,MATCH(CB18-0.001,'Weighting Factors'!$W$5:$W$156)+1)) -> 32 | CD18: =VLOOKUP(CC18, 'Weighting Factors'!$U$5:$X$56,4) -> 950 | CE18: =('Weighting Factors'!$O$5/'Weighting Factors'!$O$14) -> 1.1635 | CF18: 214130 | CG18: =CF18*'Weighting Factors'!$Q$7 -> 214130 | CH18: 249140 | CI18: =AK18/'Weighting Factors'!$O$5 -> 51.4 | CJ18: 0 | CK18: 0 | CL18: 0 | CM18: =SUM((AR18*'Weighting Factors'!$O$5)+'2023 Legal Max'!AX18)*CL18 -> 0 | CN18: 0 | CO18: 0.2307 | CP18: 0 | CQ18: 0 | CR18: 1165.3 | CS18: ='Required Transfers'!L18 -> 127548 | CT18: ='Required Transfers'!O18 -> 2309 | CU18: ='Required Transfers'!H18 -> 398826 | CV18: 711.5 | CW18: D0115
A19: 200 | B19: Greeley | C19: Greeley County Schools | D19: 234.2 | F19: 0 | G19: 234.2 | H19: 234.6 | J19: 0 | K19: 234.6 | L19: 236.5 | M19: 0 | N19: 0 | O19: 236.5 | P19: =IF(ISNA(VLOOKUP($CW19,'Audit Values'!$A:$BX,2,FALSE)),'Preliminary SO66'!C18,VLOOKUP($CW19,'Audit Values'!$A:$BX,74,FALSE)) -> 224 | Q19: =IF(ISNA(VLOOKUP($CW19,'Audit Values'!$A:$BX,2,FALSE)),'Preliminary SO66'!F18,VLOOKUP($CW19,'Audit Values'!$A$2:$BX$805,4,FALSE)) -> 0 | R19: 224 | S19: =IF('Military Provision'!J19="YES", MAX('2023 Legal Max'!O19,'2023 Legal Max'!K19,AVERAGE('2023 Legal Max'!G19,'2023 Legal Max'!K19,'2023 Legal Max'!O19)), MAX(O19, K19)) -> 236.5 | T19: =IF(ISNA(VLOOKUP($CW19,'Audit Values'!$A:$BV,2,FALSE)),'Preliminary SO66'!AL18,VLOOKUP($CW19,'Audit Values'!$A:$BV,59,FALSE)) -> 3 | U19: 239.5 | V19: 154.4 | W19: =IF(ISNA(VLOOKUP($CW19,'Audit Values'!$A:$BX,2,FALSE)),'Preliminary SO66'!AM18,VLOOKUP($CW19,'Audit Values'!$A:$BX,63,FALSE)) -> 83.2 | X19: =(W19/6)*'Weighting Factors'!$O$7 -> 5.5 | Y19: =IF(ISNA(VLOOKUP($CW19,'Audit Values'!$A:$BX,2,FALSE)),'Preliminary SO66'!AN18,VLOOKUP($CW19,'Audit Values'!$A:$BX,62,FALSE)) -> 42 | Z19: =Y19*'Weighting Factors'!$O$8 -> 7.8 | AA19: 7.8 | AB19: =IF(ISNA(VLOOKUP($CW19,'Audit Values'!$A:$BX,2,FALSE)),'Preliminary SO66'!AO18,VLOOKUP($CW19,'Audit Values'!$A:$BX,61,FALSE)) -> 75.5 | AC19: =AB19/6*'Weighting Factors'!$O$6 -> 6.3 | AD19: =IF(ISNA(VLOOKUP($CW19,'Audit Values'!$A:$BV,2,FALSE)),'Preliminary SO66'!AS18,VLOOKUP($CW19,'Audit Values'!$A:$BV,64,FALSE)) -> 230 | AE19: =IF(ISNA(VLOOKUP($CW19,'Audit Values'!$A:$BV,2,FALSE)),'Preliminary SO66'!AP18,VLOOKUP($CW19,'Audit Values'!$A:$BV,65,FALSE)) -> 84 | AF19: =IF(A19=207, AE19,(AE19))*'Weighting Factors'!$O$9 -> 40.7 | AG19: 0.9 | AH19: =IF(ISNA(VLOOKUP($CW19,'Audit Values'!$A:$BX,2,FALSE)),'Preliminary SO66'!AG18,VLOOKUP($CW19,'Audit Values'!$A:$BX,71,FALSE)) -> 1.2 | AI19: 1.2 | AJ19: =IF(ISNA(VLOOKUP($CW19,'Audit Values'!$A:$BV,2,FALSE)),'Preliminary SO66'!AR18,VLOOKUP($CW19,'Audit Values'!$A:$BV,66,FALSE)) -> 56 | AK19: 100340 | AL19: =AK19/'Weighting Factors'!$O$5 -> 20.7 | AM19: =CJ19/'Weighting Factors'!$O$5 -> 0 | AN19: =CN19/'Weighting Factors'!$O$5 -> 0 | AO19: 152251 | AP19: =AO19/'Weighting Factors'!$O$5 -> 31.4 | AQ19: =IF(ISNA(VLOOKUP($CW19,'Audit Values'!$A:$BV,2,FALSE)),'Preliminary SO66'!X18,VLOOKUP($CW19,'Audit Values'!$A:$BV,48,FALSE)) -> 0 | AR19: 502 | AS19: 470.6 | AT19: =IF(ISNA(VLOOKUP($CW19,'Audit Values'!$A$2:$BV$786,2,FALSE)),'Preliminary SO66'!AA18,VLOOKUP($CW19,'Audit Values'!$A$2:$BV$786,41,FALSE)) -> 0 | AU19: =IF(ISNA(VLOOKUP($CW19,'Audit Values'!$A$2:$BV$786,2,FALSE)),'Preliminary SO66'!AB18,VLOOKUP($CW19,'Audit Values'!$A$2:$BV$786,42,FALSE)) -> 0 | AV19: 0 | AW19: 0 | AX19: =SUM(AT19*'Weighting Factors'!$R$10)+('2023 Legal Max'!AU19*'Weighting Factors'!$R$11)+('2023 Legal Max'!AV19*'Weighting Factors'!$R$12)+('2023 Legal Max'!AW19*'Weighting Factors'!$R$12) -> 0 | AY19: =IF(ISNA(VLOOKUP($CW19,'Audit Values'!$A$2:$BV$805,2,FALSE)),"",IF(AND('Weighting Factors'!G19>0,VLOOKUP($CW19,'Audit Values'!$A$2:$BV$805,51,FALSE)<'Weighting Factors'!G19),'Weighting Factors'!G19,VLOOKUP($CW19,'Audit Values'!$A$2:$BV$805,51,FALSE))) -> 6 | AZ19: =IF(ISNA(VLOOKUP($CW19,'Audit Values'!$A:$BW,2,FALSE)),"",VLOOKUP($CW19,'Audit Values'!$A:$BW,52,FALSE)) -> A | BA19: =IF('Weighting Factors'!F19="","",IF('Weighting Factors'!H19="Pending","PX","R")) ->  | BB19: =SUM((U19+V19+AA19+AC19+AF19+AI19+AL19+AM19+AQ19+AN19)*'Weighting Factors'!$O$5)+'2023 Legal Max'!AX19 -> 2280528 | BC19: =SUM((AR19+AN19)*'Weighting Factors'!$O$5)+AX19 -> 2432692 | BD19: =IF('Weighting Factors'!F19>0,'Weighting Factors'!F19,'Preliminary SO66'!AV18) -> 2560142 | BE19: 2432692 | BF19: ='Weighting Factors'!E19 -> 0 | BG19: =Transportation!G19 -> 0 | BH19: =IF(ISNA(VLOOKUP($CW19,'Audit Values'!$A$2:$BU$380,2,FALSE)), 0, VLOOKUP($CW19,'Audit Values'!$A$2:$BU$380,73,FALSE)) -> 0 | BI19: 0 | BJ19: 2432692 | BK19: =SUM((U19+V19+AA19+AC19+AF19+AI19+AL19+AM19+AN19)*'Weighting Factors'!O$12)+(MAX(AO19,'Weighting Factors'!B19)) -> 2477438 | BL19: ='LOB%'!F17 -> 0.31 | BM19: 768006 | BN19: 778156 | BO19: 768006 | BP19: 0.31 | BQ19: 0 | BR19: TRUE | BS19: 1346.873 | BT19: 0.644555 | BU19: 154.4 | BV19: FALSE | BW19: 0 | BX19: 0 | BY19: 0 | BZ19: 0 | CA19: 780 | CB19: 0.072 | CC19: =IF(CB19<0.06,1,IF(CB19>=18.29,52,MATCH(CB19-0.001,'Weighting Factors'!$W$5:$W$156)+1)) -> 3 | CD19: =VLOOKUP(CC19, 'Weighting Factors'!$U$5:$X$56,4) -> 1540 | CE19: =('Weighting Factors'!$O$5/'Weighting Factors'!$O$14) -> 1.1635 | CF19: 86240 | CG19: =CF19*'Weighting Factors'!$Q$7 -> 86240 | CH19: 100340 | CI19: =AK19/'Weighting Factors'!$O$5 -> 20.7 | CJ19: 0 | CK19: 0 | CL19: 0 | CM19: =SUM((AR19*'Weighting Factors'!$O$5)+'2023 Legal Max'!AX19)*CL19 -> 0 | CN19: 0 | CO19: 0.3652 | CP19: 0 | CQ19: 0.9 | CR19: 502 | CS19: ='Required Transfers'!L19 -> 62669 | CT19: ='Required Transfers'!O19 -> 11981 | CU19: ='Required Transfers'!H19 -> 203047 | CV19: 227 | CW19: D0200
A20: 202 | B20: Wyandotte | C20: Turner-Kansas City | D20: 3839.8 | F20: 0 | G20: 3839.8 | H20: 3681.8 | J20: 0 | K20: 3681.8 | L20: 3698.6 | M20: 0 | N20: 0 | O20: 3698.6 | P20: =IF(ISNA(VLOOKUP($CW20,'Audit Values'!$A:$BX,2,FALSE)),'Preliminary SO66'!C19,VLOOKUP($CW20,'Audit Values'!$A:$BX,74,FALSE)) -> 3617.6 | Q20: =IF(ISNA(VLOOKUP($CW20,'Audit Values'!$A:$BX,2,FALSE)),'Preliminary SO66'!F19,VLOOKUP($CW20,'Audit Values'!$A$2:$BX$805,4,FALSE)) -> 0 | R20: =SUM(P20+Q20) -> 3617.6 | S20: =IF('Military Provision'!J20="YES", MAX('2023 Legal Max'!O20,'2023 Legal Max'!K20,AVERAGE('2023 Legal Max'!G20,'2023 Legal Max'!K20,'2023 Legal Max'!O20)), MAX(O20, K20)) -> 3698.6 | T20: =IF(ISNA(VLOOKUP($CW20,'Audit Values'!$A:$BV,2,FALSE)),'Preliminary SO66'!AL19,VLOOKUP($CW20,'Audit Values'!$A:$BV,59,FALSE)) -> 94 | U20: 3792.6 | V20: 132.9 | W20: =IF(ISNA(VLOOKUP($CW20,'Audit Values'!$A:$BX,2,FALSE)),'Preliminary SO66'!AM19,VLOOKUP($CW20,'Audit Values'!$A:$BX,63,FALSE)) -> 1636.3 | X20: =(W20/6)*'Weighting Factors'!$O$7 -> 107.7 | Y20: =IF(ISNA(VLOOKUP($CW20,'Audit Values'!$A:$BX,2,FALSE)),'Preliminary SO66'!AN19,VLOOKUP($CW20,'Audit Values'!$A:$BX,62,FALSE)) -> 731 | Z20: =Y20*'Weighting Factors'!$O$8 -> 135.2 | AA20: 135.2 | AB20: =IF(ISNA(VLOOKUP($CW20,'Audit Values'!$A:$BX,2,FALSE)),'Preliminary SO66'!AO19,VLOOKUP($CW20,'Audit Values'!$A:$BX,61,FALSE)) -> 1100.3 | AC20: =AB20/6*'Weighting Factors'!$O$6 -> 91.7 | AD20: =IF(ISNA(VLOOKUP($CW20,'Audit Values'!$A:$BV,2,FALSE)),'Preliminary SO66'!AS19,VLOOKUP($CW20,'Audit Values'!$A:$BV,64,FALSE)) -> 3824 | AE20: =IF(ISNA(VLOOKUP($CW20,'Audit Values'!$A:$BV,2,FALSE)),'Preliminary SO66'!AP19,VLOOKUP($CW20,'Audit Values'!$A:$BV,65,FALSE)) -> 2444 | AF20: =IF(A20=207, AE20,(AE20))*'Weighting Factors'!$O$9 -> 1182.9 | AG20: 256.6 | AH20: =IF(ISNA(VLOOKUP($CW20,'Audit Values'!$A:$BX,2,FALSE)),'Preliminary SO66'!AG19,VLOOKUP($CW20,'Audit Values'!$A:$BX,71,FALSE)) -> 256.7 | AI20: 256.7 | AJ20: =IF(ISNA(VLOOKUP($CW20,'Audit Values'!$A:$BV,2,FALSE)),'Preliminary SO66'!AR19,VLOOKUP($CW20,'Audit Values'!$A:$BV,66,FALSE)) -> 1217 | AK20: 778789 | AL20: =AK20/'Weighting Factors'!$O$5 -> 160.7 | AM20: =CJ20/'Weighting Factors'!$O$5 -> 0 | AN20: =CN20/'Weighting Factors'!$O$5 -> 0 | AO20: 3193353 | AP20: =AO20/'Weighting Factors'!$O$5 -> 659 | AQ20: =IF(ISNA(VLOOKUP($CW20,'Audit Values'!$A:$BV,2,FALSE)),'Preliminary SO66'!X19,VLOOKUP($CW20,'Audit Values'!$A:$BV,48,FALSE)) -> 1 | AR20: 6412.7 | AS20: 5753.7 | AT20: =IF(ISNA(VLOOKUP($CW20,'Audit Values'!$A$2:$BV$786,2,FALSE)),'Preliminary SO66'!AA19,VLOOKUP($CW20,'Audit Values'!$A$2:$BV$786,41,FALSE)) -> 7 | AU20: =IF(ISNA(VLOOKUP($CW20,'Audit Values'!$A$2:$BV$786,2,FALSE)),'Preliminary SO66'!AB19,VLOOKUP($CW20,'Audit Values'!$A$2:$BV$786,42,FALSE)) -> 2.1 | AV20: 60.5 | AW20: 0 | AX20: =SUM(AT20*'Weighting Factors'!$R$10)+('2023 Legal Max'!AU20*'Weighting Factors'!$R$11)+('2023 Legal Max'!AV20*'Weighting Factors'!$R$12)+('2023 Legal Max'!AW20*'Weighting Factors'!$R$12) -> 87975 | AY20: =IF(ISNA(VLOOKUP($CW20,'Audit Values'!$A$2:$BV$805,2,FALSE)),"",IF(AND('Weighting Factors'!G20>0,VLOOKUP($CW20,'Audit Values'!$A$2:$BV$805,51,FALSE)<'Weighting Factors'!G20),'Weighting Factors'!G20,VLOOKUP($CW20,'Audit Values'!$A$2:$BV$805,51,FALSE))) -> 5 | AZ20: =IF(ISNA(VLOOKUP($CW20,'Audit Values'!$A:$BW,2,FALSE)),"",VLOOKUP($CW20,'Audit Values'!$A:$BW,52,FALSE)) -> A | BA20: =IF('Weighting Factors'!F20="","",IF('Weighting Factors'!H20="Pending","PX","R")) ->  | BB20: =SUM((U20+V20+AA20+AC20+AF20+AI20+AL20+AM20+AQ20+AN20)*'Weighting Factors'!$O$5)+'2023 Legal Max'!AX20 -> 27970405 | BC20: =SUM((AR20+AN20)*'Weighting Factors'!$O$5)+AX20 -> 31163919 | BD20: =IF('Weighting Factors'!F20>0,'Weighting Factors'!F20,'Preliminary SO66'!AV19) -> 32027985 | BE20: 31163919 | BF20: ='Weighting Factors'!E20 -> 0 | BG20: =Transportation!G20 -> 0 | BH20: =IF(ISNA(VLOOKUP($CW20,'Audit Values'!$A$2:$BU$380,2,FALSE)), 0, VLOOKUP($CW20,'Audit Values'!$A$2:$BU$380,73,FALSE)) -> -7090 | BI20: -7090 | BJ20: 31156829 | BK20: =SUM((U20+V20+AA20+AC20+AF20+AI20+AL20+AM20+AN20)*'Weighting Factors'!O$12)+(MAX(AO20,'Weighting Factors'!B20)) -> 31491264 | BL20: ='LOB%'!F18 -> 0.31 | BM20: 9762292 | BN20: 9705562 | BO20: 9705562 | BP20: 0.3082 | BQ20: 0 | BR20: FALSE | BS20: 0 | BT20: 0 | BU20: 0 | BV20: FALSE | BW20: 0 | BX20: 0 | BY20: 0 | BZ20: 132.9 | CA20: 17 | CB20: 71.588 | CC20: =IF(CB20<0.06,1,IF(CB20>=18.29,52,MATCH(CB20-0.001,'Weighting Factors'!$W$5:$W$156)+1)) -> 52 | CD20: =VLOOKUP(CC20, 'Weighting Factors'!$U$5:$X$56,4) -> 550 | CE20: =('Weighting Factors'!$O$5/'Weighting Factors'!$O$14) -> 1.1635 | CF20: 669350 | CG20: =CF20*'Weighting Factors'!$Q$7 -> 669350 | CH20: 778789 | CI20: =AK20/'Weighting Factors'!$O$5 -> 160.7 | CJ20: 0 | CK20: 0 | CL20: 0 | CM20: =SUM((AR20*'Weighting Factors'!$O$5)+'2023 Legal Max'!AX20)*CL20 -> 0 | CN20: 0 | CO20: 0.6391 | CP20: 256.6 | CQ20: 0 | CR20: 6412.7 | CS20: ='Required Transfers'!L20 -> 1816881 | CT20: ='Required Transfers'!O20 -> 207699 | CU20: ='Required Transfers'!H20 -> 6976302 | CV20: 3730.8 | CW20: D0202
A21: 203 | B21: Wyandotte | C21: Piper-Kansas City | D21: 2435.5 | F21: 0 | G21: 2435.5 | H21: 2465.2 | J21: 0 | K21: 2465.2 | L21: 2498.5 | M21: 0 | N21: 0 | O21: 2498.5 | P21: =IF(ISNA(VLOOKUP($CW21,'Audit Values'!$A:$BX,2,FALSE)),'Preliminary SO66'!C20,VLOOKUP($CW21,'Audit Values'!$A:$BX,74,FALSE)) -> 2638 | Q21: =IF(ISNA(VLOOKUP($CW21,'Audit Values'!$A:$BX,2,FALSE)),'Preliminary SO66'!F20,VLOOKUP($CW21,'Audit Values'!$A$2:$BX$805,4,FALSE)) -> 0 | R21: 2638 | S21: =IF('Military Provision'!J21="YES", MAX('2023 Legal Max'!O21,'2023 Legal Max'!K21,AVERAGE('2023 Legal Max'!G21,'2023 Legal Max'!K21,'2023 Legal Max'!O21)), MAX(O21, K21)) -> 2498.5 | T21: =IF(ISNA(VLOOKUP($CW21,'Audit Values'!$A:$BV,2,FALSE)),'Preliminary SO66'!AL20,VLOOKUP($CW21,'Audit Values'!$A:$BV,59,FALSE)) -> 6.5 | U21: 2505 | V21: 87.8 | W21: =IF(ISNA(VLOOKUP($CW21,'Audit Values'!$A:$BX,2,FALSE)),'Preliminary SO66'!AM20,VLOOKUP($CW21,'Audit Values'!$A:$BX,63,FALSE)) -> 448.1 | X21: =(W21/6)*'Weighting Factors'!$O$7 -> 29.5 | Y21: =IF(ISNA(VLOOKUP($CW21,'Audit Values'!$A:$BX,2,FALSE)),'Preliminary SO66'!AN20,VLOOKUP($CW21,'Audit Values'!$A:$BX,62,FALSE)) -> 169 | Z21: =Y21*'Weighting Factors'!$O$8 -> 31.3 | AA21: 31.3 | AB21: =IF(ISNA(VLOOKUP($CW21,'Audit Values'!$A:$BX,2,FALSE)),'Preliminary SO66'!AO20,VLOOKUP($CW21,'Audit Values'!$A:$BX,61,FALSE)) -> 679.1 | AC21: =AB21/6*'Weighting Factors'!$O$6 -> 56.6 | AD21: =IF(ISNA(VLOOKUP($CW21,'Audit Values'!$A:$BV,2,FALSE)),'Preliminary SO66'!AS20,VLOOKUP($CW21,'Audit Values'!$A:$BV,64,FALSE)) -> 2656 | AE21: =IF(ISNA(VLOOKUP($CW21,'Audit Values'!$A:$BV,2,FALSE)),'Preliminary SO66'!AP20,VLOOKUP($CW21,'Audit Values'!$A:$BV,65,FALSE)) -> 529 | AF21: =IF(A21=207, AE21,(AE21))*'Weighting Factors'!$O$9 -> 256 | AG21: 0 | AH21: =IF(ISNA(VLOOKUP($CW21,'Audit Values'!$A:$BX,2,FALSE)),'Preliminary SO66'!AG20,VLOOKUP($CW21,'Audit Values'!$A:$BX,71,FALSE)) -> 0 | AI21: 0 | AJ21: =IF(ISNA(VLOOKUP($CW21,'Audit Values'!$A:$BV,2,FALSE)),'Preliminary SO66'!AR20,VLOOKUP($CW21,'Audit Values'!$A:$BV,66,FALSE)) -> 1035 | AK21: 662322 | AL21: =AK21/'Weighting Factors'!$O$5 -> 136.7 | AM21: =CJ21/'Weighting Factors'!$O$5 -> 0 | AN21: =CN21/'Weighting Factors'!$O$5 -> 111.6 | AO21: 2947228 | AP21: =AO21/'Weighting Factors'!$O$5 -> 608.2 | AQ21: =IF(ISNA(VLOOKUP($CW21,'Audit Values'!$A:$BV,2,FALSE)),'Preliminary SO66'!X20,VLOOKUP($CW21,'Audit Values'!$A:$BV,48,FALSE)) -> 0 | AR21: 3681.6 | AS21: 3185 | AT21: =IF(ISNA(VLOOKUP($CW21,'Audit Values'!$A$2:$BV$786,2,FALSE)),'Preliminary SO66'!AA20,VLOOKUP($CW21,'Audit Values'!$A$2:$BV$786,41,FALSE)) -> 21 | AU21: =IF(ISNA(VLOOKUP($CW21,'Audit Values'!$A$2:$BV$786,2,FALSE)),'Preliminary SO66'!AB20,VLOOKUP($CW21,'Audit Values'!$A$2:$BV$786,42,FALSE)) -> 2.9 | AV21: 0 | AW21: 0 | AX21: =SUM(AT21*'Weighting Factors'!$R$10)+('2023 Legal Max'!AU21*'Weighting Factors'!$R$11)+('2023 Legal Max'!AV21*'Weighting Factors'!$R$12)+('2023 Legal Max'!AW21*'Weighting Factors'!$R$12) -> 125720 | AY21: =IF(ISNA(VLOOKUP($CW21,'Audit Values'!$A$2:$BV$805,2,FALSE)),"",IF(AND('Weighting Factors'!G21>0,VLOOKUP($CW21,'Audit Values'!$A$2:$BV$805,51,FALSE)<'Weighting Factors'!G21),'Weighting Factors'!G21,VLOOKUP($CW21,'Audit Values'!$A$2:$BV$805,51,FALSE))) -> 20 | AZ21: =IF(ISNA(VLOOKUP($CW21,'Audit Values'!$A:$BW,2,FALSE)),"",VLOOKUP($CW21,'Audit Values'!$A:$BW,52,FALSE)) -> A | BA21: =IF('Weighting Factors'!F21="","",IF('Weighting Factors'!H21="Pending","PX","R")) -> R | BB21: =SUM((U21+V21+AA21+AC21+AF21+AI21+AL21+AM21+AQ21+AN21)*'Weighting Factors'!$O$5)+'2023 Legal Max'!AX21 -> 15560230 | BC21: =SUM((AR21+AN21)*'Weighting Factors'!$O$5)+AX21 -> 18507567 | BD21: =IF('Weighting Factors'!F21>0,'Weighting Factors'!F21,'Preliminary SO66'!AV20) -> 18900000 | BE21: 18507567 | BF21: ='Weighting Factors'!E21 -> 0 | BG21: =Transportation!G21 -> 0 | BH21: =IF(ISNA(VLOOKUP($CW21,'Audit Values'!$A$2:$BU$380,2,FALSE)), 0, VLOOKUP($CW21,'Audit Values'!$A$2:$BU$380,73,FALSE)) -> 0 | BI21: 0 | BJ21: 18507567 | BK21: =SUM((U21+V21+AA21+AC21+AF21+AI21+AL21+AM21+AN21)*'Weighting Factors'!O$12)+(MAX(AO21,'Weighting Factors'!B21)) -> 18591948 | BL21: ='LOB%'!F19 -> 0.33 | BM21: 6135343 | BN21: 6025943 | BO21: 6025943 | BP21: 0.3241 | BQ21: 0 | BR21: FALSE | BS21: 0 | BT21: 0 | BU21: 0 | BV21: FALSE | BW21: 0 | BX21: 0 | BY21: 0 | BZ21: 87.8 | CA21: 31.4 | CB21: 32.962 | CC21: =IF(CB21<0.06,1,IF(CB21>=18.29,52,MATCH(CB21-0.001,'Weighting Factors'!$W$5:$W$156)+1)) -> 52 | CD21: =VLOOKUP(CC21, 'Weighting Factors'!$U$5:$X$56,4) -> 550 | CE21: =('Weighting Factors'!$O$5/'Weighting Factors'!$O$14) -> 1.1635 | CF21: 569250 | CG21: =CF21*'Weighting Factors'!$Q$7 -> 569250 | CH21: 662322 | CI21: =AK21/'Weighting Factors'!$O$5 -> 136.7 | CJ21: 0 | CK21: 540668 | CL21: 0.0306 | CM21: =SUM((AR21*'Weighting Factors'!$O$5)+'2023 Legal Max'!AX21)*CL21 -> 549783 | CN21: 540668 | CO21: 0.1992 | CP21: 0 | CQ21: 0 | CR21: 3793.2 | CS21: ='Required Transfers'!L21 -> 407354 | CT21: ='Required Transfers'!O21 -> 50015 | CU21: ='Required Transfers'!H21 -> 1240576 | CV21: 2668.4 | CW21: D0203
A22: 204 | B22: Wyandotte | C22: Bonner Springs | D22: 2621.5 | F22: 0 | G22: 2621.5 | H22: 2515.9 | J22: 0 | K22: 2515.9 | L22: 2406 | M22: 0 | N22: 0 | O22: 2406 | P22: =IF(ISNA(VLOOKUP($CW22,'Audit Values'!$A:$BX,2,FALSE)),'Preliminary SO66'!C21,VLOOKUP($CW22,'Audit Values'!$A:$BX,74,FALSE)) -> 2346 | Q22: =IF(ISNA(VLOOKUP($CW22,'Audit Values'!$A:$BX,2,FALSE)),'Preliminary SO66'!F21,VLOOKUP($CW22,'Audit Values'!$A$2:$BX$805,4,FALSE)) -> 0 | R22: 2346 | S22: =IF('Military Provision'!J22="YES", MAX('2023 Legal Max'!O22,'2023 Legal Max'!K22,AVERAGE('2023 Legal Max'!G22,'2023 Legal Max'!K22,'2023 Legal Max'!O22)), MAX(O22, K22)) -> 2515.9 | T22: =IF(ISNA(VLOOKUP($CW22,'Audit Values'!$A:$BV,2,FALSE)),'Preliminary SO66'!AL21,VLOOKUP($CW22,'Audit Values'!$A:$BV,59,FALSE)) -> 18 | U22: 2533.9 | V22: 88.8 | W22: =IF(ISNA(VLOOKUP($CW22,'Audit Values'!$A:$BX,2,FALSE)),'Preliminary SO66'!AM21,VLOOKUP($CW22,'Audit Values'!$A:$BX,63,FALSE)) -> 298.1 | X22: =(W22/6)*'Weighting Factors'!$O$7 -> 19.6 | Y22: =IF(ISNA(VLOOKUP($CW22,'Audit Values'!$A:$BX,2,FALSE)),'Preliminary SO66'!AN21,VLOOKUP($CW22,'Audit Values'!$A:$BX,62,FALSE)) -> 145 | Z22: =Y22*'Weighting Factors'!$O$8 -> 26.8 | AA22: 26.8 | AB22: =IF(ISNA(VLOOKUP($CW22,'Audit Values'!$A:$BX,2,FALSE)),'Preliminary SO66'!AO21,VLOOKUP($CW22,'Audit Values'!$A:$BX,61,FALSE)) -> 846.4 | AC22: =AB22/6*'Weighting Factors'!$O$6 -> 70.5 | AD22: =IF(ISNA(VLOOKUP($CW22,'Audit Values'!$A:$BV,2,FALSE)),'Preliminary SO66'!AS21,VLOOKUP($CW22,'Audit Values'!$A:$BV,64,FALSE)) -> 2393 | AE22: =IF(ISNA(VLOOKUP($CW22,'Audit Values'!$A:$BV,2,FALSE)),'Preliminary SO66'!AP21,VLOOKUP($CW22,'Audit Values'!$A:$BV,65,FALSE)) -> 1088 | AF22: =IF(A22=207, AE22,(AE22))*'Weighting Factors'!$O$9 -> 526.6 | AG22: 79.7 | AH22: =IF(ISNA(VLOOKUP($CW22,'Audit Values'!$A:$BX,2,FALSE)),'Preliminary SO66'!AG21,VLOOKUP($CW22,'Audit Values'!$A:$BX,71,FALSE)) -> 76.4 | AI22: 79.7 | AJ22: =IF(ISNA(VLOOKUP($CW22,'Audit Values'!$A:$BV,2,FALSE)),'Preliminary SO66'!AR21,VLOOKUP($CW22,'Audit Values'!$A:$BV,66,FALSE)) -> 371.1 | AK22: 272018 | AL22: =AK22/'Weighting Factors'!$O$5 -> 56.1 | AM22: =CJ22/'Weighting Factors'!$O$5 -> 0 | AN22: =CN22/'Weighting Factors'!$O$5 -> 0 | AO22: 3191064 | AP22: =AO22/'Weighting Factors'!$O$5 -> 658.5 | AQ22: =IF(ISNA(VLOOKUP($CW22,'Audit Values'!$A:$BV,2,FALSE)),'Preliminary SO66'!X21,VLOOKUP($CW22,'Audit Values'!$A:$BV,48,FALSE)) -> 0 | AR22: 4040.9 | AS22: 3382.4 | AT22: =IF(ISNA(VLOOKUP($CW22,'Audit Values'!$A$2:$BV$786,2,FALSE)),'Preliminary SO66'!AA21,VLOOKUP($CW22,'Audit Values'!$A$2:$BV$786,41,FALSE)) -> 43 | AU22: =IF(ISNA(VLOOKUP($CW22,'Audit Values'!$A$2:$BV$786,2,FALSE)),'Preliminary SO66'!AB21,VLOOKUP($CW22,'Audit Values'!$A$2:$BV$786,42,FALSE)) -> 5 | AV22: 18.5 | AW22: 3 | AX22: =SUM(AT22*'Weighting Factors'!$R$10)+('2023 Legal Max'!AU22*'Weighting Factors'!$R$11)+('2023 Legal Max'!AV22*'Weighting Factors'!$R$12)+('2023 Legal Max'!AW22*'Weighting Factors'!$R$12) -> 270044 | AY22: =IF(ISNA(VLOOKUP($CW22,'Audit Values'!$A$2:$BV$805,2,FALSE)),"",IF(AND('Weighting Factors'!G22>0,VLOOKUP($CW22,'Audit Values'!$A$2:$BV$805,51,FALSE)<'Weighting Factors'!G22),'Weighting Factors'!G22,VLOOKUP($CW22,'Audit Values'!$A$2:$BV$805,51,FALSE))) -> 13 | AZ22: =IF(ISNA(VLOOKUP($CW22,'Audit Values'!$A:$BW,2,FALSE)),"",VLOOKUP($CW22,'Audit Values'!$A:$BW,52,FALSE)) -> A | BA22: =IF('Weighting Factors'!F22="","",IF('Weighting Factors'!H22="Pending","PX","R")) -> R | BB22: =SUM((U22+V22+AA22+AC22+AF22+AI22+AL22+AM22+AQ22+AN22)*'Weighting Factors'!$O$5)+'2023 Legal Max'!AX22 -> 16661154 | BC22: =SUM((AR22+AN22)*'Weighting Factors'!$O$5)+AX22 -> 19852245 | BD22: =IF('Weighting Factors'!F22>0,'Weighting Factors'!F22,'Preliminary SO66'!AV21) -> 20533241 | BE22: 19852245 | BF22: ='Weighting Factors'!E22 -> 0 | BG22: =Transportation!G22 -> 0 | BH22: =IF(ISNA(VLOOKUP($CW22,'Audit Values'!$A$2:$BU$380,2,FALSE)), 0, VLOOKUP($CW22,'Audit Values'!$A$2:$BU$380,73,FALSE)) -> -1418 | BI22: -1418 | BJ22: 19850827 | BK22: =SUM((U22+V22+AA22+AC22+AF22+AI22+AL22+AM22+AN22)*'Weighting Factors'!O$12)+(MAX(AO22,'Weighting Factors'!B22)) -> 19805413 | BL22: ='LOB%'!F20 -> 0.33 | BM22: 6535786 | BN22: 6453678 | BO22: 6453678 | BP22: 0.3259 | BQ22: 0 | BR22: FALSE | BS22: 0 | BT22: 0 | BU22: 0 | BV22: FALSE | BW22: 0 | BX22: 0 | BY22: 0 | BZ22: 88.8 | CA22: 38 | CB22: 9.766 | CC22: =IF(CB22<0.06,1,IF(CB22>=18.29,52,MATCH(CB22-0.001,'Weighting Factors'!$W$5:$W$156)+1)) -> 48 | CD22: =VLOOKUP(CC22, 'Weighting Factors'!$U$5:$X$56,4) -> 630 | CE22: =('Weighting Factors'!$O$5/'Weighting Factors'!$O$14) -> 1.1635 | CF22: 233793 | CG22: =CF22*'Weighting Factors'!$Q$7 -> 233793 | CH22: 272018 | CI22: =AK22/'Weighting Factors'!$O$5 -> 56.1 | CJ22: 0 | CK22: 0 | CL22: 0 | CM22: =SUM((AR22*'Weighting Factors'!$O$5)+'2023 Legal Max'!AX22)*CL22 -> 0 | CN22: 0 | CO22: 0.4547 | CP22: 0 | CQ22: 79.7 | CR22: 4040.9 | CS22: ='Required Transfers'!L22 -> 844786 | CT22: ='Required Transfers'!O22 -> 43240 | CU22: ='Required Transfers'!H22 -> 2938130 | CV22: 2415.1 | CW22: D0204
A23: 205 | B23: Butler | C23: Bluestem | D23: 483.2 | F23: 0 | G23: 483.2 | H23: 476.6 | J23: 0 | K23: 476.6 | L23: 505 | M23: 0 | N23: 0 | O23: 505 | P23: =IF(ISNA(VLOOKUP($CW23,'Audit Values'!$A:$BX,2,FALSE)),'Preliminary SO66'!C22,VLOOKUP($CW23,'Audit Values'!$A:$BX,74,FALSE)) -> 500.6 | Q23: =IF(ISNA(VLOOKUP($CW23,'Audit Values'!$A:$BX,2,FALSE)),'Preliminary SO66'!F22,VLOOKUP($CW23,'Audit Values'!$A$2:$BX$805,4,FALSE)) -> 0 | R23: 500.6 | S23: =IF('Military Provision'!J23="YES", MAX('2023 Legal Max'!O23,'2023 Legal Max'!K23,AVERAGE('2023 Legal Max'!G23,'2023 Legal Max'!K23,'2023 Legal Max'!O23)), MAX(O23, K23)) -> 505 | T23: =IF(ISNA(VLOOKUP($CW23,'Audit Values'!$A:$BV,2,FALSE)),'Preliminary SO66'!AL22,VLOOKUP($CW23,'Audit Values'!$A:$BV,59,FALSE)) -> 8 | U23: 513 | V23: 211.3 | W23: =IF(ISNA(VLOOKUP($CW23,'Audit Values'!$A:$BX,2,FALSE)),'Preliminary SO66'!AM22,VLOOKUP($CW23,'Audit Values'!$A:$BX,63,FALSE)) -> 0 | X23: =(W23/6)*'Weighting Factors'!$O$7 -> 0 | Y23: =IF(ISNA(VLOOKUP($CW23,'Audit Values'!$A:$BX,2,FALSE)),'Preliminary SO66'!AN22,VLOOKUP($CW23,'Audit Values'!$A:$BX,62,FALSE)) -> 7 | Z23: =Y23*'Weighting Factors'!$O$8 -> 1.3 | AA23: 1.3 | AB23: =IF(ISNA(VLOOKUP($CW23,'Audit Values'!$A:$BX,2,FALSE)),'Preliminary SO66'!AO22,VLOOKUP($CW23,'Audit Values'!$A:$BX,61,FALSE)) -> 262.4 | AC23: =AB23/6*'Weighting Factors'!$O$6 -> 21.9 | AD23: =IF(ISNA(VLOOKUP($CW23,'Audit Values'!$A:$BV,2,FALSE)),'Preliminary SO66'!AS22,VLOOKUP($CW23,'Audit Values'!$A:$BV,64,FALSE)) -> 527 | AE23: =IF(ISNA(VLOOKUP($CW23,'Audit Values'!$A:$BV,2,FALSE)),'Preliminary SO66'!AP22,VLOOKUP($CW23,'Audit Values'!$A:$BV,65,FALSE)) -> 204 | AF23: =IF(A23=207, AE23,(AE23))*'Weighting Factors'!$O$9 -> 98.7 | AG23: 5.3 | AH23: =IF(ISNA(VLOOKUP($CW23,'Audit Values'!$A:$BX,2,FALSE)),'Preliminary SO66'!AG22,VLOOKUP($CW23,'Audit Values'!$A:$BX,71,FALSE)) -> 5.7 | AI23: 5.7 | AJ23: =IF(ISNA(VLOOKUP($CW23,'Audit Values'!$A:$BV,2,FALSE)),'Preliminary SO66'!AR22,VLOOKUP($CW23,'Audit Values'!$A:$BV,66,FALSE)) -> 287.5 | AK23: 331161 | AL23: =AK23/'Weighting Factors'!$O$5 -> 68.3 | AM23: =CJ23/'Weighting Factors'!$O$5 -> 0 | AN23: =CN23/'Weighting Factors'!$O$5 -> 0 | AO23: 582094 | AP23: =AO23/'Weighting Factors'!$O$5 -> 120.1 | AQ23: =IF(ISNA(VLOOKUP($CW23,'Audit Values'!$A:$BV,2,FALSE)),'Preliminary SO66'!X22,VLOOKUP($CW23,'Audit Values'!$A:$BV,48,FALSE)) -> 0 | AR23: 1040.3 | AS23: 920.2 | AT23: =IF(ISNA(VLOOKUP($CW23,'Audit Values'!$A$2:$BV$786,2,FALSE)),'Preliminary SO66'!AA22,VLOOKUP($CW23,'Audit Values'!$A$2:$BV$786,41,FALSE)) -> 0 | AU23: =IF(ISNA(VLOOKUP($CW23,'Audit Values'!$A$2:$BV$786,2,FALSE)),'Preliminary SO66'!AB22,VLOOKUP($CW23,'Audit Values'!$A$2:$BV$786,42,FALSE)) -> 0 | AV23: 0 | AW23: 0 | AX23: =SUM(AT23*'Weighting Factors'!$R$10)+('2023 Legal Max'!AU23*'Weighting Factors'!$R$11)+('2023 Legal Max'!AV23*'Weighting Factors'!$R$12)+('2023 Legal Max'!AW23*'Weighting Factors'!$R$12) -> 0 | AY23: =IF(ISNA(VLOOKUP($CW23,'Audit Values'!$A$2:$BV$805,2,FALSE)),"",IF(AND('Weighting Factors'!G23>0,VLOOKUP($CW23,'Audit Values'!$A$2:$BV$805,51,FALSE)<'Weighting Factors'!G23),'Weighting Factors'!G23,VLOOKUP($CW23,'Audit Values'!$A$2:$BV$805,51,FALSE))) -> 29 | AZ23: =IF(ISNA(VLOOKUP($CW23,'Audit Values'!$A:$BW,2,FALSE)),"",VLOOKUP($CW23,'Audit Values'!$A:$BW,52,FALSE)) -> A | BA23: =IF('Weighting Factors'!F23="","",IF('Weighting Factors'!H23="Pending","PX","R")) -> R | BB23: =SUM((U23+V23+AA23+AC23+AF23+AI23+AL23+AM23+AQ23+AN23)*'Weighting Factors'!$O$5)+'2023 Legal Max'!AX23 -> 4459289 | BC23: =SUM((AR23+AN23)*'Weighting Factors'!$O$5)+AX23 -> 5041294 | BD23: =IF('Weighting Factors'!F23>0,'Weighting Factors'!F23,'Preliminary SO66'!AV22) -> 5051955 | BE23: 5041294 | BF23: ='Weighting Factors'!E23 -> 0 | BG23: =Transportation!G23 -> -86428 | BH23: =IF(ISNA(VLOOKUP($CW23,'Audit Values'!$A$2:$BU$380,2,FALSE)), 0, VLOOKUP($CW23,'Audit Values'!$A$2:$BU$380,73,FALSE)) -> 0 | BI23: -86428 | BJ23: 4954866 | BK23: =SUM((U23+V23+AA23+AC23+AF23+AI23+AL23+AM23+AN23)*'Weighting Factors'!O$12)+(MAX(AO23,'Weighting Factors'!B23)) -> 5126496 | BL23: ='LOB%'!F21 -> 0.33 | BM23: 1691744 | BN23: 1630747 | BO23: 1630747 | BP23: 0.3181 | BQ23: 0 | BR23: FALSE | BS23: 0 | BT23: 0 | BU23: 0 | BV23: TRUE | BW23: 263.5875 | BX23: 0.41182 | BY23: 211.3 | BZ23: 0 | CA23: 348.6 | CB23: 0.825 | CC23: =IF(CB23<0.06,1,IF(CB23>=18.29,52,MATCH(CB23-0.001,'Weighting Factors'!$W$5:$W$156)+1)) -> 30 | CD23: =VLOOKUP(CC23, 'Weighting Factors'!$U$5:$X$56,4) -> 990 | CE23: =('Weighting Factors'!$O$5/'Weighting Factors'!$O$14) -> 1.1635 | CF23: 284625 | CG23: =CF23*'Weighting Factors'!$Q$7 -> 284625 | CH23: 331161 | CI23: =AK23/'Weighting Factors'!$O$5 -> 68.3 | CJ23: 0 | CK23: 0 | CL23: 0 | CM23: =SUM((AR23*'Weighting Factors'!$O$5)+'2023 Legal Max'!AX23)*CL23 -> 0 | CN23: 0 | CO23: 0.3871 | CP23: 0 | CQ23: 5.3 | CR23: 1040.3 | CS23: ='Required Transfers'!L23 -> 155899 | CT23: ='Required Transfers'!O23 -> 2120 | CU23: ='Required Transfers'!H23 -> 505922 | CV23: 508.6 | CW23: D0205
A24: 206 | B24: Butler | C24: Remington-Whitewater | D24: 460.8 | F24: 0 | G24: =SUM(D24-E24+F24) -> 460.8 | H24: 454 | J24: 0 | K24: 454 | L24: 464.5 | M24: 0 | N24: 0 | O24: 464.5 | P24: =IF(ISNA(VLOOKUP($CW24,'Audit Values'!$A:$BX,2,FALSE)),'Preliminary SO66'!C23,VLOOKUP($CW24,'Audit Values'!$A:$BX,74,FALSE)) -> 457.5 | Q24: =IF(ISNA(VLOOKUP($CW24,'Audit Values'!$A:$BX,2,FALSE)),'Preliminary SO66'!F23,VLOOKUP($CW24,'Audit Values'!$A$2:$BX$805,4,FALSE)) -> 0 | R24: =SUM(P24+Q24) -> 457.5 | S24: =IF('Military Provision'!J24="YES", MAX('2023 Legal Max'!O24,'2023 Legal Max'!K24,AVERAGE('2023 Legal Max'!G24,'2023 Legal Max'!K24,'2023 Legal Max'!O24)), MAX(O24, K24)) -> 464.5 | T24: =IF(ISNA(VLOOKUP($CW24,'Audit Values'!$A:$BV,2,FALSE)),'Preliminary SO66'!AL23,VLOOKUP($CW24,'Audit Values'!$A:$BV,59,FALSE)) -> 2.5 | U24: =S24+T24 -> 467 | V24: =MAX(BQ24, BU24, BY24, BZ24) -> 199.6 | W24: =IF(ISNA(VLOOKUP($CW24,'Audit Values'!$A:$BX,2,FALSE)),'Preliminary SO66'!AM23,VLOOKUP($CW24,'Audit Values'!$A:$BX,63,FALSE)) -> 18 | X24: =(W24/6)*'Weighting Factors'!$O$7 -> 1.2 | Y24: =IF(ISNA(VLOOKUP($CW24,'Audit Values'!$A:$BX,2,FALSE)),'Preliminary SO66'!AN23,VLOOKUP($CW24,'Audit Values'!$A:$BX,62,FALSE)) -> 7 | Z24: =Y24*'Weighting Factors'!$O$8 -> 1.3 | AA24: =MAX(X24,Z24) -> 1.3 | AB24: =IF(ISNA(VLOOKUP($CW24,'Audit Values'!$A:$BX,2,FALSE)),'Preliminary SO66'!AO23,VLOOKUP($CW24,'Audit Values'!$A:$BX,61,FALSE)) -> 246.3 | AC24: =AB24/6*'Weighting Factors'!$O$6 -> 20.5 | AD24: =IF(ISNA(VLOOKUP($CW24,'Audit Values'!$A:$BV,2,FALSE)),'Preliminary SO66'!AS23,VLOOKUP($CW24,'Audit Values'!$A:$BV,64,FALSE)) -> 465 | AE24: =IF(ISNA(VLOOKUP($CW24,'Audit Values'!$A:$BV,2,FALSE)),'Preliminary SO66'!AP23,VLOOKUP($CW24,'Audit Values'!$A:$BV,65,FALSE)) -> 129 | AF24: =IF(A24=207, AE24,(AE24))*'Weighting Factors'!$O$9 -> 62.4 | AG24: =MAX(CP24,CQ24) -> 0 | AH24: =IF(ISNA(VLOOKUP($CW24,'Audit Values'!$A:$BX,2,FALSE)),'Preliminary SO66'!AG23,VLOOKUP($CW24,'Audit Values'!$A:$BX,71,FALSE)) -> 0 | AI24: =MAX(AG24, AH24) -> 0 | AJ24: =IF(ISNA(VLOOKUP($CW24,'Audit Values'!$A:$BV,2,FALSE)),'Preliminary SO66'!AR23,VLOOKUP($CW24,'Audit Values'!$A:$BV,66,FALSE)) -> 266 | AK24: =CH24 -> 294016 | AL24: =AK24/'Weighting Factors'!$O$5 -> 60.7 | AM24: =CJ24/'Weighting Factors'!$O$5 -> 0 | AN24: =CN24/'Weighting Factors'!$O$5 -> 0 | AO24: 560326 | AP24: =AO24/'Weighting Factors'!$O$5 -> 115.6 | AQ24: =IF(ISNA(VLOOKUP($CW24,'Audit Values'!$A:$BV,2,FALSE)),'Preliminary SO66'!X23,VLOOKUP($CW24,'Audit Values'!$A:$BV,48,FALSE)) -> 0 | AR24: 927.1 | AS24: 811.5 | AT24: =IF(ISNA(VLOOKUP($CW24,'Audit Values'!$A$2:$BV$786,2,FALSE)),'Preliminary SO66'!AA23,VLOOKUP($CW24,'Audit Values'!$A$2:$BV$786,41,FALSE)) -> 0 | AU24: =IF(ISNA(VLOOKUP($CW24,'Audit Values'!$A$2:$BV$786,2,FALSE)),'Preliminary SO66'!AB23,VLOOKUP($CW24,'Audit Values'!$A$2:$BV$786,42,FALSE)) -> 0 | AV24: 0 | AW24: 0 | AX24: =SUM(AT24*'Weighting Factors'!$R$10)+('2023 Legal Max'!AU24*'Weighting Factors'!$R$11)+('2023 Legal Max'!AV24*'Weighting Factors'!$R$12)+('2023 Legal Max'!AW24*'Weighting Factors'!$R$12) -> 0 | AY24: =IF(ISNA(VLOOKUP($CW24,'Audit Values'!$A$2:$BV$805,2,FALSE)),"",IF(AND('Weighting Factors'!G24>0,VLOOKUP($CW24,'Audit Values'!$A$2:$BV$805,51,FALSE)<'Weighting Factors'!G24),'Weighting Factors'!G24,VLOOKUP($CW24,'Audit Values'!$A$2:$BV$805,51,FALSE))) -> 6 | AZ24: =IF(ISNA(VLOOKUP($CW24,'Audit Values'!$A:$BW,2,FALSE)),"",VLOOKUP($CW24,'Audit Values'!$A:$BW,52,FALSE)) -> A | BA24: =IF('Weighting Factors'!F24="","",IF('Weighting Factors'!H24="Pending","PX","R")) ->  | BB24: =SUM((U24+V24+AA24+AC24+AF24+AI24+AL24+AM24+AQ24+AN24)*'Weighting Factors'!$O$5)+'2023 Legal Max'!AX24 -> 3932529 | BC24: =SUM((AR24+AN24)*'Weighting Factors'!$O$5)+AX24 -> 4492727 | BD24: =IF('Weighting Factors'!F24>0,'Weighting Factors'!F24,'Preliminary SO66'!AV23) -> 4578985 | BE24: =MIN(BC24,BD24) -> 4492727 | BF24: ='Weighting Factors'!E24 -> 0 | BG24: =Transportation!G24 -> 0 | BH24: =IF(ISNA(VLOOKUP($CW24,'Audit Values'!$A$2:$BU$380,2,FALSE)), 0, VLOOKUP($CW24,'Audit Values'!$A$2:$BU$380,73,FALSE)) -> 0 | BI24: =SUM(BF24:BH24) -> 0 | BJ24: =BE24+BI24 -> 4492727 | BK24: =SUM((U24+V24+AA24+AC24+AF24+AI24+AL24+AM24+AN24)*'Weighting Factors'!O$12)+(MAX(AO24,'Weighting Factors'!B24)) -> 4546414 | BL24: ='LOB%'!F22 -> 0.33 | BM24: =BK24*BL24 -> 1500317 | BN24: 1528865 | BO24: =MIN(BM24,BN24) -> 1500317 | BP24: =BO24/BK24 -> 0.33 | BQ24: 0 | BR24: FALSE | BS24: 0 | BT24: =IF(BR24=TRUE,ROUND(((7337-BS24)/3642.4)-1,6),0) -> 0 | BU24: 0 | BV24: TRUE | BW24: 206.6625 | BX24: =IF(BV24=TRUE,ROUND(((5406-BW24)/3642.4)-1,6),0) -> 0.427448 | BY24: 199.6 | BZ24: 0 | CA24: 253 | CB24: 1.051 | CC24: =IF(CB24<0.06,1,IF(CB24>=18.29,52,MATCH(CB24-0.001,'Weighting Factors'!$W$5:$W$156)+1)) -> 32 | CD24: =VLOOKUP(CC24, 'Weighting Factors'!$U$5:$X$56,4) -> 950 | CE24: =('Weighting Factors'!$O$5/'Weighting Factors'!$O$14) -> 1.1635 | CF24: 252700 | CG24: =CF24*'Weighting Factors'!$Q$7 -> 252700 | CH24: =CG24*CE24 -> 294016 | CI24: =AK24/'Weighting Factors'!$O$5 -> 60.7 | CJ24: 0 | CK24: 0 | CL24: 0 | CM24: =SUM((AR24*'Weighting Factors'!$O$5)+'2023 Legal Max'!AX24)*CL24 -> 0 | CN24: =IF(CK24>CM24,CM24,CK24) -> 0 | CO24: 0.2774 | CP24: 0 | CQ24: 0 | CR24: 927.1 | CS24: ='Required Transfers'!L24 -> 101271 | CT24: ='Required Transfers'!O24 -> 2100 | CU24: ='Required Transfers'!H24 -> 302390 | CV24: 460 | CW24: D0206
A25: 207 | B25: Leavenworth | C25: Fort Leavenworth | D25: 1649.2 | F25: 66.8 | G25: 1716 | H25: 1350.8 | J25: 78.5 | K25: 1429.3 | L25: 1434.6 | M25: 0 | N25: 19.1 | O25: 1453.7 | P25: =IF(ISNA(VLOOKUP($CW25,'Audit Values'!$A:$BX,2,FALSE)),'Preliminary SO66'!C24,VLOOKUP($CW25,'Audit Values'!$A:$BX,74,FALSE)) -> 1519.1 | Q25: =IF(ISNA(VLOOKUP($CW25,'Audit Values'!$A:$BX,2,FALSE)),'Preliminary SO66'!F24,VLOOKUP($CW25,'Audit Values'!$A$2:$BX$805,4,FALSE)) -> 56.5 | R25: 1575.6 | S25: =IF('Military Provision'!J25="YES", MAX('2023 Legal Max'!O25,'2023 Legal Max'!K25,AVERAGE('2023 Legal Max'!G25,'2023 Legal Max'!K25,'2023 Legal Max'!O25)), MAX(O25, K25)) -> 1453.7 | T25: =IF(ISNA(VLOOKUP($CW25,'Audit Values'!$A:$BV,2,FALSE)),'Preliminary SO66'!AL24,VLOOKUP($CW25,'Audit Values'!$A:$BV,59,FALSE)) -> 0 | U25: 1453.7 | V25: 134.1 | W25: =IF(ISNA(VLOOKUP($CW25,'Audit Values'!$A:$BX,2,FALSE)),'Preliminary SO66'!AM24,VLOOKUP($CW25,'Audit Values'!$A:$BX,63,FALSE)) -> 50.7 | X25: =(W25/6)*'Weighting Factors'!$O$7 -> 3.3 | Y25: =IF(ISNA(VLOOKUP($CW25,'Audit Values'!$A:$BX,2,FALSE)),'Preliminary SO66'!AN24,VLOOKUP($CW25,'Audit Values'!$A:$BX,62,FALSE)) -> 91 | Z25: =Y25*'Weighting Factors'!$O$8 -> 16.8 | AA25: 16.8 | AB25: =IF(ISNA(VLOOKUP($CW25,'Audit Values'!$A:$BX,2,FALSE)),'Preliminary SO66'!AO24,VLOOKUP($CW25,'Audit Values'!$A:$BX,61,FALSE)) -> 0 | AC25: =AB25/6*'Weighting Factors'!$O$6 -> 0 | AD25: =IF(ISNA(VLOOKUP($CW25,'Audit Values'!$A:$BV,2,FALSE)),'Preliminary SO66'!AS24,VLOOKUP($CW25,'Audit Values'!$A:$BV,64,FALSE)) -> 1584 | AE25: =IF(ISNA(VLOOKUP($CW25,'Audit Values'!$A:$BV,2,FALSE)),'Preliminary SO66'!AP24,VLOOKUP($CW25,'Audit Values'!$A:$BV,65,FALSE)) -> 34 | AF25: =IF(A25=207, AE25,(AE25))*'Weighting Factors'!$O$9 -> 16.5 | AG25: 0 | AH25: =IF(ISNA(VLOOKUP($CW25,'Audit Values'!$A:$BX,2,FALSE)),'Preliminary SO66'!AG24,VLOOKUP($CW25,'Audit Values'!$A:$BX,71,FALSE)) -> 0 | AI25: 0 | AJ25: =IF(ISNA(VLOOKUP($CW25,'Audit Values'!$A:$BV,2,FALSE)),'Preliminary SO66'!AR24,VLOOKUP($CW25,'Audit Values'!$A:$BV,66,FALSE)) -> 143 | AK25: 94837 | AL25: =AK25/'Weighting Factors'!$O$5 -> 19.6 | AM25: =CJ25/'Weighting Factors'!$O$5 -> 0 | AN25: =CN25/'Weighting Factors'!$O$5 -> 0 | AO25: 1211114 | AP25: =AO25/'Weighting Factors'!$O$5 -> 249.9 | AQ25: =IF(ISNA(VLOOKUP($CW25,'Audit Values'!$A:$BV,2,FALSE)),'Preliminary SO66'!X24,VLOOKUP($CW25,'Audit Values'!$A:$BV,48,FALSE)) -> 0 | AR25: 1890.6 | AS25: 1640.7 | AT25: =IF(ISNA(VLOOKUP($CW25,'Audit Values'!$A$2:$BV$786,2,FALSE)),'Preliminary SO66'!AA24,VLOOKUP($CW25,'Audit Values'!$A$2:$BV$786,41,FALSE)) -> 0 | AU25: =IF(ISNA(VLOOKUP($CW25,'Audit Values'!$A$2:$BV$786,2,FALSE)),'Preliminary SO66'!AB24,VLOOKUP($CW25,'Audit Values'!$A$2:$BV$786,42,FALSE)) -> 0 | AV25: 0 | AW25: 0 | AX25: =SUM(AT25*'Weighting Factors'!$R$10)+('2023 Legal Max'!AU25*'Weighting Factors'!$R$11)+('2023 Legal Max'!AV25*'Weighting Factors'!$R$12)+('2023 Legal Max'!AW25*'Weighting Factors'!$R$12) -> 0 | AY25: =IF(ISNA(VLOOKUP($CW25,'Audit Values'!$A$2:$BV$805,2,FALSE)),"",IF(AND('Weighting Factors'!G25>0,VLOOKUP($CW25,'Audit Values'!$A$2:$BV$805,51,FALSE)<'Weighting Factors'!G25),'Weighting Factors'!G25,VLOOKUP($CW25,'Audit Values'!$A$2:$BV$805,51,FALSE))) -> 18 | AZ25: A | BA25: =IF('Weighting Factors'!F25="","",IF('Weighting Factors'!H25="Pending","PX","R")) ->  | BB25: =SUM((U25+V25+AA25+AC25+AF25+AI25+AL25+AM25+AQ25+AN25)*'Weighting Factors'!$O$5)+'2023 Legal Max'!AX25 -> 7950832 | BC25: =SUM((AR25+AN25)*'Weighting Factors'!$O$5)+AX25 -> 9161848 | BD25: =IF('Weighting Factors'!F25>0,'Weighting Factors'!F25,'Preliminary SO66'!AV24) -> 9433708 | BE25: 9161848 | BF25: ='Weighting Factors'!E25 -> 0 | BG25: =Transportation!G25 -> 0 | BH25: =IF(ISNA(VLOOKUP($CW25,'Audit Values'!$A$2:$BU$380,2,FALSE)), 0, VLOOKUP($CW25,'Audit Values'!$A$2:$BU$380,73,FALSE)) -> 0 | BI25: 0 | BJ25: 9161848 | BK25: =SUM((U25+V25+AA25+AC25+AF25+AI25+AL25+AM25+AN25)*'Weighting Factors'!O$12)+(MAX(AO25,'Weighting Factors'!B25)) -> 9298718 | BL25: ='LOB%'!F23 -> 0.33 | BM25: 3068577 | BN25: 3149309 | BO25: 3068577 | BP25: 0.33 | BQ25: 0 | BR25: FALSE | BS25: 0 | BT25: 0 | BU25: 0 | BV25: TRUE | BW25: 1427.7038 | BX25: 0.092218 | BY25: 134.1 | BZ25: 0 | CA25: 8.5 | CB25: 16.824 | CC25: =IF(CB25<0.06,1,IF(CB25>=18.29,52,MATCH(CB25-0.001,'Weighting Factors'!$W$5:$W$156)+1)) -> 51 | CD25: =VLOOKUP(CC25, 'Weighting Factors'!$U$5:$X$56,4) -> 570 | CE25: =('Weighting Factors'!$O$5/'Weighting Factors'!$O$14) -> 1.1635 | CF25: 81510 | CG25: =CF25*'Weighting Factors'!$Q$7 -> 81510 | CH25: 94837 | CI25: =AK25/'Weighting Factors'!$O$5 -> 19.6 | CJ25: 0 | CK25: 0 | CL25: 0 | CM25: =SUM((AR25*'Weighting Factors'!$O$5)+'2023 Legal Max'!AX25)*CL25 -> 0 | CN25: 0 | CO25: 0.0215 | CP25: 0 | CQ25: 0 | CR25: 1890.6 | CS25: ='Required Transfers'!L25 -> 26697 | CT25: ='Required Transfers'!O25 -> 27310 | CU25: ='Required Transfers'!H25 -> 79959 | CV25: 1575.6 | CW25: D0207
A26: 208 | B26: Trego | C26: Wakeeney | D26: 384.5 | F26: 0 | G26: 384.5 | H26: 355.1 | J26: 0 | K26: 355.1 | L26: 366.8 | M26: 0 | N26: 0 | O26: 366.8 | P26: =IF(ISNA(VLOOKUP($CW26,'Audit Values'!$A:$BX,2,FALSE)),'Preliminary SO66'!C25,VLOOKUP($CW26,'Audit Values'!$A:$BX,74,FALSE)) -> 365.8 | Q26: =IF(ISNA(VLOOKUP($CW26,'Audit Values'!$A:$BX,2,FALSE)),'Preliminary SO66'!F25,VLOOKUP($CW26,'Audit Values'!$A$2:$BX$805,4,FALSE)) -> 0 | R26: 365.8 | S26: =IF('Military Provision'!J26="YES", MAX('2023 Legal Max'!O26,'2023 Legal Max'!K26,AVERAGE('2023 Legal Max'!G26,'2023 Legal Max'!K26,'2023 Legal Max'!O26)), MAX(O26, K26)) -> 366.8 | T26: =IF(ISNA(VLOOKUP($CW26,'Audit Values'!$A:$BV,2,FALSE)),'Preliminary SO66'!AL25,VLOOKUP($CW26,'Audit Values'!$A:$BV,59,FALSE)) -> 5.5 | U26: 372.3 | V26: 171.1 | W26: =IF(ISNA(VLOOKUP($CW26,'Audit Values'!$A:$BX,2,FALSE)),'Preliminary SO66'!AM25,VLOOKUP($CW26,'Audit Values'!$A:$BX,63,FALSE)) -> 0 | X26: =(W26/6)*'Weighting Factors'!$O$7 -> 0 | Y26: =IF(ISNA(VLOOKUP($CW26,'Audit Values'!$A:$BX,2,FALSE)),'Preliminary SO66'!AN25,VLOOKUP($CW26,'Audit Values'!$A:$BX,62,FALSE)) -> 0 | Z26: =Y26*'Weighting Factors'!$O$8 -> 0 | AA26: 0 | AB26: =IF(ISNA(VLOOKUP($CW26,'Audit Values'!$A:$BX,2,FALSE)),'Preliminary SO66'!AO25,VLOOKUP($CW26,'Audit Values'!$A:$BX,61,FALSE)) -> 187.2 | AC26: =AB26/6*'Weighting Factors'!$O$6 -> 15.6 | AD26: =IF(ISNA(VLOOKUP($CW26,'Audit Values'!$A:$BV,2,FALSE)),'Preliminary SO66'!AS25,VLOOKUP($CW26,'Audit Values'!$A:$BV,64,FALSE)) -> 381 | AE26: =IF(ISNA(VLOOKUP($CW26,'Audit Values'!$A:$BV,2,FALSE)),'Preliminary SO66'!AP25,VLOOKUP($CW26,'Audit Values'!$A:$BV,65,FALSE)) -> 129 | AF26: =IF(A26=207, AE26,(AE26))*'Weighting Factors'!$O$9 -> 62.4 | AG26: 0 | AH26: =IF(ISNA(VLOOKUP($CW26,'Audit Values'!$A:$BX,2,FALSE)),'Preliminary SO66'!AG25,VLOOKUP($CW26,'Audit Values'!$A:$BX,71,FALSE)) -> 0 | AI26: 0 | AJ26: =IF(ISNA(VLOOKUP($CW26,'Audit Values'!$A:$BV,2,FALSE)),'Preliminary SO66'!AR25,VLOOKUP($CW26,'Audit Values'!$A:$BV,66,FALSE)) -> 73 | AK26: 123156 | AL26: =AK26/'Weighting Factors'!$O$5 -> 25.4 | AM26: =CJ26/'Weighting Factors'!$O$5 -> 0 | AN26: =CN26/'Weighting Factors'!$O$5 -> 0 | AO26: 413720 | AP26: =AO26/'Weighting Factors'!$O$5 -> 85.4 | AQ26: =IF(ISNA(VLOOKUP($CW26,'Audit Values'!$A:$BV,2,FALSE)),'Preliminary SO66'!X25,VLOOKUP($CW26,'Audit Values'!$A:$BV,48,FALSE)) -> 0 | AR26: 732.2 | AS26: 646.8 | AT26: =IF(ISNA(VLOOKUP($CW26,'Audit Values'!$A$2:$BV$786,2,FALSE)),'Preliminary SO66'!AA25,VLOOKUP($CW26,'Audit Values'!$A$2:$BV$786,41,FALSE)) -> 0 | AU26: =IF(ISNA(VLOOKUP($CW26,'Audit Values'!$A$2:$BV$786,2,FALSE)),'Preliminary SO66'!AB25,VLOOKUP($CW26,'Audit Values'!$A$2:$BV$786,42,FALSE)) -> 0 | AV26: 0 | AW26: 0 | AX26: =SUM(AT26*'Weighting Factors'!$R$10)+('2023 Legal Max'!AU26*'Weighting Factors'!$R$11)+('2023 Legal Max'!AV26*'Weighting Factors'!$R$12)+('2023 Legal Max'!AW26*'Weighting Factors'!$R$12) -> 0 | AY26: =IF(ISNA(VLOOKUP($CW26,'Audit Values'!$A$2:$BV$805,2,FALSE)),"",IF(AND('Weighting Factors'!G26>0,VLOOKUP($CW26,'Audit Values'!$A$2:$BV$805,51,FALSE)<'Weighting Factors'!G26),'Weighting Factors'!G26,VLOOKUP($CW26,'Audit Values'!$A$2:$BV$805,51,FALSE))) -> 22 | AZ26: =IF(ISNA(VLOOKUP($CW26,'Audit Values'!$A:$BW,2,FALSE)),"",VLOOKUP($CW26,'Audit Values'!$A:$BW,52,FALSE)) -> A | BA26: =IF('Weighting Factors'!F26="","",IF('Weighting Factors'!H26="Pending","PX","R")) -> R | BB26: =SUM((U26+V26+AA26+AC26+AF26+AI26+AL26+AM26+AQ26+AN26)*'Weighting Factors'!$O$5)+'2023 Legal Max'!AX26 -> 3134393 | BC26: =SUM((AR26+AN26)*'Weighting Factors'!$O$5)+AX26 -> 3548241 | BD26: =IF('Weighting Factors'!F26>0,'Weighting Factors'!F26,'Preliminary SO66'!AV25) -> 3625219 | BE26: 3548241 | BF26: ='Weighting Factors'!E26 -> 0 | BG26: =Transportation!G26 -> 0 | BH26: =IF(ISNA(VLOOKUP($CW26,'Audit Values'!$A$2:$BU$380,2,FALSE)), 0, VLOOKUP($CW26,'Audit Values'!$A$2:$BU$380,73,FALSE)) -> 0 | BI26: 0 | BJ26: 3548241 | BK26: =SUM((U26+V26+AA26+AC26+AF26+AI26+AL26+AM26+AN26)*'Weighting Factors'!O$12)+(MAX(AO26,'Weighting Factors'!B26)) -> 3687080 | BL26: ='LOB%'!F24 -> 0.33 | BM26: 1216736 | BN26: 1201337 | BO26: 1201337 | BP26: 0.3258 | BQ26: 0 | BR26: FALSE | BS26: 0 | BT26: 0 | BU26: 0 | BV26: TRUE | BW26: 89.4713 | BX26: 0.459622 | BY26: 171.1 | BZ26: 0 | CA26: 706.7 | CB26: 0.103 | CC26: =IF(CB26<0.06,1,IF(CB26>=18.29,52,MATCH(CB26-0.001,'Weighting Factors'!$W$5:$W$156)+1)) -> 6 | CD26: =VLOOKUP(CC26, 'Weighting Factors'!$U$5:$X$56,4) -> 1450 | CE26: =('Weighting Factors'!$O$5/'Weighting Factors'!$O$14) -> 1.1635 | CF26: 105850 | CG26: =CF26*'Weighting Factors'!$Q$7 -> 105850 | CH26: 123156 | CI26: =AK26/'Weighting Factors'!$O$5 -> 25.4 | CJ26: 0 | CK26: 0 | CL26: 0 | CM26: =SUM((AR26*'Weighting Factors'!$O$5)+'2023 Legal Max'!AX26)*CL26 -> 0 | CN26: 0 | CO26: 0.3386 | CP26: 0 | CQ26: 0 | CR26: 732.2 | CS26: ='Required Transfers'!L26 -> 103195 | CT26: ='Required Transfers'!O26 -> 0 | CU26: ='Required Transfers'!H26 -> 302390 | CV26: 371.3 | CW26: D0208
A27: 209 | B27: Stevens | C27: Moscow Public Schools | D27: 148.9 | F27: 0 | G27: 148.9 | H27: 128 | J27: 0 | K27: 128 | L27: 126 | M27: 0 | N27: 0 | O27: 126 | P27: =IF(ISNA(VLOOKUP($CW27,'Audit Values'!$A:$BX,2,FALSE)),'Preliminary SO66'!C26,VLOOKUP($CW27,'Audit Values'!$A:$BX,74,FALSE)) -> 131 | Q27: =IF(ISNA(VLOOKUP($CW27,'Audit Values'!$A:$BX,2,FALSE)),'Preliminary SO66'!F26,VLOOKUP($CW27,'Audit Values'!$A$2:$BX$805,4,FALSE)) -> 0 | R27: 131 | S27: =IF('Military Provision'!J27="YES", MAX('2023 Legal Max'!O27,'2023 Legal Max'!K27,AVERAGE('2023 Legal Max'!G27,'2023 Legal Max'!K27,'2023 Legal Max'!O27)), MAX(O27, K27)) -> 128 | T27: =IF(ISNA(VLOOKUP($CW27,'Audit Values'!$A:$BV,2,FALSE)),'Preliminary SO66'!AL26,VLOOKUP($CW27,'Audit Values'!$A:$BV,59,FALSE)) -> 4 | U27: 132 | V27: 122.7 | W27: =IF(ISNA(VLOOKUP($CW27,'Audit Values'!$A:$BX,2,FALSE)),'Preliminary SO66'!AM26,VLOOKUP($CW27,'Audit Values'!$A:$BX,63,FALSE)) -> 145.7 | X27: =(W27/6)*'Weighting Factors'!$O$7 -> 9.6 | Y27: =IF(ISNA(VLOOKUP($CW27,'Audit Values'!$A:$BX,2,FALSE)),'Preliminary SO66'!AN26,VLOOKUP($CW27,'Audit Values'!$A:$BX,62,FALSE)) -> 33 | Z27: =Y27*'Weighting Factors'!$O$8 -> 6.1 | AA27: 9.6 | AB27: =IF(ISNA(VLOOKUP($CW27,'Audit Values'!$A:$BX,2,FALSE)),'Preliminary SO66'!AO26,VLOOKUP($CW27,'Audit Values'!$A:$BX,61,FALSE)) -> 0 | AC27: =AB27/6*'Weighting Factors'!$O$6 -> 0 | AD27: =IF(ISNA(VLOOKUP($CW27,'Audit Values'!$A:$BV,2,FALSE)),'Preliminary SO66'!AS26,VLOOKUP($CW27,'Audit Values'!$A:$BV,64,FALSE)) -> 139 | AE27: =IF(ISNA(VLOOKUP($CW27,'Audit Values'!$A:$BV,2,FALSE)),'Preliminary SO66'!AP26,VLOOKUP($CW27,'Audit Values'!$A:$BV,65,FALSE)) -> 72 | AF27: =IF(A27=207, AE27,(AE27))*'Weighting Factors'!$O$9 -> 34.8 | AG27: 7.6 | AH27: =IF(ISNA(VLOOKUP($CW27,'Audit Values'!$A:$BX,2,FALSE)),'Preliminary SO66'!AG26,VLOOKUP($CW27,'Audit Values'!$A:$BX,71,FALSE)) -> 6.6 | AI27: 7.6 | AJ27: =IF(ISNA(VLOOKUP($CW27,'Audit Values'!$A:$BV,2,FALSE)),'Preliminary SO66'!AR26,VLOOKUP($CW27,'Audit Values'!$A:$BV,66,FALSE)) -> 24 | AK27: 40490 | AL27: =AK27/'Weighting Factors'!$O$5 -> 8.4 | AM27: =CJ27/'Weighting Factors'!$O$5 -> 0 | AN27: =CN27/'Weighting Factors'!$O$5 -> 0 | AO27: 90068 | AP27: =AO27/'Weighting Factors'!$O$5 -> 18.6 | AQ27: =IF(ISNA(VLOOKUP($CW27,'Audit Values'!$A:$BV,2,FALSE)),'Preliminary SO66'!X26,VLOOKUP($CW27,'Audit Values'!$A:$BV,48,FALSE)) -> 0 | AR27: 333.7 | AS27: 315.1 | AT27: =IF(ISNA(VLOOKUP($CW27,'Audit Values'!$A$2:$BV$786,2,FALSE)),'Preliminary SO66'!AA26,VLOOKUP($CW27,'Audit Values'!$A$2:$BV$786,41,FALSE)) -> 0 | AU27: =IF(ISNA(VLOOKUP($CW27,'Audit Values'!$A$2:$BV$786,2,FALSE)),'Preliminary SO66'!AB26,VLOOKUP($CW27,'Audit Values'!$A$2:$BV$786,42,FALSE)) -> 0 | AV27: 0 | AW27: 0 | AX27: =SUM(AT27*'Weighting Factors'!$R$10)+('2023 Legal Max'!AU27*'Weighting Factors'!$R$11)+('2023 Legal Max'!AV27*'Weighting Factors'!$R$12)+('2023 Legal Max'!AW27*'Weighting Factors'!$R$12) -> 0 | AY27: =IF(ISNA(VLOOKUP($CW27,'Audit Values'!$A$2:$BV$805,2,FALSE)),"",IF(AND('Weighting Factors'!G27>0,VLOOKUP($CW27,'Audit Values'!$A$2:$BV$805,51,FALSE)<'Weighting Factors'!G27),'Weighting Factors'!G27,VLOOKUP($CW27,'Audit Values'!$A$2:$BV$805,51,FALSE))) -> 18 | AZ27: =IF(ISNA(VLOOKUP($CW27,'Audit Values'!$A:$BW,2,FALSE)),"",VLOOKUP($CW27,'Audit Values'!$A:$BW,52,FALSE)) -> A | BA27: =IF('Weighting Factors'!F27="","",IF('Weighting Factors'!H27="Pending","PX","R")) -> R | BB27: =SUM((U27+V27+AA27+AC27+AF27+AI27+AL27+AM27+AQ27+AN27)*'Weighting Factors'!$O$5)+'2023 Legal Max'!AX27 -> 1526975 | BC27: =SUM((AR27+AN27)*'Weighting Factors'!$O$5)+AX27 -> 1617110 | BD27: =IF('Weighting Factors'!F27>0,'Weighting Factors'!F27,'Preliminary SO66'!AV26) -> 1634071 | BE27: 1617110 | BF27: ='Weighting Factors'!E27 -> 0 | BG27: =Transportation!G27 -> 0 | BH27: =IF(ISNA(VLOOKUP($CW27,'Audit Values'!$A$2:$BU$380,2,FALSE)), 0, VLOOKUP($CW27,'Audit Values'!$A$2:$BU$380,73,FALSE)) -> 0 | BI27: 0 | BJ27: 1617110 | BK27: =SUM((U27+V27+AA27+AC27+AF27+AI27+AL27+AM27+AN27)*'Weighting Factors'!O$12)+(MAX(AO27,'Weighting Factors'!B27)) -> 1685932 | BL27: ='LOB%'!F25 -> 0.33 | BM27: 556358 | BN27: 529450 | BO27: 529450 | BP27: 0.314 | BQ27: 0 | BR27: TRUE | BS27: 308.96 | BT27: 0.929508 | BU27: 122.7 | BV27: FALSE | BW27: 0 | BX27: 0 | BY27: 0 | BZ27: 0 | CA27: 223 | CB27: 0.108 | CC27: =IF(CB27<0.06,1,IF(CB27>=18.29,52,MATCH(CB27-0.001,'Weighting Factors'!$W$5:$W$156)+1)) -> 6 | CD27: =VLOOKUP(CC27, 'Weighting Factors'!$U$5:$X$56,4) -> 1450 | CE27: =('Weighting Factors'!$O$5/'Weighting Factors'!$O$14) -> 1.1635 | CF27: 34800 | CG27: =CF27*'Weighting Factors'!$Q$7 -> 34800 | CH27: 40490 | CI27: =AK27/'Weighting Factors'!$O$5 -> 8.4 | CJ27: 0 | CK27: 0 | CL27: 0 | CM27: =SUM((AR27*'Weighting Factors'!$O$5)+'2023 Legal Max'!AX27)*CL27 -> 0 | CN27: 0 | CO27: 0.518 | CP27: 7.6 | CQ27: 0 | CR27: 333.7 | CS27: ='Required Transfers'!L27 -> 55910 | CT27: ='Required Transfers'!O27 -> 15407 | CU27: ='Required Transfers'!H27 -> 205470 | CV27: 135 | CW27: D0209
A28: 210 | B28: Stevens | C28: Hugoton Public Schools | D28: 984.7 | F28: 0 | G28: 984.7 | H28: 974.6 | J28: 0 | K28: 974.6 | L28: 983 | M28: 0 | N28: 0 | O28: 983 | P28: =IF(ISNA(VLOOKUP($CW28,'Audit Values'!$A:$BX,2,FALSE)),'Preliminary SO66'!C27,VLOOKUP($CW28,'Audit Values'!$A:$BX,74,FALSE)) -> 966.8 | Q28: =IF(ISNA(VLOOKUP($CW28,'Audit Values'!$A:$BX,2,FALSE)),'Preliminary SO66'!F27,VLOOKUP($CW28,'Audit Values'!$A$2:$BX$805,4,FALSE)) -> 0 | R28: 966.8 | S28: =IF('Military Provision'!J28="YES", MAX('2023 Legal Max'!O28,'2023 Legal Max'!K28,AVERAGE('2023 Legal Max'!G28,'2023 Legal Max'!K28,'2023 Legal Max'!O28)), MAX(O28, K28)) -> 983 | T28: =IF(ISNA(VLOOKUP($CW28,'Audit Values'!$A:$BV,2,FALSE)),'Preliminary SO66'!AL27,VLOOKUP($CW28,'Audit Values'!$A:$BV,59,FALSE)) -> 19.5 | U28: 1002.5 | V28: 246.1 | W28: =IF(ISNA(VLOOKUP($CW28,'Audit Values'!$A:$BX,2,FALSE)),'Preliminary SO66'!AM27,VLOOKUP($CW28,'Audit Values'!$A:$BX,63,FALSE)) -> 833.1 | X28: =(W28/6)*'Weighting Factors'!$O$7 -> 54.8 | Y28: =IF(ISNA(VLOOKUP($CW28,'Audit Values'!$A:$BX,2,FALSE)),'Preliminary SO66'!AN27,VLOOKUP($CW28,'Audit Values'!$A:$BX,62,FALSE)) -> 224 | Z28: =Y28*'Weighting Factors'!$O$8 -> 41.4 | AA28: 54.8 | AB28: =IF(ISNA(VLOOKUP($CW28,'Audit Values'!$A:$BX,2,FALSE)),'Preliminary SO66'!AO27,VLOOKUP($CW28,'Audit Values'!$A:$BX,61,FALSE)) -> 381 | AC28: =AB28/6*'Weighting Factors'!$O$6 -> 31.8 | AD28: =IF(ISNA(VLOOKUP($CW28,'Audit Values'!$A:$BV,2,FALSE)),'Preliminary SO66'!AS27,VLOOKUP($CW28,'Audit Values'!$A:$BV,64,FALSE)) -> 1009 | AE28: =IF(ISNA(VLOOKUP($CW28,'Audit Values'!$A:$BV,2,FALSE)),'Preliminary SO66'!AP27,VLOOKUP($CW28,'Audit Values'!$A:$BV,65,FALSE)) -> 519 | AF28: =IF(A28=207, AE28,(AE28))*'Weighting Factors'!$O$9 -> 251.2 | AG28: 54.5 | AH28: =IF(ISNA(VLOOKUP($CW28,'Audit Values'!$A:$BX,2,FALSE)),'Preliminary SO66'!AG27,VLOOKUP($CW28,'Audit Values'!$A:$BX,71,FALSE)) -> 47.3 | AI28: 54.5 | AJ28: =IF(ISNA(VLOOKUP($CW28,'Audit Values'!$A:$BV,2,FALSE)),'Preliminary SO66'!AR27,VLOOKUP($CW28,'Audit Values'!$A:$BV,66,FALSE)) -> 162 | AK28: 228069 | AL28: =AK28/'Weighting Factors'!$O$5 -> 47.1 | AM28: =CJ28/'Weighting Factors'!$O$5 -> 0 | AN28: =CN28/'Weighting Factors'!$O$5 -> 0 | AO28: 595712 | AP28: =AO28/'Weighting Factors'!$O$5 -> 122.9 | AQ28: =IF(ISNA(VLOOKUP($CW28,'Audit Values'!$A:$BV,2,FALSE)),'Preliminary SO66'!X27,VLOOKUP($CW28,'Audit Values'!$A:$BV,48,FALSE)) -> 0 | AR28: 1810.9 | AS28: 1688 | AT28: =IF(ISNA(VLOOKUP($CW28,'Audit Values'!$A$2:$BV$786,2,FALSE)),'Preliminary SO66'!AA27,VLOOKUP($CW28,'Audit Values'!$A$2:$BV$786,41,FALSE)) -> 4 | AU28: =IF(ISNA(VLOOKUP($CW28,'Audit Values'!$A$2:$BV$786,2,FALSE)),'Preliminary SO66'!AB27,VLOOKUP($CW28,'Audit Values'!$A$2:$BV$786,42,FALSE)) -> 0 | AV28: 18 | AW28: 0 | AX28: =SUM(AT28*'Weighting Factors'!$R$10)+('2023 Legal Max'!AU28*'Weighting Factors'!$R$11)+('2023 Legal Max'!AV28*'Weighting Factors'!$R$12)+('2023 Legal Max'!AW28*'Weighting Factors'!$R$12) -> 35162 | AY28: =IF(ISNA(VLOOKUP($CW28,'Audit Values'!$A$2:$BV$805,2,FALSE)),"",IF(AND('Weighting Factors'!G28>0,VLOOKUP($CW28,'Audit Values'!$A$2:$BV$805,51,FALSE)<'Weighting Factors'!G28),'Weighting Factors'!G28,VLOOKUP($CW28,'Audit Values'!$A$2:$BV$805,51,FALSE))) -> 6 | AZ28: =IF(ISNA(VLOOKUP($CW28,'Audit Values'!$A:$BW,2,FALSE)),"",VLOOKUP($CW28,'Audit Values'!$A:$BW,52,FALSE)) -> A | BA28: =IF('Weighting Factors'!F28="","",IF('Weighting Factors'!H28="Pending","PX","R")) ->  | BB28: =SUM((U28+V28+AA28+AC28+AF28+AI28+AL28+AM28+AQ28+AN28)*'Weighting Factors'!$O$5)+'2023 Legal Max'!AX28 -> 8215210 | BC28: =SUM((AR28+AN28)*'Weighting Factors'!$O$5)+AX28 -> 8810783 | BD28: =IF('Weighting Factors'!F28>0,'Weighting Factors'!F28,'Preliminary SO66'!AV27) -> 8964690 | BE28: 8810783 | BF28: ='Weighting Factors'!E28 -> 0 | BG28: =Transportation!G28 -> 0 | BH28: =IF(ISNA(VLOOKUP($CW28,'Audit Values'!$A$2:$BU$380,2,FALSE)), 0, VLOOKUP($CW28,'Audit Values'!$A$2:$BU$380,73,FALSE)) -> -3545 | BI28: -3545 | BJ28: 8807238 | BK28: =SUM((U28+V28+AA28+AC28+AF28+AI28+AL28+AM28+AN28)*'Weighting Factors'!O$12)+(MAX(AO28,'Weighting Factors'!B28)) -> 8914235 | BL28: ='LOB%'!F26 -> 0.31 | BM28: 2763413 | BN28: 2760000 | BO28: 2760000 | BP28: 0.3096 | BQ28: 0 | BR28: FALSE | BS28: 0 | BT28: 0 | BU28: 0 | BV28: TRUE | BW28: 869.3438 | BX28: 0.245513 | BY28: 246.1 | BZ28: 0 | CA28: 575 | CB28: 0.282 | CC28: =IF(CB28<0.06,1,IF(CB28>=18.29,52,MATCH(CB28-0.001,'Weighting Factors'!$W$5:$W$156)+1)) -> 19 | CD28: =VLOOKUP(CC28, 'Weighting Factors'!$U$5:$X$56,4) -> 1210 | CE28: =('Weighting Factors'!$O$5/'Weighting Factors'!$O$14) -> 1.1635 | CF28: 196020 | CG28: =CF28*'Weighting Factors'!$Q$7 -> 196020 | CH28: 228069 | CI28: =AK28/'Weighting Factors'!$O$5 -> 47.1 | CJ28: 0 | CK28: 0 | CL28: 0 | CM28: =SUM((AR28*'Weighting Factors'!$O$5)+'2023 Legal Max'!AX28)*CL28 -> 0 | CN28: 0 | CO28: 0.5144 | CP28: 54.5 | CQ28: 0 | CR28: 1810.9 | CS28: ='Required Transfers'!L28 -> 386952 | CT28: ='Required Transfers'!O28 -> 84456 | CU28: ='Required Transfers'!H28 -> 1481422 | CV28: 993.3 | CW28: D0210
A29: 211 | B29: Norton | C29: Norton Community Schools | D29: 653.7 | F29: 0 | G29: 653.7 | H29: 618.5 | J29: 0 | K29: 618.5 | L29: 645.9 | M29: 0 | N29: 0 | O29: 645.9 | P29: =IF(ISNA(VLOOKUP($CW29,'Audit Values'!$A:$BX,2,FALSE)),'Preliminary SO66'!C28,VLOOKUP($CW29,'Audit Values'!$A:$BX,74,FALSE)) -> 640.7 | Q29: =IF(ISNA(VLOOKUP($CW29,'Audit Values'!$A:$BX,2,FALSE)),'Preliminary SO66'!F28,VLOOKUP($CW29,'Audit Values'!$A$2:$BX$805,4,FALSE)) -> 0 | R29: 640.7 | S29: =IF('Military Provision'!J29="YES", MAX('2023 Legal Max'!O29,'2023 Legal Max'!K29,AVERAGE('2023 Legal Max'!G29,'2023 Legal Max'!K29,'2023 Legal Max'!O29)), MAX(O29, K29)) -> 645.9 | T29: =IF(ISNA(VLOOKUP($CW29,'Audit Values'!$A:$BV,2,FALSE)),'Preliminary SO66'!AL28,VLOOKUP($CW29,'Audit Values'!$A:$BV,59,FALSE)) -> 17.5 | U29: 663.4 | V29: 239.3 | W29: =IF(ISNA(VLOOKUP($CW29,'Audit Values'!$A:$BX,2,FALSE)),'Preliminary SO66'!AM28,VLOOKUP($CW29,'Audit Values'!$A:$BX,63,FALSE)) -> 0 | X29: =(W29/6)*'Weighting Factors'!$O$7 -> 0 | Y29: =IF(ISNA(VLOOKUP($CW29,'Audit Values'!$A:$BX,2,FALSE)),'Preliminary SO66'!AN28,VLOOKUP($CW29,'Audit Values'!$A:$BX,62,FALSE)) -> 10 | Z29: =Y29*'Weighting Factors'!$O$8 -> 1.9 | AA29: 1.9 | AB29: =IF(ISNA(VLOOKUP($CW29,'Audit Values'!$A:$BX,2,FALSE)),'Preliminary SO66'!AO28,VLOOKUP($CW29,'Audit Values'!$A:$BX,61,FALSE)) -> 185.9 | AC29: =AB29/6*'Weighting Factors'!$O$6 -> 15.5 | AD29: =IF(ISNA(VLOOKUP($CW29,'Audit Values'!$A:$BV,2,FALSE)),'Preliminary SO66'!AS28,VLOOKUP($CW29,'Audit Values'!$A:$BV,64,FALSE)) -> 684 | AE29: =IF(ISNA(VLOOKUP($CW29,'Audit Values'!$A:$BV,2,FALSE)),'Preliminary SO66'!AP28,VLOOKUP($CW29,'Audit Values'!$A:$BV,65,FALSE)) -> 301 | AF29: =IF(A29=207, AE29,(AE29))*'Weighting Factors'!$O$9 -> 145.7 | AG29: 19 | AH29: =IF(ISNA(VLOOKUP($CW29,'Audit Values'!$A:$BX,2,FALSE)),'Preliminary SO66'!AG28,VLOOKUP($CW29,'Audit Values'!$A:$BX,71,FALSE)) -> 20.9 | AI29: 20.9 | AJ29: =IF(ISNA(VLOOKUP($CW29,'Audit Values'!$A:$BV,2,FALSE)),'Preliminary SO66'!AR28,VLOOKUP($CW29,'Audit Values'!$A:$BV,66,FALSE)) -> 129.5 | AK29: 195875 | AL29: =AK29/'Weighting Factors'!$O$5 -> 40.4 | AM29: =CJ29/'Weighting Factors'!$O$5 -> 0 | AN29: =CN29/'Weighting Factors'!$O$5 -> 0 | AO29: 840099 | AP29: =AO29/'Weighting Factors'!$O$5 -> 173.4 | AQ29: =IF(ISNA(VLOOKUP($CW29,'Audit Values'!$A:$BV,2,FALSE)),'Preliminary SO66'!X28,VLOOKUP($CW29,'Audit Values'!$A:$BV,48,FALSE)) -> 1 | AR29: 1301.5 | AS29: 1128.1 | AT29: =IF(ISNA(VLOOKUP($CW29,'Audit Values'!$A$2:$BV$786,2,FALSE)),'Preliminary SO66'!AA28,VLOOKUP($CW29,'Audit Values'!$A$2:$BV$786,41,FALSE)) -> 0 | AU29: =IF(ISNA(VLOOKUP($CW29,'Audit Values'!$A$2:$BV$786,2,FALSE)),'Preliminary SO66'!AB28,VLOOKUP($CW29,'Audit Values'!$A$2:$BV$786,42,FALSE)) -> 0 | AV29: 0 | AW29: 0 | AX29: =SUM(AT29*'Weighting Factors'!$R$10)+('2023 Legal Max'!AU29*'Weighting Factors'!$R$11)+('2023 Legal Max'!AV29*'Weighting Factors'!$R$12)+('2023 Legal Max'!AW29*'Weighting Factors'!$R$12) -> 0 | AY29: =IF(ISNA(VLOOKUP($CW29,'Audit Values'!$A$2:$BV$805,2,FALSE)),"",IF(AND('Weighting Factors'!G29>0,VLOOKUP($CW29,'Audit Values'!$A$2:$BV$805,51,FALSE)<'Weighting Factors'!G29),'Weighting Factors'!G29,VLOOKUP($CW29,'Audit Values'!$A$2:$BV$805,51,FALSE))) -> 16 | AZ29: =IF(ISNA(VLOOKUP($CW29,'Audit Values'!$A:$BW,2,FALSE)),"",VLOOKUP($CW29,'Audit Values'!$A:$BW,52,FALSE)) -> A | BA29: =IF('Weighting Factors'!F29="","",IF('Weighting Factors'!H29="Pending","PX","R")) -> R | BB29: =SUM((U29+V29+AA29+AC29+AF29+AI29+AL29+AM29+AQ29+AN29)*'Weighting Factors'!$O$5)+'2023 Legal Max'!AX29 -> 5466773 | BC29: =SUM((AR29+AN29)*'Weighting Factors'!$O$5)+AX29 -> 6307069 | BD29: =IF('Weighting Factors'!F29>0,'Weighting Factors'!F29,'Preliminary SO66'!AV28) -> 6378790 | BE29: 6307069 | BF29: ='Weighting Factors'!E29 -> 0 | BG29: =Transportation!G29 -> 0 | BH29: =IF(ISNA(VLOOKUP($CW29,'Audit Values'!$A$2:$BU$380,2,FALSE)), 0, VLOOKUP($CW29,'Audit Values'!$A$2:$BU$380,73,FALSE)) -> 0 | BI29: 0 | BJ29: 6307069 | BK29: =SUM((U29+V29+AA29+AC29+AF29+AI29+AL29+AM29+AN29)*'Weighting Factors'!O$12)+(MAX(AO29,'Weighting Factors'!B29)) -> 6402849 | BL29: ='LOB%'!F27 -> 0.31 | BM29: 1984883 | BN29: 1897619 | BO29: 1897619 | BP29: 0.2964 | BQ29: 0 | BR29: FALSE | BS29: 0 | BT29: 0 | BU29: 0 | BV29: TRUE | BW29: 449.7075 | BX29: 0.360722 | BY29: 239.3 | BZ29: 0 | CA29: 678 | CB29: 0.191 | CC29: =IF(CB29<0.06,1,IF(CB29>=18.29,52,MATCH(CB29-0.001,'Weighting Factors'!$W$5:$W$156)+1)) -> 14 | CD29: =VLOOKUP(CC29, 'Weighting Factors'!$U$5:$X$56,4) -> 1300 | CE29: =('Weighting Factors'!$O$5/'Weighting Factors'!$O$14) -> 1.1635 | CF29: 168350 | CG29: =CF29*'Weighting Factors'!$Q$7 -> 168350 | CH29: 195875 | CI29: =AK29/'Weighting Factors'!$O$5 -> 40.4 | CJ29: 0 | CK29: 0 | CL29: 0 | CM29: =SUM((AR29*'Weighting Factors'!$O$5)+'2023 Legal Max'!AX29)*CL29 -> 0 | CN29: 0 | CO29: 0.4401 | CP29: 0 | CQ29: 19 | CR29: 1301.5 | CS29: ='Required Transfers'!L29 -> 215570 | CT29: ='Required Transfers'!O29 -> 2846 | CU29: ='Required Transfers'!H29 -> 807344 | CV29: 658.2 | CW29: D0211
A30: 212 | B30: Norton | C30: Northern Valley | D30: 135.4 | F30: 0 | G30: 135.4 | H30: 122.7 | J30: 0 | K30: 122.7 | L30: 139.6 | M30: 0 | N30: 0 | O30: 139.6 | P30: =IF(ISNA(VLOOKUP($CW30,'Audit Values'!$A:$BX,2,FALSE)),'Preliminary SO66'!C29,VLOOKUP($CW30,'Audit Values'!$A:$BX,74,FALSE)) -> 135.5 | Q30: =IF(ISNA(VLOOKUP($CW30,'Audit Values'!$A:$BX,2,FALSE)),'Preliminary SO66'!F29,VLOOKUP($CW30,'Audit Values'!$A$2:$BX$805,4,FALSE)) -> 0 | R30: 135.5 | S30: =IF('Military Provision'!J30="YES", MAX('2023 Legal Max'!O30,'2023 Legal Max'!K30,AVERAGE('2023 Legal Max'!G30,'2023 Legal Max'!K30,'2023 Legal Max'!O30)), MAX(O30, K30)) -> 139.6 | T30: =IF(ISNA(VLOOKUP($CW30,'Audit Values'!$A:$BV,2,FALSE)),'Preliminary SO66'!AL29,VLOOKUP($CW30,'Audit Values'!$A:$BV,59,FALSE)) -> 7.3 | U30: 146.9 | V30: 130.7 | W30: =IF(ISNA(VLOOKUP($CW30,'Audit Values'!$A:$BX,2,FALSE)),'Preliminary SO66'!AM29,VLOOKUP($CW30,'Audit Values'!$A:$BX,63,FALSE)) -> 0 | X30: =(W30/6)*'Weighting Factors'!$O$7 -> 0 | Y30: =IF(ISNA(VLOOKUP($CW30,'Audit Values'!$A:$BX,2,FALSE)),'Preliminary SO66'!AN29,VLOOKUP($CW30,'Audit Values'!$A:$BX,62,FALSE)) -> 1 | Z30: =Y30*'Weighting Factors'!$O$8 -> 0.2 | AA30: 0.2 | AB30: =IF(ISNA(VLOOKUP($CW30,'Audit Values'!$A:$BX,2,FALSE)),'Preliminary SO66'!AO29,VLOOKUP($CW30,'Audit Values'!$A:$BX,61,FALSE)) -> 59.9 | AC30: =AB30/6*'Weighting Factors'!$O$6 -> 5 | AD30: =IF(ISNA(VLOOKUP($CW30,'Audit Values'!$A:$BV,2,FALSE)),'Preliminary SO66'!AS29,VLOOKUP($CW30,'Audit Values'!$A:$BV,64,FALSE)) -> 153 | AE30: =IF(ISNA(VLOOKUP($CW30,'Audit Values'!$A:$BV,2,FALSE)),'Preliminary SO66'!AP29,VLOOKUP($CW30,'Audit Values'!$A:$BV,65,FALSE)) -> 61 | AF30: =IF(A30=207, AE30,(AE30))*'Weighting Factors'!$O$9 -> 29.5 | AG30: 2.1 | AH30: =IF(ISNA(VLOOKUP($CW30,'Audit Values'!$A:$BX,2,FALSE)),'Preliminary SO66'!AG29,VLOOKUP($CW30,'Audit Values'!$A:$BX,71,FALSE)) -> 5.1 | AI30: 5.1 | AJ30: =IF(ISNA(VLOOKUP($CW30,'Audit Values'!$A:$BV,2,FALSE)),'Preliminary SO66'!AR29,VLOOKUP($CW30,'Audit Values'!$A:$BV,66,FALSE)) -> 39.5 | AK30: 62044 | AL30: =AK30/'Weighting Factors'!$O$5 -> 12.8 | AM30: =CJ30/'Weighting Factors'!$O$5 -> 0 | AN30: =CN30/'Weighting Factors'!$O$5 -> 0 | AO30: 180886 | AP30: =AO30/'Weighting Factors'!$O$5 -> 37.3 | AQ30: =IF(ISNA(VLOOKUP($CW30,'Audit Values'!$A:$BV,2,FALSE)),'Preliminary SO66'!X29,VLOOKUP($CW30,'Audit Values'!$A:$BV,48,FALSE)) -> 0 | AR30: 367.5 | AS30: 330.2 | AT30: =IF(ISNA(VLOOKUP($CW30,'Audit Values'!$A$2:$BV$786,2,FALSE)),'Preliminary SO66'!AA29,VLOOKUP($CW30,'Audit Values'!$A$2:$BV$786,41,FALSE)) -> 0 | AU30: =IF(ISNA(VLOOKUP($CW30,'Audit Values'!$A$2:$BV$786,2,FALSE)),'Preliminary SO66'!AB29,VLOOKUP($CW30,'Audit Values'!$A$2:$BV$786,42,FALSE)) -> 0 | AV30: 0 | AW30: 0 | AX30: =SUM(AT30*'Weighting Factors'!$R$10)+('2023 Legal Max'!AU30*'Weighting Factors'!$R$11)+('2023 Legal Max'!AV30*'Weighting Factors'!$R$12)+('2023 Legal Max'!AW30*'Weighting Factors'!$R$12) -> 0 | AY30: =IF(ISNA(VLOOKUP($CW30,'Audit Values'!$A$2:$BV$805,2,FALSE)),"",IF(AND('Weighting Factors'!G30>0,VLOOKUP($CW30,'Audit Values'!$A$2:$BV$805,51,FALSE)<'Weighting Factors'!G30),'Weighting Factors'!G30,VLOOKUP($CW30,'Audit Values'!$A$2:$BV$805,51,FALSE))) -> 11 | AZ30: =IF(ISNA(VLOOKUP($CW30,'Audit Values'!$A:$BW,2,FALSE)),"",VLOOKUP($CW30,'Audit Values'!$A:$BW,52,FALSE)) -> A | BA30: =IF('Weighting Factors'!F30="","",IF('Weighting Factors'!H30="Pending","PX","R")) ->  | BB30: =SUM((U30+V30+AA30+AC30+AF30+AI30+AL30+AM30+AQ30+AN30)*'Weighting Factors'!$O$5)+'2023 Legal Max'!AX30 -> 1600149 | BC30: =SUM((AR30+AN30)*'Weighting Factors'!$O$5)+AX30 -> 1780905 | BD30: =IF('Weighting Factors'!F30>0,'Weighting Factors'!F30,'Preliminary SO66'!AV29) -> 1836149 | BE30: 1780905 | BF30: ='Weighting Factors'!E30 -> 0 | BG30: =Transportation!G30 -> 0 | BH30: =IF(ISNA(VLOOKUP($CW30,'Audit Values'!$A$2:$BU$380,2,FALSE)), 0, VLOOKUP($CW30,'Audit Values'!$A$2:$BU$380,73,FALSE)) -> 0 | BI30: 0 | BJ30: 1780905 | BK30: =SUM((U30+V30+AA30+AC30+AF30+AI30+AL30+AM30+AN30)*'Weighting Factors'!O$12)+(MAX(AO30,'Weighting Factors'!B30)) -> 1869042 | BL30: ='LOB%'!F28 -> 0.33 | BM30: 616784 | BN30: 631373 | BO30: 616784 | BP30: 0.33 | BQ30: 0 | BR30: TRUE | BS30: 452.82 | BT30: 0.890012 | BU30: 130.7 | BV30: FALSE | BW30: 0 | BX30: 0 | BY30: 0 | BZ30: 0 | CA30: 263 | CB30: 0.15 | CC30: =IF(CB30<0.06,1,IF(CB30>=18.29,52,MATCH(CB30-0.001,'Weighting Factors'!$W$5:$W$156)+1)) -> 11 | CD30: =VLOOKUP(CC30, 'Weighting Factors'!$U$5:$X$56,4) -> 1350 | CE30: =('Weighting Factors'!$O$5/'Weighting Factors'!$O$14) -> 1.1635 | CF30: 53325 | CG30: =CF30*'Weighting Factors'!$Q$7 -> 53325 | CH30: 62044 | CI30: =AK30/'Weighting Factors'!$O$5 -> 12.8 | CJ30: 0 | CK30: 0 | CL30: 0 | CM30: =SUM((AR30*'Weighting Factors'!$O$5)+'2023 Legal Max'!AX30)*CL30 -> 0 | CN30: 0 | CO30: 0.3987 | CP30: 0 | CQ30: 2.1 | CR30: 367.5 | CS30: ='Required Transfers'!L30 -> 50515 | CT30: ='Required Transfers'!O30 -> 370 | CU30: ='Required Transfers'!H30 -> 167672 | CV30: 142.8 | CW30: D0212
A31: 214 | B31: Grant | C31: Ulysses | D31: 1530 | F31: 0 | G31: =SUM(D31-E31+F31) -> 1530 | H31: 1508.9 | J31: 0 | K31: 1508.9 | L31: 1434.5 | M31: 0 | N31: 0 | O31: 1434.5 | P31: =IF(ISNA(VLOOKUP($CW31,'Audit Values'!$A:$BX,2,FALSE)),'Preliminary SO66'!C30,VLOOKUP($CW31,'Audit Values'!$A:$BX,74,FALSE)) -> 1405 | Q31: =IF(ISNA(VLOOKUP($CW31,'Audit Values'!$A:$BX,2,FALSE)),'Preliminary SO66'!F30,VLOOKUP($CW31,'Audit Values'!$A$2:$BX$805,4,FALSE)) -> 0 | R31: =SUM(P31+Q31) -> 1405 | S31: =IF('Military Provision'!J31="YES", MAX('2023 Legal Max'!O31,'2023 Legal Max'!K31,AVERAGE('2023 Legal Max'!G31,'2023 Legal Max'!K31,'2023 Legal Max'!O31)), MAX(O31, K31)) -> 1508.9 | T31: =IF(ISNA(VLOOKUP($CW31,'Audit Values'!$A:$BV,2,FALSE)),'Preliminary SO66'!AL30,VLOOKUP($CW31,'Audit Values'!$A:$BV,59,FALSE)) -> 20 | U31: =S31+T31 -> 1528.9 | V31: =MAX(BQ31, BU31, BY31, BZ31) -> 101.9 | W31: =IF(ISNA(VLOOKUP($CW31,'Audit Values'!$A:$BX,2,FALSE)),'Preliminary SO66'!AM30,VLOOKUP($CW31,'Audit Values'!$A:$BX,63,FALSE)) -> 1457.2 | X31: =(W31/6)*'Weighting Factors'!$O$7 -> 95.9 | Y31: =IF(ISNA(VLOOKUP($CW31,'Audit Values'!$A:$BX,2,FALSE)),'Preliminary SO66'!AN30,VLOOKUP($CW31,'Audit Values'!$A:$BX,62,FALSE)) -> 389 | Z31: =Y31*'Weighting Factors'!$O$8 -> 72 | AA31: =MAX(X31,Z31) -> 95.9 | AB31: =IF(ISNA(VLOOKUP($CW31,'Audit Values'!$A:$BX,2,FALSE)),'Preliminary SO66'!AO30,VLOOKUP($CW31,'Audit Values'!$A:$BX,61,FALSE)) -> 544.1 | AC31: =AB31/6*'Weighting Factors'!$O$6 -> 45.3 | AD31: =IF(ISNA(VLOOKUP($CW31,'Audit Values'!$A:$BV,2,FALSE)),'Preliminary SO66'!AS30,VLOOKUP($CW31,'Audit Values'!$A:$BV,64,FALSE)) -> 1456 | AE31: =IF(ISNA(VLOOKUP($CW31,'Audit Values'!$A:$BV,2,FALSE)),'Preliminary SO66'!AP30,VLOOKUP($CW31,'Audit Values'!$A:$BV,65,FALSE)) -> 877 | AF31: =IF(A31=207, AE31,(AE31))*'Weighting Factors'!$O$9 -> 424.5 | AG31: 92.1 | AH31: =IF(ISNA(VLOOKUP($CW31,'Audit Values'!$A:$BX,2,FALSE)),'Preliminary SO66'!AG30,VLOOKUP($CW31,'Audit Values'!$A:$BX,71,FALSE)) -> 92 | AI31: =MAX(AG31, AH31) -> 92.1 | AJ31: =IF(ISNA(VLOOKUP($CW31,'Audit Values'!$A:$BV,2,FALSE)),'Preliminary SO66'!AR30,VLOOKUP($CW31,'Audit Values'!$A:$BV,66,FALSE)) -> 216 | AK31: =CH31 -> 283987 | AL31: =AK31/'Weighting Factors'!$O$5 -> 58.6 | AM31: =CJ31/'Weighting Factors'!$O$5 -> 0 | AN31: =CN31/'Weighting Factors'!$O$5 -> 0 | AO31: 912586 | AP31: =AO31/'Weighting Factors'!$O$5 -> 188.3 | AQ31: =IF(ISNA(VLOOKUP($CW31,'Audit Values'!$A:$BV,2,FALSE)),'Preliminary SO66'!X30,VLOOKUP($CW31,'Audit Values'!$A:$BV,48,FALSE)) -> 0 | AR31: 2535.5 | AS31: 2347.2 | AT31: =IF(ISNA(VLOOKUP($CW31,'Audit Values'!$A$2:$BV$786,2,FALSE)),'Preliminary SO66'!AA30,VLOOKUP($CW31,'Audit Values'!$A$2:$BV$786,41,FALSE)) -> 11 | AU31: =IF(ISNA(VLOOKUP($CW31,'Audit Values'!$A$2:$BV$786,2,FALSE)),'Preliminary SO66'!AB30,VLOOKUP($CW31,'Audit Values'!$A$2:$BV$786,42,FALSE)) -> 2.2 | AV31: 75 | AW31: 0 | AX31: =SUM(AT31*'Weighting Factors'!$R$10)+('2023 Legal Max'!AU31*'Weighting Factors'!$R$11)+('2023 Legal Max'!AV31*'Weighting Factors'!$R$12)+('2023 Legal Max'!AW31*'Weighting Factors'!$R$12) -> 120935 | AY31: =IF(ISNA(VLOOKUP($CW31,'Audit Values'!$A$2:$BV$805,2,FALSE)),"",IF(AND('Weighting Factors'!G31>0,VLOOKUP($CW31,'Audit Values'!$A$2:$BV$805,51,FALSE)<'Weighting Factors'!G31),'Weighting Factors'!G31,VLOOKUP($CW31,'Audit Values'!$A$2:$BV$805,51,FALSE))) -> 25 | AZ31: =IF(ISNA(VLOOKUP($CW31,'Audit Values'!$A:$BW,2,FALSE)),"",VLOOKUP($CW31,'Audit Values'!$A:$BW,52,FALSE)) -> A | BA31: =IF('Weighting Factors'!F31="","",IF('Weighting Factors'!H31="Pending","PX","R")) -> R | BB31: =SUM((U31+V31+AA31+AC31+AF31+AI31+AL31+AM31+AQ31+AN31)*'Weighting Factors'!$O$5)+'2023 Legal Max'!AX31 -> 11495466 | BC31: =SUM((AR31+AN31)*'Weighting Factors'!$O$5)+AX31 -> 12407968 | BD31: =IF('Weighting Factors'!F31>0,'Weighting Factors'!F31,'Preliminary SO66'!AV30) -> 12467941 | BE31: =MIN(BC31,BD31) -> 12407968 | BF31: ='Weighting Factors'!E31 -> 0 | BG31: =Transportation!G31 -> 0 | BH31: =IF(ISNA(VLOOKUP($CW31,'Audit Values'!$A$2:$BU$380,2,FALSE)), 0, VLOOKUP($CW31,'Audit Values'!$A$2:$BU$380,73,FALSE)) -> -24815 | BI31: =SUM(BF31:BH31) -> -24815 | BJ31: =BE31+BI31 -> 12383153 | BK31: =SUM((U31+V31+AA31+AC31+AF31+AI31+AL31+AM31+AN31)*'Weighting Factors'!O$12)+(MAX(AO31,'Weighting Factors'!B31)) -> 12523676 | BL31: ='LOB%'!F29 -> 0.31 | BM31: =BK31*BL31 -> 3882340 | BN31: 3761892 | BO31: =MIN(BM31,BN31) -> 3761892 | BP31: =BO31/BK31 -> 0.3004 | BQ31: 0 | BR31: FALSE | BS31: 0 | BT31: =IF(BR31=TRUE,ROUND(((7337-BS31)/3642.4)-1,6),0) -> 0 | BU31: 0 | BV31: TRUE | BW31: 1520.7638 | BX31: =IF(BV31=TRUE,ROUND(((5406-BW31)/3642.4)-1,6),0) -> 0.066669 | BY31: 101.9 | BZ31: 0 | CA31: 517 | CB31: 0.418 | CC31: =IF(CB31<0.06,1,IF(CB31>=18.29,52,MATCH(CB31-0.001,'Weighting Factors'!$W$5:$W$156)+1)) -> 23 | CD31: =VLOOKUP(CC31, 'Weighting Factors'!$U$5:$X$56,4) -> 1130 | CE31: =('Weighting Factors'!$O$5/'Weighting Factors'!$O$14) -> 1.1635 | CF31: 244080 | CG31: =CF31*'Weighting Factors'!$Q$7 -> 244080 | CH31: =CG31*CE31 -> 283987 | CI31: =AK31/'Weighting Factors'!$O$5 -> 58.6 | CJ31: 0 | CK31: 0 | CL31: 0 | CM31: =SUM((AR31*'Weighting Factors'!$O$5)+'2023 Legal Max'!AX31)*CL31 -> 0 | CN31: =IF(CK31>CM31,CM31,CK31) -> 0 | CO31: 0.6023 | CP31: 92.1 | CQ31: 0 | CR31: 2535.5 | CS31: ='Required Transfers'!L31 -> 635007 | CT31: ='Required Transfers'!O31 -> 143328 | CU31: ='Required Transfers'!H31 -> 2503444 | CV31: 1450.7 | CW31: D0214
A32: 215 | B32: Kearny | C32: Lakin | D32: 668 | F32: 0 | G32: 668 | H32: 615 | J32: 0 | K32: 615 | L32: 602 | M32: 0 | N32: 0 | O32: 602 | P32: =IF(ISNA(VLOOKUP($CW32,'Audit Values'!$A:$BX,2,FALSE)),'Preliminary SO66'!C31,VLOOKUP($CW32,'Audit Values'!$A:$BX,74,FALSE)) -> 621.9 | Q32: =IF(ISNA(VLOOKUP($CW32,'Audit Values'!$A:$BX,2,FALSE)),'Preliminary SO66'!F31,VLOOKUP($CW32,'Audit Values'!$A$2:$BX$805,4,FALSE)) -> 0 | R32: 621.9 | S32: =IF('Military Provision'!J32="YES", MAX('2023 Legal Max'!O32,'2023 Legal Max'!K32,AVERAGE('2023 Legal Max'!G32,'2023 Legal Max'!K32,'2023 Legal Max'!O32)), MAX(O32, K32)) -> 615 | T32: =IF(ISNA(VLOOKUP($CW32,'Audit Values'!$A:$BV,2,FALSE)),'Preliminary SO66'!AL31,VLOOKUP($CW32,'Audit Values'!$A:$BV,59,FALSE)) -> 8.5 | U32: 623.5 | V32: 233.4 | W32: =IF(ISNA(VLOOKUP($CW32,'Audit Values'!$A:$BX,2,FALSE)),'Preliminary SO66'!AM31,VLOOKUP($CW32,'Audit Values'!$A:$BX,63,FALSE)) -> 237.6 | X32: =(W32/6)*'Weighting Factors'!$O$7 -> 15.6 | Y32: =IF(ISNA(VLOOKUP($CW32,'Audit Values'!$A:$BX,2,FALSE)),'Preliminary SO66'!AN31,VLOOKUP($CW32,'Audit Values'!$A:$BX,62,FALSE)) -> 94 | Z32: =Y32*'Weighting Factors'!$O$8 -> 17.4 | AA32: 17.4 | AB32: =IF(ISNA(VLOOKUP($CW32,'Audit Values'!$A:$BX,2,FALSE)),'Preliminary SO66'!AO31,VLOOKUP($CW32,'Audit Values'!$A:$BX,61,FALSE)) -> 251.4 | AC32: =AB32/6*'Weighting Factors'!$O$6 -> 21 | AD32: =IF(ISNA(VLOOKUP($CW32,'Audit Values'!$A:$BV,2,FALSE)),'Preliminary SO66'!AS31,VLOOKUP($CW32,'Audit Values'!$A:$BV,64,FALSE)) -> 641 | AE32: =IF(ISNA(VLOOKUP($CW32,'Audit Values'!$A:$BV,2,FALSE)),'Preliminary SO66'!AP31,VLOOKUP($CW32,'Audit Values'!$A:$BV,65,FALSE)) -> 305 | AF32: =IF(A32=207, AE32,(AE32))*'Weighting Factors'!$O$9 -> 147.6 | AG32: 26.9 | AH32: =IF(ISNA(VLOOKUP($CW32,'Audit Values'!$A:$BX,2,FALSE)),'Preliminary SO66'!AG31,VLOOKUP($CW32,'Audit Values'!$A:$BX,71,FALSE)) -> 26.9 | AI32: 26.9 | AJ32: =IF(ISNA(VLOOKUP($CW32,'Audit Values'!$A:$BV,2,FALSE)),'Preliminary SO66'!AR31,VLOOKUP($CW32,'Audit Values'!$A:$BV,66,FALSE)) -> 48 | AK32: 86006 | AL32: =AK32/'Weighting Factors'!$O$5 -> 17.7 | AM32: =CJ32/'Weighting Factors'!$O$5 -> 0 | AN32: =CN32/'Weighting Factors'!$O$5 -> 0 | AO32: 372204 | AP32: =AO32/'Weighting Factors'!$O$5 -> 76.8 | AQ32: =IF(ISNA(VLOOKUP($CW32,'Audit Values'!$A:$BV,2,FALSE)),'Preliminary SO66'!X31,VLOOKUP($CW32,'Audit Values'!$A:$BV,48,FALSE)) -> 0 | AR32: 1164.3 | AS32: 1087.5 | AT32: =IF(ISNA(VLOOKUP($CW32,'Audit Values'!$A$2:$BV$786,2,FALSE)),'Preliminary SO66'!AA31,VLOOKUP($CW32,'Audit Values'!$A$2:$BV$786,41,FALSE)) -> 0 | AU32: =IF(ISNA(VLOOKUP($CW32,'Audit Values'!$A$2:$BV$786,2,FALSE)),'Preliminary SO66'!AB31,VLOOKUP($CW32,'Audit Values'!$A$2:$BV$786,42,FALSE)) -> 0 | AV32: 0 | AW32: 0 | AX32: =SUM(AT32*'Weighting Factors'!$R$10)+('2023 Legal Max'!AU32*'Weighting Factors'!$R$11)+('2023 Legal Max'!AV32*'Weighting Factors'!$R$12)+('2023 Legal Max'!AW32*'Weighting Factors'!$R$12) -> 0 | AY32: =IF(ISNA(VLOOKUP($CW32,'Audit Values'!$A$2:$BV$805,2,FALSE)),"",IF(AND('Weighting Factors'!G32>0,VLOOKUP($CW32,'Audit Values'!$A$2:$BV$805,51,FALSE)<'Weighting Factors'!G32),'Weighting Factors'!G32,VLOOKUP($CW32,'Audit Values'!$A$2:$BV$805,51,FALSE))) -> 14 | AZ32: =IF(ISNA(VLOOKUP($CW32,'Audit Values'!$A:$BW,2,FALSE)),"",VLOOKUP($CW32,'Audit Values'!$A:$BW,52,FALSE)) -> A | BA32: =IF('Weighting Factors'!F32="","",IF('Weighting Factors'!H32="Pending","PX","R")) -> R | BB32: =SUM((U32+V32+AA32+AC32+AF32+AI32+AL32+AM32+AQ32+AN32)*'Weighting Factors'!$O$5)+'2023 Legal Max'!AX32 -> 5270025 | BC32: =SUM((AR32+AN32)*'Weighting Factors'!$O$5)+AX32 -> 5642198 | BD32: =IF('Weighting Factors'!F32>0,'Weighting Factors'!F32,'Preliminary SO66'!AV31) -> 5671758 | BE32: 5642198 | BF32: ='Weighting Factors'!E32 -> 0 | BG32: =Transportation!G32 -> 0 | BH32: =IF(ISNA(VLOOKUP($CW32,'Audit Values'!$A$2:$BU$380,2,FALSE)), 0, VLOOKUP($CW32,'Audit Values'!$A$2:$BU$380,73,FALSE)) -> 0 | BI32: 0 | BJ32: 5642198 | BK32: =SUM((U32+V32+AA32+AC32+AF32+AI32+AL32+AM32+AN32)*'Weighting Factors'!O$12)+(MAX(AO32,'Weighting Factors'!B32)) -> 5738351 | BL32: ='LOB%'!F30 -> 0.31 | BM32: 1778889 | BN32: 1733841 | BO32: 1733841 | BP32: 0.3021 | BQ32: 0 | BR32: FALSE | BS32: 0 | BT32: 0 | BU32: 0 | BV32: TRUE | BW32: 400.3313 | BX32: 0.374278 | BY32: 233.4 | BZ32: 0 | CA32: 646 | CB32: 0.074 | CC32: =IF(CB32<0.06,1,IF(CB32>=18.29,52,MATCH(CB32-0.001,'Weighting Factors'!$W$5:$W$156)+1)) -> 3 | CD32: =VLOOKUP(CC32, 'Weighting Factors'!$U$5:$X$56,4) -> 1540 | CE32: =('Weighting Factors'!$O$5/'Weighting Factors'!$O$14) -> 1.1635 | CF32: 73920 | CG32: =CF32*'Weighting Factors'!$Q$7 -> 73920 | CH32: 86006 | CI32: =AK32/'Weighting Factors'!$O$5 -> 17.7 | CJ32: 0 | CK32: 0 | CL32: 0 | CM32: =SUM((AR32*'Weighting Factors'!$O$5)+'2023 Legal Max'!AX32)*CL32 -> 0 | CN32: 0 | CO32: 0.4758 | CP32: 0 | CQ32: 26.9 | CR32: 1164.3 | CS32: ='Required Transfers'!L32 -> 221411 | CT32: ='Required Transfers'!O32 -> 26181 | CU32: ='Required Transfers'!H32 -> 845627 | CV32: 630.4 | CW32: D0215
A33: 216 | B33: Kearny | C33: Deerfield | D33: 178 | F33: 0 | G33: 178 | H33: 179.5 | J33: 0 | K33: 179.5 | L33: 210.5 | M33: 0 | N33: 0 | O33: 210.5 | P33: =IF(ISNA(VLOOKUP($CW33,'Audit Values'!$A:$BX,2,FALSE)),'Preliminary SO66'!C32,VLOOKUP($CW33,'Audit Values'!$A:$BX,74,FALSE)) -> 216.5 | Q33: =IF(ISNA(VLOOKUP($CW33,'Audit Values'!$A:$BX,2,FALSE)),'Preliminary SO66'!F32,VLOOKUP($CW33,'Audit Values'!$A$2:$BX$805,4,FALSE)) -> 0 | R33: 216.5 | S33: =IF('Military Provision'!J33="YES", MAX('2023 Legal Max'!O33,'2023 Legal Max'!K33,AVERAGE('2023 Legal Max'!G33,'2023 Legal Max'!K33,'2023 Legal Max'!O33)), MAX(O33, K33)) -> 210.5 | T33: =IF(ISNA(VLOOKUP($CW33,'Audit Values'!$A:$BV,2,FALSE)),'Preliminary SO66'!AL32,VLOOKUP($CW33,'Audit Values'!$A:$BV,59,FALSE)) -> 12 | U33: 222.5 | V33: 153.4 | W33: =IF(ISNA(VLOOKUP($CW33,'Audit Values'!$A:$BX,2,FALSE)),'Preliminary SO66'!AM32,VLOOKUP($CW33,'Audit Values'!$A:$BX,63,FALSE)) -> 384.4 | X33: =(W33/6)*'Weighting Factors'!$O$7 -> 25.3 | Y33: =IF(ISNA(VLOOKUP($CW33,'Audit Values'!$A:$BX,2,FALSE)),'Preliminary SO66'!AN32,VLOOKUP($CW33,'Audit Values'!$A:$BX,62,FALSE)) -> 90 | Z33: =Y33*'Weighting Factors'!$O$8 -> 16.7 | AA33: 25.3 | AB33: =IF(ISNA(VLOOKUP($CW33,'Audit Values'!$A:$BX,2,FALSE)),'Preliminary SO66'!AO32,VLOOKUP($CW33,'Audit Values'!$A:$BX,61,FALSE)) -> 33.5 | AC33: =AB33/6*'Weighting Factors'!$O$6 -> 2.8 | AD33: =IF(ISNA(VLOOKUP($CW33,'Audit Values'!$A:$BV,2,FALSE)),'Preliminary SO66'!AS32,VLOOKUP($CW33,'Audit Values'!$A:$BV,64,FALSE)) -> 241 | AE33: =IF(ISNA(VLOOKUP($CW33,'Audit Values'!$A:$BV,2,FALSE)),'Preliminary SO66'!AP32,VLOOKUP($CW33,'Audit Values'!$A:$BV,65,FALSE)) -> 144 | AF33: =IF(A33=207, AE33,(AE33))*'Weighting Factors'!$O$9 -> 69.7 | AG33: 15.1 | AH33: =IF(ISNA(VLOOKUP($CW33,'Audit Values'!$A:$BX,2,FALSE)),'Preliminary SO66'!AG32,VLOOKUP($CW33,'Audit Values'!$A:$BX,71,FALSE)) -> 15.1 | AI33: 15.1 | AJ33: =IF(ISNA(VLOOKUP($CW33,'Audit Values'!$A:$BV,2,FALSE)),'Preliminary SO66'!AR32,VLOOKUP($CW33,'Audit Values'!$A:$BV,66,FALSE)) -> 16 | AK33: 28669 | AL33: =AK33/'Weighting Factors'!$O$5 -> 5.9 | AM33: =CJ33/'Weighting Factors'!$O$5 -> 0 | AN33: =CN33/'Weighting Factors'!$O$5 -> 0 | AO33: 123980 | AP33: =AO33/'Weighting Factors'!$O$5 -> 25.6 | AQ33: =IF(ISNA(VLOOKUP($CW33,'Audit Values'!$A:$BV,2,FALSE)),'Preliminary SO66'!X32,VLOOKUP($CW33,'Audit Values'!$A:$BV,48,FALSE)) -> 0 | AR33: 520.3 | AS33: 494.7 | AT33: =IF(ISNA(VLOOKUP($CW33,'Audit Values'!$A$2:$BV$786,2,FALSE)),'Preliminary SO66'!AA32,VLOOKUP($CW33,'Audit Values'!$A$2:$BV$786,41,FALSE)) -> 0 | AU33: =IF(ISNA(VLOOKUP($CW33,'Audit Values'!$A$2:$BV$786,2,FALSE)),'Preliminary SO66'!AB32,VLOOKUP($CW33,'Audit Values'!$A$2:$BV$786,42,FALSE)) -> 0 | AV33: 0 | AW33: 0 | AX33: =SUM(AT33*'Weighting Factors'!$R$10)+('2023 Legal Max'!AU33*'Weighting Factors'!$R$11)+('2023 Legal Max'!AV33*'Weighting Factors'!$R$12)+('2023 Legal Max'!AW33*'Weighting Factors'!$R$12) -> 0 | AY33: =IF(ISNA(VLOOKUP($CW33,'Audit Values'!$A$2:$BV$805,2,FALSE)),"",IF(AND('Weighting Factors'!G33>0,VLOOKUP($CW33,'Audit Values'!$A$2:$BV$805,51,FALSE)<'Weighting Factors'!G33),'Weighting Factors'!G33,VLOOKUP($CW33,'Audit Values'!$A$2:$BV$805,51,FALSE))) -> 14 | AZ33: =IF(ISNA(VLOOKUP($CW33,'Audit Values'!$A:$BW,2,FALSE)),"",VLOOKUP($CW33,'Audit Values'!$A:$BW,52,FALSE)) -> A | BA33: =IF('Weighting Factors'!F33="","",IF('Weighting Factors'!H33="Pending","PX","R")) ->  | BB33: =SUM((U33+V33+AA33+AC33+AF33+AI33+AL33+AM33+AQ33+AN33)*'Weighting Factors'!$O$5)+'2023 Legal Max'!AX33 -> 2397316 | BC33: =SUM((AR33+AN33)*'Weighting Factors'!$O$5)+AX33 -> 2521374 | BD33: =IF('Weighting Factors'!F33>0,'Weighting Factors'!F33,'Preliminary SO66'!AV32) -> 2539304 | BE33: 2521374 | BF33: ='Weighting Factors'!E33 -> 0 | BG33: =Transportation!G33 -> 0 | BH33: =IF(ISNA(VLOOKUP($CW33,'Audit Values'!$A$2:$BU$380,2,FALSE)), 0, VLOOKUP($CW33,'Audit Values'!$A$2:$BU$380,73,FALSE)) -> 0 | BI33: 0 | BJ33: 2521374 | BK33: =SUM((U33+V33+AA33+AC33+AF33+AI33+AL33+AM33+AN33)*'Weighting Factors'!O$12)+(MAX(AO33,'Weighting Factors'!B33)) -> 2635855 | BL33: ='LOB%'!F31 -> 0.33 | BM33: 869832 | BN33: 873560 | BO33: 869832 | BP33: 0.33 | BQ33: 0 | BR33: TRUE | BS33: 1182.738 | BT33: 0.689617 | BU33: 153.4 | BV33: FALSE | BW33: 0 | BX33: 0 | BY33: 0 | BZ33: 0 | CA33: 216 | CB33: 0.074 | CC33: =IF(CB33<0.06,1,IF(CB33>=18.29,52,MATCH(CB33-0.001,'Weighting Factors'!$W$5:$W$156)+1)) -> 3 | CD33: =VLOOKUP(CC33, 'Weighting Factors'!$U$5:$X$56,4) -> 1540 | CE33: =('Weighting Factors'!$O$5/'Weighting Factors'!$O$14) -> 1.1635 | CF33: 24640 | CG33: =CF33*'Weighting Factors'!$Q$7 -> 24640 | CH33: 28669 | CI33: =AK33/'Weighting Factors'!$O$5 -> 5.9 | CJ33: 0 | CK33: 0 | CL33: 0 | CM33: =SUM((AR33*'Weighting Factors'!$O$5)+'2023 Legal Max'!AX33)*CL33 -> 0 | CN33: 0 | CO33: 0.5975 | CP33: 15.1 | CQ33: 0 | CR33: 520.3 | CS33: ='Required Transfers'!L33 -> 119254 | CT33: ='Required Transfers'!O33 -> 43318 | CU33: ='Required Transfers'!H33 -> 410941 | CV33: 228.5 | CW33: D0216
A34: 217 | B34: Morton | C34: Rolla | D34: 109 | F34: 0 | G34: 109 | H34: 108 | J34: 0 | K34: 108 | L34: 95.5 | M34: 0 | N34: 0 | O34: 95.5 | P34: =IF(ISNA(VLOOKUP($CW34,'Audit Values'!$A:$BX,2,FALSE)),'Preliminary SO66'!C33,VLOOKUP($CW34,'Audit Values'!$A:$BX,74,FALSE)) -> 94 | Q34: =IF(ISNA(VLOOKUP($CW34,'Audit Values'!$A:$BX,2,FALSE)),'Preliminary SO66'!F33,VLOOKUP($CW34,'Audit Values'!$A$2:$BX$805,4,FALSE)) -> 0 | R34: 94 | S34: =IF('Military Provision'!J34="YES", MAX('2023 Legal Max'!O34,'2023 Legal Max'!K34,AVERAGE('2023 Legal Max'!G34,'2023 Legal Max'!K34,'2023 Legal Max'!O34)), MAX(O34, K34)) -> 108 | T34: =IF(ISNA(VLOOKUP($CW34,'Audit Values'!$A:$BV,2,FALSE)),'Preliminary SO66'!AL33,VLOOKUP($CW34,'Audit Values'!$A:$BV,59,FALSE)) -> 0.5 | U34: 108.5 | V34: 107.6 | W34: =IF(ISNA(VLOOKUP($CW34,'Audit Values'!$A:$BX,2,FALSE)),'Preliminary SO66'!AM33,VLOOKUP($CW34,'Audit Values'!$A:$BX,63,FALSE)) -> 62.5 | X34: =(W34/6)*'Weighting Factors'!$O$7 -> 4.1 | Y34: =IF(ISNA(VLOOKUP($CW34,'Audit Values'!$A:$BX,2,FALSE)),'Preliminary SO66'!AN33,VLOOKUP($CW34,'Audit Values'!$A:$BX,62,FALSE)) -> 12 | Z34: =Y34*'Weighting Factors'!$O$8 -> 2.2 | AA34: 4.1 | AB34: =IF(ISNA(VLOOKUP($CW34,'Audit Values'!$A:$BX,2,FALSE)),'Preliminary SO66'!AO33,VLOOKUP($CW34,'Audit Values'!$A:$BX,61,FALSE)) -> 18.6 | AC34: =AB34/6*'Weighting Factors'!$O$6 -> 1.6 | AD34: =IF(ISNA(VLOOKUP($CW34,'Audit Values'!$A:$BV,2,FALSE)),'Preliminary SO66'!AS33,VLOOKUP($CW34,'Audit Values'!$A:$BV,64,FALSE)) -> 96 | AE34: =IF(ISNA(VLOOKUP($CW34,'Audit Values'!$A:$BV,2,FALSE)),'Preliminary SO66'!AP33,VLOOKUP($CW34,'Audit Values'!$A:$BV,65,FALSE)) -> 53 | AF34: =IF(A34=207, AE34,(AE34))*'Weighting Factors'!$O$9 -> 25.7 | AG34: 5.6 | AH34: =IF(ISNA(VLOOKUP($CW34,'Audit Values'!$A:$BX,2,FALSE)),'Preliminary SO66'!AG33,VLOOKUP($CW34,'Audit Values'!$A:$BX,71,FALSE)) -> 5.4 | AI34: 5.6 | AJ34: =IF(ISNA(VLOOKUP($CW34,'Audit Values'!$A:$BV,2,FALSE)),'Preliminary SO66'!AR33,VLOOKUP($CW34,'Audit Values'!$A:$BV,66,FALSE)) -> 31 | AK34: 50857 | AL34: =AK34/'Weighting Factors'!$O$5 -> 10.5 | AM34: =CJ34/'Weighting Factors'!$O$5 -> 0 | AN34: =CN34/'Weighting Factors'!$O$5 -> 0 | AO34: 77105 | AP34: =AO34/'Weighting Factors'!$O$5 -> 15.9 | AQ34: =IF(ISNA(VLOOKUP($CW34,'Audit Values'!$A:$BV,2,FALSE)),'Preliminary SO66'!X33,VLOOKUP($CW34,'Audit Values'!$A:$BV,48,FALSE)) -> 0 | AR34: 279.5 | AS34: 263.6 | AT34: =IF(ISNA(VLOOKUP($CW34,'Audit Values'!$A$2:$BV$786,2,FALSE)),'Preliminary SO66'!AA33,VLOOKUP($CW34,'Audit Values'!$A$2:$BV$786,41,FALSE)) -> 0 | AU34: =IF(ISNA(VLOOKUP($CW34,'Audit Values'!$A$2:$BV$786,2,FALSE)),'Preliminary SO66'!AB33,VLOOKUP($CW34,'Audit Values'!$A$2:$BV$786,42,FALSE)) -> 0 | AV34: 0 | AW34: 0 | AX34: =SUM(AT34*'Weighting Factors'!$R$10)+('2023 Legal Max'!AU34*'Weighting Factors'!$R$11)+('2023 Legal Max'!AV34*'Weighting Factors'!$R$12)+('2023 Legal Max'!AW34*'Weighting Factors'!$R$12) -> 0 | AY34: =IF(ISNA(VLOOKUP($CW34,'Audit Values'!$A$2:$BV$805,2,FALSE)),"",IF(AND('Weighting Factors'!G34>0,VLOOKUP($CW34,'Audit Values'!$A$2:$BV$805,51,FALSE)<'Weighting Factors'!G34),'Weighting Factors'!G34,VLOOKUP($CW34,'Audit Values'!$A$2:$BV$805,51,FALSE))) -> 6 | AZ34: =IF(ISNA(VLOOKUP($CW34,'Audit Values'!$A:$BW,2,FALSE)),"",VLOOKUP($CW34,'Audit Values'!$A:$BW,52,FALSE)) -> A | BA34: =IF('Weighting Factors'!F34="","",IF('Weighting Factors'!H34="Pending","PX","R")) ->  | BB34: =SUM((U34+V34+AA34+AC34+AF34+AI34+AL34+AM34+AQ34+AN34)*'Weighting Factors'!$O$5)+'2023 Legal Max'!AX34 -> 1277406 | BC34: =SUM((AR34+AN34)*'Weighting Factors'!$O$5)+AX34 -> 1354457 | BD34: =IF('Weighting Factors'!F34>0,'Weighting Factors'!F34,'Preliminary SO66'!AV33) -> 1381595 | BE34: 1354457 | BF34: ='Weighting Factors'!E34 -> 0 | BG34: =Transportation!G34 -> 0 | BH34: =IF(ISNA(VLOOKUP($CW34,'Audit Values'!$A$2:$BU$380,2,FALSE)), 0, VLOOKUP($CW34,'Audit Values'!$A$2:$BU$380,73,FALSE)) -> 0 | BI34: 0 | BJ34: 1354457 | BK34: =SUM((U34+V34+AA34+AC34+AF34+AI34+AL34+AM34+AN34)*'Weighting Factors'!O$12)+(MAX(AO34,'Weighting Factors'!B34)) -> 1441143 | BL34: ='LOB%'!F32 -> 0.33 | BM34: 475577 | BN34: 482223 | BO34: 475577 | BP34: 0.33 | BQ34: 0 | BR34: TRUE | BS34: 82.068 | BT34: 0.9918 | BU34: 107.6 | BV34: FALSE | BW34: 0 | BX34: 0 | BY34: 0 | BZ34: 0 | CA34: 252 | CB34: 0.123 | CC34: =IF(CB34<0.06,1,IF(CB34>=18.29,52,MATCH(CB34-0.001,'Weighting Factors'!$W$5:$W$156)+1)) -> 8 | CD34: =VLOOKUP(CC34, 'Weighting Factors'!$U$5:$X$56,4) -> 1410 | CE34: =('Weighting Factors'!$O$5/'Weighting Factors'!$O$14) -> 1.1635 | CF34: 43710 | CG34: =CF34*'Weighting Factors'!$Q$7 -> 43710 | CH34: 50857 | CI34: =AK34/'Weighting Factors'!$O$5 -> 10.5 | CJ34: 0 | CK34: 0 | CL34: 0 | CM34: =SUM((AR34*'Weighting Factors'!$O$5)+'2023 Legal Max'!AX34)*CL34 -> 0 | CN34: 0 | CO34: 0.5521 | CP34: 5.6 | CQ34: 0 | CR34: 279.5 | CS34: ='Required Transfers'!L34 -> 43801 | CT34: ='Required Transfers'!O34 -> 6991 | CU34: ='Required Transfers'!H34 -> 151680 | CV34: 94.5 | CW34: D0217
A35: 218 | B35: Morton | C35: Elkhart | D35: 426.2 | F35: 0 | G35: 426.2 | H35: 389.5 | J35: 0 | K35: 389.5 | L35: 394.5 | M35: 0 | N35: 0 | O35: 394.5 | P35: =IF(ISNA(VLOOKUP($CW35,'Audit Values'!$A:$BX,2,FALSE)),'Preliminary SO66'!C34,VLOOKUP($CW35,'Audit Values'!$A:$BX,74,FALSE)) -> 372 | Q35: =IF(ISNA(VLOOKUP($CW35,'Audit Values'!$A:$BX,2,FALSE)),'Preliminary SO66'!F34,VLOOKUP($CW35,'Audit Values'!$A$2:$BX$805,4,FALSE)) -> 0 | R35: 372 | S35: =IF('Military Provision'!J35="YES", MAX('2023 Legal Max'!O35,'2023 Legal Max'!K35,AVERAGE('2023 Legal Max'!G35,'2023 Legal Max'!K35,'2023 Legal Max'!O35)), MAX(O35, K35)) -> 394.5 | T35: =IF(ISNA(VLOOKUP($CW35,'Audit Values'!$A:$BV,2,FALSE)),'Preliminary SO66'!AL34,VLOOKUP($CW35,'Audit Values'!$A:$BV,59,FALSE)) -> 15.8 | U35: 410.3 | V35: 183.3 | W35: =IF(ISNA(VLOOKUP($CW35,'Audit Values'!$A:$BX,2,FALSE)),'Preliminary SO66'!AM34,VLOOKUP($CW35,'Audit Values'!$A:$BX,63,FALSE)) -> 253.6 | X35: =(W35/6)*'Weighting Factors'!$O$7 -> 16.7 | Y35: =IF(ISNA(VLOOKUP($CW35,'Audit Values'!$A:$BX,2,FALSE)),'Preliminary SO66'!AN34,VLOOKUP($CW35,'Audit Values'!$A:$BX,62,FALSE)) -> 56 | Z35: =Y35*'Weighting Factors'!$O$8 -> 10.4 | AA35: 16.7 | AB35: =IF(ISNA(VLOOKUP($CW35,'Audit Values'!$A:$BX,2,FALSE)),'Preliminary SO66'!AO34,VLOOKUP($CW35,'Audit Values'!$A:$BX,61,FALSE)) -> 125.3 | AC35: =AB35/6*'Weighting Factors'!$O$6 -> 10.4 | AD35: =IF(ISNA(VLOOKUP($CW35,'Audit Values'!$A:$BV,2,FALSE)),'Preliminary SO66'!AS34,VLOOKUP($CW35,'Audit Values'!$A:$BV,64,FALSE)) -> 415 | AE35: =IF(ISNA(VLOOKUP($CW35,'Audit Values'!$A:$BV,2,FALSE)),'Preliminary SO66'!AP34,VLOOKUP($CW35,'Audit Values'!$A:$BV,65,FALSE)) -> 184 | AF35: =IF(A35=207, AE35,(AE35))*'Weighting Factors'!$O$9 -> 89.1 | AG35: 12 | AH35: =IF(ISNA(VLOOKUP($CW35,'Audit Values'!$A:$BX,2,FALSE)),'Preliminary SO66'!AG34,VLOOKUP($CW35,'Audit Values'!$A:$BX,71,FALSE)) -> 14 | AI35: 14 | AJ35: =IF(ISNA(VLOOKUP($CW35,'Audit Values'!$A:$BV,2,FALSE)),'Preliminary SO66'!AR34,VLOOKUP($CW35,'Audit Values'!$A:$BV,66,FALSE)) -> 16 | AK35: 30158 | AL35: =AK35/'Weighting Factors'!$O$5 -> 6.2 | AM35: =CJ35/'Weighting Factors'!$O$5 -> 0 | AN35: =CN35/'Weighting Factors'!$O$5 -> 0 | AO35: 243381 | AP35: =AO35/'Weighting Factors'!$O$5 -> 50.2 | AQ35: =IF(ISNA(VLOOKUP($CW35,'Audit Values'!$A:$BV,2,FALSE)),'Preliminary SO66'!X34,VLOOKUP($CW35,'Audit Values'!$A:$BV,48,FALSE)) -> 0 | AR35: 780.2 | AS35: 730 | AT35: =IF(ISNA(VLOOKUP($CW35,'Audit Values'!$A$2:$BV$786,2,FALSE)),'Preliminary SO66'!AA34,VLOOKUP($CW35,'Audit Values'!$A$2:$BV$786,41,FALSE)) -> 1018 | AU35: =IF(ISNA(VLOOKUP($CW35,'Audit Values'!$A$2:$BV$786,2,FALSE)),'Preliminary SO66'!AB34,VLOOKUP($CW35,'Audit Values'!$A$2:$BV$786,42,FALSE)) -> 166.6 | AV35: 0 | AW35: 0 | AX35: =SUM(AT35*'Weighting Factors'!$R$10)+('2023 Legal Max'!AU35*'Weighting Factors'!$R$11)+('2023 Legal Max'!AV35*'Weighting Factors'!$R$12)+('2023 Legal Max'!AW35*'Weighting Factors'!$R$12) -> 6167280 | AY35: =IF(ISNA(VLOOKUP($CW35,'Audit Values'!$A$2:$BV$805,2,FALSE)),"",IF(AND('Weighting Factors'!G35>0,VLOOKUP($CW35,'Audit Values'!$A$2:$BV$805,51,FALSE)<'Weighting Factors'!G35),'Weighting Factors'!G35,VLOOKUP($CW35,'Audit Values'!$A$2:$BV$805,51,FALSE))) -> 15 | AZ35: =IF(ISNA(VLOOKUP($CW35,'Audit Values'!$A:$BW,2,FALSE)),"",VLOOKUP($CW35,'Audit Values'!$A:$BW,52,FALSE)) -> A | BA35: =IF('Weighting Factors'!F35="","",IF('Weighting Factors'!H35="Pending","PX","R")) ->  | BB35: =SUM((U35+V35+AA35+AC35+AF35+AI35+AL35+AM35+AQ35+AN35)*'Weighting Factors'!$O$5)+'2023 Legal Max'!AX35 -> 9704860 | BC35: =SUM((AR35+AN35)*'Weighting Factors'!$O$5)+AX35 -> 9948129 | BD35: =IF('Weighting Factors'!F35>0,'Weighting Factors'!F35,'Preliminary SO66'!AV34) -> 13315387 | BE35: 9948129 | BF35: ='Weighting Factors'!E35 -> 0 | BG35: =Transportation!G35 -> 0 | BH35: =IF(ISNA(VLOOKUP($CW35,'Audit Values'!$A$2:$BU$380,2,FALSE)), 0, VLOOKUP($CW35,'Audit Values'!$A$2:$BU$380,73,FALSE)) -> 0 | BI35: 0 | BJ35: 9948129 | BK35: =SUM((U35+V35+AA35+AC35+AF35+AI35+AL35+AM35+AN35)*'Weighting Factors'!O$12)+(MAX(AO35,'Weighting Factors'!B35)) -> 3976549 | BL35: ='LOB%'!F33 -> 0.33 | BM35: 1312261 | BN35: 1307885 | BO35: 1307885 | BP35: 0.3289 | BQ35: 0 | BR35: FALSE | BS35: 0 | BT35: 0 | BU35: 0 | BV35: TRUE | BW35: 136.4963 | BX35: 0.446712 | BY35: 183.3 | BZ35: 0 | CA35: 376 | CB35: 0.043 | CC35: =IF(CB35<0.06,1,IF(CB35>=18.29,52,MATCH(CB35-0.001,'Weighting Factors'!$W$5:$W$156)+1)) -> 1 | CD35: =VLOOKUP(CC35, 'Weighting Factors'!$U$5:$X$56,4) -> 1620 | CE35: =('Weighting Factors'!$O$5/'Weighting Factors'!$O$14) -> 1.1635 | CF35: 25920 | CG35: =CF35*'Weighting Factors'!$Q$7 -> 25920 | CH35: 30158 | CI35: =AK35/'Weighting Factors'!$O$5 -> 6.2 | CJ35: 0 | CK35: 0 | CL35: 0 | CM35: =SUM((AR35*'Weighting Factors'!$O$5)+'2023 Legal Max'!AX35)*CL35 -> 0 | CN35: 0 | CO35: 0.4434 | CP35: 0 | CQ35: 12 | CR35: 780.2 | CS35: ='Required Transfers'!L35 -> 152499 | CT35: ='Required Transfers'!O35 -> 28512 | CU35: ='Required Transfers'!H35 -> 499623 | CV35: 1572.4 | CW35: D0218
A36: 219 | B36: Clark | C36: Minneola | D36: 232.5 | F36: 0 | G36: 232.5 | H36: 247.7 | J36: 0 | K36: 247.7 | L36: 225 | M36: 0 | N36: 0 | O36: 225 | P36: =IF(ISNA(VLOOKUP($CW36,'Audit Values'!$A:$BX,2,FALSE)),'Preliminary SO66'!C35,VLOOKUP($CW36,'Audit Values'!$A:$BX,74,FALSE)) -> 245.5 | Q36: =IF(ISNA(VLOOKUP($CW36,'Audit Values'!$A:$BX,2,FALSE)),'Preliminary SO66'!F35,VLOOKUP($CW36,'Audit Values'!$A$2:$BX$805,4,FALSE)) -> 0 | R36: 245.5 | S36: =IF('Military Provision'!J36="YES", MAX('2023 Legal Max'!O36,'2023 Legal Max'!K36,AVERAGE('2023 Legal Max'!G36,'2023 Legal Max'!K36,'2023 Legal Max'!O36)), MAX(O36, K36)) -> 247.7 | T36: =IF(ISNA(VLOOKUP($CW36,'Audit Values'!$A:$BV,2,FALSE)),'Preliminary SO66'!AL35,VLOOKUP($CW36,'Audit Values'!$A:$BV,59,FALSE)) -> 2.5 | U36: 250.2 | V36: 154.2 | W36: =IF(ISNA(VLOOKUP($CW36,'Audit Values'!$A:$BX,2,FALSE)),'Preliminary SO66'!AM35,VLOOKUP($CW36,'Audit Values'!$A:$BX,63,FALSE)) -> 0 | X36: =(W36/6)*'Weighting Factors'!$O$7 -> 0 | Y36: =IF(ISNA(VLOOKUP($CW36,'Audit Values'!$A:$BX,2,FALSE)),'Preliminary SO66'!AN35,VLOOKUP($CW36,'Audit Values'!$A:$BX,62,FALSE)) -> 0 | Z36: =Y36*'Weighting Factors'!$O$8 -> 0 | AA36: 0 | AB36: =IF(ISNA(VLOOKUP($CW36,'Audit Values'!$A:$BX,2,FALSE)),'Preliminary SO66'!AO35,VLOOKUP($CW36,'Audit Values'!$A:$BX,61,FALSE)) -> 0 | AC36: =AB36/6*'Weighting Factors'!$O$6 -> 0 | AD36: =IF(ISNA(VLOOKUP($CW36,'Audit Values'!$A:$BV,2,FALSE)),'Preliminary SO66'!AS35,VLOOKUP($CW36,'Audit Values'!$A:$BV,64,FALSE)) -> 251 | AE36: =IF(ISNA(VLOOKUP($CW36,'Audit Values'!$A:$BV,2,FALSE)),'Preliminary SO66'!AP35,VLOOKUP($CW36,'Audit Values'!$A:$BV,65,FALSE)) -> 125 | AF36: =IF(A36=207, AE36,(AE36))*'Weighting Factors'!$O$9 -> 60.5 | AG36: 13 | AH36: =IF(ISNA(VLOOKUP($CW36,'Audit Values'!$A:$BX,2,FALSE)),'Preliminary SO66'!AG35,VLOOKUP($CW36,'Audit Values'!$A:$BX,71,FALSE)) -> 12.1 | AI36: 13 | AJ36: =IF(ISNA(VLOOKUP($CW36,'Audit Values'!$A:$BV,2,FALSE)),'Preliminary SO66'!AR35,VLOOKUP($CW36,'Audit Values'!$A:$BV,66,FALSE)) -> 48 | AK36: 74836 | AL36: =AK36/'Weighting Factors'!$O$5 -> 15.4 | AM36: =CJ36/'Weighting Factors'!$O$5 -> 0 | AN36: =CN36/'Weighting Factors'!$O$5 -> 0 | AO36: 182927 | AP36: =AO36/'Weighting Factors'!$O$5 -> 37.7 | AQ36: =IF(ISNA(VLOOKUP($CW36,'Audit Values'!$A:$BV,2,FALSE)),'Preliminary SO66'!X35,VLOOKUP($CW36,'Audit Values'!$A:$BV,48,FALSE)) -> 0 | AR36: 531 | AS36: 493.3 | AT36: =IF(ISNA(VLOOKUP($CW36,'Audit Values'!$A$2:$BV$786,2,FALSE)),'Preliminary SO66'!AA35,VLOOKUP($CW36,'Audit Values'!$A$2:$BV$786,41,FALSE)) -> 0 | AU36: =IF(ISNA(VLOOKUP($CW36,'Audit Values'!$A$2:$BV$786,2,FALSE)),'Preliminary SO66'!AB35,VLOOKUP($CW36,'Audit Values'!$A$2:$BV$786,42,FALSE)) -> 0 | AV36: 0 | AW36: 0 | AX36: =SUM(AT36*'Weighting Factors'!$R$10)+('2023 Legal Max'!AU36*'Weighting Factors'!$R$11)+('2023 Legal Max'!AV36*'Weighting Factors'!$R$12)+('2023 Legal Max'!AW36*'Weighting Factors'!$R$12) -> 0 | AY36: =IF(ISNA(VLOOKUP($CW36,'Audit Values'!$A$2:$BV$805,2,FALSE)),"",IF(AND('Weighting Factors'!G36>0,VLOOKUP($CW36,'Audit Values'!$A$2:$BV$805,51,FALSE)<'Weighting Factors'!G36),'Weighting Factors'!G36,VLOOKUP($CW36,'Audit Values'!$A$2:$BV$805,51,FALSE))) -> 11 | AZ36: =IF(ISNA(VLOOKUP($CW36,'Audit Values'!$A:$BW,2,FALSE)),"",VLOOKUP($CW36,'Audit Values'!$A:$BW,52,FALSE)) -> A | BA36: =IF('Weighting Factors'!F36="","",IF('Weighting Factors'!H36="Pending","PX","R")) -> R | BB36: =SUM((U36+V36+AA36+AC36+AF36+AI36+AL36+AM36+AQ36+AN36)*'Weighting Factors'!$O$5)+'2023 Legal Max'!AX36 -> 2390532 | BC36: =SUM((AR36+AN36)*'Weighting Factors'!$O$5)+AX36 -> 2573226 | BD36: =IF('Weighting Factors'!F36>0,'Weighting Factors'!F36,'Preliminary SO66'!AV35) -> 2626532 | BE36: 2573226 | BF36: ='Weighting Factors'!E36 -> 0 | BG36: =Transportation!G36 -> 0 | BH36: =IF(ISNA(VLOOKUP($CW36,'Audit Values'!$A$2:$BU$380,2,FALSE)), 0, VLOOKUP($CW36,'Audit Values'!$A$2:$BU$380,73,FALSE)) -> 0 | BI36: 0 | BJ36: 2573226 | BK36: =SUM((U36+V36+AA36+AC36+AF36+AI36+AL36+AM36+AN36)*'Weighting Factors'!O$12)+(MAX(AO36,'Weighting Factors'!B36)) -> 2670913 | BL36: ='LOB%'!F34 -> 0.31 | BM36: 827983 | BN36: 784738 | BO36: 784738 | BP36: 0.2938 | BQ36: 0 | BR36: TRUE | BS36: 1450.181 | BT36: 0.616192 | BU36: 154.2 | BV36: FALSE | BW36: 0 | BX36: 0 | BY36: 0 | BZ36: 0 | CA36: 292 | CB36: 0.164 | CC36: =IF(CB36<0.06,1,IF(CB36>=18.29,52,MATCH(CB36-0.001,'Weighting Factors'!$W$5:$W$156)+1)) -> 12 | CD36: =VLOOKUP(CC36, 'Weighting Factors'!$U$5:$X$56,4) -> 1340 | CE36: =('Weighting Factors'!$O$5/'Weighting Factors'!$O$14) -> 1.1635 | CF36: 64320 | CG36: =CF36*'Weighting Factors'!$Q$7 -> 64320 | CH36: 74836 | CI36: =AK36/'Weighting Factors'!$O$5 -> 15.4 | CJ36: 0 | CK36: 0 | CL36: 0 | CM36: =SUM((AR36*'Weighting Factors'!$O$5)+'2023 Legal Max'!AX36)*CL36 -> 0 | CN36: 0 | CO36: 0.498 | CP36: 0 | CQ36: 13 | CR36: 531 | CS36: ='Required Transfers'!L36 -> 89853 | CT36: ='Required Transfers'!O36 -> 0 | CU36: ='Required Transfers'!H36 -> 356181 | CV36: 248 | CW36: D0219
A37: 220 | B37: Clark | C37: Ashland | D37: 200.7 | F37: 0 | G37: 200.7 | H37: 186.1 | J37: 0 | K37: 186.1 | L37: 196.8 | M37: 0 | N37: 0 | O37: 196.8 | P37: =IF(ISNA(VLOOKUP($CW37,'Audit Values'!$A:$BX,2,FALSE)),'Preliminary SO66'!C36,VLOOKUP($CW37,'Audit Values'!$A:$BX,74,FALSE)) -> 186.5 | Q37: =IF(ISNA(VLOOKUP($CW37,'Audit Values'!$A:$BX,2,FALSE)),'Preliminary SO66'!F36,VLOOKUP($CW37,'Audit Values'!$A$2:$BX$805,4,FALSE)) -> 0 | R37: 186.5 | S37: =IF('Military Provision'!J37="YES", MAX('2023 Legal Max'!O37,'2023 Legal Max'!K37,AVERAGE('2023 Legal Max'!G37,'2023 Legal Max'!K37,'2023 Legal Max'!O37)), MAX(O37, K37)) -> 196.8 | T37: =IF(ISNA(VLOOKUP($CW37,'Audit Values'!$A:$BV,2,FALSE)),'Preliminary SO66'!AL36,VLOOKUP($CW37,'Audit Values'!$A:$BV,59,FALSE)) -> 0 | U37: 196.8 | V37: 149.1 | W37: =IF(ISNA(VLOOKUP($CW37,'Audit Values'!$A:$BX,2,FALSE)),'Preliminary SO66'!AM36,VLOOKUP($CW37,'Audit Values'!$A:$BX,63,FALSE)) -> 21.4 | X37: =(W37/6)*'Weighting Factors'!$O$7 -> 1.4 | Y37: =IF(ISNA(VLOOKUP($CW37,'Audit Values'!$A:$BX,2,FALSE)),'Preliminary SO66'!AN36,VLOOKUP($CW37,'Audit Values'!$A:$BX,62,FALSE)) -> 15 | Z37: =Y37*'Weighting Factors'!$O$8 -> 2.8 | AA37: 2.8 | AB37: =IF(ISNA(VLOOKUP($CW37,'Audit Values'!$A:$BX,2,FALSE)),'Preliminary SO66'!AO36,VLOOKUP($CW37,'Audit Values'!$A:$BX,61,FALSE)) -> 45.3 | AC37: =AB37/6*'Weighting Factors'!$O$6 -> 3.8 | AD37: =IF(ISNA(VLOOKUP($CW37,'Audit Values'!$A:$BV,2,FALSE)),'Preliminary SO66'!AS36,VLOOKUP($CW37,'Audit Values'!$A:$BV,64,FALSE)) -> 189 | AE37: =IF(ISNA(VLOOKUP($CW37,'Audit Values'!$A:$BV,2,FALSE)),'Preliminary SO66'!AP36,VLOOKUP($CW37,'Audit Values'!$A:$BV,65,FALSE)) -> 63 | AF37: =IF(A37=207, AE37,(AE37))*'Weighting Factors'!$O$9 -> 30.5 | AG37: 0 | AH37: =IF(ISNA(VLOOKUP($CW37,'Audit Values'!$A:$BX,2,FALSE)),'Preliminary SO66'!AG36,VLOOKUP($CW37,'Audit Values'!$A:$BX,71,FALSE)) -> 0 | AI37: 0 | AJ37: =IF(ISNA(VLOOKUP($CW37,'Audit Values'!$A:$BV,2,FALSE)),'Preliminary SO66'!AR36,VLOOKUP($CW37,'Audit Values'!$A:$BV,66,FALSE)) -> 29.5 | AK37: 55604 | AL37: =AK37/'Weighting Factors'!$O$5 -> 11.5 | AM37: =CJ37/'Weighting Factors'!$O$5 -> 0 | AN37: =CN37/'Weighting Factors'!$O$5 -> 0 | AO37: 146713 | AP37: =AO37/'Weighting Factors'!$O$5 -> 30.3 | AQ37: =IF(ISNA(VLOOKUP($CW37,'Audit Values'!$A:$BV,2,FALSE)),'Preliminary SO66'!X36,VLOOKUP($CW37,'Audit Values'!$A:$BV,48,FALSE)) -> 0 | AR37: 424.8 | AS37: 394.5 | AT37: =IF(ISNA(VLOOKUP($CW37,'Audit Values'!$A$2:$BV$786,2,FALSE)),'Preliminary SO66'!AA36,VLOOKUP($CW37,'Audit Values'!$A$2:$BV$786,41,FALSE)) -> 0 | AU37: =IF(ISNA(VLOOKUP($CW37,'Audit Values'!$A$2:$BV$786,2,FALSE)),'Preliminary SO66'!AB36,VLOOKUP($CW37,'Audit Values'!$A$2:$BV$786,42,FALSE)) -> 0 | AV37: 0 | AW37: 0 | AX37: =SUM(AT37*'Weighting Factors'!$R$10)+('2023 Legal Max'!AU37*'Weighting Factors'!$R$11)+('2023 Legal Max'!AV37*'Weighting Factors'!$R$12)+('2023 Legal Max'!AW37*'Weighting Factors'!$R$12) -> 0 | AY37: =IF(ISNA(VLOOKUP($CW37,'Audit Values'!$A$2:$BV$805,2,FALSE)),"",IF(AND('Weighting Factors'!G37>0,VLOOKUP($CW37,'Audit Values'!$A$2:$BV$805,51,FALSE)<'Weighting Factors'!G37),'Weighting Factors'!G37,VLOOKUP($CW37,'Audit Values'!$A$2:$BV$805,51,FALSE))) -> 15 | AZ37: =IF(ISNA(VLOOKUP($CW37,'Audit Values'!$A:$BW,2,FALSE)),"",VLOOKUP($CW37,'Audit Values'!$A:$BW,52,FALSE)) -> A | BA37: =IF('Weighting Factors'!F37="","",IF('Weighting Factors'!H37="Pending","PX","R")) ->  | BB37: =SUM((U37+V37+AA37+AC37+AF37+AI37+AL37+AM37+AQ37+AN37)*'Weighting Factors'!$O$5)+'2023 Legal Max'!AX37 -> 1911747 | BC37: =SUM((AR37+AN37)*'Weighting Factors'!$O$5)+AX37 -> 2058581 | BD37: =IF('Weighting Factors'!F37>0,'Weighting Factors'!F37,'Preliminary SO66'!AV36) -> 2306696 | BE37: 2058581 | BF37: ='Weighting Factors'!E37 -> 0 | BG37: =Transportation!G37 -> 0 | BH37: =IF(ISNA(VLOOKUP($CW37,'Audit Values'!$A$2:$BU$380,2,FALSE)), 0, VLOOKUP($CW37,'Audit Values'!$A$2:$BU$380,73,FALSE)) -> 0 | BI37: 0 | BJ37: 2058581 | BK37: =SUM((U37+V37+AA37+AC37+AF37+AI37+AL37+AM37+AN37)*'Weighting Factors'!O$12)+(MAX(AO37,'Weighting Factors'!B37)) -> 2136465 | BL37: ='LOB%'!F35 -> 0.31 | BM37: 662304 | BN37: 723433 | BO37: 662304 | BP37: 0.31 | BQ37: 0 | BR37: TRUE | BS37: 934.604 | BT37: 0.757741 | BU37: 149.1 | BV37: FALSE | BW37: 0 | BX37: 0 | BY37: 0 | BZ37: 0 | CA37: 660 | CB37: 0.045 | CC37: =IF(CB37<0.06,1,IF(CB37>=18.29,52,MATCH(CB37-0.001,'Weighting Factors'!$W$5:$W$156)+1)) -> 1 | CD37: =VLOOKUP(CC37, 'Weighting Factors'!$U$5:$X$56,4) -> 1620 | CE37: =('Weighting Factors'!$O$5/'Weighting Factors'!$O$14) -> 1.1635 | CF37: 47790 | CG37: =CF37*'Weighting Factors'!$Q$7 -> 47790 | CH37: 55604 | CI37: =AK37/'Weighting Factors'!$O$5 -> 11.5 | CJ37: 0 | CK37: 0 | CL37: 0 | CM37: =SUM((AR37*'Weighting Factors'!$O$5)+'2023 Legal Max'!AX37)*CL37 -> 0 | CN37: 0 | CO37: 0.3333 | CP37: 0 | CQ37: 0 | CR37: 424.8 | CS37: ='Required Transfers'!L37 -> 47553 | CT37: ='Required Transfers'!O37 -> 4371 | CU37: ='Required Transfers'!H37 -> 147803 | CV37: 186.5 | CW37: D0220
A38: 223 | B38: Washington | C38: Barnes | D38: 352.6 | F38: 0 | G38: 352.6 | H38: 361.1 | I38: 2 | J38: 0 | K38: 359.1 | L38: 336.8 | M38: 0 | N38: 0 | O38: 336.8 | P38: =IF(ISNA(VLOOKUP($CW38,'Audit Values'!$A:$BX,2,FALSE)),'Preliminary SO66'!C37,VLOOKUP($CW38,'Audit Values'!$A:$BX,74,FALSE)) -> 357.5 | Q38: =IF(ISNA(VLOOKUP($CW38,'Audit Values'!$A:$BX,2,FALSE)),'Preliminary SO66'!F37,VLOOKUP($CW38,'Audit Values'!$A$2:$BX$805,4,FALSE)) -> 0 | R38: 357.5 | S38: =IF('Military Provision'!J38="YES", MAX('2023 Legal Max'!O38,'2023 Legal Max'!K38,AVERAGE('2023 Legal Max'!G38,'2023 Legal Max'!K38,'2023 Legal Max'!O38)), MAX(O38, K38)) -> 359.1 | T38: =IF(ISNA(VLOOKUP($CW38,'Audit Values'!$A:$BV,2,FALSE)),'Preliminary SO66'!AL37,VLOOKUP($CW38,'Audit Values'!$A:$BV,59,FALSE)) -> 16.5 | U38: 375.6 | V38: 172.2 | W38: =IF(ISNA(VLOOKUP($CW38,'Audit Values'!$A:$BX,2,FALSE)),'Preliminary SO66'!AM37,VLOOKUP($CW38,'Audit Values'!$A:$BX,63,FALSE)) -> 26.5 | X38: =(W38/6)*'Weighting Factors'!$O$7 -> 1.7 | Y38: =IF(ISNA(VLOOKUP($CW38,'Audit Values'!$A:$BX,2,FALSE)),'Preliminary SO66'!AN37,VLOOKUP($CW38,'Audit Values'!$A:$BX,62,FALSE)) -> 20 | Z38: =Y38*'Weighting Factors'!$O$8 -> 3.7 | AA38: 3.7 | AB38: =IF(ISNA(VLOOKUP($CW38,'Audit Values'!$A:$BX,2,FALSE)),'Preliminary SO66'!AO37,VLOOKUP($CW38,'Audit Values'!$A:$BX,61,FALSE)) -> 112.2 | AC38: =AB38/6*'Weighting Factors'!$O$6 -> 9.4 | AD38: =IF(ISNA(VLOOKUP($CW38,'Audit Values'!$A:$BV,2,FALSE)),'Preliminary SO66'!AS37,VLOOKUP($CW38,'Audit Values'!$A:$BV,64,FALSE)) -> 479 | AE38: =IF(ISNA(VLOOKUP($CW38,'Audit Values'!$A:$BV,2,FALSE)),'Preliminary SO66'!AP37,VLOOKUP($CW38,'Audit Values'!$A:$BV,65,FALSE)) -> 99 | AF38: =IF(A38=207, AE38,(AE38))*'Weighting Factors'!$O$9 -> 47.9 | AG38: 0 | AH38: =IF(ISNA(VLOOKUP($CW38,'Audit Values'!$A:$BX,2,FALSE)),'Preliminary SO66'!AG37,VLOOKUP($CW38,'Audit Values'!$A:$BX,71,FALSE)) -> 0 | AI38: 0 | AJ38: =IF(ISNA(VLOOKUP($CW38,'Audit Values'!$A:$BV,2,FALSE)),'Preliminary SO66'!AR37,VLOOKUP($CW38,'Audit Values'!$A:$BV,66,FALSE)) -> 130 | AK38: 176968 | AL38: =AK38/'Weighting Factors'!$O$5 -> 36.5 | AM38: =CJ38/'Weighting Factors'!$O$5 -> 0 | AN38: =CN38/'Weighting Factors'!$O$5 -> 0 | AO38: 459538 | AP38: =AO38/'Weighting Factors'!$O$5 -> 94.8 | AQ38: =IF(ISNA(VLOOKUP($CW38,'Audit Values'!$A:$BV,2,FALSE)),'Preliminary SO66'!X37,VLOOKUP($CW38,'Audit Values'!$A:$BV,48,FALSE)) -> 0 | AR38: 740.1 | AS38: 645.3 | AT38: =IF(ISNA(VLOOKUP($CW38,'Audit Values'!$A$2:$BV$786,2,FALSE)),'Preliminary SO66'!AA37,VLOOKUP($CW38,'Audit Values'!$A$2:$BV$786,41,FALSE)) -> 0 | AU38: =IF(ISNA(VLOOKUP($CW38,'Audit Values'!$A$2:$BV$786,2,FALSE)),'Preliminary SO66'!AB37,VLOOKUP($CW38,'Audit Values'!$A$2:$BV$786,42,FALSE)) -> 0 | AV38: 0 | AW38: 0 | AX38: =SUM(AT38*'Weighting Factors'!$R$10)+('2023 Legal Max'!AU38*'Weighting Factors'!$R$11)+('2023 Legal Max'!AV38*'Weighting Factors'!$R$12)+('2023 Legal Max'!AW38*'Weighting Factors'!$R$12) -> 0 | AY38: =IF(ISNA(VLOOKUP($CW38,'Audit Values'!$A$2:$BV$805,2,FALSE)),"",IF(AND('Weighting Factors'!G38>0,VLOOKUP($CW38,'Audit Values'!$A$2:$BV$805,51,FALSE)<'Weighting Factors'!G38),'Weighting Factors'!G38,VLOOKUP($CW38,'Audit Values'!$A$2:$BV$805,51,FALSE))) -> 11 | AZ38: =IF(ISNA(VLOOKUP($CW38,'Audit Values'!$A:$BW,2,FALSE)),"",VLOOKUP($CW38,'Audit Values'!$A:$BW,52,FALSE)) -> A | BA38: =IF('Weighting Factors'!F38="","",IF('Weighting Factors'!H38="Pending","PX","R")) ->  | BB38: =SUM((U38+V38+AA38+AC38+AF38+AI38+AL38+AM38+AQ38+AN38)*'Weighting Factors'!$O$5)+'2023 Legal Max'!AX38 -> 3127124 | BC38: =SUM((AR38+AN38)*'Weighting Factors'!$O$5)+AX38 -> 3586525 | BD38: =IF('Weighting Factors'!F38>0,'Weighting Factors'!F38,'Preliminary SO66'!AV37) -> 3672299 | BE38: 3586525 | BF38: ='Weighting Factors'!E38 -> 0 | BG38: =Transportation!G38 -> 0 | BH38: =IF(ISNA(VLOOKUP($CW38,'Audit Values'!$A$2:$BU$380,2,FALSE)), 0, VLOOKUP($CW38,'Audit Values'!$A$2:$BU$380,73,FALSE)) -> 0 | BI38: 0 | BJ38: 3586525 | BK38: =SUM((U38+V38+AA38+AC38+AF38+AI38+AL38+AM38+AN38)*'Weighting Factors'!O$12)+(MAX(AO38,'Weighting Factors'!B38)) -> 3629252 | BL38: ='LOB%'!F36 -> 0.31 | BM38: 1125068 | BN38: 1151686 | BO38: 1125068 | BP38: 0.31 | BQ38: 0 | BR38: FALSE | BS38: 0 | BT38: 0 | BU38: 0 | BV38: TRUE | BW38: 93.555 | BX38: 0.458501 | BY38: 172.2 | BZ38: 0 | CA38: 378 | CB38: 0.344 | CC38: =IF(CB38<0.06,1,IF(CB38>=18.29,52,MATCH(CB38-0.001,'Weighting Factors'!$W$5:$W$156)+1)) -> 21 | CD38: =VLOOKUP(CC38, 'Weighting Factors'!$U$5:$X$56,4) -> 1170 | CE38: =('Weighting Factors'!$O$5/'Weighting Factors'!$O$14) -> 1.1635 | CF38: 152100 | CG38: =CF38*'Weighting Factors'!$Q$7 -> 152100 | CH38: 176968 | CI38: =AK38/'Weighting Factors'!$O$5 -> 36.5 | CJ38: 0 | CK38: 0 | CL38: 0 | CM38: =SUM((AR38*'Weighting Factors'!$O$5)+'2023 Legal Max'!AX38)*CL38 -> 0 | CN38: 0 | CO38: 0.2067 | CP38: 0 | CQ38: 0 | CR38: 740.1 | CS38: ='Required Transfers'!L38 -> 74480 | CT38: ='Required Transfers'!O38 -> 5738 | CU38: ='Required Transfers'!H38 -> 232123 | CV38: 374 | CW38: D0223
A39: 224 | B39: Washington | C39: Clifton-Clyde | D39: 314 | F39: 0 | G39: 314 | H39: 289.8 | J39: 0 | K39: 289.8 | L39: 281 | M39: 0 | N39: 0 | O39: 281 | P39: =IF(ISNA(VLOOKUP($CW39,'Audit Values'!$A:$BX,2,FALSE)),'Preliminary SO66'!C38,VLOOKUP($CW39,'Audit Values'!$A:$BX,74,FALSE)) -> 292.2 | Q39: =IF(ISNA(VLOOKUP($CW39,'Audit Values'!$A:$BX,2,FALSE)),'Preliminary SO66'!F38,VLOOKUP($CW39,'Audit Values'!$A$2:$BX$805,4,FALSE)) -> 0 | R39: 292.2 | S39: =IF('Military Provision'!J39="YES", MAX('2023 Legal Max'!O39,'2023 Legal Max'!K39,AVERAGE('2023 Legal Max'!G39,'2023 Legal Max'!K39,'2023 Legal Max'!O39)), MAX(O39, K39)) -> 289.8 | T39: =IF(ISNA(VLOOKUP($CW39,'Audit Values'!$A:$BV,2,FALSE)),'Preliminary SO66'!AL38,VLOOKUP($CW39,'Audit Values'!$A:$BV,59,FALSE)) -> 0.5 | U39: 290.3 | V39: 148 | W39: =IF(ISNA(VLOOKUP($CW39,'Audit Values'!$A:$BX,2,FALSE)),'Preliminary SO66'!AM38,VLOOKUP($CW39,'Audit Values'!$A:$BX,63,FALSE)) -> 0 | X39: =(W39/6)*'Weighting Factors'!$O$7 -> 0 | Y39: =IF(ISNA(VLOOKUP($CW39,'Audit Values'!$A:$BX,2,FALSE)),'Preliminary SO66'!AN38,VLOOKUP($CW39,'Audit Values'!$A:$BX,62,FALSE)) -> 0 | Z39: =Y39*'Weighting Factors'!$O$8 -> 0 | AA39: 0 | AB39: =IF(ISNA(VLOOKUP($CW39,'Audit Values'!$A:$BX,2,FALSE)),'Preliminary SO66'!AO38,VLOOKUP($CW39,'Audit Values'!$A:$BX,61,FALSE)) -> 159.3 | AC39: =AB39/6*'Weighting Factors'!$O$6 -> 13.3 | AD39: =IF(ISNA(VLOOKUP($CW39,'Audit Values'!$A:$BV,2,FALSE)),'Preliminary SO66'!AS38,VLOOKUP($CW39,'Audit Values'!$A:$BV,64,FALSE)) -> 297 | AE39: =IF(ISNA(VLOOKUP($CW39,'Audit Values'!$A:$BV,2,FALSE)),'Preliminary SO66'!AP38,VLOOKUP($CW39,'Audit Values'!$A:$BV,65,FALSE)) -> 87 | AF39: =IF(A39=207, AE39,(AE39))*'Weighting Factors'!$O$9 -> 42.1 | AG39: 0 | AH39: =IF(ISNA(VLOOKUP($CW39,'Audit Values'!$A:$BX,2,FALSE)),'Preliminary SO66'!AG38,VLOOKUP($CW39,'Audit Values'!$A:$BX,71,FALSE)) -> 0 | AI39: 0 | AJ39: =IF(ISNA(VLOOKUP($CW39,'Audit Values'!$A:$BV,2,FALSE)),'Preliminary SO66'!AR38,VLOOKUP($CW39,'Audit Values'!$A:$BV,66,FALSE)) -> 171 | AK39: 204927 | AL39: =AK39/'Weighting Factors'!$O$5 -> 42.3 | AM39: =CJ39/'Weighting Factors'!$O$5 -> 0 | AN39: =CN39/'Weighting Factors'!$O$5 -> 0 | AO39: 258179 | AP39: =AO39/'Weighting Factors'!$O$5 -> 53.3 | AQ39: =IF(ISNA(VLOOKUP($CW39,'Audit Values'!$A:$BV,2,FALSE)),'Preliminary SO66'!X38,VLOOKUP($CW39,'Audit Values'!$A:$BV,48,FALSE)) -> 0 | AR39: 589.3 | AS39: 536 | AT39: =IF(ISNA(VLOOKUP($CW39,'Audit Values'!$A$2:$BV$786,2,FALSE)),'Preliminary SO66'!AA38,VLOOKUP($CW39,'Audit Values'!$A$2:$BV$786,41,FALSE)) -> 0 | AU39: =IF(ISNA(VLOOKUP($CW39,'Audit Values'!$A$2:$BV$786,2,FALSE)),'Preliminary SO66'!AB38,VLOOKUP($CW39,'Audit Values'!$A$2:$BV$786,42,FALSE)) -> 0 | AV39: 0 | AW39: 0 | AX39: =SUM(AT39*'Weighting Factors'!$R$10)+('2023 Legal Max'!AU39*'Weighting Factors'!$R$11)+('2023 Legal Max'!AV39*'Weighting Factors'!$R$12)+('2023 Legal Max'!AW39*'Weighting Factors'!$R$12) -> 0 | AY39: =IF(ISNA(VLOOKUP($CW39,'Audit Values'!$A$2:$BV$805,2,FALSE)),"",IF(AND('Weighting Factors'!G39>0,VLOOKUP($CW39,'Audit Values'!$A$2:$BV$805,51,FALSE)<'Weighting Factors'!G39),'Weighting Factors'!G39,VLOOKUP($CW39,'Audit Values'!$A$2:$BV$805,51,FALSE))) -> 13 | AZ39: =IF(ISNA(VLOOKUP($CW39,'Audit Values'!$A:$BW,2,FALSE)),"",VLOOKUP($CW39,'Audit Values'!$A:$BW,52,FALSE)) -> A | BA39: =IF('Weighting Factors'!F39="","",IF('Weighting Factors'!H39="Pending","PX","R")) ->  | BB39: =SUM((U39+V39+AA39+AC39+AF39+AI39+AL39+AM39+AQ39+AN39)*'Weighting Factors'!$O$5)+'2023 Legal Max'!AX39 -> 2597456 | BC39: =SUM((AR39+AN39)*'Weighting Factors'!$O$5)+AX39 -> 2855748 | BD39: =IF('Weighting Factors'!F39>0,'Weighting Factors'!F39,'Preliminary SO66'!AV38) -> 2898877 | BE39: 2855748 | BF39: ='Weighting Factors'!E39 -> 0 | BG39: =Transportation!G39 -> 0 | BH39: =IF(ISNA(VLOOKUP($CW39,'Audit Values'!$A$2:$BU$380,2,FALSE)), 0, VLOOKUP($CW39,'Audit Values'!$A$2:$BU$380,73,FALSE)) -> 0 | BI39: 0 | BJ39: 2855748 | BK39: =SUM((U39+V39+AA39+AC39+AF39+AI39+AL39+AM39+AN39)*'Weighting Factors'!O$12)+(MAX(AO39,'Weighting Factors'!B39)) -> 2980690 | BL39: ='LOB%'!F37 -> 0.31 | BM39: 924014 | BN39: 931932 | BO39: 924014 | BP39: 0.31 | BQ39: 0 | BR39: TRUE | BS39: 1837.347 | BT39: 0.509898 | BU39: 148 | BV39: FALSE | BW39: 0 | BX39: 0 | BY39: 0 | BZ39: 0 | CA39: 255 | CB39: 0.671 | CC39: =IF(CB39<0.06,1,IF(CB39>=18.29,52,MATCH(CB39-0.001,'Weighting Factors'!$W$5:$W$156)+1)) -> 28 | CD39: =VLOOKUP(CC39, 'Weighting Factors'!$U$5:$X$56,4) -> 1030 | CE39: =('Weighting Factors'!$O$5/'Weighting Factors'!$O$14) -> 1.1635 | CF39: 176130 | CG39: =CF39*'Weighting Factors'!$Q$7 -> 176130 | CH39: 204927 | CI39: =AK39/'Weighting Factors'!$O$5 -> 42.3 | CJ39: 0 | CK39: 0 | CL39: 0 | CM39: =SUM((AR39*'Weighting Factors'!$O$5)+'2023 Legal Max'!AX39)*CL39 -> 0 | CN39: 0 | CO39: 0.2929 | CP39: 0 | CQ39: 0 | CR39: 589.3 | CS39: ='Required Transfers'!L39 -> 66067 | CT39: ='Required Transfers'!O39 -> 0 | CU39: ='Required Transfers'!H39 -> 204017 | CV39: 292.7 | CW39: D0224
A40: 225 | B40: Meade | C40: Fowler | D40: 120 | F40: 0 | G40: 120 | H40: 117 | J40: 0 | K40: 117 | L40: 96 | M40: 0 | N40: 0 | O40: 96 | P40: =IF(ISNA(VLOOKUP($CW40,'Audit Values'!$A:$BX,2,FALSE)),'Preliminary SO66'!C39,VLOOKUP($CW40,'Audit Values'!$A:$BX,74,FALSE)) -> 66 | Q40: =IF(ISNA(VLOOKUP($CW40,'Audit Values'!$A:$BX,2,FALSE)),'Preliminary SO66'!F39,VLOOKUP($CW40,'Audit Values'!$A$2:$BX$805,4,FALSE)) -> 0 | R40: 66 | S40: =IF('Military Provision'!J40="YES", MAX('2023 Legal Max'!O40,'2023 Legal Max'!K40,AVERAGE('2023 Legal Max'!G40,'2023 Legal Max'!K40,'2023 Legal Max'!O40)), MAX(O40, K40)) -> 117 | T40: =IF(ISNA(VLOOKUP($CW40,'Audit Values'!$A:$BV,2,FALSE)),'Preliminary SO66'!AL39,VLOOKUP($CW40,'Audit Values'!$A:$BV,59,FALSE)) -> 1.5 | U40: 118.5 | V40: 114.4 | W40: =IF(ISNA(VLOOKUP($CW40,'Audit Values'!$A:$BX,2,FALSE)),'Preliminary SO66'!AM39,VLOOKUP($CW40,'Audit Values'!$A:$BX,63,FALSE)) -> 13.2 | X40: =(W40/6)*'Weighting Factors'!$O$7 -> 0.9 | Y40: =IF(ISNA(VLOOKUP($CW40,'Audit Values'!$A:$BX,2,FALSE)),'Preliminary SO66'!AN39,VLOOKUP($CW40,'Audit Values'!$A:$BX,62,FALSE)) -> 4 | Z40: =Y40*'Weighting Factors'!$O$8 -> 0.7 | AA40: 0.9 | AB40: =IF(ISNA(VLOOKUP($CW40,'Audit Values'!$A:$BX,2,FALSE)),'Preliminary SO66'!AO39,VLOOKUP($CW40,'Audit Values'!$A:$BX,61,FALSE)) -> 8.5 | AC40: =AB40/6*'Weighting Factors'!$O$6 -> 0.7 | AD40: =IF(ISNA(VLOOKUP($CW40,'Audit Values'!$A:$BV,2,FALSE)),'Preliminary SO66'!AS39,VLOOKUP($CW40,'Audit Values'!$A:$BV,64,FALSE)) -> 69 | AE40: =IF(ISNA(VLOOKUP($CW40,'Audit Values'!$A:$BV,2,FALSE)),'Preliminary SO66'!AP39,VLOOKUP($CW40,'Audit Values'!$A:$BV,65,FALSE)) -> 39 | AF40: =IF(A40=207, AE40,(AE40))*'Weighting Factors'!$O$9 -> 18.9 | AG40: 4.1 | AH40: =IF(ISNA(VLOOKUP($CW40,'Audit Values'!$A:$BX,2,FALSE)),'Preliminary SO66'!AG39,VLOOKUP($CW40,'Audit Values'!$A:$BX,71,FALSE)) -> 3.7 | AI40: 4.1 | AJ40: =IF(ISNA(VLOOKUP($CW40,'Audit Values'!$A:$BV,2,FALSE)),'Preliminary SO66'!AR39,VLOOKUP($CW40,'Audit Values'!$A:$BV,66,FALSE)) -> 29 | AK40: 48925 | AL40: =AK40/'Weighting Factors'!$O$5 -> 10.1 | AM40: =CJ40/'Weighting Factors'!$O$5 -> 0 | AN40: =CN40/'Weighting Factors'!$O$5 -> 0 | AO40: 91878 | AP40: =AO40/'Weighting Factors'!$O$5 -> 19 | AQ40: =IF(ISNA(VLOOKUP($CW40,'Audit Values'!$A:$BV,2,FALSE)),'Preliminary SO66'!X39,VLOOKUP($CW40,'Audit Values'!$A:$BV,48,FALSE)) -> 0 | AR40: 286.6 | AS40: 267.6 | AT40: =IF(ISNA(VLOOKUP($CW40,'Audit Values'!$A$2:$BV$786,2,FALSE)),'Preliminary SO66'!AA39,VLOOKUP($CW40,'Audit Values'!$A$2:$BV$786,41,FALSE)) -> 0 | AU40: =IF(ISNA(VLOOKUP($CW40,'Audit Values'!$A$2:$BV$786,2,FALSE)),'Preliminary SO66'!AB39,VLOOKUP($CW40,'Audit Values'!$A$2:$BV$786,42,FALSE)) -> 0 | AV40: 0 | AW40: 0 | AX40: =SUM(AT40*'Weighting Factors'!$R$10)+('2023 Legal Max'!AU40*'Weighting Factors'!$R$11)+('2023 Legal Max'!AV40*'Weighting Factors'!$R$12)+('2023 Legal Max'!AW40*'Weighting Factors'!$R$12) -> 0 | AY40: =IF(ISNA(VLOOKUP($CW40,'Audit Values'!$A$2:$BV$805,2,FALSE)),"",IF(AND('Weighting Factors'!G40>0,VLOOKUP($CW40,'Audit Values'!$A$2:$BV$805,51,FALSE)<'Weighting Factors'!G40),'Weighting Factors'!G40,VLOOKUP($CW40,'Audit Values'!$A$2:$BV$805,51,FALSE))) -> 15 | AZ40: =IF(ISNA(VLOOKUP($CW40,'Audit Values'!$A:$BW,2,FALSE)),"",VLOOKUP($CW40,'Audit Values'!$A:$BW,52,FALSE)) -> A | BA40: =IF('Weighting Factors'!F40="","",IF('Weighting Factors'!H40="Pending","PX","R")) -> R | BB40: =SUM((U40+V40+AA40+AC40+AF40+AI40+AL40+AM40+AQ40+AN40)*'Weighting Factors'!$O$5)+'2023 Legal Max'!AX40 -> 1296790 | BC40: =SUM((AR40+AN40)*'Weighting Factors'!$O$5)+AX40 -> 1388864 | BD40: =IF('Weighting Factors'!F40>0,'Weighting Factors'!F40,'Preliminary SO66'!AV39) -> 1400009 | BE40: 1388864 | BF40: ='Weighting Factors'!E40 -> 0 | BG40: =Transportation!G40 -> -13580 | BH40: =IF(ISNA(VLOOKUP($CW40,'Audit Values'!$A$2:$BU$380,2,FALSE)), 0, VLOOKUP($CW40,'Audit Values'!$A$2:$BU$380,73,FALSE)) -> 0 | BI40: -13580 | BJ40: 1375284 | BK40: =SUM((U40+V40+AA40+AC40+AF40+AI40+AL40+AM40+AN40)*'Weighting Factors'!O$12)+(MAX(AO40,'Weighting Factors'!B40)) -> 1467238 | BL40: ='LOB%'!F38 -> 0.33 | BM40: 484189 | BN40: 468465 | BO40: 468465 | BP40: 0.3193 | BQ40: 0 | BR40: TRUE | BS40: 178.618 | BT40: 0.965293 | BU40: 114.4 | BV40: FALSE | BW40: 0 | BX40: 0 | BY40: 0 | BZ40: 0 | CA40: 281 | CB40: 0.103 | CC40: =IF(CB40<0.06,1,IF(CB40>=18.29,52,MATCH(CB40-0.001,'Weighting Factors'!$W$5:$W$156)+1)) -> 6 | CD40: =VLOOKUP(CC40, 'Weighting Factors'!$U$5:$X$56,4) -> 1450 | CE40: =('Weighting Factors'!$O$5/'Weighting Factors'!$O$14) -> 1.1635 | CF40: 42050 | CG40: =CF40*'Weighting Factors'!$Q$7 -> 42050 | CH40: 48925 | CI40: =AK40/'Weighting Factors'!$O$5 -> 10.1 | CJ40: 0 | CK40: 0 | CL40: 0 | CM40: =SUM((AR40*'Weighting Factors'!$O$5)+'2023 Legal Max'!AX40)*CL40 -> 0 | CN40: 0 | CO40: 0.5652 | CP40: 4.1 | CQ40: 0 | CR40: 286.6 | CS40: ='Required Transfers'!L40 -> 31059 | CT40: ='Required Transfers'!O40 -> 1499 | CU40: ='Required Transfers'!H40 -> 111458 | CV40: 67.5 | CW40: D0225
A41: 226 | B41: Meade | C41: Meade | D41: 370.9 | F41: 0 | G41: 370.9 | H41: 332 | J41: 0 | K41: 332 | L41: 360.5 | M41: 0 | N41: 0 | O41: 360.5 | P41: =IF(ISNA(VLOOKUP($CW41,'Audit Values'!$A:$BX,2,FALSE)),'Preliminary SO66'!C40,VLOOKUP($CW41,'Audit Values'!$A:$BX,74,FALSE)) -> 340 | Q41: =IF(ISNA(VLOOKUP($CW41,'Audit Values'!$A:$BX,2,FALSE)),'Preliminary SO66'!F40,VLOOKUP($CW41,'Audit Values'!$A$2:$BX$805,4,FALSE)) -> 0 | R41: 340 | S41: =IF('Military Provision'!J41="YES", MAX('2023 Legal Max'!O41,'2023 Legal Max'!K41,AVERAGE('2023 Legal Max'!G41,'2023 Legal Max'!K41,'2023 Legal Max'!O41)), MAX(O41, K41)) -> 360.5 | T41: =IF(ISNA(VLOOKUP($CW41,'Audit Values'!$A:$BV,2,FALSE)),'Preliminary SO66'!AL40,VLOOKUP($CW41,'Audit Values'!$A:$BV,59,FALSE)) -> 4 | U41: 364.5 | V41: 168.5 | W41: =IF(ISNA(VLOOKUP($CW41,'Audit Values'!$A:$BX,2,FALSE)),'Preliminary SO66'!AM40,VLOOKUP($CW41,'Audit Values'!$A:$BX,63,FALSE)) -> 26.4 | X41: =(W41/6)*'Weighting Factors'!$O$7 -> 1.7 | Y41: =IF(ISNA(VLOOKUP($CW41,'Audit Values'!$A:$BX,2,FALSE)),'Preliminary SO66'!AN40,VLOOKUP($CW41,'Audit Values'!$A:$BX,62,FALSE)) -> 14 | Z41: =Y41*'Weighting Factors'!$O$8 -> 2.6 | AA41: 2.6 | AB41: =IF(ISNA(VLOOKUP($CW41,'Audit Values'!$A:$BX,2,FALSE)),'Preliminary SO66'!AO40,VLOOKUP($CW41,'Audit Values'!$A:$BX,61,FALSE)) -> 72.7 | AC41: =AB41/6*'Weighting Factors'!$O$6 -> 6.1 | AD41: =IF(ISNA(VLOOKUP($CW41,'Audit Values'!$A:$BV,2,FALSE)),'Preliminary SO66'!AS40,VLOOKUP($CW41,'Audit Values'!$A:$BV,64,FALSE)) -> 352 | AE41: =IF(ISNA(VLOOKUP($CW41,'Audit Values'!$A:$BV,2,FALSE)),'Preliminary SO66'!AP40,VLOOKUP($CW41,'Audit Values'!$A:$BV,65,FALSE)) -> 150 | AF41: =IF(A41=207, AE41,(AE41))*'Weighting Factors'!$O$9 -> 72.6 | AG41: 8 | AH41: =IF(ISNA(VLOOKUP($CW41,'Audit Values'!$A:$BX,2,FALSE)),'Preliminary SO66'!AG40,VLOOKUP($CW41,'Audit Values'!$A:$BX,71,FALSE)) -> 8.3 | AI41: 8.3 | AJ41: =IF(ISNA(VLOOKUP($CW41,'Audit Values'!$A:$BV,2,FALSE)),'Preliminary SO66'!AR40,VLOOKUP($CW41,'Audit Values'!$A:$BV,66,FALSE)) -> 45 | AK41: 75918 | AL41: =AK41/'Weighting Factors'!$O$5 -> 15.7 | AM41: =CJ41/'Weighting Factors'!$O$5 -> 0 | AN41: =CN41/'Weighting Factors'!$O$5 -> 0 | AO41: 275544 | AP41: =AO41/'Weighting Factors'!$O$5 -> 56.9 | AQ41: =IF(ISNA(VLOOKUP($CW41,'Audit Values'!$A:$BV,2,FALSE)),'Preliminary SO66'!X40,VLOOKUP($CW41,'Audit Values'!$A:$BV,48,FALSE)) -> 0 | AR41: 695.2 | AS41: 638.3 | AT41: =IF(ISNA(VLOOKUP($CW41,'Audit Values'!$A$2:$BV$786,2,FALSE)),'Preliminary SO66'!AA40,VLOOKUP($CW41,'Audit Values'!$A$2:$BV$786,41,FALSE)) -> 0 | AU41: =IF(ISNA(VLOOKUP($CW41,'Audit Values'!$A$2:$BV$786,2,FALSE)),'Preliminary SO66'!AB40,VLOOKUP($CW41,'Audit Values'!$A$2:$BV$786,42,FALSE)) -> 0 | AV41: 0 | AW41: 0 | AX41: =SUM(AT41*'Weighting Factors'!$R$10)+('2023 Legal Max'!AU41*'Weighting Factors'!$R$11)+('2023 Legal Max'!AV41*'Weighting Factors'!$R$12)+('2023 Legal Max'!AW41*'Weighting Factors'!$R$12) -> 0 | AY41: =IF(ISNA(VLOOKUP($CW41,'Audit Values'!$A$2:$BV$805,2,FALSE)),"",IF(AND('Weighting Factors'!G41>0,VLOOKUP($CW41,'Audit Values'!$A$2:$BV$805,51,FALSE)<'Weighting Factors'!G41),'Weighting Factors'!G41,VLOOKUP($CW41,'Audit Values'!$A$2:$BV$805,51,FALSE))) -> 21 | AZ41: =IF(ISNA(VLOOKUP($CW41,'Audit Values'!$A:$BW,2,FALSE)),"",VLOOKUP($CW41,'Audit Values'!$A:$BW,52,FALSE)) -> A | BA41: =IF('Weighting Factors'!F41="","",IF('Weighting Factors'!H41="Pending","PX","R")) -> R | BB41: =SUM((U41+V41+AA41+AC41+AF41+AI41+AL41+AM41+AQ41+AN41)*'Weighting Factors'!$O$5)+'2023 Legal Max'!AX41 -> 3093202 | BC41: =SUM((AR41+AN41)*'Weighting Factors'!$O$5)+AX41 -> 3368939 | BD41: =IF('Weighting Factors'!F41>0,'Weighting Factors'!F41,'Preliminary SO66'!AV40) -> 3431453 | BE41: 3368939 | BF41: ='Weighting Factors'!E41 -> 0 | BG41: =Transportation!G41 -> 0 | BH41: =IF(ISNA(VLOOKUP($CW41,'Audit Values'!$A$2:$BU$380,2,FALSE)), 0, VLOOKUP($CW41,'Audit Values'!$A$2:$BU$380,73,FALSE)) -> 0 | BI41: 0 | BJ41: 3368939 | BK41: =SUM((U41+V41+AA41+AC41+AF41+AI41+AL41+AM41+AN41)*'Weighting Factors'!O$12)+(MAX(AO41,'Weighting Factors'!B41)) -> 3528924 | BL41: ='LOB%'!F39 -> 0.33 | BM41: 1164545 | BN41: 1155143 | BO41: 1155143 | BP41: 0.3273 | BQ41: 0 | BR41: FALSE | BS41: 0 | BT41: 0 | BU41: 0 | BV41: TRUE | BW41: 79.8188 | BX41: 0.462272 | BY41: 168.5 | BZ41: 0 | CA41: 440 | CB41: 0.102 | CC41: =IF(CB41<0.06,1,IF(CB41>=18.29,52,MATCH(CB41-0.001,'Weighting Factors'!$W$5:$W$156)+1)) -> 6 | CD41: =VLOOKUP(CC41, 'Weighting Factors'!$U$5:$X$56,4) -> 1450 | CE41: =('Weighting Factors'!$O$5/'Weighting Factors'!$O$14) -> 1.1635 | CF41: 65250 | CG41: =CF41*'Weighting Factors'!$Q$7 -> 65250 | CH41: 75918 | CI41: =AK41/'Weighting Factors'!$O$5 -> 15.7 | CJ41: 0 | CK41: 0 | CL41: 0 | CM41: =SUM((AR41*'Weighting Factors'!$O$5)+'2023 Legal Max'!AX41)*CL41 -> 0 | CN41: 0 | CO41: 0.4261 | CP41: 0 | CQ41: 8 | CR41: 695.2 | CS41: ='Required Transfers'!L41 -> 121290 | CT41: ='Required Transfers'!O41 -> 4390 | CU41: ='Required Transfers'!H41 -> 392041 | CV41: 344 | CW41: D0226
A42: 227 | B42: Hodgeman | C42: Hodgeman County Schools | D42: 282 | F42: 0 | G42: 282 | H42: 293.5 | J42: 0 | K42: 293.5 | L42: 287 | M42: 0 | N42: 0 | O42: 287 | P42: =IF(ISNA(VLOOKUP($CW42,'Audit Values'!$A:$BX,2,FALSE)),'Preliminary SO66'!C41,VLOOKUP($CW42,'Audit Values'!$A:$BX,74,FALSE)) -> 284 | Q42: =IF(ISNA(VLOOKUP($CW42,'Audit Values'!$A:$BX,2,FALSE)),'Preliminary SO66'!F41,VLOOKUP($CW42,'Audit Values'!$A$2:$BX$805,4,FALSE)) -> 0 | R42: 284 | S42: =IF('Military Provision'!J42="YES", MAX('2023 Legal Max'!O42,'2023 Legal Max'!K42,AVERAGE('2023 Legal Max'!G42,'2023 Legal Max'!K42,'2023 Legal Max'!O42)), MAX(O42, K42)) -> 293.5 | T42: =IF(ISNA(VLOOKUP($CW42,'Audit Values'!$A:$BV,2,FALSE)),'Preliminary SO66'!AL41,VLOOKUP($CW42,'Audit Values'!$A:$BV,59,FALSE)) -> 0 | U42: 293.5 | V42: 147.2 | W42: =IF(ISNA(VLOOKUP($CW42,'Audit Values'!$A:$BX,2,FALSE)),'Preliminary SO66'!AM41,VLOOKUP($CW42,'Audit Values'!$A:$BX,63,FALSE)) -> 7.3 | X42: =(W42/6)*'Weighting Factors'!$O$7 -> 0.5 | Y42: =IF(ISNA(VLOOKUP($CW42,'Audit Values'!$A:$BX,2,FALSE)),'Preliminary SO66'!AN41,VLOOKUP($CW42,'Audit Values'!$A:$BX,62,FALSE)) -> 8 | Z42: =Y42*'Weighting Factors'!$O$8 -> 1.5 | AA42: 1.5 | AB42: =IF(ISNA(VLOOKUP($CW42,'Audit Values'!$A:$BX,2,FALSE)),'Preliminary SO66'!AO41,VLOOKUP($CW42,'Audit Values'!$A:$BX,61,FALSE)) -> 38.1 | AC42: =AB42/6*'Weighting Factors'!$O$6 -> 3.2 | AD42: =IF(ISNA(VLOOKUP($CW42,'Audit Values'!$A:$BV,2,FALSE)),'Preliminary SO66'!AS41,VLOOKUP($CW42,'Audit Values'!$A:$BV,64,FALSE)) -> 288 | AE42: =IF(ISNA(VLOOKUP($CW42,'Audit Values'!$A:$BV,2,FALSE)),'Preliminary SO66'!AP41,VLOOKUP($CW42,'Audit Values'!$A:$BV,65,FALSE)) -> 94 | AF42: =IF(A42=207, AE42,(AE42))*'Weighting Factors'!$O$9 -> 45.5 | AG42: 0 | AH42: =IF(ISNA(VLOOKUP($CW42,'Audit Values'!$A:$BX,2,FALSE)),'Preliminary SO66'!AG41,VLOOKUP($CW42,'Audit Values'!$A:$BX,71,FALSE)) -> 0.5 | AI42: 0.5 | AJ42: =IF(ISNA(VLOOKUP($CW42,'Audit Values'!$A:$BV,2,FALSE)),'Preliminary SO66'!AR41,VLOOKUP($CW42,'Audit Values'!$A:$BV,66,FALSE)) -> 137.5 | AK42: 211175 | AL42: =AK42/'Weighting Factors'!$O$5 -> 43.6 | AM42: =CJ42/'Weighting Factors'!$O$5 -> 0 | AN42: =CN42/'Weighting Factors'!$O$5 -> 0 | AO42: 224017 | AP42: =AO42/'Weighting Factors'!$O$5 -> 46.2 | AQ42: =IF(ISNA(VLOOKUP($CW42,'Audit Values'!$A:$BV,2,FALSE)),'Preliminary SO66'!X41,VLOOKUP($CW42,'Audit Values'!$A:$BV,48,FALSE)) -> 0 | AR42: 581.2 | AS42: 535 | AT42: =IF(ISNA(VLOOKUP($CW42,'Audit Values'!$A$2:$BV$786,2,FALSE)),'Preliminary SO66'!AA41,VLOOKUP($CW42,'Audit Values'!$A$2:$BV$786,41,FALSE)) -> 0 | AU42: =IF(ISNA(VLOOKUP($CW42,'Audit Values'!$A$2:$BV$786,2,FALSE)),'Preliminary SO66'!AB41,VLOOKUP($CW42,'Audit Values'!$A$2:$BV$786,42,FALSE)) -> 0 | AV42: 0 | AW42: 0 | AX42: =SUM(AT42*'Weighting Factors'!$R$10)+('2023 Legal Max'!AU42*'Weighting Factors'!$R$11)+('2023 Legal Max'!AV42*'Weighting Factors'!$R$12)+('2023 Legal Max'!AW42*'Weighting Factors'!$R$12) -> 0 | AY42: =IF(ISNA(VLOOKUP($CW42,'Audit Values'!$A$2:$BV$805,2,FALSE)),"",IF(AND('Weighting Factors'!G42>0,VLOOKUP($CW42,'Audit Values'!$A$2:$BV$805,51,FALSE)<'Weighting Factors'!G42),'Weighting Factors'!G42,VLOOKUP($CW42,'Audit Values'!$A$2:$BV$805,51,FALSE))) -> 6 | AZ42: =IF(ISNA(VLOOKUP($CW42,'Audit Values'!$A:$BW,2,FALSE)),"",VLOOKUP($CW42,'Audit Values'!$A:$BW,52,FALSE)) -> A | BA42: =IF('Weighting Factors'!F42="","",IF('Weighting Factors'!H42="Pending","PX","R")) ->  | BB42: =SUM((U42+V42+AA42+AC42+AF42+AI42+AL42+AM42+AQ42+AN42)*'Weighting Factors'!$O$5)+'2023 Legal Max'!AX42 -> 2592610 | BC42: =SUM((AR42+AN42)*'Weighting Factors'!$O$5)+AX42 -> 2816495 | BD42: =IF('Weighting Factors'!F42>0,'Weighting Factors'!F42,'Preliminary SO66'!AV41) -> 2840241 | BE42: 2816495 | BF42: ='Weighting Factors'!E42 -> 0 | BG42: =Transportation!G42 -> 0 | BH42: =IF(ISNA(VLOOKUP($CW42,'Audit Values'!$A$2:$BU$380,2,FALSE)), 0, VLOOKUP($CW42,'Audit Values'!$A$2:$BU$380,73,FALSE)) -> 0 | BI42: 0 | BJ42: 2816495 | BK42: =SUM((U42+V42+AA42+AC42+AF42+AI42+AL42+AM42+AN42)*'Weighting Factors'!O$12)+(MAX(AO42,'Weighting Factors'!B42)) -> 2948572 | BL42: ='LOB%'!F40 -> 0.31 | BM42: 914057 | BN42: 913296 | BO42: 913296 | BP42: 0.3097 | BQ42: 0 | BR42: TRUE | BS42: 1868.243 | BT42: 0.501416 | BU42: 147.2 | BV42: FALSE | BW42: 0 | BX42: 0 | BY42: 0 | BZ42: 0 | CA42: 807.5 | CB42: 0.17 | CC42: =IF(CB42<0.06,1,IF(CB42>=18.29,52,MATCH(CB42-0.001,'Weighting Factors'!$W$5:$W$156)+1)) -> 13 | CD42: =VLOOKUP(CC42, 'Weighting Factors'!$U$5:$X$56,4) -> 1320 | CE42: =('Weighting Factors'!$O$5/'Weighting Factors'!$O$14) -> 1.1635 | CF42: 181500 | CG42: =CF42*'Weighting Factors'!$Q$7 -> 181500 | CH42: 211175 | CI42: =AK42/'Weighting Factors'!$O$5 -> 43.6 | CJ42: 0 | CK42: 0 | CL42: 0 | CM42: =SUM((AR42*'Weighting Factors'!$O$5)+'2023 Legal Max'!AX42)*CL42 -> 0 | CN42: 0 | CO42: 0.3264 | CP42: 0 | CQ42: 0 | CR42: 581.2 | CS42: ='Required Transfers'!L42 -> 71511 | CT42: ='Required Transfers'!O42 -> 2375 | CU42: ='Required Transfers'!H42 -> 222916 | CV42: 284 | CW42: D0227
A43: 229 | B43: Johnson | C43: Blue Valley | D43: 22347.4 | F43: 0 | G43: 22347.4 | H43: 21753.2 | J43: 0 | K43: 21753.2 | L43: 21823.2 | M43: 0 | N43: 0 | O43: 21823.2 | P43: =IF(ISNA(VLOOKUP($CW43,'Audit Values'!$A:$BX,2,FALSE)),'Preliminary SO66'!C42,VLOOKUP($CW43,'Audit Values'!$A:$BX,74,FALSE)) -> 21810.2 | Q43: =IF(ISNA(VLOOKUP($CW43,'Audit Values'!$A:$BX,2,FALSE)),'Preliminary SO66'!F42,VLOOKUP($CW43,'Audit Values'!$A$2:$BX$805,4,FALSE)) -> 0 | R43: 21810.2 | S43: =IF('Military Provision'!J43="YES", MAX('2023 Legal Max'!O43,'2023 Legal Max'!K43,AVERAGE('2023 Legal Max'!G43,'2023 Legal Max'!K43,'2023 Legal Max'!O43)), MAX(O43, K43)) -> 21823.2 | T43: =IF(ISNA(VLOOKUP($CW43,'Audit Values'!$A:$BV,2,FALSE)),'Preliminary SO66'!AL42,VLOOKUP($CW43,'Audit Values'!$A:$BV,59,FALSE)) -> 0 | U43: 21823.2 | V43: 764.7 | W43: =IF(ISNA(VLOOKUP($CW43,'Audit Values'!$A:$BX,2,FALSE)),'Preliminary SO66'!AM42,VLOOKUP($CW43,'Audit Values'!$A:$BX,63,FALSE)) -> 757.2 | X43: =(W43/6)*'Weighting Factors'!$O$7 -> 49.8 | Y43: =IF(ISNA(VLOOKUP($CW43,'Audit Values'!$A:$BX,2,FALSE)),'Preliminary SO66'!AN42,VLOOKUP($CW43,'Audit Values'!$A:$BX,62,FALSE)) -> 535 | Z43: =Y43*'Weighting Factors'!$O$8 -> 99 | AA43: 99 | AB43: =IF(ISNA(VLOOKUP($CW43,'Audit Values'!$A:$BX,2,FALSE)),'Preliminary SO66'!AO42,VLOOKUP($CW43,'Audit Values'!$A:$BX,61,FALSE)) -> 4836.7 | AC43: =AB43/6*'Weighting Factors'!$O$6 -> 403.1 | AD43: =IF(ISNA(VLOOKUP($CW43,'Audit Values'!$A:$BV,2,FALSE)),'Preliminary SO66'!AS42,VLOOKUP($CW43,'Audit Values'!$A:$BV,64,FALSE)) -> 22111 | AE43: =IF(ISNA(VLOOKUP($CW43,'Audit Values'!$A:$BV,2,FALSE)),'Preliminary SO66'!AP42,VLOOKUP($CW43,'Audit Values'!$A:$BV,65,FALSE)) -> 1866 | AF43: =IF(A43=207, AE43,(AE43))*'Weighting Factors'!$O$9 -> 903.1 | AG43: 0 | AH43: =IF(ISNA(VLOOKUP($CW43,'Audit Values'!$A:$BX,2,FALSE)),'Preliminary SO66'!AG42,VLOOKUP($CW43,'Audit Values'!$A:$BX,71,FALSE)) -> 0 | AI43: 0 | AJ43: =IF(ISNA(VLOOKUP($CW43,'Audit Values'!$A:$BV,2,FALSE)),'Preliminary SO66'!AR42,VLOOKUP($CW43,'Audit Values'!$A:$BV,66,FALSE)) -> 4684 | AK43: 2997409 | AL43: =AK43/'Weighting Factors'!$O$5 -> 618.5 | AM43: =CJ43/'Weighting Factors'!$O$5 -> 320.5 | AN43: =CN43/'Weighting Factors'!$O$5 -> 1510.8 | AO43: 25362755 | AP43: =AO43/'Weighting Factors'!$O$5 -> 5233.8 | AQ43: =IF(ISNA(VLOOKUP($CW43,'Audit Values'!$A:$BV,2,FALSE)),'Preliminary SO66'!X42,VLOOKUP($CW43,'Audit Values'!$A:$BV,48,FALSE)) -> 0 | AR43: 30165.9 | AS43: 26442.9 | AT43: =IF(ISNA(VLOOKUP($CW43,'Audit Values'!$A$2:$BV$786,2,FALSE)),'Preliminary SO66'!AA42,VLOOKUP($CW43,'Audit Values'!$A$2:$BV$786,41,FALSE)) -> 8 | AU43: =IF(ISNA(VLOOKUP($CW43,'Audit Values'!$A$2:$BV$786,2,FALSE)),'Preliminary SO66'!AB42,VLOOKUP($CW43,'Audit Values'!$A$2:$BV$786,42,FALSE)) -> 70.1 | AV43: 0 | AW43: 0 | AX43: =SUM(AT43*'Weighting Factors'!$R$10)+('2023 Legal Max'!AU43*'Weighting Factors'!$R$11)+('2023 Legal Max'!AV43*'Weighting Factors'!$R$12)+('2023 Legal Max'!AW43*'Weighting Factors'!$R$12) -> 241080 | AY43: =IF(ISNA(VLOOKUP($CW43,'Audit Values'!$A$2:$BV$805,2,FALSE)),"",IF(AND('Weighting Factors'!G43>0,VLOOKUP($CW43,'Audit Values'!$A$2:$BV$805,51,FALSE)<'Weighting Factors'!G43),'Weighting Factors'!G43,VLOOKUP($CW43,'Audit Values'!$A$2:$BV$805,51,FALSE))) -> 17 | AZ43: =IF(ISNA(VLOOKUP($CW43,'Audit Values'!$A:$BW,2,FALSE)),"",VLOOKUP($CW43,'Audit Values'!$A:$BW,52,FALSE)) -> A | BA43: =IF('Weighting Factors'!F43="","",IF('Weighting Factors'!H43="Pending","PX","R")) ->  | BB43: =SUM((U43+V43+AA43+AC43+AF43+AI43+AL43+AM43+AQ43+AN43)*'Weighting Factors'!$O$5)+'2023 Legal Max'!AX43 -> 128383373 | BC43: =SUM((AR43+AN43)*'Weighting Factors'!$O$5)+AX43 -> 153746368 | BD43: =IF('Weighting Factors'!F43>0,'Weighting Factors'!F43,'Preliminary SO66'!AV42) -> 156564321 | BE43: 153746368 | BF43: ='Weighting Factors'!E43 -> 0 | BG43: =Transportation!G43 -> -386 | BH43: =IF(ISNA(VLOOKUP($CW43,'Audit Values'!$A$2:$BU$380,2,FALSE)), 0, VLOOKUP($CW43,'Audit Values'!$A$2:$BU$380,73,FALSE)) -> 0 | BI43: -386 | BJ43: 153745982 | BK43: =SUM((U43+V43+AA43+AC43+AF43+AI43+AL43+AM43+AN43)*'Weighting Factors'!O$12)+(MAX(AO43,'Weighting Factors'!B43)) -> 155250280 | BL43: ='LOB%'!F41 -> 0.33 | BM43: 51232592 | BN43: 52011824 | BO43: 51232592 | BP43: 0.33 | BQ43: 0 | BR43: FALSE | BS43: 0 | BT43: 0 | BU43: 0 | BV43: FALSE | BW43: 0 | BX43: 0 | BY43: 0 | BZ43: 764.7 | CA43: 91 | CB43: 51.473 | CC43: =IF(CB43<0.06,1,IF(CB43>=18.29,52,MATCH(CB43-0.001,'Weighting Factors'!$W$5:$W$156)+1)) -> 52 | CD43: =VLOOKUP(CC43, 'Weighting Factors'!$U$5:$X$56,4) -> 550 | CE43: =('Weighting Factors'!$O$5/'Weighting Factors'!$O$14) -> 1.1635 | CF43: 2576200 | CG43: =CF43*'Weighting Factors'!$Q$7 -> 2576200 | CH43: 2997409 | CI43: =AK43/'Weighting Factors'!$O$5 -> 618.5 | CJ43: 1553271 | CK43: 7455438 | CL43: 0.05 | CM43: =SUM((AR43*'Weighting Factors'!$O$5)+'2023 Legal Max'!AX43)*CL43 -> 7321252 | CN43: 7321252 | CO43: 0.0844 | CP43: 0 | CQ43: 0 | CR43: 31676.7 | CS43: ='Required Transfers'!L43 -> 1460129 | CT43: ='Required Transfers'!O43 -> 158821 | CU43: ='Required Transfers'!H43 -> 4376423 | CV43: 21888.3 | CW43: D0229
A44: 230 | B44: Johnson | C44: Spring Hill | D44: 3236 | F44: 0 | G44: 3236 | H44: 3307.5 | I44: 2 | J44: 0 | K44: 3305.5 | L44: 3572.7 | M44: 0 | N44: 0 | O44: 3572.7 | P44: =IF(ISNA(VLOOKUP($CW44,'Audit Values'!$A:$BX,2,FALSE)),'Preliminary SO66'!C43,VLOOKUP($CW44,'Audit Values'!$A:$BX,74,FALSE)) -> 3654 | Q44: =IF(ISNA(VLOOKUP($CW44,'Audit Values'!$A:$BX,2,FALSE)),'Preliminary SO66'!F43,VLOOKUP($CW44,'Audit Values'!$A$2:$BX$805,4,FALSE)) -> 0 | R44: 3654 | S44: =IF('Military Provision'!J44="YES", MAX('2023 Legal Max'!O44,'2023 Legal Max'!K44,AVERAGE('2023 Legal Max'!G44,'2023 Legal Max'!K44,'2023 Legal Max'!O44)), MAX(O44, K44)) -> 3572.7 | T44: =IF(ISNA(VLOOKUP($CW44,'Audit Values'!$A:$BV,2,FALSE)),'Preliminary SO66'!AL43,VLOOKUP($CW44,'Audit Values'!$A:$BV,59,FALSE)) -> 14 | U44: 3586.7 | V44: 125.7 | W44: =IF(ISNA(VLOOKUP($CW44,'Audit Values'!$A:$BX,2,FALSE)),'Preliminary SO66'!AM43,VLOOKUP($CW44,'Audit Values'!$A:$BX,63,FALSE)) -> 44 | X44: =(W44/6)*'Weighting Factors'!$O$7 -> 2.9 | Y44: =IF(ISNA(VLOOKUP($CW44,'Audit Values'!$A:$BX,2,FALSE)),'Preliminary SO66'!AN43,VLOOKUP($CW44,'Audit Values'!$A:$BX,62,FALSE)) -> 45 | Z44: =Y44*'Weighting Factors'!$O$8 -> 8.3 | AA44: 8.3 | AB44: =IF(ISNA(VLOOKUP($CW44,'Audit Values'!$A:$BX,2,FALSE)),'Preliminary SO66'!AO43,VLOOKUP($CW44,'Audit Values'!$A:$BX,61,FALSE)) -> 643.7 | AC44: =AB44/6*'Weighting Factors'!$O$6 -> 53.6 | AD44: =IF(ISNA(VLOOKUP($CW44,'Audit Values'!$A:$BV,2,FALSE)),'Preliminary SO66'!AS43,VLOOKUP($CW44,'Audit Values'!$A:$BV,64,FALSE)) -> 3706 | AE44: =IF(ISNA(VLOOKUP($CW44,'Audit Values'!$A:$BV,2,FALSE)),'Preliminary SO66'!AP43,VLOOKUP($CW44,'Audit Values'!$A:$BV,65,FALSE)) -> 481 | AF44: =IF(A44=207, AE44,(AE44))*'Weighting Factors'!$O$9 -> 232.8 | AG44: 0 | AH44: =IF(ISNA(VLOOKUP($CW44,'Audit Values'!$A:$BX,2,FALSE)),'Preliminary SO66'!AG43,VLOOKUP($CW44,'Audit Values'!$A:$BX,71,FALSE)) -> 0 | AI44: 0 | AJ44: =IF(ISNA(VLOOKUP($CW44,'Audit Values'!$A:$BV,2,FALSE)),'Preliminary SO66'!AR43,VLOOKUP($CW44,'Audit Values'!$A:$BV,66,FALSE)) -> 1397 | AK44: 893975 | AL44: =AK44/'Weighting Factors'!$O$5 -> 184.5 | AM44: =CJ44/'Weighting Factors'!$O$5 -> 908 | AN44: =CN44/'Weighting Factors'!$O$5 -> 0 | AO44: 3671575 | AP44: =AO44/'Weighting Factors'!$O$5 -> 757.7 | AQ44: =IF(ISNA(VLOOKUP($CW44,'Audit Values'!$A:$BV,2,FALSE)),'Preliminary SO66'!X43,VLOOKUP($CW44,'Audit Values'!$A:$BV,48,FALSE)) -> 0 | AR44: 5857.3 | AS44: 5099.6 | AT44: =IF(ISNA(VLOOKUP($CW44,'Audit Values'!$A$2:$BV$786,2,FALSE)),'Preliminary SO66'!AA43,VLOOKUP($CW44,'Audit Values'!$A$2:$BV$786,41,FALSE)) -> 1543 | AU44: =IF(ISNA(VLOOKUP($CW44,'Audit Values'!$A$2:$BV$786,2,FALSE)),'Preliminary SO66'!AB43,VLOOKUP($CW44,'Audit Values'!$A$2:$BV$786,42,FALSE)) -> 7.5 | AV44: 100 | AW44: 0 | AX44: =SUM(AT44*'Weighting Factors'!$R$10)+('2023 Legal Max'!AU44*'Weighting Factors'!$R$11)+('2023 Legal Max'!AV44*'Weighting Factors'!$R$12)+('2023 Legal Max'!AW44*'Weighting Factors'!$R$12) -> 8732700 | AY44: =IF(ISNA(VLOOKUP($CW44,'Audit Values'!$A$2:$BV$805,2,FALSE)),"",IF(AND('Weighting Factors'!G44>0,VLOOKUP($CW44,'Audit Values'!$A$2:$BV$805,51,FALSE)<'Weighting Factors'!G44),'Weighting Factors'!G44,VLOOKUP($CW44,'Audit Values'!$A$2:$BV$805,51,FALSE))) -> 18 | AZ44: =IF(ISNA(VLOOKUP($CW44,'Audit Values'!$A:$BW,2,FALSE)),"",VLOOKUP($CW44,'Audit Values'!$A:$BW,52,FALSE)) -> A | BA44: =IF('Weighting Factors'!F44="","",IF('Weighting Factors'!H44="Pending","PX","R")) ->  | BB44: =SUM((U44+V44+AA44+AC44+AF44+AI44+AL44+AM44+AQ44+AN44)*'Weighting Factors'!$O$5)+'2023 Legal Max'!AX44 -> 33445362 | BC44: =SUM((AR44+AN44)*'Weighting Factors'!$O$5)+AX44 -> 37117176 | BD44: =IF('Weighting Factors'!F44>0,'Weighting Factors'!F44,'Preliminary SO66'!AV43) -> 38827827 | BE44: 37117176 | BF44: ='Weighting Factors'!E44 -> 0 | BG44: =Transportation!G44 -> 0 | BH44: =IF(ISNA(VLOOKUP($CW44,'Audit Values'!$A$2:$BU$380,2,FALSE)), 0, VLOOKUP($CW44,'Audit Values'!$A$2:$BU$380,73,FALSE)) -> -108123 | BI44: -108123 | BJ44: 37009053 | BK44: =SUM((U44+V44+AA44+AC44+AF44+AI44+AL44+AM44+AN44)*'Weighting Factors'!O$12)+(MAX(AO44,'Weighting Factors'!B44)) -> 28720810 | BL44: ='LOB%'!F42 -> 0.33 | BM44: 9477867 | BN44: 9826984 | BO44: 9477867 | BP44: 0.33 | BQ44: 0 | BR44: FALSE | BS44: 0 | BT44: 0 | BU44: 0 | BV44: FALSE | BW44: 0 | BX44: 0 | BY44: 0 | BZ44: 125.7 | CA44: 71 | CB44: 19.676 | CC44: =IF(CB44<0.06,1,IF(CB44>=18.29,52,MATCH(CB44-0.001,'Weighting Factors'!$W$5:$W$156)+1)) -> 52 | CD44: =VLOOKUP(CC44, 'Weighting Factors'!$U$5:$X$56,4) -> 550 | CE44: =('Weighting Factors'!$O$5/'Weighting Factors'!$O$14) -> 1.1635 | CF44: 768350 | CG44: =CF44*'Weighting Factors'!$Q$7 -> 768350 | CH44: 893975 | CI44: =AK44/'Weighting Factors'!$O$5 -> 184.5 | CJ44: 4400000 | CK44: 0 | CL44: 0.05 | CM44: =SUM((AR44*'Weighting Factors'!$O$5)+'2023 Legal Max'!AX44)*CL44 -> 1855859 | CN44: 0 | CO44: 0.1298 | CP44: 0 | CQ44: 0 | CR44: 5857.3 | CS44: ='Required Transfers'!L44 -> 377219 | CT44: ='Required Transfers'!O44 -> 13269 | CU44: ='Required Transfers'!H44 -> 1128149 | CV44: 5235.2 | CW44: D0230
A45: 231 | B45: Johnson | C45: Gardner Edgerton | D45: 5955.7 | F45: 0 | G45: 5955.7 | H45: 5681.6 | J45: 0 | K45: 5681.6 | L45: 5688.7 | M45: 0 | N45: 0 | O45: 5688.7 | P45: =IF(ISNA(VLOOKUP($CW45,'Audit Values'!$A:$BX,2,FALSE)),'Preliminary SO66'!C44,VLOOKUP($CW45,'Audit Values'!$A:$BX,74,FALSE)) -> 5762.7 | Q45: =IF(ISNA(VLOOKUP($CW45,'Audit Values'!$A:$BX,2,FALSE)),'Preliminary SO66'!F44,VLOOKUP($CW45,'Audit Values'!$A$2:$BX$805,4,FALSE)) -> 0 | R45: 5762.7 | S45: =IF('Military Provision'!J45="YES", MAX('2023 Legal Max'!O45,'2023 Legal Max'!K45,AVERAGE('2023 Legal Max'!G45,'2023 Legal Max'!K45,'2023 Legal Max'!O45)), MAX(O45, K45)) -> 5688.7 | T45: =IF(ISNA(VLOOKUP($CW45,'Audit Values'!$A:$BV,2,FALSE)),'Preliminary SO66'!AL44,VLOOKUP($CW45,'Audit Values'!$A:$BV,59,FALSE)) -> 9 | U45: 5697.7 | V45: 199.6 | W45: =IF(ISNA(VLOOKUP($CW45,'Audit Values'!$A:$BX,2,FALSE)),'Preliminary SO66'!AM44,VLOOKUP($CW45,'Audit Values'!$A:$BX,63,FALSE)) -> 345.8 | X45: =(W45/6)*'Weighting Factors'!$O$7 -> 22.8 | Y45: =IF(ISNA(VLOOKUP($CW45,'Audit Values'!$A:$BX,2,FALSE)),'Preliminary SO66'!AN44,VLOOKUP($CW45,'Audit Values'!$A:$BX,62,FALSE)) -> 138 | Z45: =Y45*'Weighting Factors'!$O$8 -> 25.5 | AA45: 25.5 | AB45: =IF(ISNA(VLOOKUP($CW45,'Audit Values'!$A:$BX,2,FALSE)),'Preliminary SO66'!AO44,VLOOKUP($CW45,'Audit Values'!$A:$BX,61,FALSE)) -> 1363.2 | AC45: =AB45/6*'Weighting Factors'!$O$6 -> 113.6 | AD45: =IF(ISNA(VLOOKUP($CW45,'Audit Values'!$A:$BV,2,FALSE)),'Preliminary SO66'!AS44,VLOOKUP($CW45,'Audit Values'!$A:$BV,64,FALSE)) -> 5848 | AE45: =IF(ISNA(VLOOKUP($CW45,'Audit Values'!$A:$BV,2,FALSE)),'Preliminary SO66'!AP44,VLOOKUP($CW45,'Audit Values'!$A:$BV,65,FALSE)) -> 1725 | AF45: =IF(A45=207, AE45,(AE45))*'Weighting Factors'!$O$9 -> 834.9 | AG45: 0 | AH45: =IF(ISNA(VLOOKUP($CW45,'Audit Values'!$A:$BX,2,FALSE)),'Preliminary SO66'!AG44,VLOOKUP($CW45,'Audit Values'!$A:$BX,71,FALSE)) -> 20.2 | AI45: 20.2 | AJ45: =IF(ISNA(VLOOKUP($CW45,'Audit Values'!$A:$BV,2,FALSE)),'Preliminary SO66'!AR44,VLOOKUP($CW45,'Audit Values'!$A:$BV,66,FALSE)) -> 1095 | AK45: 777160 | AL45: =AK45/'Weighting Factors'!$O$5 -> 160.4 | AM45: =CJ45/'Weighting Factors'!$O$5 -> 128 | AN45: =CN45/'Weighting Factors'!$O$5 -> 149.3 | AO45: 8757544 | AP45: =AO45/'Weighting Factors'!$O$5 -> 1807.2 | AQ45: =IF(ISNA(VLOOKUP($CW45,'Audit Values'!$A:$BV,2,FALSE)),'Preliminary SO66'!X44,VLOOKUP($CW45,'Audit Values'!$A:$BV,48,FALSE)) -> 1 | AR45: 8988.1 | AS45: 7330.2 | AT45: =IF(ISNA(VLOOKUP($CW45,'Audit Values'!$A$2:$BV$786,2,FALSE)),'Preliminary SO66'!AA44,VLOOKUP($CW45,'Audit Values'!$A$2:$BV$786,41,FALSE)) -> 0 | AU45: =IF(ISNA(VLOOKUP($CW45,'Audit Values'!$A$2:$BV$786,2,FALSE)),'Preliminary SO66'!AB44,VLOOKUP($CW45,'Audit Values'!$A$2:$BV$786,42,FALSE)) -> 0 | AV45: 0 | AW45: 0 | AX45: =SUM(AT45*'Weighting Factors'!$R$10)+('2023 Legal Max'!AU45*'Weighting Factors'!$R$11)+('2023 Legal Max'!AV45*'Weighting Factors'!$R$12)+('2023 Legal Max'!AW45*'Weighting Factors'!$R$12) -> 0 | AY45: =IF(ISNA(VLOOKUP($CW45,'Audit Values'!$A$2:$BV$805,2,FALSE)),"",IF(AND('Weighting Factors'!G45>0,VLOOKUP($CW45,'Audit Values'!$A$2:$BV$805,51,FALSE)<'Weighting Factors'!G45),'Weighting Factors'!G45,VLOOKUP($CW45,'Audit Values'!$A$2:$BV$805,51,FALSE))) -> 17 | AZ45: =IF(ISNA(VLOOKUP($CW45,'Audit Values'!$A:$BW,2,FALSE)),"",VLOOKUP($CW45,'Audit Values'!$A:$BW,52,FALSE)) -> A | BA45: =IF('Weighting Factors'!F45="","",IF('Weighting Factors'!H45="Pending","PX","R")) ->  | BB45: =SUM((U45+V45+AA45+AC45+AF45+AI45+AL45+AM45+AQ45+AN45)*'Weighting Factors'!$O$5)+'2023 Legal Max'!AX45 -> 35522149 | BC45: =SUM((AR45+AN45)*'Weighting Factors'!$O$5)+AX45 -> 44279840 | BD45: =IF('Weighting Factors'!F45>0,'Weighting Factors'!F45,'Preliminary SO66'!AV44) -> 44574962 | BE45: 44279840 | BF45: ='Weighting Factors'!E45 -> 0 | BG45: =Transportation!G45 -> 0 | BH45: =IF(ISNA(VLOOKUP($CW45,'Audit Values'!$A$2:$BU$380,2,FALSE)), 0, VLOOKUP($CW45,'Audit Values'!$A$2:$BU$380,73,FALSE)) -> 0 | BI45: 0 | BJ45: 44279840 | BK45: =SUM((U45+V45+AA45+AC45+AF45+AI45+AL45+AM45+AN45)*'Weighting Factors'!O$12)+(MAX(AO45,'Weighting Factors'!B45)) -> 44758574 | BL45: ='LOB%'!F43 -> 0.33 | BM45: 14770329 | BN45: 14870478 | BO45: 14770329 | BP45: 0.33 | BQ45: 0 | BR45: FALSE | BS45: 0 | BT45: 0 | BU45: 0 | BV45: FALSE | BW45: 0 | BX45: 0 | BY45: 0 | BZ45: 199.6 | CA45: 103 | CB45: 10.631 | CC45: =IF(CB45<0.06,1,IF(CB45>=18.29,52,MATCH(CB45-0.001,'Weighting Factors'!$W$5:$W$156)+1)) -> 49 | CD45: =VLOOKUP(CC45, 'Weighting Factors'!$U$5:$X$56,4) -> 610 | CE45: =('Weighting Factors'!$O$5/'Weighting Factors'!$O$14) -> 1.1635 | CF45: 667950 | CG45: =CF45*'Weighting Factors'!$Q$7 -> 667950 | CH45: 777160 | CI45: =AK45/'Weighting Factors'!$O$5 -> 160.4 | CJ45: 620294 | CK45: 723646 | CL45: 0.0177 | CM45: =SUM((AR45*'Weighting Factors'!$O$5)+'2023 Legal Max'!AX45)*CL45 -> 770947 | CN45: 723646 | CO45: 0.295 | CP45: 0 | CQ45: 0 | CR45: 9137.4 | CS45: ='Required Transfers'!L45 -> 1351485 | CT45: ='Required Transfers'!O45 -> 41357 | CU45: ='Required Transfers'!H45 -> 4143815 | CV45: 5771.7 | CW45: D0231
A46: 232 | B46: Johnson | C46: De Soto | D46: 7307.1 | F46: 0 | G46: 7307.1 | H46: 6914.4 | J46: 0 | K46: 6914.4 | L46: 7236.8 | M46: 0 | N46: 0 | O46: 7236.8 | P46: =IF(ISNA(VLOOKUP($CW46,'Audit Values'!$A:$BX,2,FALSE)),'Preliminary SO66'!C45,VLOOKUP($CW46,'Audit Values'!$A:$BX,74,FALSE)) -> 7257.6 | Q46: =IF(ISNA(VLOOKUP($CW46,'Audit Values'!$A:$BX,2,FALSE)),'Preliminary SO66'!F45,VLOOKUP($CW46,'Audit Values'!$A$2:$BX$805,4,FALSE)) -> 0 | R46: 7257.6 | S46: =IF('Military Provision'!J46="YES", MAX('2023 Legal Max'!O46,'2023 Legal Max'!K46,AVERAGE('2023 Legal Max'!G46,'2023 Legal Max'!K46,'2023 Legal Max'!O46)), MAX(O46, K46)) -> 7236.8 | T46: =IF(ISNA(VLOOKUP($CW46,'Audit Values'!$A:$BV,2,FALSE)),'Preliminary SO66'!AL45,VLOOKUP($CW46,'Audit Values'!$A:$BV,59,FALSE)) -> 28.5 | U46: 7265.3 | V46: 254.6 | W46: =IF(ISNA(VLOOKUP($CW46,'Audit Values'!$A:$BX,2,FALSE)),'Preliminary SO66'!AM45,VLOOKUP($CW46,'Audit Values'!$A:$BX,63,FALSE)) -> 949.3 | X46: =(W46/6)*'Weighting Factors'!$O$7 -> 62.5 | Y46: =IF(ISNA(VLOOKUP($CW46,'Audit Values'!$A:$BX,2,FALSE)),'Preliminary SO66'!AN45,VLOOKUP($CW46,'Audit Values'!$A:$BX,62,FALSE)) -> 229 | Z46: =Y46*'Weighting Factors'!$O$8 -> 42.4 | AA46: 62.5 | AB46: =IF(ISNA(VLOOKUP($CW46,'Audit Values'!$A:$BX,2,FALSE)),'Preliminary SO66'!AO45,VLOOKUP($CW46,'Audit Values'!$A:$BX,61,FALSE)) -> 2168.9 | AC46: =AB46/6*'Weighting Factors'!$O$6 -> 180.7 | AD46: =IF(ISNA(VLOOKUP($CW46,'Audit Values'!$A:$BV,2,FALSE)),'Preliminary SO66'!AS45,VLOOKUP($CW46,'Audit Values'!$A:$BV,64,FALSE)) -> 7369 | AE46: =IF(ISNA(VLOOKUP($CW46,'Audit Values'!$A:$BV,2,FALSE)),'Preliminary SO66'!AP45,VLOOKUP($CW46,'Audit Values'!$A:$BV,65,FALSE)) -> 831 | AF46: =IF(A46=207, AE46,(AE46))*'Weighting Factors'!$O$9 -> 402.2 | AG46: 0 | AH46: =IF(ISNA(VLOOKUP($CW46,'Audit Values'!$A:$BX,2,FALSE)),'Preliminary SO66'!AG45,VLOOKUP($CW46,'Audit Values'!$A:$BX,71,FALSE)) -> 3.2 | AI46: 3.2 | AJ46: =IF(ISNA(VLOOKUP($CW46,'Audit Values'!$A:$BV,2,FALSE)),'Preliminary SO66'!AR45,VLOOKUP($CW46,'Audit Values'!$A:$BV,66,FALSE)) -> 1850 | AK46: 1183861 | AL46: =AK46/'Weighting Factors'!$O$5 -> 244.3 | AM46: =CJ46/'Weighting Factors'!$O$5 -> 0 | AN46: =CN46/'Weighting Factors'!$O$5 -> 490.4 | AO46: 6720555 | AP46: =AO46/'Weighting Factors'!$O$5 -> 1386.8 | AQ46: =IF(ISNA(VLOOKUP($CW46,'Audit Values'!$A:$BV,2,FALSE)),'Preliminary SO66'!X45,VLOOKUP($CW46,'Audit Values'!$A:$BV,48,FALSE)) -> 0 | AR46: 9799.6 | AS46: 8903.2 | AT46: =IF(ISNA(VLOOKUP($CW46,'Audit Values'!$A$2:$BV$786,2,FALSE)),'Preliminary SO66'!AA45,VLOOKUP($CW46,'Audit Values'!$A$2:$BV$786,41,FALSE)) -> 6 | AU46: =IF(ISNA(VLOOKUP($CW46,'Audit Values'!$A$2:$BV$786,2,FALSE)),'Preliminary SO66'!AB45,VLOOKUP($CW46,'Audit Values'!$A$2:$BV$786,42,FALSE)) -> 4.2 | AV46: 0 | AW46: 0 | AX46: =SUM(AT46*'Weighting Factors'!$R$10)+('2023 Legal Max'!AU46*'Weighting Factors'!$R$11)+('2023 Legal Max'!AV46*'Weighting Factors'!$R$12)+('2023 Legal Max'!AW46*'Weighting Factors'!$R$12) -> 45360 | AY46: =IF(ISNA(VLOOKUP($CW46,'Audit Values'!$A$2:$BV$805,2,FALSE)),"",IF(AND('Weighting Factors'!G46>0,VLOOKUP($CW46,'Audit Values'!$A$2:$BV$805,51,FALSE)<'Weighting Factors'!G46),'Weighting Factors'!G46,VLOOKUP($CW46,'Audit Values'!$A$2:$BV$805,51,FALSE))) -> 17 | AZ46: =IF(ISNA(VLOOKUP($CW46,'Audit Values'!$A:$BW,2,FALSE)),"",VLOOKUP($CW46,'Audit Values'!$A:$BW,52,FALSE)) -> A | BA46: =IF('Weighting Factors'!F46="","",IF('Weighting Factors'!H46="Pending","PX","R")) ->  | BB46: =SUM((U46+V46+AA46+AC46+AF46+AI46+AL46+AM46+AQ46+AN46)*'Weighting Factors'!$O$5)+'2023 Legal Max'!AX46 -> 43190267 | BC46: =SUM((AR46+AN46)*'Weighting Factors'!$O$5)+AX46 -> 49910700 | BD46: =IF('Weighting Factors'!F46>0,'Weighting Factors'!F46,'Preliminary SO66'!AV45) -> 52592669 | BE46: 49910700 | BF46: ='Weighting Factors'!E46 -> 0 | BG46: =Transportation!G46 -> 0 | BH46: =IF(ISNA(VLOOKUP($CW46,'Audit Values'!$A$2:$BU$380,2,FALSE)), 0, VLOOKUP($CW46,'Audit Values'!$A$2:$BU$380,73,FALSE)) -> 0 | BI46: 0 | BJ46: 49910700 | BK46: =SUM((U46+V46+AA46+AC46+AF46+AI46+AL46+AM46+AN46)*'Weighting Factors'!O$12)+(MAX(AO46,'Weighting Factors'!B46)) -> 50453073 | BL46: ='LOB%'!F44 -> 0.33 | BM46: 16649514 | BN46: 17557489 | BO46: 16649514 | BP46: 0.33 | BQ46: 0 | BR46: FALSE | BS46: 0 | BT46: 0 | BU46: 0 | BV46: FALSE | BW46: 0 | BX46: 0 | BY46: 0 | BZ46: 254.6 | CA46: 100 | CB46: 18.5 | CC46: =IF(CB46<0.06,1,IF(CB46>=18.29,52,MATCH(CB46-0.001,'Weighting Factors'!$W$5:$W$156)+1)) -> 52 | CD46: =VLOOKUP(CC46, 'Weighting Factors'!$U$5:$X$56,4) -> 550 | CE46: =('Weighting Factors'!$O$5/'Weighting Factors'!$O$14) -> 1.1635 | CF46: 1017500 | CG46: =CF46*'Weighting Factors'!$Q$7 -> 1017500 | CH46: 1183861 | CI46: =AK46/'Weighting Factors'!$O$5 -> 244.3 | CJ46: 0 | CK46: 2504413 | CL46: 0.05 | CM46: =SUM((AR46*'Weighting Factors'!$O$5)+'2023 Legal Max'!AX46)*CL46 -> 2376711 | CN46: 2376711 | CO46: 0.1128 | CP46: 0 | CQ46: 0 | CR46: 10290 | CS46: ='Required Transfers'!L46 -> 652661 | CT46: ='Required Transfers'!O46 -> 101562 | CU46: ='Required Transfers'!H46 -> 1964568 | CV46: 7296.3 | CW46: D0232
A47: 233 | B47: Johnson | C47: Olathe | D47: 29287.6 | E47: 2 | F47: 0 | G47: 29285.6 | H47: 28385.8 | I47: 3 | J47: 0 | K47: 28382.8 | L47: 28066.1 | M47: 0 | N47: 0 | O47: 28066.1 | P47: =IF(ISNA(VLOOKUP($CW47,'Audit Values'!$A:$BX,2,FALSE)),'Preliminary SO66'!C46,VLOOKUP($CW47,'Audit Values'!$A:$BX,74,FALSE)) -> 28106.8 | Q47: =IF(ISNA(VLOOKUP($CW47,'Audit Values'!$A:$BX,2,FALSE)),'Preliminary SO66'!F46,VLOOKUP($CW47,'Audit Values'!$A$2:$BX$805,4,FALSE)) -> 0 | R47: 28106.8 | S47: =IF('Military Provision'!J47="YES", MAX('2023 Legal Max'!O47,'2023 Legal Max'!K47,AVERAGE('2023 Legal Max'!G47,'2023 Legal Max'!K47,'2023 Legal Max'!O47)), MAX(O47, K47)) -> 28382.8 | T47: =IF(ISNA(VLOOKUP($CW47,'Audit Values'!$A:$BV,2,FALSE)),'Preliminary SO66'!AL46,VLOOKUP($CW47,'Audit Values'!$A:$BV,59,FALSE)) -> 78.5 | U47: 28461.3 | V47: 997.3 | W47: =IF(ISNA(VLOOKUP($CW47,'Audit Values'!$A:$BX,2,FALSE)),'Preliminary SO66'!AM46,VLOOKUP($CW47,'Audit Values'!$A:$BX,63,FALSE)) -> 4100.7 | X47: =(W47/6)*'Weighting Factors'!$O$7 -> 270 | Y47: =IF(ISNA(VLOOKUP($CW47,'Audit Values'!$A:$BX,2,FALSE)),'Preliminary SO66'!AN46,VLOOKUP($CW47,'Audit Values'!$A:$BX,62,FALSE)) -> 2681 | Z47: =Y47*'Weighting Factors'!$O$8 -> 496 | AA47: 496 | AB47: =IF(ISNA(VLOOKUP($CW47,'Audit Values'!$A:$BX,2,FALSE)),'Preliminary SO66'!AO46,VLOOKUP($CW47,'Audit Values'!$A:$BX,61,FALSE)) -> 7775.6 | AC47: =AB47/6*'Weighting Factors'!$O$6 -> 648 | AD47: =IF(ISNA(VLOOKUP($CW47,'Audit Values'!$A:$BV,2,FALSE)),'Preliminary SO66'!AS46,VLOOKUP($CW47,'Audit Values'!$A:$BV,64,FALSE)) -> 28551 | AE47: =IF(ISNA(VLOOKUP($CW47,'Audit Values'!$A:$BV,2,FALSE)),'Preliminary SO66'!AP46,VLOOKUP($CW47,'Audit Values'!$A:$BV,65,FALSE)) -> 7115 | AF47: =IF(A47=207, AE47,(AE47))*'Weighting Factors'!$O$9 -> 3443.7 | AG47: 0 | AH47: =IF(ISNA(VLOOKUP($CW47,'Audit Values'!$A:$BX,2,FALSE)),'Preliminary SO66'!AG46,VLOOKUP($CW47,'Audit Values'!$A:$BX,71,FALSE)) -> 254.4 | AI47: 254.4 | AJ47: =IF(ISNA(VLOOKUP($CW47,'Audit Values'!$A:$BV,2,FALSE)),'Preliminary SO66'!AR46,VLOOKUP($CW47,'Audit Values'!$A:$BV,66,FALSE)) -> 6059 | AK47: 3877306 | AL47: =AK47/'Weighting Factors'!$O$5 -> 800.1 | AM47: =CJ47/'Weighting Factors'!$O$5 -> 2975.3 | AN47: =CN47/'Weighting Factors'!$O$5 -> 2110.7 | AO47: 35939864 | AP47: =AO47/'Weighting Factors'!$O$5 -> 7416.4 | AQ47: =IF(ISNA(VLOOKUP($CW47,'Audit Values'!$A:$BV,2,FALSE)),'Preliminary SO66'!X46,VLOOKUP($CW47,'Audit Values'!$A:$BV,48,FALSE)) -> 0 | AR47: 45492.5 | AS47: 40186.8 | AT47: =IF(ISNA(VLOOKUP($CW47,'Audit Values'!$A$2:$BV$786,2,FALSE)),'Preliminary SO66'!AA46,VLOOKUP($CW47,'Audit Values'!$A$2:$BV$786,41,FALSE)) -> 30 | AU47: =IF(ISNA(VLOOKUP($CW47,'Audit Values'!$A$2:$BV$786,2,FALSE)),'Preliminary SO66'!AB46,VLOOKUP($CW47,'Audit Values'!$A$2:$BV$786,42,FALSE)) -> 6.5 | AV47: 213.25 | AW47: 25 | AX47: =SUM(AT47*'Weighting Factors'!$R$10)+('2023 Legal Max'!AU47*'Weighting Factors'!$R$11)+('2023 Legal Max'!AV47*'Weighting Factors'!$R$12)+('2023 Legal Max'!AW47*'Weighting Factors'!$R$12) -> 355119 | AY47: =IF(ISNA(VLOOKUP($CW47,'Audit Values'!$A$2:$BV$805,2,FALSE)),"",IF(AND('Weighting Factors'!G47>0,VLOOKUP($CW47,'Audit Values'!$A$2:$BV$805,51,FALSE)<'Weighting Factors'!G47),'Weighting Factors'!G47,VLOOKUP($CW47,'Audit Values'!$A$2:$BV$805,51,FALSE))) -> 16 | AZ47: =IF(ISNA(VLOOKUP($CW47,'Audit Values'!$A:$BW,2,FALSE)),"",VLOOKUP($CW47,'Audit Values'!$A:$BW,52,FALSE)) -> A | BA47: =IF('Weighting Factors'!F47="","",IF('Weighting Factors'!H47="Pending","PX","R")) -> R | BB47: =SUM((U47+V47+AA47+AC47+AF47+AI47+AL47+AM47+AQ47+AN47)*'Weighting Factors'!$O$5)+'2023 Legal Max'!AX47 -> 195100352 | BC47: =SUM((AR47+AN47)*'Weighting Factors'!$O$5)+AX47 -> 231040226 | BD47: =IF('Weighting Factors'!F47>0,'Weighting Factors'!F47,'Preliminary SO66'!AV46) -> 232627179 | BE47: 231040226 | BF47: ='Weighting Factors'!E47 -> 0 | BG47: =Transportation!G47 -> 0 | BH47: =IF(ISNA(VLOOKUP($CW47,'Audit Values'!$A$2:$BU$380,2,FALSE)), 0, VLOOKUP($CW47,'Audit Values'!$A$2:$BU$380,73,FALSE)) -> 0 | BI47: 0 | BJ47: 231040226 | BK47: =SUM((U47+V47+AA47+AC47+AF47+AI47+AL47+AM47+AN47)*'Weighting Factors'!O$12)+(MAX(AO47,'Weighting Factors'!B47)) -> 233337426 | BL47: ='LOB%'!F45 -> 0.33 | BM47: 77001351 | BN47: 76415006 | BO47: 76415006 | BP47: 0.3275 | BQ47: 0 | BR47: FALSE | BS47: 0 | BT47: 0 | BU47: 0 | BV47: FALSE | BW47: 0 | BX47: 0 | BY47: 0 | BZ47: 997.3 | CA47: 75.3 | CB47: 80.465 | CC47: =IF(CB47<0.06,1,IF(CB47>=18.29,52,MATCH(CB47-0.001,'Weighting Factors'!$W$5:$W$156)+1)) -> 52 | CD47: =VLOOKUP(CC47, 'Weighting Factors'!$U$5:$X$56,4) -> 550 | CE47: =('Weighting Factors'!$O$5/'Weighting Factors'!$O$14) -> 1.1635 | CF47: 3332450 | CG47: =CF47*'Weighting Factors'!$Q$7 -> 3332450 | CH47: 3877306 | CI47: =AK47/'Weighting Factors'!$O$5 -> 800.1 | CJ47: 14418320 | CK47: 10228602 | CL47: 0.0467 | CM47: =SUM((AR47*'Weighting Factors'!$O$5)+'2023 Legal Max'!AX47)*CL47 -> 10311910 | CN47: 10228602 | CO47: 0.2492 | CP47: 0 | CQ47: 0 | CR47: 47603.2 | CS47: ='Required Transfers'!L47 -> 5540088 | CT47: ='Required Transfers'!O47 -> 794716 | CU47: ='Required Transfers'!H47 -> 17920993 | CV47: 28257.3 | CW47: D0233
A48: 234 | B48: Bourbon | C48: Fort Scott | D48: 1823.1 | F48: 0 | G48: 1823.1 | H48: 1726.1 | J48: 0 | K48: 1726.1 | L48: 1748.2 | M48: 0 | N48: 0 | O48: 1748.2 | P48: =IF(ISNA(VLOOKUP($CW48,'Audit Values'!$A:$BX,2,FALSE)),'Preliminary SO66'!C47,VLOOKUP($CW48,'Audit Values'!$A:$BX,74,FALSE)) -> 1727.8 | Q48: =IF(ISNA(VLOOKUP($CW48,'Audit Values'!$A:$BX,2,FALSE)),'Preliminary SO66'!F47,VLOOKUP($CW48,'Audit Values'!$A$2:$BX$805,4,FALSE)) -> 0 | R48: 1727.8 | S48: =IF('Military Provision'!J48="YES", MAX('2023 Legal Max'!O48,'2023 Legal Max'!K48,AVERAGE('2023 Legal Max'!G48,'2023 Legal Max'!K48,'2023 Legal Max'!O48)), MAX(O48, K48)) -> 1748.2 | T48: =IF(ISNA(VLOOKUP($CW48,'Audit Values'!$A:$BV,2,FALSE)),'Preliminary SO66'!AL47,VLOOKUP($CW48,'Audit Values'!$A:$BV,59,FALSE)) -> 29 | U48: 1777.2 | V48: 62.3 | W48: =IF(ISNA(VLOOKUP($CW48,'Audit Values'!$A:$BX,2,FALSE)),'Preliminary SO66'!AM47,VLOOKUP($CW48,'Audit Values'!$A:$BX,63,FALSE)) -> 14.1 | X48: =(W48/6)*'Weighting Factors'!$O$7 -> 0.9 | Y48: =IF(ISNA(VLOOKUP($CW48,'Audit Values'!$A:$BX,2,FALSE)),'Preliminary SO66'!AN47,VLOOKUP($CW48,'Audit Values'!$A:$BX,62,FALSE)) -> 22 | Z48: =Y48*'Weighting Factors'!$O$8 -> 4.1 | AA48: 4.1 | AB48: =IF(ISNA(VLOOKUP($CW48,'Audit Values'!$A:$BX,2,FALSE)),'Preliminary SO66'!AO47,VLOOKUP($CW48,'Audit Values'!$A:$BX,61,FALSE)) -> 526.5 | AC48: =AB48/6*'Weighting Factors'!$O$6 -> 43.9 | AD48: =IF(ISNA(VLOOKUP($CW48,'Audit Values'!$A:$BV,2,FALSE)),'Preliminary SO66'!AS47,VLOOKUP($CW48,'Audit Values'!$A:$BV,64,FALSE)) -> 1810 | AE48: =IF(ISNA(VLOOKUP($CW48,'Audit Values'!$A:$BV,2,FALSE)),'Preliminary SO66'!AP47,VLOOKUP($CW48,'Audit Values'!$A:$BV,65,FALSE)) -> 960 | AF48: =IF(A48=207, AE48,(AE48))*'Weighting Factors'!$O$9 -> 464.6 | AG48: 100.8 | AH48: =IF(ISNA(VLOOKUP($CW48,'Audit Values'!$A:$BX,2,FALSE)),'Preliminary SO66'!AG47,VLOOKUP($CW48,'Audit Values'!$A:$BX,71,FALSE)) -> 84.7 | AI48: 100.8 | AJ48: =IF(ISNA(VLOOKUP($CW48,'Audit Values'!$A:$BV,2,FALSE)),'Preliminary SO66'!AR47,VLOOKUP($CW48,'Audit Values'!$A:$BV,66,FALSE)) -> 471 | AK48: 487728 | AL48: =AK48/'Weighting Factors'!$O$5 -> 100.6 | AM48: =CJ48/'Weighting Factors'!$O$5 -> 0 | AN48: =CN48/'Weighting Factors'!$O$5 -> 0 | AO48: 2010380 | AP48: =AO48/'Weighting Factors'!$O$5 -> 414.9 | AQ48: =IF(ISNA(VLOOKUP($CW48,'Audit Values'!$A:$BV,2,FALSE)),'Preliminary SO66'!X47,VLOOKUP($CW48,'Audit Values'!$A:$BV,48,FALSE)) -> 0 | AR48: 2968.4 | AS48: 2553.5 | AT48: =IF(ISNA(VLOOKUP($CW48,'Audit Values'!$A$2:$BV$786,2,FALSE)),'Preliminary SO66'!AA47,VLOOKUP($CW48,'Audit Values'!$A$2:$BV$786,41,FALSE)) -> 9 | AU48: =IF(ISNA(VLOOKUP($CW48,'Audit Values'!$A$2:$BV$786,2,FALSE)),'Preliminary SO66'!AB47,VLOOKUP($CW48,'Audit Values'!$A$2:$BV$786,42,FALSE)) -> 4 | AV48: 0 | AW48: 0 | AX48: =SUM(AT48*'Weighting Factors'!$R$10)+('2023 Legal Max'!AU48*'Weighting Factors'!$R$11)+('2023 Legal Max'!AV48*'Weighting Factors'!$R$12)+('2023 Legal Max'!AW48*'Weighting Factors'!$R$12) -> 61600 | AY48: =IF(ISNA(VLOOKUP($CW48,'Audit Values'!$A$2:$BV$805,2,FALSE)),"",IF(AND('Weighting Factors'!G48>0,VLOOKUP($CW48,'Audit Values'!$A$2:$BV$805,51,FALSE)<'Weighting Factors'!G48),'Weighting Factors'!G48,VLOOKUP($CW48,'Audit Values'!$A$2:$BV$805,51,FALSE))) -> 6 | AZ48: =IF(ISNA(VLOOKUP($CW48,'Audit Values'!$A:$BW,2,FALSE)),"",VLOOKUP($CW48,'Audit Values'!$A:$BW,52,FALSE)) -> A | BA48: =IF('Weighting Factors'!F48="","",IF('Weighting Factors'!H48="Pending","PX","R")) ->  | BB48: =SUM((U48+V48+AA48+AC48+AF48+AI48+AL48+AM48+AQ48+AN48)*'Weighting Factors'!$O$5)+'2023 Legal Max'!AX48 -> 12435861 | BC48: =SUM((AR48+AN48)*'Weighting Factors'!$O$5)+AX48 -> 14446466 | BD48: =IF('Weighting Factors'!F48>0,'Weighting Factors'!F48,'Preliminary SO66'!AV47) -> 15116495 | BE48: 14446466 | BF48: ='Weighting Factors'!E48 -> 0 | BG48: =Transportation!G48 -> 0 | BH48: =IF(ISNA(VLOOKUP($CW48,'Audit Values'!$A$2:$BU$380,2,FALSE)), 0, VLOOKUP($CW48,'Audit Values'!$A$2:$BU$380,73,FALSE)) -> 0 | BI48: 0 | BJ48: 14446466 | BK48: =SUM((U48+V48+AA48+AC48+AF48+AI48+AL48+AM48+AN48)*'Weighting Factors'!O$12)+(MAX(AO48,'Weighting Factors'!B48)) -> 14553172 | BL48: ='LOB%'!F46 -> 0.31 | BM48: 4511483 | BN48: 4664030 | BO48: 4511483 | BP48: 0.31 | BQ48: 0 | BR48: FALSE | BS48: 0 | BT48: 0 | BU48: 0 | BV48: FALSE | BW48: 0 | BX48: 0 | BY48: 0 | BZ48: 62.3 | CA48: 300 | CB48: 1.57 | CC48: =IF(CB48<0.06,1,IF(CB48>=18.29,52,MATCH(CB48-0.001,'Weighting Factors'!$W$5:$W$156)+1)) -> 35 | CD48: =VLOOKUP(CC48, 'Weighting Factors'!$U$5:$X$56,4) -> 890 | CE48: =('Weighting Factors'!$O$5/'Weighting Factors'!$O$14) -> 1.1635 | CF48: 419190 | CG48: =CF48*'Weighting Factors'!$Q$7 -> 419190 | CH48: 487728 | CI48: =AK48/'Weighting Factors'!$O$5 -> 100.6 | CJ48: 0 | CK48: 0 | CL48: 0 | CM48: =SUM((AR48*'Weighting Factors'!$O$5)+'2023 Legal Max'!AX48)*CL48 -> 0 | CN48: 0 | CO48: 0.5304 | CP48: 100.8 | CQ48: 0 | CR48: 2968.4 | CS48: ='Required Transfers'!L48 -> 713265 | CT48: ='Required Transfers'!O48 -> 6316 | CU48: ='Required Transfers'!H48 -> 2739928 | CV48: 1769.8 | CW48: D0234
A49: 235 | B49: Bourbon | C49: Uniontown | D49: 429.5 | F49: 0 | G49: 429.5 | H49: 443.5 | J49: 0 | K49: 443.5 | L49: 453.5 | M49: 0 | N49: 0 | O49: 453.5 | P49: =IF(ISNA(VLOOKUP($CW49,'Audit Values'!$A:$BX,2,FALSE)),'Preliminary SO66'!C48,VLOOKUP($CW49,'Audit Values'!$A:$BX,74,FALSE)) -> 447 | Q49: =IF(ISNA(VLOOKUP($CW49,'Audit Values'!$A:$BX,2,FALSE)),'Preliminary SO66'!F48,VLOOKUP($CW49,'Audit Values'!$A$2:$BX$805,4,FALSE)) -> 0 | R49: 447 | S49: =IF('Military Provision'!J49="YES", MAX('2023 Legal Max'!O49,'2023 Legal Max'!K49,AVERAGE('2023 Legal Max'!G49,'2023 Legal Max'!K49,'2023 Legal Max'!O49)), MAX(O49, K49)) -> 453.5 | T49: =IF(ISNA(VLOOKUP($CW49,'Audit Values'!$A:$BV,2,FALSE)),'Preliminary SO66'!AL48,VLOOKUP($CW49,'Audit Values'!$A:$BV,59,FALSE)) -> 9 | U49: 462.5 | V49: 198.4 | W49: =IF(ISNA(VLOOKUP($CW49,'Audit Values'!$A:$BX,2,FALSE)),'Preliminary SO66'!AM48,VLOOKUP($CW49,'Audit Values'!$A:$BX,63,FALSE)) -> 0 | X49: =(W49/6)*'Weighting Factors'!$O$7 -> 0 | Y49: =IF(ISNA(VLOOKUP($CW49,'Audit Values'!$A:$BX,2,FALSE)),'Preliminary SO66'!AN48,VLOOKUP($CW49,'Audit Values'!$A:$BX,62,FALSE)) -> 0 | Z49: =Y49*'Weighting Factors'!$O$8 -> 0 | AA49: 0 | AB49: =IF(ISNA(VLOOKUP($CW49,'Audit Values'!$A:$BX,2,FALSE)),'Preliminary SO66'!AO48,VLOOKUP($CW49,'Audit Values'!$A:$BX,61,FALSE)) -> 80.8 | AC49: =AB49/6*'Weighting Factors'!$O$6 -> 6.7 | AD49: =IF(ISNA(VLOOKUP($CW49,'Audit Values'!$A:$BV,2,FALSE)),'Preliminary SO66'!AS48,VLOOKUP($CW49,'Audit Values'!$A:$BV,64,FALSE)) -> 467 | AE49: =IF(ISNA(VLOOKUP($CW49,'Audit Values'!$A:$BV,2,FALSE)),'Preliminary SO66'!AP48,VLOOKUP($CW49,'Audit Values'!$A:$BV,65,FALSE)) -> 274 | AF49: =IF(A49=207, AE49,(AE49))*'Weighting Factors'!$O$9 -> 132.6 | AG49: 28.8 | AH49: =IF(ISNA(VLOOKUP($CW49,'Audit Values'!$A:$BX,2,FALSE)),'Preliminary SO66'!AG48,VLOOKUP($CW49,'Audit Values'!$A:$BX,71,FALSE)) -> 28.8 | AI49: 28.8 | AJ49: =IF(ISNA(VLOOKUP($CW49,'Audit Values'!$A:$BV,2,FALSE)),'Preliminary SO66'!AR48,VLOOKUP($CW49,'Audit Values'!$A:$BV,66,FALSE)) -> 262 | AK49: 301789 | AL49: =AK49/'Weighting Factors'!$O$5 -> 62.3 | AM49: =CJ49/'Weighting Factors'!$O$5 -> 0 | AN49: =CN49/'Weighting Factors'!$O$5 -> 0 | AO49: 505085 | AP49: =AO49/'Weighting Factors'!$O$5 -> 104.2 | AQ49: =IF(ISNA(VLOOKUP($CW49,'Audit Values'!$A:$BV,2,FALSE)),'Preliminary SO66'!X48,VLOOKUP($CW49,'Audit Values'!$A:$BV,48,FALSE)) -> 0 | AR49: 995.5 | AS49: 891.3 | AT49: =IF(ISNA(VLOOKUP($CW49,'Audit Values'!$A$2:$BV$786,2,FALSE)),'Preliminary SO66'!AA48,VLOOKUP($CW49,'Audit Values'!$A$2:$BV$786,41,FALSE)) -> 2 | AU49: =IF(ISNA(VLOOKUP($CW49,'Audit Values'!$A$2:$BV$786,2,FALSE)),'Preliminary SO66'!AB48,VLOOKUP($CW49,'Audit Values'!$A$2:$BV$786,42,FALSE)) -> 0 | AV49: 0 | AW49: 5 | AX49: =SUM(AT49*'Weighting Factors'!$R$10)+('2023 Legal Max'!AU49*'Weighting Factors'!$R$11)+('2023 Legal Max'!AV49*'Weighting Factors'!$R$12)+('2023 Legal Max'!AW49*'Weighting Factors'!$R$12) -> 14745 | AY49: =IF(ISNA(VLOOKUP($CW49,'Audit Values'!$A$2:$BV$805,2,FALSE)),"",IF(AND('Weighting Factors'!G49>0,VLOOKUP($CW49,'Audit Values'!$A$2:$BV$805,51,FALSE)<'Weighting Factors'!G49),'Weighting Factors'!G49,VLOOKUP($CW49,'Audit Values'!$A$2:$BV$805,51,FALSE))) -> 25 | AZ49: =IF(ISNA(VLOOKUP($CW49,'Audit Values'!$A:$BW,2,FALSE)),"",VLOOKUP($CW49,'Audit Values'!$A:$BW,52,FALSE)) -> A | BA49: =IF('Weighting Factors'!F49="","",IF('Weighting Factors'!H49="Pending","PX","R")) -> R | BB49: =SUM((U49+V49+AA49+AC49+AF49+AI49+AL49+AM49+AQ49+AN49)*'Weighting Factors'!$O$5)+'2023 Legal Max'!AX49 -> 4333985 | BC49: =SUM((AR49+AN49)*'Weighting Factors'!$O$5)+AX49 -> 4838938 | BD49: =IF('Weighting Factors'!F49>0,'Weighting Factors'!F49,'Preliminary SO66'!AV48) -> 4890637 | BE49: 4838938 | BF49: ='Weighting Factors'!E49 -> 0 | BG49: =Transportation!G49 -> 0 | BH49: =IF(ISNA(VLOOKUP($CW49,'Audit Values'!$A$2:$BU$380,2,FALSE)), 0, VLOOKUP($CW49,'Audit Values'!$A$2:$BU$380,73,FALSE)) -> 0 | BI49: 0 | BJ49: 4838938 | BK49: =SUM((U49+V49+AA49+AC49+AF49+AI49+AL49+AM49+AN49)*'Weighting Factors'!O$12)+(MAX(AO49,'Weighting Factors'!B49)) -> 4883151 | BL49: ='LOB%'!F47 -> 0.31 | BM49: 1513777 | BN49: 1451072 | BO49: 1451072 | BP49: 0.2972 | BQ49: 0 | BR49: FALSE | BS49: 0 | BT49: 0 | BU49: 0 | BV49: TRUE | BW49: 201.0938 | BX49: 0.428977 | BY49: 198.4 | BZ49: 0 | CA49: 309 | CB49: 0.848 | CC49: =IF(CB49<0.06,1,IF(CB49>=18.29,52,MATCH(CB49-0.001,'Weighting Factors'!$W$5:$W$156)+1)) -> 30 | CD49: =VLOOKUP(CC49, 'Weighting Factors'!$U$5:$X$56,4) -> 990 | CE49: =('Weighting Factors'!$O$5/'Weighting Factors'!$O$14) -> 1.1635 | CF49: 259380 | CG49: =CF49*'Weighting Factors'!$Q$7 -> 259380 | CH49: 301789 | CI49: =AK49/'Weighting Factors'!$O$5 -> 62.3 | CJ49: 0 | CK49: 0 | CL49: 0 | CM49: =SUM((AR49*'Weighting Factors'!$O$5)+'2023 Legal Max'!AX49)*CL49 -> 0 | CN49: 0 | CO49: 0.5867 | CP49: 28.8 | CQ49: 0 | CR49: 995.5 | CS49: ='Required Transfers'!L49 -> 195024 | CT49: ='Required Transfers'!O49 -> 0 | CU49: ='Required Transfers'!H49 -> 782144 | CV49: 458 | CW49: D0235
A50: 237 | B50: Smith | C50: Smith Center | D50: 399 | F50: 0 | G50: 399 | H50: 394.9 | J50: 0 | K50: 394.9 | L50: 433 | M50: 0 | N50: 0 | O50: 433 | P50: =IF(ISNA(VLOOKUP($CW50,'Audit Values'!$A:$BX,2,FALSE)),'Preliminary SO66'!C49,VLOOKUP($CW50,'Audit Values'!$A:$BX,74,FALSE)) -> 424.5 | Q50: =IF(ISNA(VLOOKUP($CW50,'Audit Values'!$A:$BX,2,FALSE)),'Preliminary SO66'!F49,VLOOKUP($CW50,'Audit Values'!$A$2:$BX$805,4,FALSE)) -> 0 | R50: 424.5 | S50: =IF('Military Provision'!J50="YES", MAX('2023 Legal Max'!O50,'2023 Legal Max'!K50,AVERAGE('2023 Legal Max'!G50,'2023 Legal Max'!K50,'2023 Legal Max'!O50)), MAX(O50, K50)) -> 433 | T50: =IF(ISNA(VLOOKUP($CW50,'Audit Values'!$A:$BV,2,FALSE)),'Preliminary SO66'!AL49,VLOOKUP($CW50,'Audit Values'!$A:$BV,59,FALSE)) -> 10.5 | U50: 443.5 | V50: 193.1 | W50: =IF(ISNA(VLOOKUP($CW50,'Audit Values'!$A:$BX,2,FALSE)),'Preliminary SO66'!AM49,VLOOKUP($CW50,'Audit Values'!$A:$BX,63,FALSE)) -> 11.7 | X50: =(W50/6)*'Weighting Factors'!$O$7 -> 0.8 | Y50: =IF(ISNA(VLOOKUP($CW50,'Audit Values'!$A:$BX,2,FALSE)),'Preliminary SO66'!AN49,VLOOKUP($CW50,'Audit Values'!$A:$BX,62,FALSE)) -> 5 | Z50: =Y50*'Weighting Factors'!$O$8 -> 0.9 | AA50: 0.9 | AB50: =IF(ISNA(VLOOKUP($CW50,'Audit Values'!$A:$BX,2,FALSE)),'Preliminary SO66'!AO49,VLOOKUP($CW50,'Audit Values'!$A:$BX,61,FALSE)) -> 162.8 | AC50: =AB50/6*'Weighting Factors'!$O$6 -> 13.6 | AD50: =IF(ISNA(VLOOKUP($CW50,'Audit Values'!$A:$BV,2,FALSE)),'Preliminary SO66'!AS49,VLOOKUP($CW50,'Audit Values'!$A:$BV,64,FALSE)) -> 452 | AE50: =IF(ISNA(VLOOKUP($CW50,'Audit Values'!$A:$BV,2,FALSE)),'Preliminary SO66'!AP49,VLOOKUP($CW50,'Audit Values'!$A:$BV,65,FALSE)) -> 177 | AF50: =IF(A50=207, AE50,(AE50))*'Weighting Factors'!$O$9 -> 85.7 | AG50: 5.2 | AH50: =IF(ISNA(VLOOKUP($CW50,'Audit Values'!$A:$BX,2,FALSE)),'Preliminary SO66'!AG49,VLOOKUP($CW50,'Audit Values'!$A:$BX,71,FALSE)) -> 5.4 | AI50: 5.4 | AJ50: =IF(ISNA(VLOOKUP($CW50,'Audit Values'!$A:$BV,2,FALSE)),'Preliminary SO66'!AR49,VLOOKUP($CW50,'Audit Values'!$A:$BV,66,FALSE)) -> 117 | AK50: 176968 | AL50: =AK50/'Weighting Factors'!$O$5 -> 36.5 | AM50: =CJ50/'Weighting Factors'!$O$5 -> 0 | AN50: =CN50/'Weighting Factors'!$O$5 -> 0 | AO50: 582845 | AP50: =AO50/'Weighting Factors'!$O$5 -> 120.3 | AQ50: =IF(ISNA(VLOOKUP($CW50,'Audit Values'!$A:$BV,2,FALSE)),'Preliminary SO66'!X49,VLOOKUP($CW50,'Audit Values'!$A:$BV,48,FALSE)) -> 0 | AR50: 899 | AS50: 778.7 | AT50: =IF(ISNA(VLOOKUP($CW50,'Audit Values'!$A$2:$BV$786,2,FALSE)),'Preliminary SO66'!AA49,VLOOKUP($CW50,'Audit Values'!$A$2:$BV$786,41,FALSE)) -> 0 | AU50: =IF(ISNA(VLOOKUP($CW50,'Audit Values'!$A$2:$BV$786,2,FALSE)),'Preliminary SO66'!AB49,VLOOKUP($CW50,'Audit Values'!$A$2:$BV$786,42,FALSE)) -> 0 | AV50: 0 | AW50: 0 | AX50: =SUM(AT50*'Weighting Factors'!$R$10)+('2023 Legal Max'!AU50*'Weighting Factors'!$R$11)+('2023 Legal Max'!AV50*'Weighting Factors'!$R$12)+('2023 Legal Max'!AW50*'Weighting Factors'!$R$12) -> 0 | AY50: =IF(ISNA(VLOOKUP($CW50,'Audit Values'!$A$2:$BV$805,2,FALSE)),"",IF(AND('Weighting Factors'!G50>0,VLOOKUP($CW50,'Audit Values'!$A$2:$BV$805,51,FALSE)<'Weighting Factors'!G50),'Weighting Factors'!G50,VLOOKUP($CW50,'Audit Values'!$A$2:$BV$805,51,FALSE))) -> 14 | AZ50: =IF(ISNA(VLOOKUP($CW50,'Audit Values'!$A:$BW,2,FALSE)),"",VLOOKUP($CW50,'Audit Values'!$A:$BW,52,FALSE)) -> A | BA50: =IF('Weighting Factors'!F50="","",IF('Weighting Factors'!H50="Pending","PX","R")) -> R | BB50: =SUM((U50+V50+AA50+AC50+AF50+AI50+AL50+AM50+AQ50+AN50)*'Weighting Factors'!$O$5)+'2023 Legal Max'!AX50 -> 3773580 | BC50: =SUM((AR50+AN50)*'Weighting Factors'!$O$5)+AX50 -> 4356554 | BD50: =IF('Weighting Factors'!F50>0,'Weighting Factors'!F50,'Preliminary SO66'!AV49) -> 4436513 | BE50: 4356554 | BF50: ='Weighting Factors'!E50 -> 0 | BG50: =Transportation!G50 -> 0 | BH50: =IF(ISNA(VLOOKUP($CW50,'Audit Values'!$A$2:$BU$380,2,FALSE)), 0, VLOOKUP($CW50,'Audit Values'!$A$2:$BU$380,73,FALSE)) -> 0 | BI50: 0 | BJ50: 4356554 | BK50: =SUM((U50+V50+AA50+AC50+AF50+AI50+AL50+AM50+AN50)*'Weighting Factors'!O$12)+(MAX(AO50,'Weighting Factors'!B50)) -> 4411009 | BL50: ='LOB%'!F48 -> 0.33 | BM50: 1455633 | BN50: 1437514 | BO50: 1437514 | BP50: 0.3259 | BQ50: 0 | BR50: FALSE | BS50: 0 | BT50: 0 | BU50: 0 | BV50: TRUE | BW50: 177.5813 | BX50: 0.435432 | BY50: 193.1 | BZ50: 0 | CA50: 599 | CB50: 0.195 | CC50: =IF(CB50<0.06,1,IF(CB50>=18.29,52,MATCH(CB50-0.001,'Weighting Factors'!$W$5:$W$156)+1)) -> 14 | CD50: =VLOOKUP(CC50, 'Weighting Factors'!$U$5:$X$56,4) -> 1300 | CE50: =('Weighting Factors'!$O$5/'Weighting Factors'!$O$14) -> 1.1635 | CF50: 152100 | CG50: =CF50*'Weighting Factors'!$Q$7 -> 152100 | CH50: 176968 | CI50: =AK50/'Weighting Factors'!$O$5 -> 36.5 | CJ50: 0 | CK50: 0 | CL50: 0 | CM50: =SUM((AR50*'Weighting Factors'!$O$5)+'2023 Legal Max'!AX50)*CL50 -> 0 | CN50: 0 | CO50: 0.3916 | CP50: 0 | CQ50: 5.2 | CR50: 899 | CS50: ='Required Transfers'!L50 -> 138720 | CT50: ='Required Transfers'!O50 -> 1438 | CU50: ='Required Transfers'!H50 -> 441471 | CV50: 435 | CW50: D0237
A51: 239 | B51: Ottawa | C51: North Ottawa County | D51: 618.6 | F51: 0 | G51: 618.6 | H51: 595.4 | J51: 0 | K51: 595.4 | L51: 633.5 | M51: 0 | N51: 0 | O51: 633.5 | P51: =IF(ISNA(VLOOKUP($CW51,'Audit Values'!$A:$BX,2,FALSE)),'Preliminary SO66'!C50,VLOOKUP($CW51,'Audit Values'!$A:$BX,74,FALSE)) -> 620.4 | Q51: =IF(ISNA(VLOOKUP($CW51,'Audit Values'!$A:$BX,2,FALSE)),'Preliminary SO66'!F50,VLOOKUP($CW51,'Audit Values'!$A$2:$BX$805,4,FALSE)) -> 0 | R51: 620.4 | S51: =IF('Military Provision'!J51="YES", MAX('2023 Legal Max'!O51,'2023 Legal Max'!K51,AVERAGE('2023 Legal Max'!G51,'2023 Legal Max'!K51,'2023 Legal Max'!O51)), MAX(O51, K51)) -> 633.5 | T51: =IF(ISNA(VLOOKUP($CW51,'Audit Values'!$A:$BV,2,FALSE)),'Preliminary SO66'!AL50,VLOOKUP($CW51,'Audit Values'!$A:$BV,59,FALSE)) -> 0 | U51: 633.5 | V51: 235 | W51: =IF(ISNA(VLOOKUP($CW51,'Audit Values'!$A:$BX,2,FALSE)),'Preliminary SO66'!AM50,VLOOKUP($CW51,'Audit Values'!$A:$BX,63,FALSE)) -> 0 | X51: =(W51/6)*'Weighting Factors'!$O$7 -> 0 | Y51: =IF(ISNA(VLOOKUP($CW51,'Audit Values'!$A:$BX,2,FALSE)),'Preliminary SO66'!AN50,VLOOKUP($CW51,'Audit Values'!$A:$BX,62,FALSE)) -> 0 | Z51: =Y51*'Weighting Factors'!$O$8 -> 0 | AA51: 0 | AB51: =IF(ISNA(VLOOKUP($CW51,'Audit Values'!$A:$BX,2,FALSE)),'Preliminary SO66'!AO50,VLOOKUP($CW51,'Audit Values'!$A:$BX,61,FALSE)) -> 130.8 | AC51: =AB51/6*'Weighting Factors'!$O$6 -> 10.9 | AD51: =IF(ISNA(VLOOKUP($CW51,'Audit Values'!$A:$BV,2,FALSE)),'Preliminary SO66'!AS50,VLOOKUP($CW51,'Audit Values'!$A:$BV,64,FALSE)) -> 628 | AE51: =IF(ISNA(VLOOKUP($CW51,'Audit Values'!$A:$BV,2,FALSE)),'Preliminary SO66'!AP50,VLOOKUP($CW51,'Audit Values'!$A:$BV,65,FALSE)) -> 251 | AF51: =IF(A51=207, AE51,(AE51))*'Weighting Factors'!$O$9 -> 121.5 | AG51: 8.7 | AH51: =IF(ISNA(VLOOKUP($CW51,'Audit Values'!$A:$BX,2,FALSE)),'Preliminary SO66'!AG50,VLOOKUP($CW51,'Audit Values'!$A:$BX,71,FALSE)) -> 9.3 | AI51: 9.3 | AJ51: =IF(ISNA(VLOOKUP($CW51,'Audit Values'!$A:$BV,2,FALSE)),'Preliminary SO66'!AR50,VLOOKUP($CW51,'Audit Values'!$A:$BV,66,FALSE)) -> 174 | AK51: 228767 | AL51: =AK51/'Weighting Factors'!$O$5 -> 47.2 | AM51: =CJ51/'Weighting Factors'!$O$5 -> 0 | AN51: =CN51/'Weighting Factors'!$O$5 -> 0 | AO51: 786468 | AP51: =AO51/'Weighting Factors'!$O$5 -> 162.3 | AQ51: =IF(ISNA(VLOOKUP($CW51,'Audit Values'!$A:$BV,2,FALSE)),'Preliminary SO66'!X50,VLOOKUP($CW51,'Audit Values'!$A:$BV,48,FALSE)) -> 0 | AR51: 1219.7 | AS51: 1057.4 | AT51: =IF(ISNA(VLOOKUP($CW51,'Audit Values'!$A$2:$BV$786,2,FALSE)),'Preliminary SO66'!AA50,VLOOKUP($CW51,'Audit Values'!$A$2:$BV$786,41,FALSE)) -> 0 | AU51: =IF(ISNA(VLOOKUP($CW51,'Audit Values'!$A$2:$BV$786,2,FALSE)),'Preliminary SO66'!AB50,VLOOKUP($CW51,'Audit Values'!$A$2:$BV$786,42,FALSE)) -> 0 | AV51: 0 | AW51: 0 | AX51: =SUM(AT51*'Weighting Factors'!$R$10)+('2023 Legal Max'!AU51*'Weighting Factors'!$R$11)+('2023 Legal Max'!AV51*'Weighting Factors'!$R$12)+('2023 Legal Max'!AW51*'Weighting Factors'!$R$12) -> 0 | AY51: =IF(ISNA(VLOOKUP($CW51,'Audit Values'!$A$2:$BV$805,2,FALSE)),"",IF(AND('Weighting Factors'!G51>0,VLOOKUP($CW51,'Audit Values'!$A$2:$BV$805,51,FALSE)<'Weighting Factors'!G51),'Weighting Factors'!G51,VLOOKUP($CW51,'Audit Values'!$A$2:$BV$805,51,FALSE))) -> 9 | AZ51: =IF(ISNA(VLOOKUP($CW51,'Audit Values'!$A:$BW,2,FALSE)),"",VLOOKUP($CW51,'Audit Values'!$A:$BW,52,FALSE)) -> A | BA51: =IF('Weighting Factors'!F51="","",IF('Weighting Factors'!H51="Pending","PX","R")) ->  | BB51: =SUM((U51+V51+AA51+AC51+AF51+AI51+AL51+AM51+AQ51+AN51)*'Weighting Factors'!$O$5)+'2023 Legal Max'!AX51 -> 5124160 | BC51: =SUM((AR51+AN51)*'Weighting Factors'!$O$5)+AX51 -> 5910666 | BD51: =IF('Weighting Factors'!F51>0,'Weighting Factors'!F51,'Preliminary SO66'!AV50) -> 5972695 | BE51: 5910666 | BF51: ='Weighting Factors'!E51 -> 0 | BG51: =Transportation!G51 -> 0 | BH51: =IF(ISNA(VLOOKUP($CW51,'Audit Values'!$A$2:$BU$380,2,FALSE)), 0, VLOOKUP($CW51,'Audit Values'!$A$2:$BU$380,73,FALSE)) -> 0 | BI51: 0 | BJ51: 5910666 | BK51: =SUM((U51+V51+AA51+AC51+AF51+AI51+AL51+AM51+AN51)*'Weighting Factors'!O$12)+(MAX(AO51,'Weighting Factors'!B51)) -> 5980417 | BL51: ='LOB%'!F49 -> 0.33 | BM51: 1973538 | BN51: 1993881 | BO51: 1973538 | BP51: 0.33 | BQ51: 0 | BR51: FALSE | BS51: 0 | BT51: 0 | BU51: 0 | BV51: TRUE | BW51: 412.7063 | BX51: 0.37088 | BY51: 235 | BZ51: 0 | CA51: 418.5 | CB51: 0.416 | CC51: =IF(CB51<0.06,1,IF(CB51>=18.29,52,MATCH(CB51-0.001,'Weighting Factors'!$W$5:$W$156)+1)) -> 23 | CD51: =VLOOKUP(CC51, 'Weighting Factors'!$U$5:$X$56,4) -> 1130 | CE51: =('Weighting Factors'!$O$5/'Weighting Factors'!$O$14) -> 1.1635 | CF51: 196620 | CG51: =CF51*'Weighting Factors'!$Q$7 -> 196620 | CH51: 228767 | CI51: =AK51/'Weighting Factors'!$O$5 -> 47.2 | CJ51: 0 | CK51: 0 | CL51: 0 | CM51: =SUM((AR51*'Weighting Factors'!$O$5)+'2023 Legal Max'!AX51)*CL51 -> 0 | CN51: 0 | CO51: 0.3997 | CP51: 0 | CQ51: 8.7 | CR51: 1219.7 | CS51: ='Required Transfers'!L51 -> 196564 | CT51: ='Required Transfers'!O51 -> 0 | CU51: ='Required Transfers'!H51 -> 633857 | CV51: 620.4 | CW51: D0239
A52: 240 | B52: Ottawa | C52: Twin Valley | D52: 524.5 | F52: 0 | G52: 524.5 | H52: 536 | J52: 0 | K52: 536 | L52: 570 | M52: 0 | N52: 0 | O52: 570 | P52: =IF(ISNA(VLOOKUP($CW52,'Audit Values'!$A:$BX,2,FALSE)),'Preliminary SO66'!C51,VLOOKUP($CW52,'Audit Values'!$A:$BX,74,FALSE)) -> 559 | Q52: =IF(ISNA(VLOOKUP($CW52,'Audit Values'!$A:$BX,2,FALSE)),'Preliminary SO66'!F51,VLOOKUP($CW52,'Audit Values'!$A$2:$BX$805,4,FALSE)) -> 0 | R52: 559 | S52: =IF('Military Provision'!J52="YES", MAX('2023 Legal Max'!O52,'2023 Legal Max'!K52,AVERAGE('2023 Legal Max'!G52,'2023 Legal Max'!K52,'2023 Legal Max'!O52)), MAX(O52, K52)) -> 570 | T52: =IF(ISNA(VLOOKUP($CW52,'Audit Values'!$A:$BV,2,FALSE)),'Preliminary SO66'!AL51,VLOOKUP($CW52,'Audit Values'!$A:$BV,59,FALSE)) -> 21.5 | U52: 591.5 | V52: 227.8 | W52: =IF(ISNA(VLOOKUP($CW52,'Audit Values'!$A:$BX,2,FALSE)),'Preliminary SO66'!AM51,VLOOKUP($CW52,'Audit Values'!$A:$BX,63,FALSE)) -> 0 | X52: =(W52/6)*'Weighting Factors'!$O$7 -> 0 | Y52: =IF(ISNA(VLOOKUP($CW52,'Audit Values'!$A:$BX,2,FALSE)),'Preliminary SO66'!AN51,VLOOKUP($CW52,'Audit Values'!$A:$BX,62,FALSE)) -> 1 | Z52: =Y52*'Weighting Factors'!$O$8 -> 0.2 | AA52: 0.2 | AB52: =IF(ISNA(VLOOKUP($CW52,'Audit Values'!$A:$BX,2,FALSE)),'Preliminary SO66'!AO51,VLOOKUP($CW52,'Audit Values'!$A:$BX,61,FALSE)) -> 182.1 | AC52: =AB52/6*'Weighting Factors'!$O$6 -> 15.2 | AD52: =IF(ISNA(VLOOKUP($CW52,'Audit Values'!$A:$BV,2,FALSE)),'Preliminary SO66'!AS51,VLOOKUP($CW52,'Audit Values'!$A:$BV,64,FALSE)) -> 605 | AE52: =IF(ISNA(VLOOKUP($CW52,'Audit Values'!$A:$BV,2,FALSE)),'Preliminary SO66'!AP51,VLOOKUP($CW52,'Audit Values'!$A:$BV,65,FALSE)) -> 250 | AF52: =IF(A52=207, AE52,(AE52))*'Weighting Factors'!$O$9 -> 121 | AG52: 11.1 | AH52: =IF(ISNA(VLOOKUP($CW52,'Audit Values'!$A:$BX,2,FALSE)),'Preliminary SO66'!AG51,VLOOKUP($CW52,'Audit Values'!$A:$BX,71,FALSE)) -> 9.6 | AI52: 11.1 | AJ52: =IF(ISNA(VLOOKUP($CW52,'Audit Values'!$A:$BV,2,FALSE)),'Preliminary SO66'!AR51,VLOOKUP($CW52,'Audit Values'!$A:$BV,66,FALSE)) -> 162 | AK52: 197911 | AL52: =AK52/'Weighting Factors'!$O$5 -> 40.8 | AM52: =CJ52/'Weighting Factors'!$O$5 -> 0 | AN52: =CN52/'Weighting Factors'!$O$5 -> 0 | AO52: 630269 | AP52: =AO52/'Weighting Factors'!$O$5 -> 130.1 | AQ52: =IF(ISNA(VLOOKUP($CW52,'Audit Values'!$A:$BV,2,FALSE)),'Preliminary SO66'!X51,VLOOKUP($CW52,'Audit Values'!$A:$BV,48,FALSE)) -> 0 | AR52: 1137.7 | AS52: 1007.6 | AT52: =IF(ISNA(VLOOKUP($CW52,'Audit Values'!$A$2:$BV$786,2,FALSE)),'Preliminary SO66'!AA51,VLOOKUP($CW52,'Audit Values'!$A$2:$BV$786,41,FALSE)) -> 0 | AU52: =IF(ISNA(VLOOKUP($CW52,'Audit Values'!$A$2:$BV$786,2,FALSE)),'Preliminary SO66'!AB51,VLOOKUP($CW52,'Audit Values'!$A$2:$BV$786,42,FALSE)) -> 0 | AV52: 0 | AW52: 0 | AX52: =SUM(AT52*'Weighting Factors'!$R$10)+('2023 Legal Max'!AU52*'Weighting Factors'!$R$11)+('2023 Legal Max'!AV52*'Weighting Factors'!$R$12)+('2023 Legal Max'!AW52*'Weighting Factors'!$R$12) -> 0 | AY52: =IF(ISNA(VLOOKUP($CW52,'Audit Values'!$A$2:$BV$805,2,FALSE)),"",IF(AND('Weighting Factors'!G52>0,VLOOKUP($CW52,'Audit Values'!$A$2:$BV$805,51,FALSE)<'Weighting Factors'!G52),'Weighting Factors'!G52,VLOOKUP($CW52,'Audit Values'!$A$2:$BV$805,51,FALSE))) -> 19 | AZ52: =IF(ISNA(VLOOKUP($CW52,'Audit Values'!$A:$BW,2,FALSE)),"",VLOOKUP($CW52,'Audit Values'!$A:$BW,52,FALSE)) -> A | BA52: =IF('Weighting Factors'!F52="","",IF('Weighting Factors'!H52="Pending","PX","R")) -> R | BB52: =SUM((U52+V52+AA52+AC52+AF52+AI52+AL52+AM52+AQ52+AN52)*'Weighting Factors'!$O$5)+'2023 Legal Max'!AX52 -> 4882830 | BC52: =SUM((AR52+AN52)*'Weighting Factors'!$O$5)+AX52 -> 5513294 | BD52: =IF('Weighting Factors'!F52>0,'Weighting Factors'!F52,'Preliminary SO66'!AV51) -> 5608760 | BE52: 5513294 | BF52: ='Weighting Factors'!E52 -> 0 | BG52: =Transportation!G52 -> 0 | BH52: =IF(ISNA(VLOOKUP($CW52,'Audit Values'!$A$2:$BU$380,2,FALSE)), 0, VLOOKUP($CW52,'Audit Values'!$A$2:$BU$380,73,FALSE)) -> 0 | BI52: 0 | BJ52: 5513294 | BK52: =SUM((U52+V52+AA52+AC52+AF52+AI52+AL52+AM52+AN52)*'Weighting Factors'!O$12)+(MAX(AO52,'Weighting Factors'!B52)) -> 5579600 | BL52: ='LOB%'!F50 -> 0.33 | BM52: 1841268 | BN52: 1826049 | BO52: 1826049 | BP52: 0.3273 | BQ52: 0 | BR52: FALSE | BS52: 0 | BT52: 0 | BU52: 0 | BV52: TRUE | BW52: 360.7313 | BX52: 0.38515 | BY52: 227.8 | BZ52: 0 | CA52: 269.3 | CB52: 0.602 | CC52: =IF(CB52<0.06,1,IF(CB52>=18.29,52,MATCH(CB52-0.001,'Weighting Factors'!$W$5:$W$156)+1)) -> 27 | CD52: =VLOOKUP(CC52, 'Weighting Factors'!$U$5:$X$56,4) -> 1050 | CE52: =('Weighting Factors'!$O$5/'Weighting Factors'!$O$14) -> 1.1635 | CF52: 170100 | CG52: =CF52*'Weighting Factors'!$Q$7 -> 170100 | CH52: 197911 | CI52: =AK52/'Weighting Factors'!$O$5 -> 40.8 | CJ52: 0 | CK52: 0 | CL52: 0 | CM52: =SUM((AR52*'Weighting Factors'!$O$5)+'2023 Legal Max'!AX52)*CL52 -> 0 | CN52: 0 | CO52: 0.4132 | CP52: 0 | CQ52: 11.1 | CR52: 1137.7 | CS52: ='Required Transfers'!L52 -> 197944 | CT52: ='Required Transfers'!O52 -> 365 | CU52: ='Required Transfers'!H52 -> 640157 | CV52: 580.5 | CW52: D0240
A53: 241 | B53: Wallace | C53: Wallace County Schools | D53: 198 | F53: 0 | G53: 198 | H53: 208.5 | J53: 0 | K53: 208.5 | L53: 184 | M53: 0 | N53: 0 | O53: 184 | P53: =IF(ISNA(VLOOKUP($CW53,'Audit Values'!$A:$BX,2,FALSE)),'Preliminary SO66'!C52,VLOOKUP($CW53,'Audit Values'!$A:$BX,74,FALSE)) -> 183 | Q53: =IF(ISNA(VLOOKUP($CW53,'Audit Values'!$A:$BX,2,FALSE)),'Preliminary SO66'!F52,VLOOKUP($CW53,'Audit Values'!$A$2:$BX$805,4,FALSE)) -> 0 | R53: 183 | S53: =IF('Military Provision'!J53="YES", MAX('2023 Legal Max'!O53,'2023 Legal Max'!K53,AVERAGE('2023 Legal Max'!G53,'2023 Legal Max'!K53,'2023 Legal Max'!O53)), MAX(O53, K53)) -> 208.5 | T53: =IF(ISNA(VLOOKUP($CW53,'Audit Values'!$A:$BV,2,FALSE)),'Preliminary SO66'!AL52,VLOOKUP($CW53,'Audit Values'!$A:$BV,59,FALSE)) -> 0 | U53: 208.5 | V53: 151.5 | W53: =IF(ISNA(VLOOKUP($CW53,'Audit Values'!$A:$BX,2,FALSE)),'Preliminary SO66'!AM52,VLOOKUP($CW53,'Audit Values'!$A:$BX,63,FALSE)) -> 0 | X53: =(W53/6)*'Weighting Factors'!$O$7 -> 0 | Y53: =IF(ISNA(VLOOKUP($CW53,'Audit Values'!$A:$BX,2,FALSE)),'Preliminary SO66'!AN52,VLOOKUP($CW53,'Audit Values'!$A:$BX,62,FALSE)) -> 4 | Z53: =Y53*'Weighting Factors'!$O$8 -> 0.7 | AA53: 0.7 | AB53: =IF(ISNA(VLOOKUP($CW53,'Audit Values'!$A:$BX,2,FALSE)),'Preliminary SO66'!AO52,VLOOKUP($CW53,'Audit Values'!$A:$BX,61,FALSE)) -> 9.8 | AC53: =AB53/6*'Weighting Factors'!$O$6 -> 0.8 | AD53: =IF(ISNA(VLOOKUP($CW53,'Audit Values'!$A:$BV,2,FALSE)),'Preliminary SO66'!AS52,VLOOKUP($CW53,'Audit Values'!$A:$BV,64,FALSE)) -> 186 | AE53: =IF(ISNA(VLOOKUP($CW53,'Audit Values'!$A:$BV,2,FALSE)),'Preliminary SO66'!AP52,VLOOKUP($CW53,'Audit Values'!$A:$BV,65,FALSE)) -> 46 | AF53: =IF(A53=207, AE53,(AE53))*'Weighting Factors'!$O$9 -> 22.3 | AG53: 0 | AH53: =IF(ISNA(VLOOKUP($CW53,'Audit Values'!$A:$BX,2,FALSE)),'Preliminary SO66'!AG52,VLOOKUP($CW53,'Audit Values'!$A:$BX,71,FALSE)) -> 0 | AI53: 0 | AJ53: =IF(ISNA(VLOOKUP($CW53,'Audit Values'!$A:$BV,2,FALSE)),'Preliminary SO66'!AR52,VLOOKUP($CW53,'Audit Values'!$A:$BV,66,FALSE)) -> 52 | AK53: 93173 | AL53: =AK53/'Weighting Factors'!$O$5 -> 19.2 | AM53: =CJ53/'Weighting Factors'!$O$5 -> 0 | AN53: =CN53/'Weighting Factors'!$O$5 -> 0 | AO53: 104800 | AP53: =AO53/'Weighting Factors'!$O$5 -> 21.6 | AQ53: =IF(ISNA(VLOOKUP($CW53,'Audit Values'!$A:$BV,2,FALSE)),'Preliminary SO66'!X52,VLOOKUP($CW53,'Audit Values'!$A:$BV,48,FALSE)) -> 0 | AR53: 424.6 | AS53: 403 | AT53: =IF(ISNA(VLOOKUP($CW53,'Audit Values'!$A$2:$BV$786,2,FALSE)),'Preliminary SO66'!AA52,VLOOKUP($CW53,'Audit Values'!$A$2:$BV$786,41,FALSE)) -> 0 | AU53: =IF(ISNA(VLOOKUP($CW53,'Audit Values'!$A$2:$BV$786,2,FALSE)),'Preliminary SO66'!AB52,VLOOKUP($CW53,'Audit Values'!$A$2:$BV$786,42,FALSE)) -> 0 | AV53: 0 | AW53: 0 | AX53: =SUM(AT53*'Weighting Factors'!$R$10)+('2023 Legal Max'!AU53*'Weighting Factors'!$R$11)+('2023 Legal Max'!AV53*'Weighting Factors'!$R$12)+('2023 Legal Max'!AW53*'Weighting Factors'!$R$12) -> 0 | AY53: =IF(ISNA(VLOOKUP($CW53,'Audit Values'!$A$2:$BV$805,2,FALSE)),"",IF(AND('Weighting Factors'!G53>0,VLOOKUP($CW53,'Audit Values'!$A$2:$BV$805,51,FALSE)<'Weighting Factors'!G53),'Weighting Factors'!G53,VLOOKUP($CW53,'Audit Values'!$A$2:$BV$805,51,FALSE))) -> 12 | AZ53: =IF(ISNA(VLOOKUP($CW53,'Audit Values'!$A:$BW,2,FALSE)),"",VLOOKUP($CW53,'Audit Values'!$A:$BW,52,FALSE)) -> A | BA53: =IF('Weighting Factors'!F53="","",IF('Weighting Factors'!H53="Pending","PX","R")) ->  | BB53: =SUM((U53+V53+AA53+AC53+AF53+AI53+AL53+AM53+AQ53+AN53)*'Weighting Factors'!$O$5)+'2023 Legal Max'!AX53 -> 1952938 | BC53: =SUM((AR53+AN53)*'Weighting Factors'!$O$5)+AX53 -> 2057612 | BD53: =IF('Weighting Factors'!F53>0,'Weighting Factors'!F53,'Preliminary SO66'!AV52) -> 2111402 | BE53: 2057612 | BF53: ='Weighting Factors'!E53 -> 0 | BG53: =Transportation!G53 -> -551 | BH53: =IF(ISNA(VLOOKUP($CW53,'Audit Values'!$A$2:$BU$380,2,FALSE)), 0, VLOOKUP($CW53,'Audit Values'!$A$2:$BU$380,73,FALSE)) -> 0 | BI53: -551 | BJ53: 2057061 | BK53: =SUM((U53+V53+AA53+AC53+AF53+AI53+AL53+AM53+AN53)*'Weighting Factors'!O$12)+(MAX(AO53,'Weighting Factors'!B53)) -> 2136310 | BL53: ='LOB%'!F51 -> 0.31 | BM53: 662256 | BN53: 646493 | BO53: 646493 | BP53: 0.3026 | BQ53: 0 | BR53: TRUE | BS53: 1047.568 | BT53: 0.726727 | BU53: 151.5 | BV53: FALSE | BW53: 0 | BX53: 0 | BY53: 0 | BZ53: 0 | CA53: 681.5 | CB53: 0.076 | CC53: =IF(CB53<0.06,1,IF(CB53>=18.29,52,MATCH(CB53-0.001,'Weighting Factors'!$W$5:$W$156)+1)) -> 3 | CD53: =VLOOKUP(CC53, 'Weighting Factors'!$U$5:$X$56,4) -> 1540 | CE53: =('Weighting Factors'!$O$5/'Weighting Factors'!$O$14) -> 1.1635 | CF53: 80080 | CG53: =CF53*'Weighting Factors'!$Q$7 -> 80080 | CH53: 93173 | CI53: =AK53/'Weighting Factors'!$O$5 -> 19.2 | CJ53: 0 | CK53: 0 | CL53: 0 | CM53: =SUM((AR53*'Weighting Factors'!$O$5)+'2023 Legal Max'!AX53)*CL53 -> 0 | CN53: 0 | CO53: 0.2473 | CP53: 0 | CQ53: 0 | CR53: 424.6 | CS53: ='Required Transfers'!L53 -> 33941 | CT53: ='Required Transfers'!O53 -> 1034 | CU53: ='Required Transfers'!H53 -> 108066 | CV53: 183 | CW53: D0241
A54: 242 | B54: Wallace | C54: Weskan | D54: 103.5 | F54: 0 | G54: 103.5 | H54: 102.5 | J54: 0 | K54: 102.5 | L54: 96.5 | M54: 0 | N54: 0 | O54: 96.5 | P54: =IF(ISNA(VLOOKUP($CW54,'Audit Values'!$A:$BX,2,FALSE)),'Preliminary SO66'!C53,VLOOKUP($CW54,'Audit Values'!$A:$BX,74,FALSE)) -> 105.5 | Q54: =IF(ISNA(VLOOKUP($CW54,'Audit Values'!$A:$BX,2,FALSE)),'Preliminary SO66'!F53,VLOOKUP($CW54,'Audit Values'!$A$2:$BX$805,4,FALSE)) -> 0 | R54: 105.5 | S54: =IF('Military Provision'!J54="YES", MAX('2023 Legal Max'!O54,'2023 Legal Max'!K54,AVERAGE('2023 Legal Max'!G54,'2023 Legal Max'!K54,'2023 Legal Max'!O54)), MAX(O54, K54)) -> 102.5 | T54: =IF(ISNA(VLOOKUP($CW54,'Audit Values'!$A:$BV,2,FALSE)),'Preliminary SO66'!AL53,VLOOKUP($CW54,'Audit Values'!$A:$BV,59,FALSE)) -> 0 | U54: 102.5 | V54: 103.3 | W54: =IF(ISNA(VLOOKUP($CW54,'Audit Values'!$A:$BX,2,FALSE)),'Preliminary SO66'!AM53,VLOOKUP($CW54,'Audit Values'!$A:$BX,63,FALSE)) -> 17.2 | X54: =(W54/6)*'Weighting Factors'!$O$7 -> 1.1 | Y54: =IF(ISNA(VLOOKUP($CW54,'Audit Values'!$A:$BX,2,FALSE)),'Preliminary SO66'!AN53,VLOOKUP($CW54,'Audit Values'!$A:$BX,62,FALSE)) -> 7 | Z54: =Y54*'Weighting Factors'!$O$8 -> 1.3 | AA54: 1.3 | AB54: =IF(ISNA(VLOOKUP($CW54,'Audit Values'!$A:$BX,2,FALSE)),'Preliminary SO66'!AO53,VLOOKUP($CW54,'Audit Values'!$A:$BX,61,FALSE)) -> 12.7 | AC54: =AB54/6*'Weighting Factors'!$O$6 -> 1.1 | AD54: =IF(ISNA(VLOOKUP($CW54,'Audit Values'!$A:$BV,2,FALSE)),'Preliminary SO66'!AS53,VLOOKUP($CW54,'Audit Values'!$A:$BV,64,FALSE)) -> 108 | AE54: =IF(ISNA(VLOOKUP($CW54,'Audit Values'!$A:$BV,2,FALSE)),'Preliminary SO66'!AP53,VLOOKUP($CW54,'Audit Values'!$A:$BV,65,FALSE)) -> 27 | AF54: =IF(A54=207, AE54,(AE54))*'Weighting Factors'!$O$9 -> 13.1 | AG54: 0 | AH54: =IF(ISNA(VLOOKUP($CW54,'Audit Values'!$A:$BX,2,FALSE)),'Preliminary SO66'!AG53,VLOOKUP($CW54,'Audit Values'!$A:$BX,71,FALSE)) -> 0 | AI54: 0 | AJ54: =IF(ISNA(VLOOKUP($CW54,'Audit Values'!$A:$BV,2,FALSE)),'Preliminary SO66'!AR53,VLOOKUP($CW54,'Audit Values'!$A:$BV,66,FALSE)) -> 29 | AK54: 48250 | AL54: =AK54/'Weighting Factors'!$O$5 -> 10 | AM54: =CJ54/'Weighting Factors'!$O$5 -> 0 | AN54: =CN54/'Weighting Factors'!$O$5 -> 0 | AO54: 85795 | AP54: =AO54/'Weighting Factors'!$O$5 -> 17.7 | AQ54: =IF(ISNA(VLOOKUP($CW54,'Audit Values'!$A:$BV,2,FALSE)),'Preliminary SO66'!X53,VLOOKUP($CW54,'Audit Values'!$A:$BV,48,FALSE)) -> 0 | AR54: 249 | AS54: 231.3 | AT54: =IF(ISNA(VLOOKUP($CW54,'Audit Values'!$A$2:$BV$786,2,FALSE)),'Preliminary SO66'!AA53,VLOOKUP($CW54,'Audit Values'!$A$2:$BV$786,41,FALSE)) -> 0 | AU54: =IF(ISNA(VLOOKUP($CW54,'Audit Values'!$A$2:$BV$786,2,FALSE)),'Preliminary SO66'!AB53,VLOOKUP($CW54,'Audit Values'!$A$2:$BV$786,42,FALSE)) -> 0 | AV54: 0 | AW54: 0 | AX54: =SUM(AT54*'Weighting Factors'!$R$10)+('2023 Legal Max'!AU54*'Weighting Factors'!$R$11)+('2023 Legal Max'!AV54*'Weighting Factors'!$R$12)+('2023 Legal Max'!AW54*'Weighting Factors'!$R$12) -> 0 | AY54: =IF(ISNA(VLOOKUP($CW54,'Audit Values'!$A$2:$BV$805,2,FALSE)),"",IF(AND('Weighting Factors'!G54>0,VLOOKUP($CW54,'Audit Values'!$A$2:$BV$805,51,FALSE)<'Weighting Factors'!G54),'Weighting Factors'!G54,VLOOKUP($CW54,'Audit Values'!$A$2:$BV$805,51,FALSE))) -> 15 | AZ54: =IF(ISNA(VLOOKUP($CW54,'Audit Values'!$A:$BW,2,FALSE)),"",VLOOKUP($CW54,'Audit Values'!$A:$BW,52,FALSE)) -> A | BA54: =IF('Weighting Factors'!F54="","",IF('Weighting Factors'!H54="Pending","PX","R")) -> R | BB54: =SUM((U54+V54+AA54+AC54+AF54+AI54+AL54+AM54+AQ54+AN54)*'Weighting Factors'!$O$5)+'2023 Legal Max'!AX54 -> 1120880 | BC54: =SUM((AR54+AN54)*'Weighting Factors'!$O$5)+AX54 -> 1206654 | BD54: =IF('Weighting Factors'!F54>0,'Weighting Factors'!F54,'Preliminary SO66'!AV53) -> 1295820 | BE54: 1206654 | BF54: ='Weighting Factors'!E54 -> 0 | BG54: =Transportation!G54 -> -1687 | BH54: =IF(ISNA(VLOOKUP($CW54,'Audit Values'!$A$2:$BU$380,2,FALSE)), 0, VLOOKUP($CW54,'Audit Values'!$A$2:$BU$380,73,FALSE)) -> 0 | BI54: -1687 | BJ54: 1204967 | BK54: =SUM((U54+V54+AA54+AC54+AF54+AI54+AL54+AM54+AN54)*'Weighting Factors'!O$12)+(MAX(AO54,'Weighting Factors'!B54)) -> 1234403 | BL54: ='LOB%'!F52 -> 0.33 | BM54: 407353 | BN54: 403746 | BO54: 403746 | BP54: 0.3271 | BQ54: 0 | BR54: TRUE | BS54: 24.138 | BT54: 1.007704 | BU54: 103.3 | BV54: FALSE | BW54: 0 | BX54: 0 | BY54: 0 | BZ54: 0 | CA54: 243 | CB54: 0.119 | CC54: =IF(CB54<0.06,1,IF(CB54>=18.29,52,MATCH(CB54-0.001,'Weighting Factors'!$W$5:$W$156)+1)) -> 7 | CD54: =VLOOKUP(CC54, 'Weighting Factors'!$U$5:$X$56,4) -> 1430 | CE54: =('Weighting Factors'!$O$5/'Weighting Factors'!$O$14) -> 1.1635 | CF54: 41470 | CG54: =CF54*'Weighting Factors'!$Q$7 -> 41470 | CH54: 48250 | CI54: =AK54/'Weighting Factors'!$O$5 -> 10 | CJ54: 0 | CK54: 0 | CL54: 0 | CM54: =SUM((AR54*'Weighting Factors'!$O$5)+'2023 Legal Max'!AX54)*CL54 -> 0 | CN54: 0 | CO54: 0.25 | CP54: 0 | CQ54: 0 | CR54: 249 | CS54: ='Required Transfers'!L54 -> 21237 | CT54: ='Required Transfers'!O54 -> 2099 | CU54: ='Required Transfers'!H54 -> 63483 | CV54: 105.5 | CW54: D0242
A55: 243 | B55: Coffey | C55: Lebo-Waverly | D55: 444.2 | F55: 0 | G55: 444.2 | H55: 451 | J55: 0 | K55: 451 | L55: 447.1 | M55: 0 | N55: 0 | O55: 447.1 | P55: =IF(ISNA(VLOOKUP($CW55,'Audit Values'!$A:$BX,2,FALSE)),'Preliminary SO66'!C54,VLOOKUP($CW55,'Audit Values'!$A:$BX,74,FALSE)) -> 442.2 | Q55: =IF(ISNA(VLOOKUP($CW55,'Audit Values'!$A:$BX,2,FALSE)),'Preliminary SO66'!F54,VLOOKUP($CW55,'Audit Values'!$A$2:$BX$805,4,FALSE)) -> 0 | R55: 442.2 | S55: =IF('Military Provision'!J55="YES", MAX('2023 Legal Max'!O55,'2023 Legal Max'!K55,AVERAGE('2023 Legal Max'!G55,'2023 Legal Max'!K55,'2023 Legal Max'!O55)), MAX(O55, K55)) -> 451 | T55: =IF(ISNA(VLOOKUP($CW55,'Audit Values'!$A:$BV,2,FALSE)),'Preliminary SO66'!AL54,VLOOKUP($CW55,'Audit Values'!$A:$BV,59,FALSE)) -> 7 | U55: 458 | V55: 197.2 | W55: =IF(ISNA(VLOOKUP($CW55,'Audit Values'!$A:$BX,2,FALSE)),'Preliminary SO66'!AM54,VLOOKUP($CW55,'Audit Values'!$A:$BX,63,FALSE)) -> 0 | X55: =(W55/6)*'Weighting Factors'!$O$7 -> 0 | Y55: =IF(ISNA(VLOOKUP($CW55,'Audit Values'!$A:$BX,2,FALSE)),'Preliminary SO66'!AN54,VLOOKUP($CW55,'Audit Values'!$A:$BX,62,FALSE)) -> 0 | Z55: =Y55*'Weighting Factors'!$O$8 -> 0 | AA55: 0 | AB55: =IF(ISNA(VLOOKUP($CW55,'Audit Values'!$A:$BX,2,FALSE)),'Preliminary SO66'!AO54,VLOOKUP($CW55,'Audit Values'!$A:$BX,61,FALSE)) -> 87.5 | AC55: =AB55/6*'Weighting Factors'!$O$6 -> 7.3 | AD55: =IF(ISNA(VLOOKUP($CW55,'Audit Values'!$A:$BV,2,FALSE)),'Preliminary SO66'!AS54,VLOOKUP($CW55,'Audit Values'!$A:$BV,64,FALSE)) -> 470 | AE55: =IF(ISNA(VLOOKUP($CW55,'Audit Values'!$A:$BV,2,FALSE)),'Preliminary SO66'!AP54,VLOOKUP($CW55,'Audit Values'!$A:$BV,65,FALSE)) -> 156 | AF55: =IF(A55=207, AE55,(AE55))*'Weighting Factors'!$O$9 -> 75.5 | AG55: 0 | AH55: =IF(ISNA(VLOOKUP($CW55,'Audit Values'!$A:$BX,2,FALSE)),'Preliminary SO66'!AG54,VLOOKUP($CW55,'Audit Values'!$A:$BX,71,FALSE)) -> 3.1 | AI55: 3.1 | AJ55: =IF(ISNA(VLOOKUP($CW55,'Audit Values'!$A:$BV,2,FALSE)),'Preliminary SO66'!AR54,VLOOKUP($CW55,'Audit Values'!$A:$BV,66,FALSE)) -> 93.5 | AK55: 125105 | AL55: =AK55/'Weighting Factors'!$O$5 -> 25.8 | AM55: =CJ55/'Weighting Factors'!$O$5 -> 0 | AN55: =CN55/'Weighting Factors'!$O$5 -> 0 | AO55: 686331 | AP55: =AO55/'Weighting Factors'!$O$5 -> 141.6 | AQ55: =IF(ISNA(VLOOKUP($CW55,'Audit Values'!$A:$BV,2,FALSE)),'Preliminary SO66'!X54,VLOOKUP($CW55,'Audit Values'!$A:$BV,48,FALSE)) -> 0 | AR55: 908.5 | AS55: 766.9 | AT55: =IF(ISNA(VLOOKUP($CW55,'Audit Values'!$A$2:$BV$786,2,FALSE)),'Preliminary SO66'!AA54,VLOOKUP($CW55,'Audit Values'!$A$2:$BV$786,41,FALSE)) -> 0 | AU55: =IF(ISNA(VLOOKUP($CW55,'Audit Values'!$A$2:$BV$786,2,FALSE)),'Preliminary SO66'!AB54,VLOOKUP($CW55,'Audit Values'!$A$2:$BV$786,42,FALSE)) -> 0 | AV55: 0 | AW55: 0 | AX55: =SUM(AT55*'Weighting Factors'!$R$10)+('2023 Legal Max'!AU55*'Weighting Factors'!$R$11)+('2023 Legal Max'!AV55*'Weighting Factors'!$R$12)+('2023 Legal Max'!AW55*'Weighting Factors'!$R$12) -> 0 | AY55: =IF(ISNA(VLOOKUP($CW55,'Audit Values'!$A$2:$BV$805,2,FALSE)),"",IF(AND('Weighting Factors'!G55>0,VLOOKUP($CW55,'Audit Values'!$A$2:$BV$805,51,FALSE)<'Weighting Factors'!G55),'Weighting Factors'!G55,VLOOKUP($CW55,'Audit Values'!$A$2:$BV$805,51,FALSE))) -> 6 | AZ55: =IF(ISNA(VLOOKUP($CW55,'Audit Values'!$A:$BW,2,FALSE)),"",VLOOKUP($CW55,'Audit Values'!$A:$BW,52,FALSE)) -> A | BA55: =IF('Weighting Factors'!F55="","",IF('Weighting Factors'!H55="Pending","PX","R")) ->  | BB55: =SUM((U55+V55+AA55+AC55+AF55+AI55+AL55+AM55+AQ55+AN55)*'Weighting Factors'!$O$5)+'2023 Legal Max'!AX55 -> 3716397 | BC55: =SUM((AR55+AN55)*'Weighting Factors'!$O$5)+AX55 -> 4402591 | BD55: =IF('Weighting Factors'!F55>0,'Weighting Factors'!F55,'Preliminary SO66'!AV54) -> 4791240 | BE55: 4402591 | BF55: ='Weighting Factors'!E55 -> 0 | BG55: =Transportation!G55 -> 0 | BH55: =IF(ISNA(VLOOKUP($CW55,'Audit Values'!$A$2:$BU$380,2,FALSE)), 0, VLOOKUP($CW55,'Audit Values'!$A$2:$BU$380,73,FALSE)) -> 0 | BI55: 0 | BJ55: 4402591 | BK55: =SUM((U55+V55+AA55+AC55+AF55+AI55+AL55+AM55+AN55)*'Weighting Factors'!O$12)+(MAX(AO55,'Weighting Factors'!B55)) -> 4453344 | BL55: ='LOB%'!F53 -> 0.31 | BM55: 1380537 | BN55: 1501239 | BO55: 1380537 | BP55: 0.31 | BQ55: 0 | BR55: FALSE | BS55: 0 | BT55: 0 | BU55: 0 | BV55: TRUE | BW55: 195.525 | BX55: 0.430506 | BY55: 197.2 | BZ55: 0 | CA55: 248 | CB55: 0.377 | CC55: =IF(CB55<0.06,1,IF(CB55>=18.29,52,MATCH(CB55-0.001,'Weighting Factors'!$W$5:$W$156)+1)) -> 22 | CD55: =VLOOKUP(CC55, 'Weighting Factors'!$U$5:$X$56,4) -> 1150 | CE55: =('Weighting Factors'!$O$5/'Weighting Factors'!$O$14) -> 1.1635 | CF55: 107525 | CG55: =CF55*'Weighting Factors'!$Q$7 -> 107525 | CH55: 125105 | CI55: =AK55/'Weighting Factors'!$O$5 -> 25.8 | CJ55: 0 | CK55: 0 | CL55: 0 | CM55: =SUM((AR55*'Weighting Factors'!$O$5)+'2023 Legal Max'!AX55)*CL55 -> 0 | CN55: 0 | CO55: 0.3319 | CP55: 0 | CQ55: 0 | CR55: 908.5 | CS55: ='Required Transfers'!L55 -> 115551 | CT55: ='Required Transfers'!O55 -> 0 | CU55: ='Required Transfers'!H55 -> 380896 | CV55: 449.2 | CW55: D0243
A56: 244 | B56: Coffey | C56: Burlington | D56: 799 | F56: 0 | G56: 799 | H56: 772.5 | J56: 0 | K56: 772.5 | L56: 785.5 | M56: 0 | N56: 0 | O56: 785.5 | P56: =IF(ISNA(VLOOKUP($CW56,'Audit Values'!$A:$BX,2,FALSE)),'Preliminary SO66'!C55,VLOOKUP($CW56,'Audit Values'!$A:$BX,74,FALSE)) -> 792 | Q56: =IF(ISNA(VLOOKUP($CW56,'Audit Values'!$A:$BX,2,FALSE)),'Preliminary SO66'!F55,VLOOKUP($CW56,'Audit Values'!$A$2:$BX$805,4,FALSE)) -> 0 | R56: 792 | S56: =IF('Military Provision'!J56="YES", MAX('2023 Legal Max'!O56,'2023 Legal Max'!K56,AVERAGE('2023 Legal Max'!G56,'2023 Legal Max'!K56,'2023 Legal Max'!O56)), MAX(O56, K56)) -> 785.5 | T56: =IF(ISNA(VLOOKUP($CW56,'Audit Values'!$A:$BV,2,FALSE)),'Preliminary SO66'!AL55,VLOOKUP($CW56,'Audit Values'!$A:$BV,59,FALSE)) -> 11 | U56: 796.5 | V56: 251.3 | W56: =IF(ISNA(VLOOKUP($CW56,'Audit Values'!$A:$BX,2,FALSE)),'Preliminary SO66'!AM55,VLOOKUP($CW56,'Audit Values'!$A:$BX,63,FALSE)) -> 2.7 | X56: =(W56/6)*'Weighting Factors'!$O$7 -> 0.2 | Y56: =IF(ISNA(VLOOKUP($CW56,'Audit Values'!$A:$BX,2,FALSE)),'Preliminary SO66'!AN55,VLOOKUP($CW56,'Audit Values'!$A:$BX,62,FALSE)) -> 7 | Z56: =Y56*'Weighting Factors'!$O$8 -> 1.3 | AA56: 1.3 | AB56: =IF(ISNA(VLOOKUP($CW56,'Audit Values'!$A:$BX,2,FALSE)),'Preliminary SO66'!AO55,VLOOKUP($CW56,'Audit Values'!$A:$BX,61,FALSE)) -> 306.4 | AC56: =AB56/6*'Weighting Factors'!$O$6 -> 25.5 | AD56: =IF(ISNA(VLOOKUP($CW56,'Audit Values'!$A:$BV,2,FALSE)),'Preliminary SO66'!AS55,VLOOKUP($CW56,'Audit Values'!$A:$BV,64,FALSE)) -> 821 | AE56: =IF(ISNA(VLOOKUP($CW56,'Audit Values'!$A:$BV,2,FALSE)),'Preliminary SO66'!AP55,VLOOKUP($CW56,'Audit Values'!$A:$BV,65,FALSE)) -> 301 | AF56: =IF(A56=207, AE56,(AE56))*'Weighting Factors'!$O$9 -> 145.7 | AG56: 3.5 | AH56: =IF(ISNA(VLOOKUP($CW56,'Audit Values'!$A:$BX,2,FALSE)),'Preliminary SO66'!AG55,VLOOKUP($CW56,'Audit Values'!$A:$BX,71,FALSE)) -> 6.7 | AI56: 6.7 | AJ56: =IF(ISNA(VLOOKUP($CW56,'Audit Values'!$A:$BV,2,FALSE)),'Preliminary SO66'!AR55,VLOOKUP($CW56,'Audit Values'!$A:$BV,66,FALSE)) -> 214 | AK56: 221600 | AL56: =AK56/'Weighting Factors'!$O$5 -> 45.7 | AM56: =CJ56/'Weighting Factors'!$O$5 -> 0 | AN56: =CN56/'Weighting Factors'!$O$5 -> 0 | AO56: 1229493 | AP56: =AO56/'Weighting Factors'!$O$5 -> 253.7 | AQ56: =IF(ISNA(VLOOKUP($CW56,'Audit Values'!$A:$BV,2,FALSE)),'Preliminary SO66'!X55,VLOOKUP($CW56,'Audit Values'!$A:$BV,48,FALSE)) -> 0 | AR56: 1526.4 | AS56: 1272.7 | AT56: =IF(ISNA(VLOOKUP($CW56,'Audit Values'!$A$2:$BV$786,2,FALSE)),'Preliminary SO66'!AA55,VLOOKUP($CW56,'Audit Values'!$A$2:$BV$786,41,FALSE)) -> 0 | AU56: =IF(ISNA(VLOOKUP($CW56,'Audit Values'!$A$2:$BV$786,2,FALSE)),'Preliminary SO66'!AB55,VLOOKUP($CW56,'Audit Values'!$A$2:$BV$786,42,FALSE)) -> 0 | AV56: 0 | AW56: 0 | AX56: =SUM(AT56*'Weighting Factors'!$R$10)+('2023 Legal Max'!AU56*'Weighting Factors'!$R$11)+('2023 Legal Max'!AV56*'Weighting Factors'!$R$12)+('2023 Legal Max'!AW56*'Weighting Factors'!$R$12) -> 0 | AY56: =IF(ISNA(VLOOKUP($CW56,'Audit Values'!$A$2:$BV$805,2,FALSE)),"",IF(AND('Weighting Factors'!G56>0,VLOOKUP($CW56,'Audit Values'!$A$2:$BV$805,51,FALSE)<'Weighting Factors'!G56),'Weighting Factors'!G56,VLOOKUP($CW56,'Audit Values'!$A$2:$BV$805,51,FALSE))) -> 2 | AZ56: =IF(ISNA(VLOOKUP($CW56,'Audit Values'!$A:$BW,2,FALSE)),"",VLOOKUP($CW56,'Audit Values'!$A:$BW,52,FALSE)) -> A | BA56: =IF('Weighting Factors'!F56="","",IF('Weighting Factors'!H56="Pending","PX","R")) ->  | BB56: =SUM((U56+V56+AA56+AC56+AF56+AI56+AL56+AM56+AQ56+AN56)*'Weighting Factors'!$O$5)+'2023 Legal Max'!AX56 -> 6167504 | BC56: =SUM((AR56+AN56)*'Weighting Factors'!$O$5)+AX56 -> 7396934 | BD56: =IF('Weighting Factors'!F56>0,'Weighting Factors'!F56,'Preliminary SO66'!AV55) -> 7620820 | BE56: 7396934 | BF56: ='Weighting Factors'!E56 -> 0 | BG56: =Transportation!G56 -> 0 | BH56: =IF(ISNA(VLOOKUP($CW56,'Audit Values'!$A$2:$BU$380,2,FALSE)), 0, VLOOKUP($CW56,'Audit Values'!$A$2:$BU$380,73,FALSE)) -> 0 | BI56: 0 | BJ56: 7396934 | BK56: =SUM((U56+V56+AA56+AC56+AF56+AI56+AL56+AM56+AN56)*'Weighting Factors'!O$12)+(MAX(AO56,'Weighting Factors'!B56)) -> 7551852 | BL56: ='LOB%'!F54 -> 0.31 | BM56: 2341074 | BN56: 2388599 | BO56: 2341074 | BP56: 0.31 | BQ56: 0 | BR56: FALSE | BS56: 0 | BT56: 0 | BU56: 0 | BV56: TRUE | BW56: 614.4188 | BX56: 0.315501 | BY56: 251.3 | BZ56: 0 | CA56: 147 | CB56: 1.456 | CC56: =IF(CB56<0.06,1,IF(CB56>=18.29,52,MATCH(CB56-0.001,'Weighting Factors'!$W$5:$W$156)+1)) -> 35 | CD56: =VLOOKUP(CC56, 'Weighting Factors'!$U$5:$X$56,4) -> 890 | CE56: =('Weighting Factors'!$O$5/'Weighting Factors'!$O$14) -> 1.1635 | CF56: 190460 | CG56: =CF56*'Weighting Factors'!$Q$7 -> 190460 | CH56: 221600 | CI56: =AK56/'Weighting Factors'!$O$5 -> 45.7 | CJ56: 0 | CK56: 0 | CL56: 0 | CM56: =SUM((AR56*'Weighting Factors'!$O$5)+'2023 Legal Max'!AX56)*CL56 -> 0 | CN56: 0 | CO56: 0.3666 | CP56: 0 | CQ56: 3.5 | CR56: 1526.4 | CS56: ='Required Transfers'!L56 -> 224977 | CT56: ='Required Transfers'!O56 -> 2107 | CU56: ='Required Transfers'!H56 -> 738530 | CV56: 803 | CW56: D0244
A57: 245 | B57: Coffey | C57: LeRoy-Gridley | D57: 182 | F57: 0 | G57: 182 | H57: 164 | J57: 0 | K57: 164 | L57: 156.5 | M57: 0 | N57: 0 | O57: 156.5 | P57: =IF(ISNA(VLOOKUP($CW57,'Audit Values'!$A:$BX,2,FALSE)),'Preliminary SO66'!C56,VLOOKUP($CW57,'Audit Values'!$A:$BX,74,FALSE)) -> 146 | Q57: =IF(ISNA(VLOOKUP($CW57,'Audit Values'!$A:$BX,2,FALSE)),'Preliminary SO66'!F56,VLOOKUP($CW57,'Audit Values'!$A$2:$BX$805,4,FALSE)) -> 0 | R57: 146 | S57: =IF('Military Provision'!J57="YES", MAX('2023 Legal Max'!O57,'2023 Legal Max'!K57,AVERAGE('2023 Legal Max'!G57,'2023 Legal Max'!K57,'2023 Legal Max'!O57)), MAX(O57, K57)) -> 164 | T57: =IF(ISNA(VLOOKUP($CW57,'Audit Values'!$A:$BV,2,FALSE)),'Preliminary SO66'!AL56,VLOOKUP($CW57,'Audit Values'!$A:$BV,59,FALSE)) -> 10.5 | U57: 174.5 | V57: 142.5 | W57: =IF(ISNA(VLOOKUP($CW57,'Audit Values'!$A:$BX,2,FALSE)),'Preliminary SO66'!AM56,VLOOKUP($CW57,'Audit Values'!$A:$BX,63,FALSE)) -> 0 | X57: =(W57/6)*'Weighting Factors'!$O$7 -> 0 | Y57: =IF(ISNA(VLOOKUP($CW57,'Audit Values'!$A:$BX,2,FALSE)),'Preliminary SO66'!AN56,VLOOKUP($CW57,'Audit Values'!$A:$BX,62,FALSE)) -> 0 | Z57: =Y57*'Weighting Factors'!$O$8 -> 0 | AA57: 0 | AB57: =IF(ISNA(VLOOKUP($CW57,'Audit Values'!$A:$BX,2,FALSE)),'Preliminary SO66'!AO56,VLOOKUP($CW57,'Audit Values'!$A:$BX,61,FALSE)) -> 49 | AC57: =AB57/6*'Weighting Factors'!$O$6 -> 4.1 | AD57: =IF(ISNA(VLOOKUP($CW57,'Audit Values'!$A:$BV,2,FALSE)),'Preliminary SO66'!AS56,VLOOKUP($CW57,'Audit Values'!$A:$BV,64,FALSE)) -> 170 | AE57: =IF(ISNA(VLOOKUP($CW57,'Audit Values'!$A:$BV,2,FALSE)),'Preliminary SO66'!AP56,VLOOKUP($CW57,'Audit Values'!$A:$BV,65,FALSE)) -> 92 | AF57: =IF(A57=207, AE57,(AE57))*'Weighting Factors'!$O$9 -> 44.5 | AG57: 9.7 | AH57: =IF(ISNA(VLOOKUP($CW57,'Audit Values'!$A:$BX,2,FALSE)),'Preliminary SO66'!AG56,VLOOKUP($CW57,'Audit Values'!$A:$BX,71,FALSE)) -> 7.9 | AI57: 9.7 | AJ57: =IF(ISNA(VLOOKUP($CW57,'Audit Values'!$A:$BV,2,FALSE)),'Preliminary SO66'!AR56,VLOOKUP($CW57,'Audit Values'!$A:$BV,66,FALSE)) -> 98 | AK57: 124285 | AL57: =AK57/'Weighting Factors'!$O$5 -> 25.6 | AM57: =CJ57/'Weighting Factors'!$O$5 -> 0 | AN57: =CN57/'Weighting Factors'!$O$5 -> 0 | AO57: 204822 | AP57: =AO57/'Weighting Factors'!$O$5 -> 42.3 | AQ57: =IF(ISNA(VLOOKUP($CW57,'Audit Values'!$A:$BV,2,FALSE)),'Preliminary SO66'!X56,VLOOKUP($CW57,'Audit Values'!$A:$BV,48,FALSE)) -> 0 | AR57: 443.2 | AS57: 400.9 | AT57: =IF(ISNA(VLOOKUP($CW57,'Audit Values'!$A$2:$BV$786,2,FALSE)),'Preliminary SO66'!AA56,VLOOKUP($CW57,'Audit Values'!$A$2:$BV$786,41,FALSE)) -> 0 | AU57: =IF(ISNA(VLOOKUP($CW57,'Audit Values'!$A$2:$BV$786,2,FALSE)),'Preliminary SO66'!AB56,VLOOKUP($CW57,'Audit Values'!$A$2:$BV$786,42,FALSE)) -> 0 | AV57: 0 | AW57: 0 | AX57: =SUM(AT57*'Weighting Factors'!$R$10)+('2023 Legal Max'!AU57*'Weighting Factors'!$R$11)+('2023 Legal Max'!AV57*'Weighting Factors'!$R$12)+('2023 Legal Max'!AW57*'Weighting Factors'!$R$12) -> 0 | AY57: =IF(ISNA(VLOOKUP($CW57,'Audit Values'!$A$2:$BV$805,2,FALSE)),"",IF(AND('Weighting Factors'!G57>0,VLOOKUP($CW57,'Audit Values'!$A$2:$BV$805,51,FALSE)<'Weighting Factors'!G57),'Weighting Factors'!G57,VLOOKUP($CW57,'Audit Values'!$A$2:$BV$805,51,FALSE))) -> 21 | AZ57: =IF(ISNA(VLOOKUP($CW57,'Audit Values'!$A:$BW,2,FALSE)),"",VLOOKUP($CW57,'Audit Values'!$A:$BW,52,FALSE)) -> A | BA57: =IF('Weighting Factors'!F57="","",IF('Weighting Factors'!H57="Pending","PX","R")) -> R | BB57: =SUM((U57+V57+AA57+AC57+AF57+AI57+AL57+AM57+AQ57+AN57)*'Weighting Factors'!$O$5)+'2023 Legal Max'!AX57 -> 1942761 | BC57: =SUM((AR57+AN57)*'Weighting Factors'!$O$5)+AX57 -> 2147747 | BD57: =IF('Weighting Factors'!F57>0,'Weighting Factors'!F57,'Preliminary SO66'!AV56) -> 2159862 | BE57: 2147747 | BF57: ='Weighting Factors'!E57 -> 0 | BG57: =Transportation!G57 -> 0 | BH57: =IF(ISNA(VLOOKUP($CW57,'Audit Values'!$A$2:$BU$380,2,FALSE)), 0, VLOOKUP($CW57,'Audit Values'!$A$2:$BU$380,73,FALSE)) -> 0 | BI57: 0 | BJ57: 2147747 | BK57: =SUM((U57+V57+AA57+AC57+AF57+AI57+AL57+AM57+AN57)*'Weighting Factors'!O$12)+(MAX(AO57,'Weighting Factors'!B57)) -> 2269772 | BL57: ='LOB%'!F55 -> 0.31 | BM57: 703629 | BN57: 685204 | BO57: 685204 | BP57: 0.3019 | BQ57: 0 | BR57: TRUE | BS57: 719.298 | BT57: 0.816852 | BU57: 142.5 | BV57: FALSE | BW57: 0 | BX57: 0 | BY57: 0 | BZ57: 0 | CA57: 207 | CB57: 0.473 | CC57: =IF(CB57<0.06,1,IF(CB57>=18.29,52,MATCH(CB57-0.001,'Weighting Factors'!$W$5:$W$156)+1)) -> 25 | CD57: =VLOOKUP(CC57, 'Weighting Factors'!$U$5:$X$56,4) -> 1090 | CE57: =('Weighting Factors'!$O$5/'Weighting Factors'!$O$14) -> 1.1635 | CF57: 106820 | CG57: =CF57*'Weighting Factors'!$Q$7 -> 106820 | CH57: 124285 | CI57: =AK57/'Weighting Factors'!$O$5 -> 25.6 | CJ57: 0 | CK57: 0 | CL57: 0 | CM57: =SUM((AR57*'Weighting Factors'!$O$5)+'2023 Legal Max'!AX57)*CL57 -> 0 | CN57: 0 | CO57: 0.5412 | CP57: 9.7 | CQ57: 0 | CR57: 443.2 | CS57: ='Required Transfers'!L57 -> 70439 | CT57: ='Required Transfers'!O57 -> 0 | CU57: ='Required Transfers'!H57 -> 262653 | CV57: 156.5 | CW57: D0245
A58: 246 | B58: Crawford | C58: Northeast | D58: 449 | F58: 0 | G58: 449 | H58: 424 | J58: 0 | K58: 424 | L58: 445.5 | M58: 0 | N58: 0 | O58: 445.5 | P58: =IF(ISNA(VLOOKUP($CW58,'Audit Values'!$A:$BX,2,FALSE)),'Preliminary SO66'!C57,VLOOKUP($CW58,'Audit Values'!$A:$BX,74,FALSE)) -> 442.9 | Q58: =IF(ISNA(VLOOKUP($CW58,'Audit Values'!$A:$BX,2,FALSE)),'Preliminary SO66'!F57,VLOOKUP($CW58,'Audit Values'!$A$2:$BX$805,4,FALSE)) -> 0 | R58: 442.9 | S58: =IF('Military Provision'!J58="YES", MAX('2023 Legal Max'!O58,'2023 Legal Max'!K58,AVERAGE('2023 Legal Max'!G58,'2023 Legal Max'!K58,'2023 Legal Max'!O58)), MAX(O58, K58)) -> 445.5 | T58: =IF(ISNA(VLOOKUP($CW58,'Audit Values'!$A:$BV,2,FALSE)),'Preliminary SO66'!AL57,VLOOKUP($CW58,'Audit Values'!$A:$BV,59,FALSE)) -> 11.5 | U58: 457 | V58: 196.9 | W58: =IF(ISNA(VLOOKUP($CW58,'Audit Values'!$A:$BX,2,FALSE)),'Preliminary SO66'!AM57,VLOOKUP($CW58,'Audit Values'!$A:$BX,63,FALSE)) -> 0 | X58: =(W58/6)*'Weighting Factors'!$O$7 -> 0 | Y58: =IF(ISNA(VLOOKUP($CW58,'Audit Values'!$A:$BX,2,FALSE)),'Preliminary SO66'!AN57,VLOOKUP($CW58,'Audit Values'!$A:$BX,62,FALSE)) -> 0 | Z58: =Y58*'Weighting Factors'!$O$8 -> 0 | AA58: 0 | AB58: =IF(ISNA(VLOOKUP($CW58,'Audit Values'!$A:$BX,2,FALSE)),'Preliminary SO66'!AO57,VLOOKUP($CW58,'Audit Values'!$A:$BX,61,FALSE)) -> 123.1 | AC58: =AB58/6*'Weighting Factors'!$O$6 -> 10.3 | AD58: =IF(ISNA(VLOOKUP($CW58,'Audit Values'!$A:$BV,2,FALSE)),'Preliminary SO66'!AS57,VLOOKUP($CW58,'Audit Values'!$A:$BV,64,FALSE)) -> 467 | AE58: =IF(ISNA(VLOOKUP($CW58,'Audit Values'!$A:$BV,2,FALSE)),'Preliminary SO66'!AP57,VLOOKUP($CW58,'Audit Values'!$A:$BV,65,FALSE)) -> 315 | AF58: =IF(A58=207, AE58,(AE58))*'Weighting Factors'!$O$9 -> 152.5 | AG58: 33.1 | AH58: =IF(ISNA(VLOOKUP($CW58,'Audit Values'!$A:$BX,2,FALSE)),'Preliminary SO66'!AG57,VLOOKUP($CW58,'Audit Values'!$A:$BX,71,FALSE)) -> 33.1 | AI58: 33.1 | AJ58: =IF(ISNA(VLOOKUP($CW58,'Audit Values'!$A:$BV,2,FALSE)),'Preliminary SO66'!AR57,VLOOKUP($CW58,'Audit Values'!$A:$BV,66,FALSE)) -> 132.5 | AK58: 140289 | AL58: =AK58/'Weighting Factors'!$O$5 -> 28.9 | AM58: =CJ58/'Weighting Factors'!$O$5 -> 0 | AN58: =CN58/'Weighting Factors'!$O$5 -> 0 | AO58: 552746 | AP58: =AO58/'Weighting Factors'!$O$5 -> 114.1 | AQ58: =IF(ISNA(VLOOKUP($CW58,'Audit Values'!$A:$BV,2,FALSE)),'Preliminary SO66'!X57,VLOOKUP($CW58,'Audit Values'!$A:$BV,48,FALSE)) -> 0 | AR58: 992.8 | AS58: 878.7 | AT58: =IF(ISNA(VLOOKUP($CW58,'Audit Values'!$A$2:$BV$786,2,FALSE)),'Preliminary SO66'!AA57,VLOOKUP($CW58,'Audit Values'!$A$2:$BV$786,41,FALSE)) -> 1 | AU58: =IF(ISNA(VLOOKUP($CW58,'Audit Values'!$A$2:$BV$786,2,FALSE)),'Preliminary SO66'!AB57,VLOOKUP($CW58,'Audit Values'!$A$2:$BV$786,42,FALSE)) -> 0.9 | AV58: 0.5 | AW58: 0 | AX58: =SUM(AT58*'Weighting Factors'!$R$10)+('2023 Legal Max'!AU58*'Weighting Factors'!$R$11)+('2023 Legal Max'!AV58*'Weighting Factors'!$R$12)+('2023 Legal Max'!AW58*'Weighting Factors'!$R$12) -> 8475 | AY58: =IF(ISNA(VLOOKUP($CW58,'Audit Values'!$A$2:$BV$805,2,FALSE)),"",IF(AND('Weighting Factors'!G58>0,VLOOKUP($CW58,'Audit Values'!$A$2:$BV$805,51,FALSE)<'Weighting Factors'!G58),'Weighting Factors'!G58,VLOOKUP($CW58,'Audit Values'!$A$2:$BV$805,51,FALSE))) -> 6 | AZ58: =IF(ISNA(VLOOKUP($CW58,'Audit Values'!$A:$BW,2,FALSE)),"",VLOOKUP($CW58,'Audit Values'!$A:$BW,52,FALSE)) -> A | BA58: =IF('Weighting Factors'!F58="","",IF('Weighting Factors'!H58="Pending","PX","R")) ->  | BB58: =SUM((U58+V58+AA58+AC58+AF58+AI58+AL58+AM58+AQ58+AN58)*'Weighting Factors'!$O$5)+'2023 Legal Max'!AX58 -> 4266655 | BC58: =SUM((AR58+AN58)*'Weighting Factors'!$O$5)+AX58 -> 4819584 | BD58: =IF('Weighting Factors'!F58>0,'Weighting Factors'!F58,'Preliminary SO66'!AV57) -> 4846324 | BE58: 4819584 | BF58: ='Weighting Factors'!E58 -> 0 | BG58: =Transportation!G58 -> -841 | BH58: =IF(ISNA(VLOOKUP($CW58,'Audit Values'!$A$2:$BU$380,2,FALSE)), 0, VLOOKUP($CW58,'Audit Values'!$A$2:$BU$380,73,FALSE)) -> 0 | BI58: -841 | BJ58: 4818743 | BK58: =SUM((U58+V58+AA58+AC58+AF58+AI58+AL58+AM58+AN58)*'Weighting Factors'!O$12)+(MAX(AO58,'Weighting Factors'!B58)) -> 4868920 | BL58: ='LOB%'!F56 -> 0.31 | BM58: 1509365 | BN58: 1515080 | BO58: 1509365 | BP58: 0.31 | BQ58: 0 | BR58: FALSE | BS58: 0 | BT58: 0 | BU58: 0 | BV58: TRUE | BW58: 194.2875 | BX58: 0.430846 | BY58: 196.9 | BZ58: 0 | CA58: 106 | CB58: 1.25 | CC58: =IF(CB58<0.06,1,IF(CB58>=18.29,52,MATCH(CB58-0.001,'Weighting Factors'!$W$5:$W$156)+1)) -> 34 | CD58: =VLOOKUP(CC58, 'Weighting Factors'!$U$5:$X$56,4) -> 910 | CE58: =('Weighting Factors'!$O$5/'Weighting Factors'!$O$14) -> 1.1635 | CF58: 120575 | CG58: =CF58*'Weighting Factors'!$Q$7 -> 120575 | CH58: 140289 | CI58: =AK58/'Weighting Factors'!$O$5 -> 28.9 | CJ58: 0 | CK58: 0 | CL58: 0 | CM58: =SUM((AR58*'Weighting Factors'!$O$5)+'2023 Legal Max'!AX58)*CL58 -> 0 | CN58: 0 | CO58: 0.6745 | CP58: 33.1 | CQ58: 0 | CR58: 992.8 | CS58: ='Required Transfers'!L58 -> 234555 | CT58: ='Required Transfers'!O58 -> 0 | CU58: ='Required Transfers'!H58 -> 899418 | CV58: 456.4 | CW58: D0246
A59: 247 | B59: Crawford | C59: Cherokee | D59: 467.1 | F59: 0 | G59: 467.1 | H59: 442.7 | J59: 0 | K59: 442.7 | L59: 426.7 | M59: 0 | N59: 0 | O59: 426.7 | P59: =IF(ISNA(VLOOKUP($CW59,'Audit Values'!$A:$BX,2,FALSE)),'Preliminary SO66'!C58,VLOOKUP($CW59,'Audit Values'!$A:$BX,74,FALSE)) -> 436.5 | Q59: =IF(ISNA(VLOOKUP($CW59,'Audit Values'!$A:$BX,2,FALSE)),'Preliminary SO66'!F58,VLOOKUP($CW59,'Audit Values'!$A$2:$BX$805,4,FALSE)) -> 0 | R59: 436.5 | S59: =IF('Military Provision'!J59="YES", MAX('2023 Legal Max'!O59,'2023 Legal Max'!K59,AVERAGE('2023 Legal Max'!G59,'2023 Legal Max'!K59,'2023 Legal Max'!O59)), MAX(O59, K59)) -> 442.7 | T59: =IF(ISNA(VLOOKUP($CW59,'Audit Values'!$A:$BV,2,FALSE)),'Preliminary SO66'!AL58,VLOOKUP($CW59,'Audit Values'!$A:$BV,59,FALSE)) -> 7 | U59: 449.7 | V59: 194.9 | W59: =IF(ISNA(VLOOKUP($CW59,'Audit Values'!$A:$BX,2,FALSE)),'Preliminary SO66'!AM58,VLOOKUP($CW59,'Audit Values'!$A:$BX,63,FALSE)) -> 0 | X59: =(W59/6)*'Weighting Factors'!$O$7 -> 0 | Y59: =IF(ISNA(VLOOKUP($CW59,'Audit Values'!$A:$BX,2,FALSE)),'Preliminary SO66'!AN58,VLOOKUP($CW59,'Audit Values'!$A:$BX,62,FALSE)) -> 0 | Z59: =Y59*'Weighting Factors'!$O$8 -> 0 | AA59: 0 | AB59: =IF(ISNA(VLOOKUP($CW59,'Audit Values'!$A:$BX,2,FALSE)),'Preliminary SO66'!AO58,VLOOKUP($CW59,'Audit Values'!$A:$BX,61,FALSE)) -> 274 | AC59: =AB59/6*'Weighting Factors'!$O$6 -> 22.8 | AD59: =IF(ISNA(VLOOKUP($CW59,'Audit Values'!$A:$BV,2,FALSE)),'Preliminary SO66'!AS58,VLOOKUP($CW59,'Audit Values'!$A:$BV,64,FALSE)) -> 455 | AE59: =IF(ISNA(VLOOKUP($CW59,'Audit Values'!$A:$BV,2,FALSE)),'Preliminary SO66'!AP58,VLOOKUP($CW59,'Audit Values'!$A:$BV,65,FALSE)) -> 287 | AF59: =IF(A59=207, AE59,(AE59))*'Weighting Factors'!$O$9 -> 138.9 | AG59: 30.1 | AH59: =IF(ISNA(VLOOKUP($CW59,'Audit Values'!$A:$BX,2,FALSE)),'Preliminary SO66'!AG58,VLOOKUP($CW59,'Audit Values'!$A:$BX,71,FALSE)) -> 30.1 | AI59: 30.1 | AJ59: =IF(ISNA(VLOOKUP($CW59,'Audit Values'!$A:$BV,2,FALSE)),'Preliminary SO66'!AR58,VLOOKUP($CW59,'Audit Values'!$A:$BV,66,FALSE)) -> 235 | AK59: 276157 | AL59: =AK59/'Weighting Factors'!$O$5 -> 57 | AM59: =CJ59/'Weighting Factors'!$O$5 -> 0 | AN59: =CN59/'Weighting Factors'!$O$5 -> 0 | AO59: 467357 | AP59: =AO59/'Weighting Factors'!$O$5 -> 96.4 | AQ59: =IF(ISNA(VLOOKUP($CW59,'Audit Values'!$A:$BV,2,FALSE)),'Preliminary SO66'!X58,VLOOKUP($CW59,'Audit Values'!$A:$BV,48,FALSE)) -> 0 | AR59: 989.8 | AS59: 893.4 | AT59: =IF(ISNA(VLOOKUP($CW59,'Audit Values'!$A$2:$BV$786,2,FALSE)),'Preliminary SO66'!AA58,VLOOKUP($CW59,'Audit Values'!$A$2:$BV$786,41,FALSE)) -> 2 | AU59: =IF(ISNA(VLOOKUP($CW59,'Audit Values'!$A$2:$BV$786,2,FALSE)),'Preliminary SO66'!AB58,VLOOKUP($CW59,'Audit Values'!$A$2:$BV$786,42,FALSE)) -> 0 | AV59: 0 | AW59: 1 | AX59: =SUM(AT59*'Weighting Factors'!$R$10)+('2023 Legal Max'!AU59*'Weighting Factors'!$R$11)+('2023 Legal Max'!AV59*'Weighting Factors'!$R$12)+('2023 Legal Max'!AW59*'Weighting Factors'!$R$12) -> 11909 | AY59: =IF(ISNA(VLOOKUP($CW59,'Audit Values'!$A$2:$BV$805,2,FALSE)),"",IF(AND('Weighting Factors'!G59>0,VLOOKUP($CW59,'Audit Values'!$A$2:$BV$805,51,FALSE)<'Weighting Factors'!G59),'Weighting Factors'!G59,VLOOKUP($CW59,'Audit Values'!$A$2:$BV$805,51,FALSE))) -> 13 | AZ59: =IF(ISNA(VLOOKUP($CW59,'Audit Values'!$A:$BW,2,FALSE)),"",VLOOKUP($CW59,'Audit Values'!$A:$BW,52,FALSE)) -> A | BA59: =IF('Weighting Factors'!F59="","",IF('Weighting Factors'!H59="Pending","PX","R")) -> R | BB59: =SUM((U59+V59+AA59+AC59+AF59+AI59+AL59+AM59+AQ59+AN59)*'Weighting Factors'!$O$5)+'2023 Legal Max'!AX59 -> 4341325 | BC59: =SUM((AR59+AN59)*'Weighting Factors'!$O$5)+AX59 -> 4808480 | BD59: =IF('Weighting Factors'!F59>0,'Weighting Factors'!F59,'Preliminary SO66'!AV58) -> 4897422 | BE59: 4808480 | BF59: ='Weighting Factors'!E59 -> 0 | BG59: =Transportation!G59 -> 0 | BH59: =IF(ISNA(VLOOKUP($CW59,'Audit Values'!$A$2:$BU$380,2,FALSE)), 0, VLOOKUP($CW59,'Audit Values'!$A$2:$BU$380,73,FALSE)) -> 0 | BI59: 0 | BJ59: 4808480 | BK59: =SUM((U59+V59+AA59+AC59+AF59+AI59+AL59+AM59+AN59)*'Weighting Factors'!O$12)+(MAX(AO59,'Weighting Factors'!B59)) -> 5045021 | BL59: ='LOB%'!F57 -> 0.33 | BM59: 1664857 | BN59: 1602774 | BO59: 1602774 | BP59: 0.3177 | BQ59: 0 | BR59: FALSE | BS59: 0 | BT59: 0 | BU59: 0 | BV59: TRUE | BW59: 185.2538 | BX59: 0.433326 | BY59: 194.9 | BZ59: 0 | CA59: 300 | CB59: 0.783 | CC59: =IF(CB59<0.06,1,IF(CB59>=18.29,52,MATCH(CB59-0.001,'Weighting Factors'!$W$5:$W$156)+1)) -> 29 | CD59: =VLOOKUP(CC59, 'Weighting Factors'!$U$5:$X$56,4) -> 1010 | CE59: =('Weighting Factors'!$O$5/'Weighting Factors'!$O$14) -> 1.1635 | CF59: 237350 | CG59: =CF59*'Weighting Factors'!$Q$7 -> 237350 | CH59: 276157 | CI59: =AK59/'Weighting Factors'!$O$5 -> 57 | CJ59: 0 | CK59: 0 | CL59: 0 | CM59: =SUM((AR59*'Weighting Factors'!$O$5)+'2023 Legal Max'!AX59)*CL59 -> 0 | CN59: 0 | CO59: 0.6308 | CP59: 30.1 | CQ59: 0 | CR59: 989.8 | CS59: ='Required Transfers'!L59 -> 226472 | CT59: ='Required Transfers'!O59 -> 0 | CU59: ='Required Transfers'!H59 -> 818974 | CV59: 445.5 | CW59: D0247
A60: 248 | B60: Crawford | C60: Girard | D60: 991.5 | F60: 0 | G60: 991.5 | H60: 963 | J60: 0 | K60: 963 | L60: 965.5 | M60: 0 | N60: 0 | O60: 965.5 | P60: =IF(ISNA(VLOOKUP($CW60,'Audit Values'!$A:$BX,2,FALSE)),'Preliminary SO66'!C59,VLOOKUP($CW60,'Audit Values'!$A:$BX,74,FALSE)) -> 979.5 | Q60: =IF(ISNA(VLOOKUP($CW60,'Audit Values'!$A:$BX,2,FALSE)),'Preliminary SO66'!F59,VLOOKUP($CW60,'Audit Values'!$A$2:$BX$805,4,FALSE)) -> 0 | R60: 979.5 | S60: =IF('Military Provision'!J60="YES", MAX('2023 Legal Max'!O60,'2023 Legal Max'!K60,AVERAGE('2023 Legal Max'!G60,'2023 Legal Max'!K60,'2023 Legal Max'!O60)), MAX(O60, K60)) -> 965.5 | T60: =IF(ISNA(VLOOKUP($CW60,'Audit Values'!$A:$BV,2,FALSE)),'Preliminary SO66'!AL59,VLOOKUP($CW60,'Audit Values'!$A:$BV,59,FALSE)) -> 12.5 | U60: 978 | V60: 248.3 | W60: =IF(ISNA(VLOOKUP($CW60,'Audit Values'!$A:$BX,2,FALSE)),'Preliminary SO66'!AM59,VLOOKUP($CW60,'Audit Values'!$A:$BX,63,FALSE)) -> 10.5 | X60: =(W60/6)*'Weighting Factors'!$O$7 -> 0.7 | Y60: =IF(ISNA(VLOOKUP($CW60,'Audit Values'!$A:$BX,2,FALSE)),'Preliminary SO66'!AN59,VLOOKUP($CW60,'Audit Values'!$A:$BX,62,FALSE)) -> 11 | Z60: =Y60*'Weighting Factors'!$O$8 -> 2 | AA60: 2 | AB60: =IF(ISNA(VLOOKUP($CW60,'Audit Values'!$A:$BX,2,FALSE)),'Preliminary SO66'!AO59,VLOOKUP($CW60,'Audit Values'!$A:$BX,61,FALSE)) -> 296.7 | AC60: =AB60/6*'Weighting Factors'!$O$6 -> 24.7 | AD60: =IF(ISNA(VLOOKUP($CW60,'Audit Values'!$A:$BV,2,FALSE)),'Preliminary SO66'!AS59,VLOOKUP($CW60,'Audit Values'!$A:$BV,64,FALSE)) -> 1013 | AE60: =IF(ISNA(VLOOKUP($CW60,'Audit Values'!$A:$BV,2,FALSE)),'Preliminary SO66'!AP59,VLOOKUP($CW60,'Audit Values'!$A:$BV,65,FALSE)) -> 445 | AF60: =IF(A60=207, AE60,(AE60))*'Weighting Factors'!$O$9 -> 215.4 | AG60: 27.8 | AH60: =IF(ISNA(VLOOKUP($CW60,'Audit Values'!$A:$BX,2,FALSE)),'Preliminary SO66'!AG59,VLOOKUP($CW60,'Audit Values'!$A:$BX,71,FALSE)) -> 28.7 | AI60: 28.7 | AJ60: =IF(ISNA(VLOOKUP($CW60,'Audit Values'!$A:$BV,2,FALSE)),'Preliminary SO66'!AR59,VLOOKUP($CW60,'Audit Values'!$A:$BV,66,FALSE)) -> 276 | AK60: 305070 | AL60: =AK60/'Weighting Factors'!$O$5 -> 63 | AM60: =CJ60/'Weighting Factors'!$O$5 -> 0 | AN60: =CN60/'Weighting Factors'!$O$5 -> 0 | AO60: 1043703 | AP60: =AO60/'Weighting Factors'!$O$5 -> 215.4 | AQ60: =IF(ISNA(VLOOKUP($CW60,'Audit Values'!$A:$BV,2,FALSE)),'Preliminary SO66'!X59,VLOOKUP($CW60,'Audit Values'!$A:$BV,48,FALSE)) -> 0 | AR60: 1775.5 | AS60: 1560.1 | AT60: =IF(ISNA(VLOOKUP($CW60,'Audit Values'!$A$2:$BV$786,2,FALSE)),'Preliminary SO66'!AA59,VLOOKUP($CW60,'Audit Values'!$A$2:$BV$786,41,FALSE)) -> 10 | AU60: =IF(ISNA(VLOOKUP($CW60,'Audit Values'!$A$2:$BV$786,2,FALSE)),'Preliminary SO66'!AB59,VLOOKUP($CW60,'Audit Values'!$A$2:$BV$786,42,FALSE)) -> 0 | AV60: 0 | AW60: 5 | AX60: =SUM(AT60*'Weighting Factors'!$R$10)+('2023 Legal Max'!AU60*'Weighting Factors'!$R$11)+('2023 Legal Max'!AV60*'Weighting Factors'!$R$12)+('2023 Legal Max'!AW60*'Weighting Factors'!$R$12) -> 59545 | AY60: =IF(ISNA(VLOOKUP($CW60,'Audit Values'!$A$2:$BV$805,2,FALSE)),"",IF(AND('Weighting Factors'!G60>0,VLOOKUP($CW60,'Audit Values'!$A$2:$BV$805,51,FALSE)<'Weighting Factors'!G60),'Weighting Factors'!G60,VLOOKUP($CW60,'Audit Values'!$A$2:$BV$805,51,FALSE))) -> 25 | AZ60: =IF(ISNA(VLOOKUP($CW60,'Audit Values'!$A:$BW,2,FALSE)),"",VLOOKUP($CW60,'Audit Values'!$A:$BW,52,FALSE)) -> A | BA60: =IF('Weighting Factors'!F60="","",IF('Weighting Factors'!H60="Pending","PX","R")) -> R | BB60: =SUM((U60+V60+AA60+AC60+AF60+AI60+AL60+AM60+AQ60+AN60)*'Weighting Factors'!$O$5)+'2023 Legal Max'!AX60 -> 7619790 | BC60: =SUM((AR60+AN60)*'Weighting Factors'!$O$5)+AX60 -> 8663618 | BD60: =IF('Weighting Factors'!F60>0,'Weighting Factors'!F60,'Preliminary SO66'!AV59) -> 8907219 | BE60: 8663618 | BF60: ='Weighting Factors'!E60 -> 0 | BG60: =Transportation!G60 -> 0 | BH60: =IF(ISNA(VLOOKUP($CW60,'Audit Values'!$A$2:$BU$380,2,FALSE)), 0, VLOOKUP($CW60,'Audit Values'!$A$2:$BU$380,73,FALSE)) -> 0 | BI60: 0 | BJ60: 8663618 | BK60: =SUM((U60+V60+AA60+AC60+AF60+AI60+AL60+AM60+AN60)*'Weighting Factors'!O$12)+(MAX(AO60,'Weighting Factors'!B60)) -> 8706914 | BL60: ='LOB%'!F58 -> 0.31 | BM60: 2699143 | BN60: 2623183 | BO60: 2623183 | BP60: 0.3013 | BQ60: 0 | BR60: FALSE | BS60: 0 | BT60: 0 | BU60: 0 | BV60: TRUE | BW60: 839.025 | BX60: 0.253837 | BY60: 248.3 | BZ60: 0 | CA60: 263 | CB60: 1.049 | CC60: =IF(CB60<0.06,1,IF(CB60>=18.29,52,MATCH(CB60-0.001,'Weighting Factors'!$W$5:$W$156)+1)) -> 32 | CD60: =VLOOKUP(CC60, 'Weighting Factors'!$U$5:$X$56,4) -> 950 | CE60: =('Weighting Factors'!$O$5/'Weighting Factors'!$O$14) -> 1.1635 | CF60: 262200 | CG60: =CF60*'Weighting Factors'!$Q$7 -> 262200 | CH60: 305070 | CI60: =AK60/'Weighting Factors'!$O$5 -> 63 | CJ60: 0 | CK60: 0 | CL60: 0 | CM60: =SUM((AR60*'Weighting Factors'!$O$5)+'2023 Legal Max'!AX60)*CL60 -> 0 | CN60: 0 | CO60: 0.4393 | CP60: 0 | CQ60: 27.8 | CR60: 1775.5 | CS60: ='Required Transfers'!L60 -> 320553 | CT60: ='Required Transfers'!O60 -> 2886 | CU60: ='Required Transfers'!H60 -> 1182909 | CV60: 1002 | CW60: D0248
A61: 249 | B61: Crawford | C61: Frontenac Public Schools | D61: 943.5 | F61: 0 | G61: 943.5 | H61: 930.5 | J61: 0 | K61: 930.5 | L61: 925.5 | M61: 0 | N61: 0 | O61: 925.5 | P61: =IF(ISNA(VLOOKUP($CW61,'Audit Values'!$A:$BX,2,FALSE)),'Preliminary SO66'!C60,VLOOKUP($CW61,'Audit Values'!$A:$BX,74,FALSE)) -> 888 | Q61: =IF(ISNA(VLOOKUP($CW61,'Audit Values'!$A:$BX,2,FALSE)),'Preliminary SO66'!F60,VLOOKUP($CW61,'Audit Values'!$A$2:$BX$805,4,FALSE)) -> 0 | R61: 888 | S61: =IF('Military Provision'!J61="YES", MAX('2023 Legal Max'!O61,'2023 Legal Max'!K61,AVERAGE('2023 Legal Max'!G61,'2023 Legal Max'!K61,'2023 Legal Max'!O61)), MAX(O61, K61)) -> 930.5 | T61: =IF(ISNA(VLOOKUP($CW61,'Audit Values'!$A:$BV,2,FALSE)),'Preliminary SO66'!AL60,VLOOKUP($CW61,'Audit Values'!$A:$BV,59,FALSE)) -> 5 | U61: 935.5 | V61: 251 | W61: =IF(ISNA(VLOOKUP($CW61,'Audit Values'!$A:$BX,2,FALSE)),'Preliminary SO66'!AM60,VLOOKUP($CW61,'Audit Values'!$A:$BX,63,FALSE)) -> 54.3 | X61: =(W61/6)*'Weighting Factors'!$O$7 -> 3.6 | Y61: =IF(ISNA(VLOOKUP($CW61,'Audit Values'!$A:$BX,2,FALSE)),'Preliminary SO66'!AN60,VLOOKUP($CW61,'Audit Values'!$A:$BX,62,FALSE)) -> 24 | Z61: =Y61*'Weighting Factors'!$O$8 -> 4.4 | AA61: 4.4 | AB61: =IF(ISNA(VLOOKUP($CW61,'Audit Values'!$A:$BX,2,FALSE)),'Preliminary SO66'!AO60,VLOOKUP($CW61,'Audit Values'!$A:$BX,61,FALSE)) -> 240.7 | AC61: =AB61/6*'Weighting Factors'!$O$6 -> 20.1 | AD61: =IF(ISNA(VLOOKUP($CW61,'Audit Values'!$A:$BV,2,FALSE)),'Preliminary SO66'!AS60,VLOOKUP($CW61,'Audit Values'!$A:$BV,64,FALSE)) -> 904 | AE61: =IF(ISNA(VLOOKUP($CW61,'Audit Values'!$A:$BV,2,FALSE)),'Preliminary SO66'!AP60,VLOOKUP($CW61,'Audit Values'!$A:$BV,65,FALSE)) -> 294 | AF61: =IF(A61=207, AE61,(AE61))*'Weighting Factors'!$O$9 -> 142.3 | AG61: 0 | AH61: =IF(ISNA(VLOOKUP($CW61,'Audit Values'!$A:$BX,2,FALSE)),'Preliminary SO66'!AG60,VLOOKUP($CW61,'Audit Values'!$A:$BX,71,FALSE)) -> 2.4 | AI61: 2.4 | AJ61: =IF(ISNA(VLOOKUP($CW61,'Audit Values'!$A:$BV,2,FALSE)),'Preliminary SO66'!AR60,VLOOKUP($CW61,'Audit Values'!$A:$BV,66,FALSE)) -> 85 | AK61: 74173 | AL61: =AK61/'Weighting Factors'!$O$5 -> 15.3 | AM61: =CJ61/'Weighting Factors'!$O$5 -> 0 | AN61: =CN61/'Weighting Factors'!$O$5 -> 0 | AO61: 987860 | AP61: =AO61/'Weighting Factors'!$O$5 -> 203.9 | AQ61: =IF(ISNA(VLOOKUP($CW61,'Audit Values'!$A:$BV,2,FALSE)),'Preliminary SO66'!X60,VLOOKUP($CW61,'Audit Values'!$A:$BV,48,FALSE)) -> 0 | AR61: 1574.9 | AS61: 1371 | AT61: =IF(ISNA(VLOOKUP($CW61,'Audit Values'!$A$2:$BV$786,2,FALSE)),'Preliminary SO66'!AA60,VLOOKUP($CW61,'Audit Values'!$A$2:$BV$786,41,FALSE)) -> 7 | AU61: =IF(ISNA(VLOOKUP($CW61,'Audit Values'!$A$2:$BV$786,2,FALSE)),'Preliminary SO66'!AB60,VLOOKUP($CW61,'Audit Values'!$A$2:$BV$786,42,FALSE)) -> 0 | AV61: 0 | AW61: 5 | AX61: =SUM(AT61*'Weighting Factors'!$R$10)+('2023 Legal Max'!AU61*'Weighting Factors'!$R$11)+('2023 Legal Max'!AV61*'Weighting Factors'!$R$12)+('2023 Legal Max'!AW61*'Weighting Factors'!$R$12) -> 42745 | AY61: =IF(ISNA(VLOOKUP($CW61,'Audit Values'!$A$2:$BV$805,2,FALSE)),"",IF(AND('Weighting Factors'!G61>0,VLOOKUP($CW61,'Audit Values'!$A$2:$BV$805,51,FALSE)<'Weighting Factors'!G61),'Weighting Factors'!G61,VLOOKUP($CW61,'Audit Values'!$A$2:$BV$805,51,FALSE))) -> 15 | AZ61: =IF(ISNA(VLOOKUP($CW61,'Audit Values'!$A:$BW,2,FALSE)),"",VLOOKUP($CW61,'Audit Values'!$A:$BW,52,FALSE)) -> A | BA61: =IF('Weighting Factors'!F61="","",IF('Weighting Factors'!H61="Pending","PX","R")) -> R | BB61: =SUM((U61+V61+AA61+AC61+AF61+AI61+AL61+AM61+AQ61+AN61)*'Weighting Factors'!$O$5)+'2023 Legal Max'!AX61 -> 6686611 | BC61: =SUM((AR61+AN61)*'Weighting Factors'!$O$5)+AX61 -> 7674710 | BD61: =IF('Weighting Factors'!F61>0,'Weighting Factors'!F61,'Preliminary SO66'!AV60) -> 7751933 | BE61: 7674710 | BF61: ='Weighting Factors'!E61 -> 0 | BG61: =Transportation!G61 -> 0 | BH61: =IF(ISNA(VLOOKUP($CW61,'Audit Values'!$A$2:$BU$380,2,FALSE)), 0, VLOOKUP($CW61,'Audit Values'!$A$2:$BU$380,73,FALSE)) -> 0 | BI61: 0 | BJ61: 7674710 | BK61: =SUM((U61+V61+AA61+AC61+AF61+AI61+AL61+AM61+AN61)*'Weighting Factors'!O$12)+(MAX(AO61,'Weighting Factors'!B61)) -> 7722212 | BL61: ='LOB%'!F59 -> 0.33 | BM61: 2548330 | BN61: 2542958 | BO61: 2542958 | BP61: 0.3293 | BQ61: 0 | BR61: FALSE | BS61: 0 | BT61: 0 | BU61: 0 | BV61: TRUE | BW61: 786.4313 | BX61: 0.268276 | BY61: 251 | BZ61: 0 | CA61: 22 | CB61: 3.864 | CC61: =IF(CB61<0.06,1,IF(CB61>=18.29,52,MATCH(CB61-0.001,'Weighting Factors'!$W$5:$W$156)+1)) -> 42 | CD61: =VLOOKUP(CC61, 'Weighting Factors'!$U$5:$X$56,4) -> 750 | CE61: =('Weighting Factors'!$O$5/'Weighting Factors'!$O$14) -> 1.1635 | CF61: 63750 | CG61: =CF61*'Weighting Factors'!$Q$7 -> 63750 | CH61: 74173 | CI61: =AK61/'Weighting Factors'!$O$5 -> 15.3 | CJ61: 0 | CK61: 0 | CL61: 0 | CM61: =SUM((AR61*'Weighting Factors'!$O$5)+'2023 Legal Max'!AX61)*CL61 -> 0 | CN61: 0 | CO61: 0.3252 | CP61: 0 | CQ61: 0 | CR61: 1574.9 | CS61: ='Required Transfers'!L61 -> 230392 | CT61: ='Required Transfers'!O61 -> 7120 | CU61: ='Required Transfers'!H61 -> 701216 | CV61: 900 | CW61: D0249
A62: 250 | B62: Crawford | C62: Pittsburg | D62: 3042.3 | F62: 0 | G62: 3042.3 | H62: 3076 | I62: 2 | J62: 0 | K62: 3074 | L62: 3095.6 | M62: 0 | N62: 0 | O62: 3095.6 | P62: =IF(ISNA(VLOOKUP($CW62,'Audit Values'!$A:$BX,2,FALSE)),'Preliminary SO66'!C61,VLOOKUP($CW62,'Audit Values'!$A:$BX,74,FALSE)) -> 3153.4 | Q62: =IF(ISNA(VLOOKUP($CW62,'Audit Values'!$A:$BX,2,FALSE)),'Preliminary SO66'!F61,VLOOKUP($CW62,'Audit Values'!$A$2:$BX$805,4,FALSE)) -> 0 | R62: 3153.4 | S62: =IF('Military Provision'!J62="YES", MAX('2023 Legal Max'!O62,'2023 Legal Max'!K62,AVERAGE('2023 Legal Max'!G62,'2023 Legal Max'!K62,'2023 Legal Max'!O62)), MAX(O62, K62)) -> 3095.6 | T62: =IF(ISNA(VLOOKUP($CW62,'Audit Values'!$A:$BV,2,FALSE)),'Preliminary SO66'!AL61,VLOOKUP($CW62,'Audit Values'!$A:$BV,59,FALSE)) -> 59.5 | U62: 3155.1 | V62: 110.6 | W62: =IF(ISNA(VLOOKUP($CW62,'Audit Values'!$A:$BX,2,FALSE)),'Preliminary SO66'!AM61,VLOOKUP($CW62,'Audit Values'!$A:$BX,63,FALSE)) -> 1354.2 | X62: =(W62/6)*'Weighting Factors'!$O$7 -> 89.2 | Y62: =IF(ISNA(VLOOKUP($CW62,'Audit Values'!$A:$BX,2,FALSE)),'Preliminary SO66'!AN61,VLOOKUP($CW62,'Audit Values'!$A:$BX,62,FALSE)) -> 361 | Z62: =Y62*'Weighting Factors'!$O$8 -> 66.8 | AA62: 89.2 | AB62: =IF(ISNA(VLOOKUP($CW62,'Audit Values'!$A:$BX,2,FALSE)),'Preliminary SO66'!AO61,VLOOKUP($CW62,'Audit Values'!$A:$BX,61,FALSE)) -> 477.5 | AC62: =AB62/6*'Weighting Factors'!$O$6 -> 39.8 | AD62: =IF(ISNA(VLOOKUP($CW62,'Audit Values'!$A:$BV,2,FALSE)),'Preliminary SO66'!AS61,VLOOKUP($CW62,'Audit Values'!$A:$BV,64,FALSE)) -> 3325 | AE62: =IF(ISNA(VLOOKUP($CW62,'Audit Values'!$A:$BV,2,FALSE)),'Preliminary SO66'!AP61,VLOOKUP($CW62,'Audit Values'!$A:$BV,65,FALSE)) -> 1977 | AF62: =IF(A62=207, AE62,(AE62))*'Weighting Factors'!$O$9 -> 956.9 | AG62: 207.6 | AH62: =IF(ISNA(VLOOKUP($CW62,'Audit Values'!$A:$BX,2,FALSE)),'Preliminary SO66'!AG61,VLOOKUP($CW62,'Audit Values'!$A:$BX,71,FALSE)) -> 207.6 | AI62: 207.6 | AJ62: =IF(ISNA(VLOOKUP($CW62,'Audit Values'!$A:$BV,2,FALSE)),'Preliminary SO66'!AR61,VLOOKUP($CW62,'Audit Values'!$A:$BV,66,FALSE)) -> 621.2 | AK62: 426432 | AL62: =AK62/'Weighting Factors'!$O$5 -> 88 | AM62: =CJ62/'Weighting Factors'!$O$5 -> 0 | AN62: =CN62/'Weighting Factors'!$O$5 -> 0 | AO62: 3457085 | AP62: =AO62/'Weighting Factors'!$O$5 -> 713.4 | AQ62: =IF(ISNA(VLOOKUP($CW62,'Audit Values'!$A:$BV,2,FALSE)),'Preliminary SO66'!X61,VLOOKUP($CW62,'Audit Values'!$A:$BV,48,FALSE)) -> 0 | AR62: 5360.6 | AS62: 4647.2 | AT62: =IF(ISNA(VLOOKUP($CW62,'Audit Values'!$A$2:$BV$786,2,FALSE)),'Preliminary SO66'!AA61,VLOOKUP($CW62,'Audit Values'!$A$2:$BV$786,41,FALSE)) -> 14 | AU62: =IF(ISNA(VLOOKUP($CW62,'Audit Values'!$A$2:$BV$786,2,FALSE)),'Preliminary SO66'!AB61,VLOOKUP($CW62,'Audit Values'!$A$2:$BV$786,42,FALSE)) -> 3.2 | AV62: 19.5 | AW62: 0 | AX62: =SUM(AT62*'Weighting Factors'!$R$10)+('2023 Legal Max'!AU62*'Weighting Factors'!$R$11)+('2023 Legal Max'!AV62*'Weighting Factors'!$R$12)+('2023 Legal Max'!AW62*'Weighting Factors'!$R$12) -> 101186 | AY62: =IF(ISNA(VLOOKUP($CW62,'Audit Values'!$A$2:$BV$805,2,FALSE)),"",IF(AND('Weighting Factors'!G62>0,VLOOKUP($CW62,'Audit Values'!$A$2:$BV$805,51,FALSE)<'Weighting Factors'!G62),'Weighting Factors'!G62,VLOOKUP($CW62,'Audit Values'!$A$2:$BV$805,51,FALSE))) -> 14 | AZ62: A | BA62: =IF('Weighting Factors'!F62="","",IF('Weighting Factors'!H62="Pending","PX","R")) -> R | BB62: =SUM((U62+V62+AA62+AC62+AF62+AI62+AL62+AM62+AQ62+AN62)*'Weighting Factors'!$O$5)+'2023 Legal Max'!AX62 -> 22621517 | BC62: =SUM((AR62+AN62)*'Weighting Factors'!$O$5)+AX62 -> 26078654 | BD62: =IF('Weighting Factors'!F62>0,'Weighting Factors'!F62,'Preliminary SO66'!AV61) -> 26662614 | BE62: 26078654 | BF62: ='Weighting Factors'!E62 -> 0 | BG62: =Transportation!G62 -> 0 | BH62: =IF(ISNA(VLOOKUP($CW62,'Audit Values'!$A$2:$BU$380,2,FALSE)), 0, VLOOKUP($CW62,'Audit Values'!$A$2:$BU$380,73,FALSE)) -> 0 | BI62: 0 | BJ62: 26078654 | BK62: =SUM((U62+V62+AA62+AC62+AF62+AI62+AL62+AM62+AN62)*'Weighting Factors'!O$12)+(MAX(AO62,'Weighting Factors'!B62)) -> 26284131 | BL62: ='LOB%'!F60 -> 0.31 | BM62: 8148081 | BN62: 8051882 | BO62: 8051882 | BP62: 0.3063 | BQ62: 0 | BR62: FALSE | BS62: 0 | BT62: 0 | BU62: 0 | BV62: FALSE | BW62: 0 | BX62: 0 | BY62: 0 | BZ62: 110.6 | CA62: 43 | CB62: 14.447 | CC62: =IF(CB62<0.06,1,IF(CB62>=18.29,52,MATCH(CB62-0.001,'Weighting Factors'!$W$5:$W$156)+1)) -> 50 | CD62: =VLOOKUP(CC62, 'Weighting Factors'!$U$5:$X$56,4) -> 590 | CE62: =('Weighting Factors'!$O$5/'Weighting Factors'!$O$14) -> 1.1635 | CF62: 366508 | CG62: =CF62*'Weighting Factors'!$Q$7 -> 366508 | CH62: 426432 | CI62: =AK62/'Weighting Factors'!$O$5 -> 88 | CJ62: 0 | CK62: 0 | CL62: 0 | CM62: =SUM((AR62*'Weighting Factors'!$O$5)+'2023 Legal Max'!AX62)*CL62 -> 0 | CN62: 0 | CO62: 0.5946 | CP62: 207.6 | CQ62: 0 | CR62: 5360.6 | CS62: ='Required Transfers'!L62 -> 1453365 | CT62: ='Required Transfers'!O62 -> 135272 | CU62: ='Required Transfers'!H62 -> 5643167 | CV62: 3233.4 | CW62: D0250
